Workbook

Sheet Main
A3: =MID(MID(CELL("Dateiname"),FIND("[",CELL("Dateiname"))+1,FIND("]",CELL("Dateiname"))-FIND("[",CELL("Dateiname"))-1),1,(LEN(MID(CELL("Dateiname"),FIND("[",CELL("Dateiname"))+1,FIND("]",CELL("Dateiname"))-FIND("[",CELL("Dateiname"))-1)))-(IF((MID(RIGHT(MID(CELL("Dateiname"),FIND("[",CELL("Dateiname"))+1,FIND("]",CELL("Dateiname"))-FIND("[",CELL("Dateiname"))-1),5),1,1))=".",5,4))) -> AnyDim_V2.38 | U3: Änderungshistorie
U4: Ver 1.7 nach 1.8 26.06.2004 Hinzufügen von ca. 300 Linearmotoren ver. Baureihen H. Goergen
U5: Ver 2.0 nach 2.1 14.11.07 H Krug | V5: Berechnung erweitert dass 10 Fremdlinearmotoren berechnet werden können in Reiter "LinMotor".
V6: Reiter "LinMotor": Bei den L1S 25..75 Polpitch auf 48mm gesetzt bei L1S 80..200 Polpitch auf 66mm. Gesetzt
V7: Im Reiter "Main" bei Linmot auswahl in Spalte "R" Fehler im Induktivitätsscheck L>Lmax und Umot> Umot auf Wert "5" in Berechnungsvorschrift geändert
V8: Alle Platinum IC Linearmotoren auf UDC max = 330Vdc geändert
B9: =IF(deutsch,"Allgemeines","General") -> Allgemeines | O9: Sprache/Language
B10: =IF(deutsch,"Bearbeiter:","Author:") -> Bearbeiter: | F10: =IF(deutsch,"Kunde:","Customer:") -> Kunde:
B11: =IF(deutsch,"Datum:","Date:") -> Datum: | F11: =IF(deutsch,"Anwendung:","Application:") -> Anwendung:
B14: =IF(deutsch,"Motorart","Motor type") -> Motorart | C14: =D91 ->  | E14: Drive | G14: Uac max = | H14: =Drives!B2 -> 480 | I14: =IF(Drives!G2="","","P br int =") -> P br int = | J14: =IF(Drives!G2="","",Drives!G2) -> 100 | L14: =IF(deutsch,"AC-Spg. [V]","AC-Voltage [V]") -> AC-Spg. [V] | M14: =MIN(ROUND((UAC_V*SQRT(2)-5)/10,0)*10,640) -> 320 | O14: =IF(deutsch,"Eingabeänderung","Input changes") -> Eingabeänderung
G15: I cont = | H15: =Drives!C2 -> 12 | I15: =IF(Drives!E2="","","L min =") -> L min = | J15: =IF(Drives!E2="","",Drives!E2/H14*UAC_V) -> 1.29375
G16: I peak = | H16: =Drives!D2 -> 24 | I16: =IF(Drives!F2="","","L max =") -> L max = | J16: =IF(Drives!F2="","",Drives!F2/H14*UAC_V) -> 14.375
K17: =IF((Calc!B2-Drives!B2)>0," AC Spannung inkonsistent","") -> 
B18: =IF(deutsch,"Motorlinien","Motor lines") -> Motorlinien
E20: =IF(deutsch,"Mechanische Daten (Abtrieb)","Mech. data (gear output side)") -> Mechanische Daten (Abtrieb) | L20: =IF(deutsch,"Getriebe","Gear") -> Getriebe
E21: =IF(deutsch,"Massenträgheit","Inertia") -> Massenträgheit | G21: =IF(deutsch,"Lastmoment","Load") -> Lastmoment | I21: =IF(deutsch,"Tr.-Reibung","Dry friction") -> Tr.-Reibung | L21: =IF(deutsch,"Faktor","Ratio") -> Faktor | M21: =IF(deutsch,"Trägheit","Inertia") -> Trägheit | N21: =IF(deutsch,"Wirkungsgr.","Efficiency") -> Wirkungsgr. | O21: =IF(deutsch,"Eingangsdrehzahl","Input speed") -> Eingangsdrehzahl | Q21: =IF(deutsch,"Mittl. Drehz.","Avg.-Speed") -> Mittl. Drehz.
E22: [kgcm2] | G22: [Nm] | I22: [Nm] | L22: i | M22: [kgcm2] | N22: h | O22: [1/min] | Q22: [1/min]
D23: =IF(Calc!A31,"","1.") ->  | E23: 25 | G23: 0 | I23: 0 | L23: 1 | M23: 0 | N23: 1 | O23: =IF(move1,gear*MAX(ABS(speed1),ABS(speed2)),gear*MAX(ABS(speed1),ABS(speed2),ABS(speed6))) -> 2400 | Q23: =IF(move1,(((ABS(speed2+speed1)/2*time1+ABS(speed2)*time2+ABS(speed2+speed1)/2*time3+speed1*time4)/time))*gear,(((ABS(speed2+speed1)/2*time1+ABS(speed2)*time2+ABS(speed2+speed1)/2*time3+speed1*time4+ABS(speed6+speed1)/2*time5+ABS(speed6)*time6+ABS(speed6+speed1)/2*time7+speed1*time8)/time))*gear) -> 451.5592516
D25: =IF(Calc!A31,"","2.") ->  | E25: 25 | G25: 0 | I25: 0
L27: =IF(L23>0,"",IF(deutsch,"Fehler: Getriebefaktor <= 0","Error: Gear ratio <= 0")) -> 
E32: =IF(deutsch,"Mechanische Daten","Mechanical data") -> Mechanische Daten
E33: =IF(deutsch,"Gewicht","Weight") -> Gewicht | F33: =IF(deutsch,"Last","Load") -> Last | G33: =IF(deutsch,"Tr.Reibung","Dry Fric.") -> Tr.Reibung | H33: =IF(deutsch,"Wirkungsgr","Efficiency") -> Wirkungsgr
E34: [kg] | F34: [N] | G34: [N] | H34: h
D35: =IF(Calc!A31,"","1.") ->  | E35: 5 | F35: 0 | G35: 0 | H35: 1
D36: =IF(Calc!A31,"","2.") ->  | E36: 5 | F36: 0 | G36: 0
B39: =IF(deutsch,"Bewegungsprofil","Motion profile") -> Bewegungsprofil
B40: =IF(deutsch,"Einheiten / Umdrehung","Units / turn") -> Einheiten / Umdrehung | D40: 1
D43: =IF(deutsch,"Bewegungszeit","Cylce time") -> Bewegungszeit | E43: =IF(deutsch,"Geschwindigkeit","Speed") -> Geschwindigkeit | G43: =IF(deutsch,"Beschleunigung","Acceleration") -> Beschleunigung | I43: Position | Q43: M0 [Nm] | R43: =Calc!A108 -> 4.51
D44: t [ms] | E44: =IF(deutsch,"Abtrieb","Gear output side") -> Abtrieb | G44: =IF(deutsch,"Abtrieb","Gear output side") -> Abtrieb | I44: =IF(deutsch,"Abtrieb","Gear outp.") -> Abtrieb | Q44: I0 [A] | R44: =Calc!A109 -> 4.69
D45: =IF(Calc!A31,time1+time2+time3+time4,time1+time2+time3+time4+time5+time6+time7+time8) -> 481 | E45: =IF(deutsch,"[Einheiten/s]","[Units/s]") -> [Einheiten/s] | F45: [1/min] | G45: =IF(deutsch,"[Einheiten/s2]","[Units/s2]") -> [Einheiten/s2] | H45: [rad/s2] | I45: =IF(deutsch,"[Einheiten]","[Units]") -> [Einheiten] | Q45: Mn [Nm] | R45: =Calc!A110 -> 4.010704566
B46: =IF(deutsch,"Beschleunigung","Acceleration") -> Beschleunigung | C46: t1 [ ms ] | D46: 81 | E46: 0 | F46: =E46/$D$40*60 -> 0 | G46: =(E48-E46)/D46*Calc!B30*1000 -> 775.7037037 | H46: =G46/ULU*2*PI() -> 4873.890114 | I46: =E46*D46/1000+((E48+E46)/2-E46)*D46/1000 -> 1.62 | Q46: In [A] | R46: =Calc!A111 -> 4.134746975
Q47: nn [min-1] | R47: =Calc!A112 -> 2500
B48: =IF(deutsch,"Geschwindigkeit","Speed") -> Geschwindigkeit | C48: t2 [ ms ] | D48: 0 | E48: 40 | F48: =E48/$D$40*60 -> 2400 | G48: 0 | H48: 0 | I48: =I46+E48*D48/1000 -> 1.62 | Q48: Mmax[Nm] | R48: =Calc!A113 -> 12.2
Q49: nmax[min-1] | R49: =Calc!A114 -> 2500
B50: =IF(deutsch,"Verzögerung","Deceleration") -> Verzögerung | C50: t3 [ ms ] | D50: 100 | E50: =E46 -> 0 | F50: =E50/$D$40*60 -> 0 | G50: =(E50-E48)/D50*Calc!B30*1000 -> -628.32 | H50: =G50/ULU*2*PI() -> -3947.850992 | I50: =I48+((E50+E48)/2-E48)*D50/1000+E48*D50/1000 -> 3.62 | Q50: RU-V [W] | R50: =Calc!A115 -> 2.87
Q51: LU-V [mH] | R51: =Calc!A116 -> 11.4
B52: Pause | C52: t4 [ ms ] | D52: 300 | E52: =E46 -> 0 | F52: =E52/$D$40*60 -> 0 | G52: 0 | H52: 0 | I52: =I50+E52*D52/1000 -> 3.62 | Q52: KE [V/103] | R52: =Calc!A117 -> 58.7
Q53: =IF(Calc!A71,"J [kgcm2]","J[10-3kgm2") -> J [kgcm2] | R53: =IF(Calc!A71,10*Calc!A107,Calc!A107) -> 5.86
B54: =IF(deutsch,IF(move1,"","2. Fahrsatz"),IF(move1,"","2. Motion task")) ->  | Q54: UDCmax [V] | R54: =Calc!A118 -> 325
B55: =IF(deutsch,"Beschleunigung","Acceleration") -> Beschleunigung | C55: t5 [ ms ] | D55: 1 | E55: =E46 -> 0 | F55: =E55/$D$40*60 -> 0 | G55: =(E57-E55)/D55*AccType*1000 -> 0 | H55: =G55/ULU*2*PI() -> 0 | I55: =I52+E55*D55/1000+((E57+E55)/2-E55)*D55/1000 -> 3.62
B57: =IF(deutsch,"Geschwindigkeit","Speed") -> Geschwindigkeit | C57: t6 [ ms ] | D57: 0 | E57: 0 | F57: =E57/$D$40*60 -> 0 | G57: 0 | H57: 0 | I57: =I55+E57*D57/1000 -> 3.62
B59: =IF(deutsch,"Verzögerung","Deceleration") -> Verzögerung | C59: t7 [ ms ] | D59: 1 | E59: =E55 -> 0 | F59: =E59/$D$40*60 -> 0 | G59: =(E59-E57)/D59*AccType*1000 -> 0 | H59: =G59/ULU*2*PI() -> 0 | I59: =I57+((E59+E57)/2-E57)*D59/1000+E57*D59/1000 -> 3.62
B61: Pause | C61: t8 [ ms ] | D61: 0 | E61: =E55 -> 0 | F61: =E61/$D$40*60 -> 0 | G61: 0 | H61: 0 | I61: =I59+E61*D61/1000 -> 3.62
B65: =IF(deutsch,"Bewegungsprofil","Motion profile") -> Bewegungsprofil
D69: =IF(deutsch,"Bewegungszeit","Cycle time") -> Bewegungszeit | E69: =IF(deutsch,"Geschwindigkeit","Speed") -> Geschwindigkeit | G69: =IF(deutsch,"Beschleunigung","Acceleration") -> Beschleunigung | I69: Position
D70: t [ms]
B71: =IF(deutsch,IF(move1,"","1. Fahrsatz"),IF(move1,"","1. Motion task")) ->  | D71: =IF(Calc!A31,Ltime1+Ltime2+Ltime3+Ltime4,Ltime1+Ltime2+Ltime3+Ltime4+Ltime5+Ltime6+Ltime7+Ltime8) -> 130 | E71: [m/s] | G71: [m/s2] | I71: [mm] | Q71: Fn [N] | R71: =Calc!A108 -> 4.51
B72: =IF(deutsch,"Beschleunigung","Acceleration") -> Beschleunigung | C72: t1 [ ms ] | D72: 50 | E72: 0 | G72: =(E74-E72)/D72*AccType*1000 -> 31.416 | I72: =E72*D72+((E74+E72)/2-E72)*D72 -> 25 | Q72: In [A] | R72: =Calc!A109 -> 4.69
Q73: Fmax [N] | R73: =Calc!A110 -> 4.010704566
B74: =IF(deutsch,"Geschwindigkeit","Const. speed") -> Geschwindigkeit | C74: t2 [ ms ] | D74: 0 | E74: 1 | G74: 0 | I74: =I72+E74*D74 -> 25 | Q74: Imax [A] | R74: =Calc!A111 -> 4.134746975
Q75: vmax [m/s] | R75: =Calc!A112 -> 2500
B76: =IF(deutsch,"Verzögerung","Deceleration") -> Verzögerung | C76: t3 [ ms ] | D76: 30 | E76: =Lspeed1 -> 0 | G76: =(E76-E74)/D76*AccType*1000 -> -52.36 | I76: =I74+((E76+E74)/2-E74)*D76+E74*D76 -> 40 | Q76: RU-V [W] | R76: =Calc!A113 -> 12.2
Q77: LU-V [mH] | R77: =Calc!A114 -> 2500
B78: Pause | C78: t4 [ ms ] | D78: 50 | E78: =Lspeed1 -> 0 | G78: 0 | I78: =I76+E78*D78 -> 40 | Q78: KE [V/m/s] | R78: =Calc!A115 -> 2.87
Q79: G [kg] | R79: =Calc!A107 -> 0.586
B80: =IF(deutsch,IF(move1,"","2. Fahrsatz"),IF(move1,"","2. Motion task")) ->  | Q80: UDCmax [V] | R80: =Calc!A117 -> 58.7
B81: =IF(deutsch,"Beschleunigung","Acceleration") -> Beschleunigung | C81: t5 [ ms ] | D81: 1 | E81: =Lspeed1 -> 0 | G81: =(E83-E81)/D81*AccType*1000 -> 0 | I81: =I78+E81*D81+((E83+E81)/2-E81)*D81 -> 40
B83: =IF(deutsch,"Geschwindigkeit","Speed") -> Geschwindigkeit | C83: t6 [ ms ] | D83: 0 | E83: 0 | G83: 0 | I83: =I81+E83*D83 -> 40
B85: =IF(deutsch,"Verzögerung","Deceleration") -> Verzögerung | C85: t7 [ ms ] | D85: 1 | E85: =Lspeed1 -> 0 | G85: =(E85-E83)/D85*AccType*1000 -> 0 | I85: =I83+((E85+E83)/2-E83)*D85+E83*D85 -> 40
B87: Pause | C87: t8 [ ms ] | D87: 0 | E87: =Lspeed1 -> 0 | G87: 0 | I87: =I85+E87*D87 -> 40
A91: =IF(deutsch,"Motorkennlinie","Motor curves") -> Motorkennlinie | D91: =IF(Calc!A140=0,"",Calc!A140) ->  | E91: =IF(Calc!B140=0,"",Calc!B140) ->  | F91: =IF(deutsch,"Motordaten","Motor data") -> Motordaten | K91: =IF(deutsch,"Reglerdaten","Drive data") -> Reglerdaten
B92: =IF(deutsch,"Typ","Type") -> Typ | C92: Jext/Jmot | D92: Trms | E92: Tpk | F92: n | G92: T (t1) | H92: T (t2) | I92: T (t3) | J92: T (t4) | K92: Irms | L92: Ipeak | M92: Irms | N92: Ipeak | O92: P | P92: PbrRMS | Q92: PbrPEAK
G93: [Nm] | H93: [Nm] | I93: [Nm] | J93: [Nm] | M93: [A] | N93: [A] | O93: [W] | P93: [W] | Q93: [W]
A94: t | B94: Filter (Maximum) | C94: =IF(jjbar<500,jjbar,IF(deutsch,"alle","all")) -> 15 | D94: =IF(mrmsbar<20,mrmsbar/10,IF(deutsch,"alle","all")) -> 1.2 | E94: =IF(mpkbar<20,mpkbar/10,IF(deutsch,"alle","all")) -> 1.3 | F94: =IF(nbar<20,nbar/10,IF(deutsch,"alle","all")) -> 1.2 | K94: =IF(irmsbar<20,irmsbar/10,IF(deutsch,"alle","all")) -> alle | L94: =IF(ipkbar<20,ipkbar/10,IF(deutsch,"alle","all")) -> alle
B96: =Calc!A70 -> C041B (240 V)
A97: 305 | B97: =IF(Calc!$A$90,INDEX(Motor!$B$1:$B$1452,A97,1),INDEX(LinMotor!$B$1:$B$1291,A97,1)) -> C041B (240 V) | C97: =IF(Calc!$A$90,INDEX(Motor!$T$1:$T$1452,A97,1),INDEX(LinMotor!$R$1:$R$1305,A97,1)) -> 4.266211604 | D97: =IF(Calc!$A$90,INDEX(Motor!$U$1:$U$1452,A97,1),INDEX(LinMotor!$S$1:$S$1305,A97,1)) -> 1.196070847 | E97: =IF(Calc!$A$90,INDEX(Motor!$V$1:$V$1452,A97,1),INDEX(LinMotor!$T$1:$T$1305,A97,1)) -> 1.232854499 | F97: =IF(Calc!$A$90,INDEX(Motor!$W$1:$W$1452,A97,1),INDEX(LinMotor!$U$1:$U$1305,A97,1)) -> 0.96 | G97: =IF(A97<>2,IF(ABS(IF(Calc!$A$90,INDEX(Motor!$X$1:$X$1452,A97,1),INDEX(LinMotor!$V$1:$V$1305,A97,1)))<1000,IF(Calc!$A$90,INDEX(Motor!$X$1:$X$1452,A97,1),INDEX(LinMotor!$V$1:$V$1305,A97,1)),TEXT(IF(Calc!$A$90,INDEX(Motor!$X$1:$X$1452,A97,1),INDEX(LinMotor!$V$1:$V$1305,A97,1))/1000,"0.0k")),"") -> 15.04082489 | H97: =IF(A97<>2,IF(ABS(IF(move1,IF(Calc!$A$90,INDEX(Motor!$Y$1:$Y$1452,A97,1),INDEX(LinMotor!$W$1:$W$1305,A97,1)),IF(Calc!$A$90,INDEX(Motor!$Z$1:$Z$1452,A97,1),INDEX(LinMotor!$X$1:$X$1305,A97,1))))<1000,IF(move1,IF(Calc!$A$90,INDEX(Motor!$Y$1:$Y$1452,A97,1),INDEX(LinMotor!$W$1:$W$1305,A97,1)),IF(Calc!$A$90,INDEX(Motor!$Z$1:$Z$1452,A97,1),INDEX(LinMotor!$X$1:$X$1305,A97,1))),TEXT(IF(move1,IF(Calc!$A$90,INDEX(Motor!$Y$1:$Y$1452,A97,1),INDEX(LinMotor!$W$1:$W$1305,A97,1)),IF(Calc!$A$90,INDEX(Motor!$Z$1:$Z$1452,A97,1),INDEX(LinMotor!$X$1:$X$1305,A97,1)))/1000,"0.0k")),"") -> 0 | I97: =IF(A97<>2,IF(ABS(IF(move1,IF(Calc!$A$90,INDEX(Motor!$Z$1:$Z$1452,A97,1),INDEX(LinMotor!$X$1:$X$1305,A97,1)),IF(Calc!$A$90,INDEX(Motor!$AB$1:$AB$1452,A97,1),INDEX(LinMotor!$Z$1:$Z$1305,A97,1))))<1000,IF(move1,IF(Calc!$A$90,INDEX(Motor!$Z$1:$Z$1452,A97,1),INDEX(LinMotor!$X$1:$X$1305,A97,1)),IF(Calc!$A$90,INDEX(Motor!$AB$1:$AB$1452,A97,1),INDEX(LinMotor!$Z$1:$Z$1305,A97,1))),TEXT(IF(move1,IF(Calc!$A$90,INDEX(Motor!$Z$1:$Z$1452,A97,1),INDEX(LinMotor!$X$1:$X$1305,A97,1)),IF(Calc!$A$90,INDEX(Motor!$AB$1:$AB$1452,A97,1),INDEX(LinMotor!$Z$1:$Z$1305,A97,1)))/1000,"0.0k")),"") -> -12.18306816 | J97: =IF(A97<>2,IF(ABS(IF(move1,IF(Calc!$A$90,INDEX(Motor!$AA$1:$AA$1452,A97,1),INDEX(LinMotor!$Y$1:$Y$1305,A97,1)),IF(Calc!$A$90,INDEX(Motor!$AD$1:$AD$1452,A97,1),INDEX(LinMotor!$AB$1:$AB$1305,A97,1))))<1000,IF(move1,IF(Calc!$A$90,INDEX(Motor!$AA$1:$AA$1452,A97,1),INDEX(LinMotor!$Y$1:$Y$1305,A97,1)),IF(Calc!$A$90,INDEX(Motor!$AD$1:$AD$1452,A97,1),INDEX(LinMotor!$AB$1:$AB$1305,A97,1))),TEXT(IF(move1,IF(Calc!$A$90,INDEX(Motor!$AA$1:$AA$1452,A97,1),INDEX(LinMotor!$Y$1:$Y$1305,A97,1)),IF(Calc!$A$90,INDEX(Motor!$AD$1:$AD$1452,A97,1),INDEX(LinMotor!$AB$1:$AB$1305,A97,1)))/1000,"0.0k")),"") -> 0 | K97: =IF(Calc!$A$90,INDEX(Motor!$AF$1:$AF$1452,A97,1),INDEX(LinMotor!$AD$1:$AD$1305,A97,1)) -> 0.4581166662 | L97: =IF(Calc!$A$90,INDEX(Motor!$AG$1:$AG$1452,A97,1),INDEX(LinMotor!$AE$1:$AE$1305,A97,1)) -> 0.6517134954 | M97: =IF(Calc!$A$90,INDEX(Motor!$AH$1:$AH$1452,A97,1),INDEX(LinMotor!$AF$1:$AF$1305,A97,1)) -> 5.497399994 | N97: =IF(Calc!$A$90,INDEX(Motor!$AI$1:$AI$1452,A97,1),INDEX(LinMotor!$AG$1:$AG$1305,A97,1)) -> 15.64112389 | O97: =IF(A97<>2,IF(IF(Calc!$A$90,INDEX(Motor!$AK$1:$AK$1452,A97,1),INDEX(LinMotor!$AI$1:$AI$1305,A97,1))<1000,IF(Calc!$A$90,INDEX(Motor!$AK$1:$AK$1452,A97,1),INDEX(LinMotor!$AI$1:$AI$1305,A97,1)),TEXT(IF(Calc!$A$90,INDEX(Motor!$AK$1:$AK$1452,A97,1),INDEX(LinMotor!$AI$1:$AI$1305,A97,1))/1000,"0.0k")),"") -> 249.96109 | P97: =IF(A97<>2,IF(IF(Calc!$A$90,INDEX(Motor!$AL$1:$AL$1452,A97,1),INDEX(LinMotor!$AJ$1:$AJ$1305,A97,1))<1000,IF(Calc!$A$90,INDEX(Motor!$AL$1:$AL$1452,A97,1),INDEX(LinMotor!$AJ$1:$AJ$1305,A97,1)),TEXT(IF(Calc!$A$90,INDEX(Motor!$AL$1:$AL$1452,A97,1),INDEX(LinMotor!$AJ$1:$AJ$1305,A97,1))/1000,"0.0k")),"") -> 202.6289923 | Q97: =IF(A97<>2,IF(IF(Calc!$A$90,INDEX(Motor!$AM$1:$AM$1452,A97,1),INDEX(LinMotor!$AK$1:$AK$1305,A97,1))<1000,IF(Calc!$A$90,INDEX(Motor!$AM$1:$AM$1452,A97,1),INDEX(LinMotor!$AK$1:$AK$1305,A97,1)),TEXT(IF(Calc!$A$90,INDEX(Motor!$AM$1:$AM$1452,A97,1),INDEX(LinMotor!$AK$1:$AK$1305,A97,1))/1000,"0.0k")),"") -> 1.9k | R97: =IF(T97=1,"L<Lmin",IF(T97=2,"Udc>Umot",IF(T97=3,"L<Lmin & Udc>Umot",IF(T97=4,"L>Lmax",IF(T97=5,"L>Lmax & Udc>Umot",""))))) -> 
A98: 307 | B98: =IF(Calc!$A$90,INDEX(Motor!$B$1:$B$1452,A98,1),INDEX(LinMotor!$B$1:$B$1291,A98,1)) -> C042B (240 V) | C98: =IF(Calc!$A$90,INDEX(Motor!$T$1:$T$1452,A98,1),INDEX(LinMotor!$R$1:$R$1305,A98,1)) -> 2.81848929 | D98: =IF(Calc!$A$90,INDEX(Motor!$U$1:$U$1452,A98,1),INDEX(LinMotor!$S$1:$S$1305,A98,1)) -> 0.7038328439 | E98: =IF(Calc!$A$90,INDEX(Motor!$V$1:$V$1452,A98,1),INDEX(LinMotor!$T$1:$T$1305,A98,1)) -> 0.7240292024 | F98: =IF(Calc!$A$90,INDEX(Motor!$W$1:$W$1452,A98,1),INDEX(LinMotor!$U$1:$U$1305,A98,1)) -> 0.96 | G98: =IF(A98<>2,IF(ABS(IF(Calc!$A$90,INDEX(Motor!$X$1:$X$1452,A98,1),INDEX(LinMotor!$V$1:$V$1305,A98,1)))<1000,IF(Calc!$A$90,INDEX(Motor!$X$1:$X$1452,A98,1),INDEX(LinMotor!$V$1:$V$1305,A98,1)),TEXT(IF(Calc!$A$90,INDEX(Motor!$X$1:$X$1452,A98,1),INDEX(LinMotor!$V$1:$V$1305,A98,1))/1000,"0.0k")),"") -> 16.50786582 | H98: =IF(A98<>2,IF(ABS(IF(move1,IF(Calc!$A$90,INDEX(Motor!$Y$1:$Y$1452,A98,1),INDEX(LinMotor!$W$1:$W$1305,A98,1)),IF(Calc!$A$90,INDEX(Motor!$Z$1:$Z$1452,A98,1),INDEX(LinMotor!$X$1:$X$1305,A98,1))))<1000,IF(move1,IF(Calc!$A$90,INDEX(Motor!$Y$1:$Y$1452,A98,1),INDEX(LinMotor!$W$1:$W$1305,A98,1)),IF(Calc!$A$90,INDEX(Motor!$Z$1:$Z$1452,A98,1),INDEX(LinMotor!$X$1:$X$1305,A98,1))),TEXT(IF(move1,IF(Calc!$A$90,INDEX(Motor!$Y$1:$Y$1452,A98,1),INDEX(LinMotor!$W$1:$W$1305,A98,1)),IF(Calc!$A$90,INDEX(Motor!$Z$1:$Z$1452,A98,1),INDEX(LinMotor!$X$1:$X$1305,A98,1)))/1000,"0.0k")),"") -> 0 | I98: =IF(A98<>2,IF(ABS(IF(move1,IF(Calc!$A$90,INDEX(Motor!$Z$1:$Z$1452,A98,1),INDEX(LinMotor!$X$1:$X$1305,A98,1)),IF(Calc!$A$90,INDEX(Motor!$AB$1:$AB$1452,A98,1),INDEX(LinMotor!$Z$1:$Z$1305,A98,1))))<1000,IF(move1,IF(Calc!$A$90,INDEX(Motor!$Z$1:$Z$1452,A98,1),INDEX(LinMotor!$X$1:$X$1305,A98,1)),IF(Calc!$A$90,INDEX(Motor!$AB$1:$AB$1452,A98,1),INDEX(LinMotor!$Z$1:$Z$1305,A98,1))),TEXT(IF(move1,IF(Calc!$A$90,INDEX(Motor!$Z$1:$Z$1452,A98,1),INDEX(LinMotor!$X$1:$X$1305,A98,1)),IF(Calc!$A$90,INDEX(Motor!$AB$1:$AB$1452,A98,1),INDEX(LinMotor!$Z$1:$Z$1305,A98,1)))/1000,"0.0k")),"") -> -13.37137131 | J98: =IF(A98<>2,IF(ABS(IF(move1,IF(Calc!$A$90,INDEX(Motor!$AA$1:$AA$1452,A98,1),INDEX(LinMotor!$Y$1:$Y$1305,A98,1)),IF(Calc!$A$90,INDEX(Motor!$AD$1:$AD$1452,A98,1),INDEX(LinMotor!$AB$1:$AB$1305,A98,1))))<1000,IF(move1,IF(Calc!$A$90,INDEX(Motor!$AA$1:$AA$1452,A98,1),INDEX(LinMotor!$Y$1:$Y$1305,A98,1)),IF(Calc!$A$90,INDEX(Motor!$AD$1:$AD$1452,A98,1),INDEX(LinMotor!$AB$1:$AB$1305,A98,1))),TEXT(IF(move1,IF(Calc!$A$90,INDEX(Motor!$AA$1:$AA$1452,A98,1),INDEX(LinMotor!$Y$1:$Y$1305,A98,1)),IF(Calc!$A$90,INDEX(Motor!$AD$1:$AD$1452,A98,1),INDEX(LinMotor!$AB$1:$AB$1305,A98,1)))/1000,"0.0k")),"") -> 0 | K98: =IF(Calc!$A$90,INDEX(Motor!$AF$1:$AF$1452,A98,1),INDEX(LinMotor!$AD$1:$AD$1305,A98,1)) -> 0.5252235781 | L98: =IF(Calc!$A$90,INDEX(Motor!$AG$1:$AG$1452,A98,1),INDEX(LinMotor!$AE$1:$AE$1305,A98,1)) -> 0.7471793087 | M98: =IF(Calc!$A$90,INDEX(Motor!$AH$1:$AH$1452,A98,1),INDEX(LinMotor!$AF$1:$AF$1305,A98,1)) -> 6.302682937 | N98: =IF(Calc!$A$90,INDEX(Motor!$AI$1:$AI$1452,A98,1),INDEX(LinMotor!$AG$1:$AG$1305,A98,1)) -> 17.93230341 | O98: =IF(A98<>2,IF(IF(Calc!$A$90,INDEX(Motor!$AK$1:$AK$1452,A98,1),INDEX(LinMotor!$AI$1:$AI$1305,A98,1))<1000,IF(Calc!$A$90,INDEX(Motor!$AK$1:$AK$1452,A98,1),INDEX(LinMotor!$AI$1:$AI$1305,A98,1)),TEXT(IF(Calc!$A$90,INDEX(Motor!$AK$1:$AK$1452,A98,1),INDEX(LinMotor!$AI$1:$AI$1305,A98,1))/1000,"0.0k")),"") -> 274.341611 | P98: =IF(A98<>2,IF(IF(Calc!$A$90,INDEX(Motor!$AL$1:$AL$1452,A98,1),INDEX(LinMotor!$AJ$1:$AJ$1305,A98,1))<1000,IF(Calc!$A$90,INDEX(Motor!$AL$1:$AL$1452,A98,1),INDEX(LinMotor!$AJ$1:$AJ$1305,A98,1)),TEXT(IF(Calc!$A$90,INDEX(Motor!$AL$1:$AL$1452,A98,1),INDEX(LinMotor!$AJ$1:$AJ$1305,A98,1))/1000,"0.0k")),"") -> 222.39287 | Q98: =IF(A98<>2,IF(IF(Calc!$A$90,INDEX(Motor!$AM$1:$AM$1452,A98,1),INDEX(LinMotor!$AK$1:$AK$1305,A98,1))<1000,IF(Calc!$A$90,INDEX(Motor!$AM$1:$AM$1452,A98,1),INDEX(LinMotor!$AK$1:$AK$1305,A98,1)),TEXT(IF(Calc!$A$90,INDEX(Motor!$AM$1:$AM$1452,A98,1),INDEX(LinMotor!$AK$1:$AK$1305,A98,1))/1000,"0.0k")),"") -> 2.1k | R98: =IF(T98=1,"L<Lmin",IF(T98=2,"Udc>Umot",IF(T98=3,"L<Lmin & Udc>Umot",IF(T98=4,"L>Lmax",IF(T98=5,"L>Lmax & Udc>Umot",""))))) -> 
A99: 309 | B99: =IF(Calc!$A$90,INDEX(Motor!$B$1:$B$1452,A99,1),INDEX(LinMotor!$B$1:$B$1291,A99,1)) -> C043B (240 V) | C99: =IF(Calc!$A$90,INDEX(Motor!$T$1:$T$1452,A99,1),INDEX(LinMotor!$R$1:$R$1305,A99,1)) -> 2.100840336 | D99: =IF(Calc!$A$90,INDEX(Motor!$U$1:$U$1452,A99,1),INDEX(LinMotor!$S$1:$S$1305,A99,1)) -> 0.5829165619 | E99: =IF(Calc!$A$90,INDEX(Motor!$V$1:$V$1452,A99,1),INDEX(LinMotor!$T$1:$T$1305,A99,1)) -> 0.5955183616 | F99: =IF(Calc!$A$90,INDEX(Motor!$W$1:$W$1452,A99,1),INDEX(LinMotor!$U$1:$U$1305,A99,1)) -> 0.96 | G99: =IF(A99<>2,IF(ABS(IF(Calc!$A$90,INDEX(Motor!$X$1:$X$1452,A99,1),INDEX(LinMotor!$V$1:$V$1305,A99,1)))<1000,IF(Calc!$A$90,INDEX(Motor!$X$1:$X$1452,A99,1),INDEX(LinMotor!$V$1:$V$1305,A99,1)),TEXT(IF(Calc!$A$90,INDEX(Motor!$X$1:$X$1452,A99,1),INDEX(LinMotor!$V$1:$V$1305,A99,1))/1000,"0.0k")),"") -> 17.98465452 | H99: =IF(A99<>2,IF(ABS(IF(move1,IF(Calc!$A$90,INDEX(Motor!$Y$1:$Y$1452,A99,1),INDEX(LinMotor!$W$1:$W$1305,A99,1)),IF(Calc!$A$90,INDEX(Motor!$Z$1:$Z$1452,A99,1),INDEX(LinMotor!$X$1:$X$1305,A99,1))))<1000,IF(move1,IF(Calc!$A$90,INDEX(Motor!$Y$1:$Y$1452,A99,1),INDEX(LinMotor!$W$1:$W$1305,A99,1)),IF(Calc!$A$90,INDEX(Motor!$Z$1:$Z$1452,A99,1),INDEX(LinMotor!$X$1:$X$1305,A99,1))),TEXT(IF(move1,IF(Calc!$A$90,INDEX(Motor!$Y$1:$Y$1452,A99,1),INDEX(LinMotor!$W$1:$W$1305,A99,1)),IF(Calc!$A$90,INDEX(Motor!$Z$1:$Z$1452,A99,1),INDEX(LinMotor!$X$1:$X$1305,A99,1)))/1000,"0.0k")),"") -> 0 | I99: =IF(A99<>2,IF(ABS(IF(move1,IF(Calc!$A$90,INDEX(Motor!$Z$1:$Z$1452,A99,1),INDEX(LinMotor!$X$1:$X$1305,A99,1)),IF(Calc!$A$90,INDEX(Motor!$AB$1:$AB$1452,A99,1),INDEX(LinMotor!$Z$1:$Z$1305,A99,1))))<1000,IF(move1,IF(Calc!$A$90,INDEX(Motor!$Z$1:$Z$1452,A99,1),INDEX(LinMotor!$X$1:$X$1305,A99,1)),IF(Calc!$A$90,INDEX(Motor!$AB$1:$AB$1452,A99,1),INDEX(LinMotor!$Z$1:$Z$1305,A99,1))),TEXT(IF(move1,IF(Calc!$A$90,INDEX(Motor!$Z$1:$Z$1452,A99,1),INDEX(LinMotor!$X$1:$X$1305,A99,1)),IF(Calc!$A$90,INDEX(Motor!$AB$1:$AB$1452,A99,1),INDEX(LinMotor!$Z$1:$Z$1305,A99,1)))/1000,"0.0k")),"") -> -14.56757016 | J99: =IF(A99<>2,IF(ABS(IF(move1,IF(Calc!$A$90,INDEX(Motor!$AA$1:$AA$1452,A99,1),INDEX(LinMotor!$Y$1:$Y$1305,A99,1)),IF(Calc!$A$90,INDEX(Motor!$AD$1:$AD$1452,A99,1),INDEX(LinMotor!$AB$1:$AB$1305,A99,1))))<1000,IF(move1,IF(Calc!$A$90,INDEX(Motor!$AA$1:$AA$1452,A99,1),INDEX(LinMotor!$Y$1:$Y$1305,A99,1)),IF(Calc!$A$90,INDEX(Motor!$AD$1:$AD$1452,A99,1),INDEX(LinMotor!$AB$1:$AB$1305,A99,1))),TEXT(IF(move1,IF(Calc!$A$90,INDEX(Motor!$AA$1:$AA$1452,A99,1),INDEX(LinMotor!$Y$1:$Y$1305,A99,1)),IF(Calc!$A$90,INDEX(Motor!$AD$1:$AD$1452,A99,1),INDEX(LinMotor!$AB$1:$AB$1305,A99,1)))/1000,"0.0k")),"") -> 0 | K99: =IF(Calc!$A$90,INDEX(Motor!$AF$1:$AF$1452,A99,1),INDEX(LinMotor!$AD$1:$AD$1305,A99,1)) -> 0.4303415766 | L99: =IF(Calc!$A$90,INDEX(Motor!$AG$1:$AG$1452,A99,1),INDEX(LinMotor!$AE$1:$AE$1305,A99,1)) -> 0.6122008514 | M99: =IF(Calc!$A$90,INDEX(Motor!$AH$1:$AH$1452,A99,1),INDEX(LinMotor!$AF$1:$AF$1305,A99,1)) -> 5.164098919 | N99: =IF(Calc!$A$90,INDEX(Motor!$AI$1:$AI$1452,A99,1),INDEX(LinMotor!$AG$1:$AG$1305,A99,1)) -> 14.69282043 | O99: =IF(A99<>2,IF(IF(Calc!$A$90,INDEX(Motor!$AK$1:$AK$1452,A99,1),INDEX(LinMotor!$AI$1:$AI$1305,A99,1))<1000,IF(Calc!$A$90,INDEX(Motor!$AK$1:$AK$1452,A99,1),INDEX(LinMotor!$AI$1:$AI$1305,A99,1)),TEXT(IF(Calc!$A$90,INDEX(Motor!$AK$1:$AK$1452,A99,1),INDEX(LinMotor!$AI$1:$AI$1305,A99,1))/1000,"0.0k")),"") -> 298.884129 | P99: =IF(A99<>2,IF(IF(Calc!$A$90,INDEX(Motor!$AL$1:$AL$1452,A99,1),INDEX(LinMotor!$AJ$1:$AJ$1305,A99,1))<1000,IF(Calc!$A$90,INDEX(Motor!$AL$1:$AL$1452,A99,1),INDEX(LinMotor!$AJ$1:$AJ$1305,A99,1)),TEXT(IF(Calc!$A$90,INDEX(Motor!$AL$1:$AL$1452,A99,1),INDEX(LinMotor!$AJ$1:$AJ$1305,A99,1))/1000,"0.0k")),"") -> 242.2880692 | Q99: =IF(A99<>2,IF(IF(Calc!$A$90,INDEX(Motor!$AM$1:$AM$1452,A99,1),INDEX(LinMotor!$AK$1:$AK$1305,A99,1))<1000,IF(Calc!$A$90,INDEX(Motor!$AM$1:$AM$1452,A99,1),INDEX(LinMotor!$AK$1:$AK$1305,A99,1)),TEXT(IF(Calc!$A$90,INDEX(Motor!$AM$1:$AM$1452,A99,1),INDEX(LinMotor!$AK$1:$AK$1305,A99,1))/1000,"0.0k")),"") -> 2.3k
A100: 311 | B100: =IF(Calc!$A$90,INDEX(Motor!$B$1:$B$1452,A100,1),INDEX(LinMotor!$B$1:$B$1291,A100,1)) -> C044B (240 V) | C100: =IF(Calc!$A$90,INDEX(Motor!$T$1:$T$1452,A100,1),INDEX(LinMotor!$R$1:$R$1305,A100,1)) -> 1.677852349 | D100: =IF(Calc!$A$90,INDEX(Motor!$U$1:$U$1452,A100,1),INDEX(LinMotor!$S$1:$S$1305,A100,1)) -> 0.4912687072 | E100: =IF(Calc!$A$90,INDEX(Motor!$V$1:$V$1452,A100,1),INDEX(LinMotor!$T$1:$T$1305,A100,1)) -> 0.5012067411 | F100: =IF(Calc!$A$90,INDEX(Motor!$W$1:$W$1452,A100,1),INDEX(LinMotor!$U$1:$U$1305,A100,1)) -> 1.142857143 | G100: =IF(A100<>2,IF(ABS(IF(Calc!$A$90,INDEX(Motor!$X$1:$X$1452,A100,1),INDEX(LinMotor!$V$1:$V$1305,A100,1)))<1000,IF(Calc!$A$90,INDEX(Motor!$X$1:$X$1452,A100,1),INDEX(LinMotor!$V$1:$V$1305,A100,1)),TEXT(IF(Calc!$A$90,INDEX(Motor!$X$1:$X$1452,A100,1),INDEX(LinMotor!$V$1:$V$1305,A100,1))/1000,"0.0k")),"") -> 19.44682155 | H100: =IF(A100<>2,IF(ABS(IF(move1,IF(Calc!$A$90,INDEX(Motor!$Y$1:$Y$1452,A100,1),INDEX(LinMotor!$W$1:$W$1305,A100,1)),IF(Calc!$A$90,INDEX(Motor!$Z$1:$Z$1452,A100,1),INDEX(LinMotor!$X$1:$X$1305,A100,1))))<1000,IF(move1,IF(Calc!$A$90,INDEX(Motor!$Y$1:$Y$1452,A100,1),INDEX(LinMotor!$W$1:$W$1305,A100,1)),IF(Calc!$A$90,INDEX(Motor!$Z$1:$Z$1452,A100,1),INDEX(LinMotor!$X$1:$X$1305,A100,1))),TEXT(IF(move1,IF(Calc!$A$90,INDEX(Motor!$Y$1:$Y$1452,A100,1),INDEX(LinMotor!$W$1:$W$1305,A100,1)),IF(Calc!$A$90,INDEX(Motor!$Z$1:$Z$1452,A100,1),INDEX(LinMotor!$X$1:$X$1305,A100,1)))/1000,"0.0k")),"") -> 0 | I100: =IF(A100<>2,IF(ABS(IF(move1,IF(Calc!$A$90,INDEX(Motor!$Z$1:$Z$1452,A100,1),INDEX(LinMotor!$X$1:$X$1305,A100,1)),IF(Calc!$A$90,INDEX(Motor!$AB$1:$AB$1452,A100,1),INDEX(LinMotor!$Z$1:$Z$1305,A100,1))))<1000,IF(move1,IF(Calc!$A$90,INDEX(Motor!$Z$1:$Z$1452,A100,1),INDEX(LinMotor!$X$1:$X$1305,A100,1)),IF(Calc!$A$90,INDEX(Motor!$AB$1:$AB$1452,A100,1),INDEX(LinMotor!$Z$1:$Z$1305,A100,1))),TEXT(IF(move1,IF(Calc!$A$90,INDEX(Motor!$Z$1:$Z$1452,A100,1),INDEX(LinMotor!$X$1:$X$1305,A100,1)),IF(Calc!$A$90,INDEX(Motor!$AB$1:$AB$1452,A100,1),INDEX(LinMotor!$Z$1:$Z$1305,A100,1)))/1000,"0.0k")),"") -> -15.75192546 | J100: =IF(A100<>2,IF(ABS(IF(move1,IF(Calc!$A$90,INDEX(Motor!$AA$1:$AA$1452,A100,1),INDEX(LinMotor!$Y$1:$Y$1305,A100,1)),IF(Calc!$A$90,INDEX(Motor!$AD$1:$AD$1452,A100,1),INDEX(LinMotor!$AB$1:$AB$1305,A100,1))))<1000,IF(move1,IF(Calc!$A$90,INDEX(Motor!$AA$1:$AA$1452,A100,1),INDEX(LinMotor!$Y$1:$Y$1305,A100,1)),IF(Calc!$A$90,INDEX(Motor!$AD$1:$AD$1452,A100,1),INDEX(LinMotor!$AB$1:$AB$1305,A100,1))),TEXT(IF(move1,IF(Calc!$A$90,INDEX(Motor!$AA$1:$AA$1452,A100,1),INDEX(LinMotor!$Y$1:$Y$1305,A100,1)),IF(Calc!$A$90,INDEX(Motor!$AD$1:$AD$1452,A100,1),INDEX(LinMotor!$AB$1:$AB$1305,A100,1)))/1000,"0.0k")),"") -> 0 | K100: =IF(Calc!$A$90,INDEX(Motor!$AF$1:$AF$1452,A100,1),INDEX(LinMotor!$AD$1:$AD$1305,A100,1)) -> 0.3769529733 | L100: =IF(Calc!$A$90,INDEX(Motor!$AG$1:$AG$1452,A100,1),INDEX(LinMotor!$AE$1:$AE$1305,A100,1)) -> 0.5362506059 | M100: =IF(Calc!$A$90,INDEX(Motor!$AH$1:$AH$1452,A100,1),INDEX(LinMotor!$AF$1:$AF$1305,A100,1)) -> 4.523435679 | N100: =IF(Calc!$A$90,INDEX(Motor!$AI$1:$AI$1452,A100,1),INDEX(LinMotor!$AG$1:$AG$1305,A100,1)) -> 12.87001454 | O100: =IF(A100<>2,IF(IF(Calc!$A$90,INDEX(Motor!$AK$1:$AK$1452,A100,1),INDEX(LinMotor!$AI$1:$AI$1305,A100,1))<1000,IF(Calc!$A$90,INDEX(Motor!$AK$1:$AK$1452,A100,1),INDEX(LinMotor!$AI$1:$AI$1305,A100,1)),TEXT(IF(Calc!$A$90,INDEX(Motor!$AK$1:$AK$1452,A100,1),INDEX(LinMotor!$AI$1:$AI$1305,A100,1))/1000,"0.0k")),"") -> 323.1836516 | P100: =IF(A100<>2,IF(IF(Calc!$A$90,INDEX(Motor!$AL$1:$AL$1452,A100,1),INDEX(LinMotor!$AJ$1:$AJ$1305,A100,1))<1000,IF(Calc!$A$90,INDEX(Motor!$AL$1:$AL$1452,A100,1),INDEX(LinMotor!$AJ$1:$AJ$1305,A100,1)),TEXT(IF(Calc!$A$90,INDEX(Motor!$AL$1:$AL$1452,A100,1),INDEX(LinMotor!$AJ$1:$AJ$1305,A100,1))/1000,"0.0k")),"") -> 261.9862862 | Q100: =IF(A100<>2,IF(IF(Calc!$A$90,INDEX(Motor!$AM$1:$AM$1452,A100,1),INDEX(LinMotor!$AK$1:$AK$1305,A100,1))<1000,IF(Calc!$A$90,INDEX(Motor!$AM$1:$AM$1452,A100,1),INDEX(LinMotor!$AK$1:$AK$1305,A100,1)),TEXT(IF(Calc!$A$90,INDEX(Motor!$AM$1:$AM$1452,A100,1),INDEX(LinMotor!$AK$1:$AK$1305,A100,1))/1000,"0.0k")),"") -> 2.5k
A101: 313 | B101: =IF(Calc!$A$90,INDEX(Motor!$B$1:$B$1452,A101,1),INDEX(LinMotor!$B$1:$B$1291,A101,1)) -> C051B (240 V) | C101: =IF(Calc!$A$90,INDEX(Motor!$T$1:$T$1452,A101,1),INDEX(LinMotor!$R$1:$R$1305,A101,1)) -> 0.9124087591 | D101: =IF(Calc!$A$90,INDEX(Motor!$U$1:$U$1452,A101,1),INDEX(LinMotor!$S$1:$S$1305,A101,1)) -> 0.7806846834 | E101: =IF(Calc!$A$90,INDEX(Motor!$V$1:$V$1452,A101,1),INDEX(LinMotor!$T$1:$T$1305,A101,1)) -> 0.8373503015 | F101: =IF(Calc!$A$90,INDEX(Motor!$W$1:$W$1452,A101,1),INDEX(LinMotor!$U$1:$U$1305,A101,1)) -> 0.9795918367 | G101: =IF(A101<>2,IF(ABS(IF(Calc!$A$90,INDEX(Motor!$X$1:$X$1452,A101,1),INDEX(LinMotor!$V$1:$V$1305,A101,1)))<1000,IF(Calc!$A$90,INDEX(Motor!$X$1:$X$1452,A101,1),INDEX(LinMotor!$V$1:$V$1305,A101,1)),TEXT(IF(Calc!$A$90,INDEX(Motor!$X$1:$X$1452,A101,1),INDEX(LinMotor!$V$1:$V$1305,A101,1))/1000,"0.0k")),"") -> 25.5391842 | H101: =IF(A101<>2,IF(ABS(IF(move1,IF(Calc!$A$90,INDEX(Motor!$Y$1:$Y$1452,A101,1),INDEX(LinMotor!$W$1:$W$1305,A101,1)),IF(Calc!$A$90,INDEX(Motor!$Z$1:$Z$1452,A101,1),INDEX(LinMotor!$X$1:$X$1305,A101,1))))<1000,IF(move1,IF(Calc!$A$90,INDEX(Motor!$Y$1:$Y$1452,A101,1),INDEX(LinMotor!$W$1:$W$1305,A101,1)),IF(Calc!$A$90,INDEX(Motor!$Z$1:$Z$1452,A101,1),INDEX(LinMotor!$X$1:$X$1305,A101,1))),TEXT(IF(move1,IF(Calc!$A$90,INDEX(Motor!$Y$1:$Y$1452,A101,1),INDEX(LinMotor!$W$1:$W$1305,A101,1)),IF(Calc!$A$90,INDEX(Motor!$Z$1:$Z$1452,A101,1),INDEX(LinMotor!$X$1:$X$1305,A101,1)))/1000,"0.0k")),"") -> 0 | I101: =IF(A101<>2,IF(ABS(IF(move1,IF(Calc!$A$90,INDEX(Motor!$Z$1:$Z$1452,A101,1),INDEX(LinMotor!$X$1:$X$1305,A101,1)),IF(Calc!$A$90,INDEX(Motor!$AB$1:$AB$1452,A101,1),INDEX(LinMotor!$Z$1:$Z$1305,A101,1))))<1000,IF(move1,IF(Calc!$A$90,INDEX(Motor!$Z$1:$Z$1452,A101,1),INDEX(LinMotor!$X$1:$X$1305,A101,1)),IF(Calc!$A$90,INDEX(Motor!$AB$1:$AB$1452,A101,1),INDEX(LinMotor!$Z$1:$Z$1305,A101,1))),TEXT(IF(move1,IF(Calc!$A$90,INDEX(Motor!$Z$1:$Z$1452,A101,1),INDEX(LinMotor!$X$1:$X$1305,A101,1)),IF(Calc!$A$90,INDEX(Motor!$AB$1:$AB$1452,A101,1),INDEX(LinMotor!$Z$1:$Z$1305,A101,1)))/1000,"0.0k")),"") -> -20.6867392 | J101: =IF(A101<>2,IF(ABS(IF(move1,IF(Calc!$A$90,INDEX(Motor!$AA$1:$AA$1452,A101,1),INDEX(LinMotor!$Y$1:$Y$1305,A101,1)),IF(Calc!$A$90,INDEX(Motor!$AD$1:$AD$1452,A101,1),INDEX(LinMotor!$AB$1:$AB$1305,A101,1))))<1000,IF(move1,IF(Calc!$A$90,INDEX(Motor!$AA$1:$AA$1452,A101,1),INDEX(LinMotor!$Y$1:$Y$1305,A101,1)),IF(Calc!$A$90,INDEX(Motor!$AD$1:$AD$1452,A101,1),INDEX(LinMotor!$AB$1:$AB$1305,A101,1))),TEXT(IF(move1,IF(Calc!$A$90,INDEX(Motor!$AA$1:$AA$1452,A101,1),INDEX(LinMotor!$Y$1:$Y$1305,A101,1)),IF(Calc!$A$90,INDEX(Motor!$AD$1:$AD$1452,A101,1),INDEX(LinMotor!$AB$1:$AB$1305,A101,1)))/1000,"0.0k")),"") -> 0 | K101: =IF(Calc!$A$90,INDEX(Motor!$AF$1:$AF$1452,A101,1),INDEX(LinMotor!$AD$1:$AD$1305,A101,1)) -> 0.5889099102 | L101: =IF(Calc!$A$90,INDEX(Motor!$AG$1:$AG$1452,A101,1),INDEX(LinMotor!$AE$1:$AE$1305,A101,1)) -> 0.8377790296 | M101: =IF(Calc!$A$90,INDEX(Motor!$AH$1:$AH$1452,A101,1),INDEX(LinMotor!$AF$1:$AF$1305,A101,1)) -> 7.066918922 | N101: =IF(Calc!$A$90,INDEX(Motor!$AI$1:$AI$1452,A101,1),INDEX(LinMotor!$AG$1:$AG$1305,A101,1)) -> 20.10669671 | O101: =IF(A101<>2,IF(IF(Calc!$A$90,INDEX(Motor!$AK$1:$AK$1452,A101,1),INDEX(LinMotor!$AI$1:$AI$1305,A101,1))<1000,IF(Calc!$A$90,INDEX(Motor!$AK$1:$AK$1452,A101,1),INDEX(LinMotor!$AI$1:$AI$1305,A101,1)),TEXT(IF(Calc!$A$90,INDEX(Motor!$AK$1:$AK$1452,A101,1),INDEX(LinMotor!$AI$1:$AI$1305,A101,1))/1000,"0.0k")),"") -> 424.4316628 | P101: =IF(A101<>2,IF(IF(Calc!$A$90,INDEX(Motor!$AL$1:$AL$1452,A101,1),INDEX(LinMotor!$AJ$1:$AJ$1305,A101,1))<1000,IF(Calc!$A$90,INDEX(Motor!$AL$1:$AL$1452,A101,1),INDEX(LinMotor!$AJ$1:$AJ$1305,A101,1)),TEXT(IF(Calc!$A$90,INDEX(Motor!$AL$1:$AL$1452,A101,1),INDEX(LinMotor!$AJ$1:$AJ$1305,A101,1))/1000,"0.0k")),"") -> 344.0621904 | Q101: =IF(A101<>2,IF(IF(Calc!$A$90,INDEX(Motor!$AM$1:$AM$1452,A101,1),INDEX(LinMotor!$AK$1:$AK$1305,A101,1))<1000,IF(Calc!$A$90,INDEX(Motor!$AM$1:$AM$1452,A101,1),INDEX(LinMotor!$AK$1:$AK$1305,A101,1)),TEXT(IF(Calc!$A$90,INDEX(Motor!$AM$1:$AM$1452,A101,1),INDEX(LinMotor!$AK$1:$AK$1305,A101,1))/1000,"0.0k")),"") -> 3.3k
A102: 315 | B102: =IF(Calc!$A$90,INDEX(Motor!$B$1:$B$1452,A102,1),INDEX(LinMotor!$B$1:$B$1291,A102,1)) -> C052B (240 V) | C102: =IF(Calc!$A$90,INDEX(Motor!$T$1:$T$1452,A102,1),INDEX(LinMotor!$R$1:$R$1305,A102,1)) -> 0.6963788301 | D102: =IF(Calc!$A$90,INDEX(Motor!$U$1:$U$1452,A102,1),INDEX(LinMotor!$S$1:$S$1305,A102,1)) -> 0.6513756963 | E102: =IF(Calc!$A$90,INDEX(Motor!$V$1:$V$1452,A102,1),INDEX(LinMotor!$T$1:$T$1305,A102,1)) -> 0.7000469527 | F102: =IF(Calc!$A$90,INDEX(Motor!$W$1:$W$1452,A102,1),INDEX(LinMotor!$U$1:$U$1305,A102,1)) -> 0.96 | G102: =IF(A102<>2,IF(ABS(IF(Calc!$A$90,INDEX(Motor!$X$1:$X$1452,A102,1),INDEX(LinMotor!$V$1:$V$1305,A102,1)))<1000,IF(Calc!$A$90,INDEX(Motor!$X$1:$X$1452,A102,1),INDEX(LinMotor!$V$1:$V$1305,A102,1)),TEXT(IF(Calc!$A$90,INDEX(Motor!$X$1:$X$1452,A102,1),INDEX(LinMotor!$V$1:$V$1305,A102,1))/1000,"0.0k")),"") -> 29.68199079 | H102: =IF(A102<>2,IF(ABS(IF(move1,IF(Calc!$A$90,INDEX(Motor!$Y$1:$Y$1452,A102,1),INDEX(LinMotor!$W$1:$W$1305,A102,1)),IF(Calc!$A$90,INDEX(Motor!$Z$1:$Z$1452,A102,1),INDEX(LinMotor!$X$1:$X$1305,A102,1))))<1000,IF(move1,IF(Calc!$A$90,INDEX(Motor!$Y$1:$Y$1452,A102,1),INDEX(LinMotor!$W$1:$W$1305,A102,1)),IF(Calc!$A$90,INDEX(Motor!$Z$1:$Z$1452,A102,1),INDEX(LinMotor!$X$1:$X$1305,A102,1))),TEXT(IF(move1,IF(Calc!$A$90,INDEX(Motor!$Y$1:$Y$1452,A102,1),INDEX(LinMotor!$W$1:$W$1305,A102,1)),IF(Calc!$A$90,INDEX(Motor!$Z$1:$Z$1452,A102,1),INDEX(LinMotor!$X$1:$X$1305,A102,1)))/1000,"0.0k")),"") -> 0 | I102: =IF(A102<>2,IF(ABS(IF(move1,IF(Calc!$A$90,INDEX(Motor!$Z$1:$Z$1452,A102,1),INDEX(LinMotor!$X$1:$X$1305,A102,1)),IF(Calc!$A$90,INDEX(Motor!$AB$1:$AB$1452,A102,1),INDEX(LinMotor!$Z$1:$Z$1305,A102,1))))<1000,IF(move1,IF(Calc!$A$90,INDEX(Motor!$Z$1:$Z$1452,A102,1),INDEX(LinMotor!$X$1:$X$1305,A102,1)),IF(Calc!$A$90,INDEX(Motor!$AB$1:$AB$1452,A102,1),INDEX(LinMotor!$Z$1:$Z$1305,A102,1))),TEXT(IF(move1,IF(Calc!$A$90,INDEX(Motor!$Z$1:$Z$1452,A102,1),INDEX(LinMotor!$X$1:$X$1305,A102,1)),IF(Calc!$A$90,INDEX(Motor!$AB$1:$AB$1452,A102,1),INDEX(LinMotor!$Z$1:$Z$1305,A102,1)))/1000,"0.0k")),"") -> -24.04241254 | J102: =IF(A102<>2,IF(ABS(IF(move1,IF(Calc!$A$90,INDEX(Motor!$AA$1:$AA$1452,A102,1),INDEX(LinMotor!$Y$1:$Y$1305,A102,1)),IF(Calc!$A$90,INDEX(Motor!$AD$1:$AD$1452,A102,1),INDEX(LinMotor!$AB$1:$AB$1305,A102,1))))<1000,IF(move1,IF(Calc!$A$90,INDEX(Motor!$AA$1:$AA$1452,A102,1),INDEX(LinMotor!$Y$1:$Y$1305,A102,1)),IF(Calc!$A$90,INDEX(Motor!$AD$1:$AD$1452,A102,1),INDEX(LinMotor!$AB$1:$AB$1305,A102,1))),TEXT(IF(move1,IF(Calc!$A$90,INDEX(Motor!$AA$1:$AA$1452,A102,1),INDEX(LinMotor!$Y$1:$Y$1305,A102,1)),IF(Calc!$A$90,INDEX(Motor!$AD$1:$AD$1452,A102,1),INDEX(LinMotor!$AB$1:$AB$1305,A102,1)))/1000,"0.0k")),"") -> 0 | K102: =IF(Calc!$A$90,INDEX(Motor!$AF$1:$AF$1452,A102,1),INDEX(LinMotor!$AD$1:$AD$1305,A102,1)) -> 0.7112970146 | L102: =IF(Calc!$A$90,INDEX(Motor!$AG$1:$AG$1452,A102,1),INDEX(LinMotor!$AE$1:$AE$1305,A102,1)) -> 1.01188605 | M102: =IF(Calc!$A$90,INDEX(Motor!$AH$1:$AH$1452,A102,1),INDEX(LinMotor!$AF$1:$AF$1305,A102,1)) -> 8.535564175 | N102: =IF(Calc!$A$90,INDEX(Motor!$AI$1:$AI$1452,A102,1),INDEX(LinMotor!$AG$1:$AG$1305,A102,1)) -> 24.28526519 | O102: =IF(A102<>2,IF(IF(Calc!$A$90,INDEX(Motor!$AK$1:$AK$1452,A102,1),INDEX(LinMotor!$AI$1:$AI$1305,A102,1))<1000,IF(Calc!$A$90,INDEX(Motor!$AK$1:$AK$1452,A102,1),INDEX(LinMotor!$AI$1:$AI$1305,A102,1)),TEXT(IF(Calc!$A$90,INDEX(Motor!$AK$1:$AK$1452,A102,1),INDEX(LinMotor!$AI$1:$AI$1305,A102,1))/1000,"0.0k")),"") -> 493.2803104 | P102: =IF(A102<>2,IF(IF(Calc!$A$90,INDEX(Motor!$AL$1:$AL$1452,A102,1),INDEX(LinMotor!$AJ$1:$AJ$1305,A102,1))<1000,IF(Calc!$A$90,INDEX(Motor!$AL$1:$AL$1452,A102,1),INDEX(LinMotor!$AJ$1:$AJ$1305,A102,1)),TEXT(IF(Calc!$A$90,INDEX(Motor!$AL$1:$AL$1452,A102,1),INDEX(LinMotor!$AJ$1:$AJ$1305,A102,1))/1000,"0.0k")),"") -> 399.8738053 | Q102: =IF(A102<>2,IF(IF(Calc!$A$90,INDEX(Motor!$AM$1:$AM$1452,A102,1),INDEX(LinMotor!$AK$1:$AK$1305,A102,1))<1000,IF(Calc!$A$90,INDEX(Motor!$AM$1:$AM$1452,A102,1),INDEX(LinMotor!$AK$1:$AK$1305,A102,1)),TEXT(IF(Calc!$A$90,INDEX(Motor!$AM$1:$AM$1452,A102,1),INDEX(LinMotor!$AK$1:$AK$1305,A102,1))/1000,"0.0k")),"") -> 3.8k
A103: 317 | B103: =IF(Calc!$A$90,INDEX(Motor!$B$1:$B$1452,A103,1),INDEX(LinMotor!$B$1:$B$1291,A103,1)) -> C052D (240 V) | C103: =IF(Calc!$A$90,INDEX(Motor!$T$1:$T$1452,A103,1),INDEX(LinMotor!$R$1:$R$1305,A103,1)) -> 0.6963788301 | D103: =IF(Calc!$A$90,INDEX(Motor!$U$1:$U$1452,A103,1),INDEX(LinMotor!$S$1:$S$1305,A103,1)) -> 0.6522251707 | E103: =IF(Calc!$A$90,INDEX(Motor!$V$1:$V$1452,A103,1),INDEX(LinMotor!$T$1:$T$1305,A103,1)) -> 0.70170191 | F103: =IF(Calc!$A$90,INDEX(Motor!$W$1:$W$1452,A103,1),INDEX(LinMotor!$U$1:$U$1305,A103,1)) -> 1.170731707 | G103: =IF(A103<>2,IF(ABS(IF(Calc!$A$90,INDEX(Motor!$X$1:$X$1452,A103,1),INDEX(LinMotor!$V$1:$V$1305,A103,1)))<1000,IF(Calc!$A$90,INDEX(Motor!$X$1:$X$1452,A103,1),INDEX(LinMotor!$V$1:$V$1305,A103,1)),TEXT(IF(Calc!$A$90,INDEX(Motor!$X$1:$X$1452,A103,1),INDEX(LinMotor!$V$1:$V$1305,A103,1))/1000,"0.0k")),"") -> 29.68199079 | H103: =IF(A103<>2,IF(ABS(IF(move1,IF(Calc!$A$90,INDEX(Motor!$Y$1:$Y$1452,A103,1),INDEX(LinMotor!$W$1:$W$1305,A103,1)),IF(Calc!$A$90,INDEX(Motor!$Z$1:$Z$1452,A103,1),INDEX(LinMotor!$X$1:$X$1305,A103,1))))<1000,IF(move1,IF(Calc!$A$90,INDEX(Motor!$Y$1:$Y$1452,A103,1),INDEX(LinMotor!$W$1:$W$1305,A103,1)),IF(Calc!$A$90,INDEX(Motor!$Z$1:$Z$1452,A103,1),INDEX(LinMotor!$X$1:$X$1305,A103,1))),TEXT(IF(move1,IF(Calc!$A$90,INDEX(Motor!$Y$1:$Y$1452,A103,1),INDEX(LinMotor!$W$1:$W$1305,A103,1)),IF(Calc!$A$90,INDEX(Motor!$Z$1:$Z$1452,A103,1),INDEX(LinMotor!$X$1:$X$1305,A103,1)))/1000,"0.0k")),"") -> 0 | I103: =IF(A103<>2,IF(ABS(IF(move1,IF(Calc!$A$90,INDEX(Motor!$Z$1:$Z$1452,A103,1),INDEX(LinMotor!$X$1:$X$1305,A103,1)),IF(Calc!$A$90,INDEX(Motor!$AB$1:$AB$1452,A103,1),INDEX(LinMotor!$Z$1:$Z$1305,A103,1))))<1000,IF(move1,IF(Calc!$A$90,INDEX(Motor!$Z$1:$Z$1452,A103,1),INDEX(LinMotor!$X$1:$X$1305,A103,1)),IF(Calc!$A$90,INDEX(Motor!$AB$1:$AB$1452,A103,1),INDEX(LinMotor!$Z$1:$Z$1305,A103,1))),TEXT(IF(move1,IF(Calc!$A$90,INDEX(Motor!$Z$1:$Z$1452,A103,1),INDEX(LinMotor!$X$1:$X$1305,A103,1)),IF(Calc!$A$90,INDEX(Motor!$AB$1:$AB$1452,A103,1),INDEX(LinMotor!$Z$1:$Z$1305,A103,1)))/1000,"0.0k")),"") -> -24.04241254 | J103: =IF(A103<>2,IF(ABS(IF(move1,IF(Calc!$A$90,INDEX(Motor!$AA$1:$AA$1452,A103,1),INDEX(LinMotor!$Y$1:$Y$1305,A103,1)),IF(Calc!$A$90,INDEX(Motor!$AD$1:$AD$1452,A103,1),INDEX(LinMotor!$AB$1:$AB$1305,A103,1))))<1000,IF(move1,IF(Calc!$A$90,INDEX(Motor!$AA$1:$AA$1452,A103,1),INDEX(LinMotor!$Y$1:$Y$1305,A103,1)),IF(Calc!$A$90,INDEX(Motor!$AD$1:$AD$1452,A103,1),INDEX(LinMotor!$AB$1:$AB$1305,A103,1))),TEXT(IF(move1,IF(Calc!$A$90,INDEX(Motor!$AA$1:$AA$1452,A103,1),INDEX(LinMotor!$Y$1:$Y$1305,A103,1)),IF(Calc!$A$90,INDEX(Motor!$AD$1:$AD$1452,A103,1),INDEX(LinMotor!$AB$1:$AB$1305,A103,1)))/1000,"0.0k")),"") -> 0 | K103: =IF(Calc!$A$90,INDEX(Motor!$AF$1:$AF$1452,A103,1),INDEX(LinMotor!$AD$1:$AD$1305,A103,1)) -> 0.5743064785 | L103: =IF(Calc!$A$90,INDEX(Motor!$AG$1:$AG$1452,A103,1),INDEX(LinMotor!$AE$1:$AE$1305,A103,1)) -> 0.817004292 | M103: =IF(Calc!$A$90,INDEX(Motor!$AH$1:$AH$1452,A103,1),INDEX(LinMotor!$AF$1:$AF$1305,A103,1)) -> 6.891677742 | N103: =IF(Calc!$A$90,INDEX(Motor!$AI$1:$AI$1452,A103,1),INDEX(LinMotor!$AG$1:$AG$1305,A103,1)) -> 19.60810301 | O103: =IF(A103<>2,IF(IF(Calc!$A$90,INDEX(Motor!$AK$1:$AK$1452,A103,1),INDEX(LinMotor!$AI$1:$AI$1305,A103,1))<1000,IF(Calc!$A$90,INDEX(Motor!$AK$1:$AK$1452,A103,1),INDEX(LinMotor!$AI$1:$AI$1305,A103,1)),TEXT(IF(Calc!$A$90,INDEX(Motor!$AK$1:$AK$1452,A103,1),INDEX(LinMotor!$AI$1:$AI$1305,A103,1))/1000,"0.0k")),"") -> 493.2803104 | P103: =IF(A103<>2,IF(IF(Calc!$A$90,INDEX(Motor!$AL$1:$AL$1452,A103,1),INDEX(LinMotor!$AJ$1:$AJ$1305,A103,1))<1000,IF(Calc!$A$90,INDEX(Motor!$AL$1:$AL$1452,A103,1),INDEX(LinMotor!$AJ$1:$AJ$1305,A103,1)),TEXT(IF(Calc!$A$90,INDEX(Motor!$AL$1:$AL$1452,A103,1),INDEX(LinMotor!$AJ$1:$AJ$1305,A103,1))/1000,"0.0k")),"") -> 399.8738053 | Q103: =IF(A103<>2,IF(IF(Calc!$A$90,INDEX(Motor!$AM$1:$AM$1452,A103,1),INDEX(LinMotor!$AK$1:$AK$1305,A103,1))<1000,IF(Calc!$A$90,INDEX(Motor!$AM$1:$AM$1452,A103,1),INDEX(LinMotor!$AK$1:$AK$1305,A103,1)),TEXT(IF(Calc!$A$90,INDEX(Motor!$AM$1:$AM$1452,A103,1),INDEX(LinMotor!$AK$1:$AK$1305,A103,1))/1000,"0.0k")),"") -> 3.8k
A104: 319 | B104: =IF(Calc!$A$90,INDEX(Motor!$B$1:$B$1452,A104,1),INDEX(LinMotor!$B$1:$B$1291,A104,1)) -> C053B (240 V) | C104: =IF(Calc!$A$90,INDEX(Motor!$T$1:$T$1452,A104,1),INDEX(LinMotor!$R$1:$R$1305,A104,1)) -> 0.5643340858 | D104: =IF(Calc!$A$90,INDEX(Motor!$U$1:$U$1452,A104,1),INDEX(LinMotor!$S$1:$S$1305,A104,1)) -> 0.6151020392 | E104: =IF(Calc!$A$90,INDEX(Motor!$V$1:$V$1452,A104,1),INDEX(LinMotor!$T$1:$T$1305,A104,1)) -> 0.6571217605 | F104: =IF(Calc!$A$90,INDEX(Motor!$W$1:$W$1452,A104,1),INDEX(LinMotor!$U$1:$U$1305,A104,1)) -> 0.96 | G104: =IF(A104<>2,IF(ABS(IF(Calc!$A$90,INDEX(Motor!$X$1:$X$1452,A104,1),INDEX(LinMotor!$V$1:$V$1305,A104,1)))<1000,IF(Calc!$A$90,INDEX(Motor!$X$1:$X$1452,A104,1),INDEX(LinMotor!$V$1:$V$1305,A104,1)),TEXT(IF(Calc!$A$90,INDEX(Motor!$X$1:$X$1452,A104,1),INDEX(LinMotor!$V$1:$V$1305,A104,1))/1000,"0.0k")),"") -> 33.77605849 | H104: =IF(A104<>2,IF(ABS(IF(move1,IF(Calc!$A$90,INDEX(Motor!$Y$1:$Y$1452,A104,1),INDEX(LinMotor!$W$1:$W$1305,A104,1)),IF(Calc!$A$90,INDEX(Motor!$Z$1:$Z$1452,A104,1),INDEX(LinMotor!$X$1:$X$1305,A104,1))))<1000,IF(move1,IF(Calc!$A$90,INDEX(Motor!$Y$1:$Y$1452,A104,1),INDEX(LinMotor!$W$1:$W$1305,A104,1)),IF(Calc!$A$90,INDEX(Motor!$Z$1:$Z$1452,A104,1),INDEX(LinMotor!$X$1:$X$1305,A104,1))),TEXT(IF(move1,IF(Calc!$A$90,INDEX(Motor!$Y$1:$Y$1452,A104,1),INDEX(LinMotor!$W$1:$W$1305,A104,1)),IF(Calc!$A$90,INDEX(Motor!$Z$1:$Z$1452,A104,1),INDEX(LinMotor!$X$1:$X$1305,A104,1)))/1000,"0.0k")),"") -> 0 | I104: =IF(A104<>2,IF(ABS(IF(move1,IF(Calc!$A$90,INDEX(Motor!$Z$1:$Z$1452,A104,1),INDEX(LinMotor!$X$1:$X$1305,A104,1)),IF(Calc!$A$90,INDEX(Motor!$AB$1:$AB$1452,A104,1),INDEX(LinMotor!$Z$1:$Z$1305,A104,1))))<1000,IF(move1,IF(Calc!$A$90,INDEX(Motor!$Z$1:$Z$1452,A104,1),INDEX(LinMotor!$X$1:$X$1305,A104,1)),IF(Calc!$A$90,INDEX(Motor!$AB$1:$AB$1452,A104,1),INDEX(LinMotor!$Z$1:$Z$1305,A104,1))),TEXT(IF(move1,IF(Calc!$A$90,INDEX(Motor!$Z$1:$Z$1452,A104,1),INDEX(LinMotor!$X$1:$X$1305,A104,1)),IF(Calc!$A$90,INDEX(Motor!$AB$1:$AB$1452,A104,1),INDEX(LinMotor!$Z$1:$Z$1305,A104,1)))/1000,"0.0k")),"") -> -27.35860738 | J104: =IF(A104<>2,IF(ABS(IF(move1,IF(Calc!$A$90,INDEX(Motor!$AA$1:$AA$1452,A104,1),INDEX(LinMotor!$Y$1:$Y$1305,A104,1)),IF(Calc!$A$90,INDEX(Motor!$AD$1:$AD$1452,A104,1),INDEX(LinMotor!$AB$1:$AB$1305,A104,1))))<1000,IF(move1,IF(Calc!$A$90,INDEX(Motor!$AA$1:$AA$1452,A104,1),INDEX(LinMotor!$Y$1:$Y$1305,A104,1)),IF(Calc!$A$90,INDEX(Motor!$AD$1:$AD$1452,A104,1),INDEX(LinMotor!$AB$1:$AB$1305,A104,1))),TEXT(IF(move1,IF(Calc!$A$90,INDEX(Motor!$AA$1:$AA$1452,A104,1),INDEX(LinMotor!$Y$1:$Y$1305,A104,1)),IF(Calc!$A$90,INDEX(Motor!$AD$1:$AD$1452,A104,1),INDEX(LinMotor!$AB$1:$AB$1305,A104,1)))/1000,"0.0k")),"") -> 0 | K104: =IF(Calc!$A$90,INDEX(Motor!$AF$1:$AF$1452,A104,1),INDEX(LinMotor!$AD$1:$AD$1305,A104,1)) -> 0.900240394 | L104: =IF(Calc!$A$90,INDEX(Motor!$AG$1:$AG$1452,A104,1),INDEX(LinMotor!$AE$1:$AE$1305,A104,1)) -> 1.280675551 | M104: =IF(Calc!$A$90,INDEX(Motor!$AH$1:$AH$1452,A104,1),INDEX(LinMotor!$AF$1:$AF$1305,A104,1)) -> 10.80288473 | N104: =IF(Calc!$A$90,INDEX(Motor!$AI$1:$AI$1452,A104,1),INDEX(LinMotor!$AG$1:$AG$1305,A104,1)) -> 30.73621322 | O104: =IF(A104<>2,IF(IF(Calc!$A$90,INDEX(Motor!$AK$1:$AK$1452,A104,1),INDEX(LinMotor!$AI$1:$AI$1305,A104,1))<1000,IF(Calc!$A$90,INDEX(Motor!$AK$1:$AK$1452,A104,1),INDEX(LinMotor!$AI$1:$AI$1305,A104,1)),TEXT(IF(Calc!$A$90,INDEX(Motor!$AK$1:$AK$1452,A104,1),INDEX(LinMotor!$AI$1:$AI$1305,A104,1))/1000,"0.0k")),"") -> 561.3189739 | P104: =IF(A104<>2,IF(IF(Calc!$A$90,INDEX(Motor!$AL$1:$AL$1452,A104,1),INDEX(LinMotor!$AJ$1:$AJ$1305,A104,1))<1000,IF(Calc!$A$90,INDEX(Motor!$AL$1:$AL$1452,A104,1),INDEX(LinMotor!$AJ$1:$AJ$1305,A104,1)),TEXT(IF(Calc!$A$90,INDEX(Motor!$AL$1:$AL$1452,A104,1),INDEX(LinMotor!$AJ$1:$AJ$1305,A104,1))/1000,"0.0k")),"") -> 455.0288129 | Q104: =IF(A104<>2,IF(IF(Calc!$A$90,INDEX(Motor!$AM$1:$AM$1452,A104,1),INDEX(LinMotor!$AK$1:$AK$1305,A104,1))<1000,IF(Calc!$A$90,INDEX(Motor!$AM$1:$AM$1452,A104,1),INDEX(LinMotor!$AK$1:$AK$1305,A104,1)),TEXT(IF(Calc!$A$90,INDEX(Motor!$AM$1:$AM$1452,A104,1),INDEX(LinMotor!$AK$1:$AK$1305,A104,1))/1000,"0.0k")),"") -> 4.4k
A105: 321 | B105: =IF(Calc!$A$90,INDEX(Motor!$B$1:$B$1452,A105,1),INDEX(LinMotor!$B$1:$B$1291,A105,1)) -> C054B (240 V) | C105: =IF(Calc!$A$90,INDEX(Motor!$T$1:$T$1452,A105,1),INDEX(LinMotor!$R$1:$R$1305,A105,1)) -> 0.4734848485 | D105: =IF(Calc!$A$90,INDEX(Motor!$U$1:$U$1452,A105,1),INDEX(LinMotor!$S$1:$S$1305,A105,1)) -> 0.5799530311 | E105: =IF(Calc!$A$90,INDEX(Motor!$V$1:$V$1452,A105,1),INDEX(LinMotor!$T$1:$T$1305,A105,1)) -> 0.6226414628 | F105: =IF(Calc!$A$90,INDEX(Motor!$W$1:$W$1452,A105,1),INDEX(LinMotor!$U$1:$U$1305,A105,1)) -> 1.043478261 | G105: =IF(A105<>2,IF(ABS(IF(Calc!$A$90,INDEX(Motor!$X$1:$X$1452,A105,1),INDEX(LinMotor!$V$1:$V$1305,A105,1)))<1000,IF(Calc!$A$90,INDEX(Motor!$X$1:$X$1452,A105,1),INDEX(LinMotor!$V$1:$V$1305,A105,1)),TEXT(IF(Calc!$A$90,INDEX(Motor!$X$1:$X$1452,A105,1),INDEX(LinMotor!$V$1:$V$1305,A105,1))/1000,"0.0k")),"") -> 37.91886509 | H105: =IF(A105<>2,IF(ABS(IF(move1,IF(Calc!$A$90,INDEX(Motor!$Y$1:$Y$1452,A105,1),INDEX(LinMotor!$W$1:$W$1305,A105,1)),IF(Calc!$A$90,INDEX(Motor!$Z$1:$Z$1452,A105,1),INDEX(LinMotor!$X$1:$X$1305,A105,1))))<1000,IF(move1,IF(Calc!$A$90,INDEX(Motor!$Y$1:$Y$1452,A105,1),INDEX(LinMotor!$W$1:$W$1305,A105,1)),IF(Calc!$A$90,INDEX(Motor!$Z$1:$Z$1452,A105,1),INDEX(LinMotor!$X$1:$X$1305,A105,1))),TEXT(IF(move1,IF(Calc!$A$90,INDEX(Motor!$Y$1:$Y$1452,A105,1),INDEX(LinMotor!$W$1:$W$1305,A105,1)),IF(Calc!$A$90,INDEX(Motor!$Z$1:$Z$1452,A105,1),INDEX(LinMotor!$X$1:$X$1305,A105,1)))/1000,"0.0k")),"") -> 0 | I105: =IF(A105<>2,IF(ABS(IF(move1,IF(Calc!$A$90,INDEX(Motor!$Z$1:$Z$1452,A105,1),INDEX(LinMotor!$X$1:$X$1305,A105,1)),IF(Calc!$A$90,INDEX(Motor!$AB$1:$AB$1452,A105,1),INDEX(LinMotor!$Z$1:$Z$1305,A105,1))))<1000,IF(move1,IF(Calc!$A$90,INDEX(Motor!$Z$1:$Z$1452,A105,1),INDEX(LinMotor!$X$1:$X$1305,A105,1)),IF(Calc!$A$90,INDEX(Motor!$AB$1:$AB$1452,A105,1),INDEX(LinMotor!$Z$1:$Z$1305,A105,1))),TEXT(IF(move1,IF(Calc!$A$90,INDEX(Motor!$Z$1:$Z$1452,A105,1),INDEX(LinMotor!$X$1:$X$1305,A105,1)),IF(Calc!$A$90,INDEX(Motor!$AB$1:$AB$1452,A105,1),INDEX(LinMotor!$Z$1:$Z$1305,A105,1)))/1000,"0.0k")),"") -> -30.71428072 | J105: =IF(A105<>2,IF(ABS(IF(move1,IF(Calc!$A$90,INDEX(Motor!$AA$1:$AA$1452,A105,1),INDEX(LinMotor!$Y$1:$Y$1305,A105,1)),IF(Calc!$A$90,INDEX(Motor!$AD$1:$AD$1452,A105,1),INDEX(LinMotor!$AB$1:$AB$1305,A105,1))))<1000,IF(move1,IF(Calc!$A$90,INDEX(Motor!$AA$1:$AA$1452,A105,1),INDEX(LinMotor!$Y$1:$Y$1305,A105,1)),IF(Calc!$A$90,INDEX(Motor!$AD$1:$AD$1452,A105,1),INDEX(LinMotor!$AB$1:$AB$1305,A105,1))),TEXT(IF(move1,IF(Calc!$A$90,INDEX(Motor!$AA$1:$AA$1452,A105,1),INDEX(LinMotor!$Y$1:$Y$1305,A105,1)),IF(Calc!$A$90,INDEX(Motor!$AD$1:$AD$1452,A105,1),INDEX(LinMotor!$AB$1:$AB$1305,A105,1)))/1000,"0.0k")),"") -> 0 | K105: =IF(Calc!$A$90,INDEX(Motor!$AF$1:$AF$1452,A105,1),INDEX(LinMotor!$AD$1:$AD$1305,A105,1)) -> 0.8051957475 | L105: =IF(Calc!$A$90,INDEX(Motor!$AG$1:$AG$1452,A105,1),INDEX(LinMotor!$AE$1:$AE$1305,A105,1)) -> 1.145465716 | M105: =IF(Calc!$A$90,INDEX(Motor!$AH$1:$AH$1452,A105,1),INDEX(LinMotor!$AF$1:$AF$1305,A105,1)) -> 9.66234897 | N105: =IF(Calc!$A$90,INDEX(Motor!$AI$1:$AI$1452,A105,1),INDEX(LinMotor!$AG$1:$AG$1305,A105,1)) -> 27.49117719 | O105: =IF(A105<>2,IF(IF(Calc!$A$90,INDEX(Motor!$AK$1:$AK$1452,A105,1),INDEX(LinMotor!$AI$1:$AI$1305,A105,1))<1000,IF(Calc!$A$90,INDEX(Motor!$AK$1:$AK$1452,A105,1),INDEX(LinMotor!$AI$1:$AI$1305,A105,1)),TEXT(IF(Calc!$A$90,INDEX(Motor!$AK$1:$AK$1452,A105,1),INDEX(LinMotor!$AI$1:$AI$1305,A105,1))/1000,"0.0k")),"") -> 630.1676215 | P105: =IF(A105<>2,IF(IF(Calc!$A$90,INDEX(Motor!$AL$1:$AL$1452,A105,1),INDEX(LinMotor!$AJ$1:$AJ$1305,A105,1))<1000,IF(Calc!$A$90,INDEX(Motor!$AL$1:$AL$1452,A105,1),INDEX(LinMotor!$AJ$1:$AJ$1305,A105,1)),TEXT(IF(Calc!$A$90,INDEX(Motor!$AL$1:$AL$1452,A105,1),INDEX(LinMotor!$AJ$1:$AJ$1305,A105,1))/1000,"0.0k")),"") -> 510.8404278 | Q105: =IF(A105<>2,IF(IF(Calc!$A$90,INDEX(Motor!$AM$1:$AM$1452,A105,1),INDEX(LinMotor!$AK$1:$AK$1305,A105,1))<1000,IF(Calc!$A$90,INDEX(Motor!$AM$1:$AM$1452,A105,1),INDEX(LinMotor!$AK$1:$AK$1305,A105,1)),TEXT(IF(Calc!$A$90,INDEX(Motor!$AM$1:$AM$1452,A105,1),INDEX(LinMotor!$AK$1:$AK$1305,A105,1))/1000,"0.0k")),"") -> 4.9k
A106: 501 | B106: =IF(Calc!$A$90,INDEX(Motor!$B$1:$B$1452,A106,1),INDEX(LinMotor!$B$1:$B$1291,A106,1)) -> AKM2G-43I 240 V | C106: =IF(Calc!$A$90,INDEX(Motor!$T$1:$T$1452,A106,1),INDEX(LinMotor!$R$1:$R$1305,A106,1)) -> 12.82051279 | D106: =IF(Calc!$A$90,INDEX(Motor!$U$1:$U$1452,A106,1),INDEX(LinMotor!$S$1:$S$1305,A106,1)) -> 0.6726112146 | E106: =IF(Calc!$A$90,INDEX(Motor!$V$1:$V$1452,A106,1),INDEX(LinMotor!$T$1:$T$1305,A106,1)) -> 0.6225181811 | F106: =IF(Calc!$A$90,INDEX(Motor!$W$1:$W$1452,A106,1),INDEX(LinMotor!$U$1:$U$1305,A106,1)) -> 0.8512710847 | G106: =IF(A106<>2,IF(ABS(IF(Calc!$A$90,INDEX(Motor!$X$1:$X$1452,A106,1),INDEX(LinMotor!$V$1:$V$1305,A106,1)))<1000,IF(Calc!$A$90,INDEX(Motor!$X$1:$X$1452,A106,1),INDEX(LinMotor!$V$1:$V$1305,A106,1)),TEXT(IF(Calc!$A$90,INDEX(Motor!$X$1:$X$1452,A106,1),INDEX(LinMotor!$V$1:$V$1305,A106,1))/1000,"0.0k")),"") -> 13.13513386 | H106: =IF(A106<>2,IF(ABS(IF(move1,IF(Calc!$A$90,INDEX(Motor!$Y$1:$Y$1452,A106,1),INDEX(LinMotor!$W$1:$W$1305,A106,1)),IF(Calc!$A$90,INDEX(Motor!$Z$1:$Z$1452,A106,1),INDEX(LinMotor!$X$1:$X$1305,A106,1))))<1000,IF(move1,IF(Calc!$A$90,INDEX(Motor!$Y$1:$Y$1452,A106,1),INDEX(LinMotor!$W$1:$W$1305,A106,1)),IF(Calc!$A$90,INDEX(Motor!$Z$1:$Z$1452,A106,1),INDEX(LinMotor!$X$1:$X$1305,A106,1))),TEXT(IF(move1,IF(Calc!$A$90,INDEX(Motor!$Y$1:$Y$1452,A106,1),INDEX(LinMotor!$W$1:$W$1305,A106,1)),IF(Calc!$A$90,INDEX(Motor!$Z$1:$Z$1452,A106,1),INDEX(LinMotor!$X$1:$X$1305,A106,1)))/1000,"0.0k")),"") -> 0 | I106: =IF(A106<>2,IF(ABS(IF(move1,IF(Calc!$A$90,INDEX(Motor!$Z$1:$Z$1452,A106,1),INDEX(LinMotor!$X$1:$X$1305,A106,1)),IF(Calc!$A$90,INDEX(Motor!$AB$1:$AB$1452,A106,1),INDEX(LinMotor!$Z$1:$Z$1305,A106,1))))<1000,IF(move1,IF(Calc!$A$90,INDEX(Motor!$Z$1:$Z$1452,A106,1),INDEX(LinMotor!$X$1:$X$1305,A106,1)),IF(Calc!$A$90,INDEX(Motor!$AB$1:$AB$1452,A106,1),INDEX(LinMotor!$Z$1:$Z$1305,A106,1))),TEXT(IF(move1,IF(Calc!$A$90,INDEX(Motor!$Z$1:$Z$1452,A106,1),INDEX(LinMotor!$X$1:$X$1305,A106,1)),IF(Calc!$A$90,INDEX(Motor!$AB$1:$AB$1452,A106,1),INDEX(LinMotor!$Z$1:$Z$1305,A106,1)))/1000,"0.0k")),"") -> -10.63945843 | J106: =IF(A106<>2,IF(ABS(IF(move1,IF(Calc!$A$90,INDEX(Motor!$AA$1:$AA$1452,A106,1),INDEX(LinMotor!$Y$1:$Y$1305,A106,1)),IF(Calc!$A$90,INDEX(Motor!$AD$1:$AD$1452,A106,1),INDEX(LinMotor!$AB$1:$AB$1305,A106,1))))<1000,IF(move1,IF(Calc!$A$90,INDEX(Motor!$AA$1:$AA$1452,A106,1),INDEX(LinMotor!$Y$1:$Y$1305,A106,1)),IF(Calc!$A$90,INDEX(Motor!$AD$1:$AD$1452,A106,1),INDEX(LinMotor!$AB$1:$AB$1305,A106,1))),TEXT(IF(move1,IF(Calc!$A$90,INDEX(Motor!$AA$1:$AA$1452,A106,1),INDEX(LinMotor!$Y$1:$Y$1305,A106,1)),IF(Calc!$A$90,INDEX(Motor!$AD$1:$AD$1452,A106,1),INDEX(LinMotor!$AB$1:$AB$1305,A106,1)))/1000,"0.0k")),"") -> 0 | K106: =IF(Calc!$A$90,INDEX(Motor!$AF$1:$AF$1452,A106,1),INDEX(LinMotor!$AD$1:$AD$1305,A106,1)) -> 0.3935368621 | L106: =IF(Calc!$A$90,INDEX(Motor!$AG$1:$AG$1452,A106,1),INDEX(LinMotor!$AE$1:$AE$1305,A106,1)) -> 0.5598427277 | M106: =IF(Calc!$A$90,INDEX(Motor!$AH$1:$AH$1452,A106,1),INDEX(LinMotor!$AF$1:$AF$1305,A106,1)) -> 4.722442346 | N106: =IF(Calc!$A$90,INDEX(Motor!$AI$1:$AI$1452,A106,1),INDEX(LinMotor!$AG$1:$AG$1305,A106,1)) -> 13.43622547 | O106: =IF(A106<>2,IF(IF(Calc!$A$90,INDEX(Motor!$AK$1:$AK$1452,A106,1),INDEX(LinMotor!$AI$1:$AI$1305,A106,1))<1000,IF(Calc!$A$90,INDEX(Motor!$AK$1:$AK$1452,A106,1),INDEX(LinMotor!$AI$1:$AI$1305,A106,1)),TEXT(IF(Calc!$A$90,INDEX(Motor!$AK$1:$AK$1452,A106,1),INDEX(LinMotor!$AI$1:$AI$1305,A106,1))/1000,"0.0k")),"") -> 218.2907121 | P106: =IF(A106<>2,IF(IF(Calc!$A$90,INDEX(Motor!$AL$1:$AL$1452,A106,1),INDEX(LinMotor!$AJ$1:$AJ$1305,A106,1))<1000,IF(Calc!$A$90,INDEX(Motor!$AL$1:$AL$1452,A106,1),INDEX(LinMotor!$AJ$1:$AJ$1305,A106,1)),TEXT(IF(Calc!$A$90,INDEX(Motor!$AL$1:$AL$1452,A106,1),INDEX(LinMotor!$AJ$1:$AJ$1305,A106,1))/1000,"0.0k")),"") -> 176.9556495 | Q106: =IF(A106<>2,IF(IF(Calc!$A$90,INDEX(Motor!$AM$1:$AM$1452,A106,1),INDEX(LinMotor!$AK$1:$AK$1305,A106,1))<1000,IF(Calc!$A$90,INDEX(Motor!$AM$1:$AM$1452,A106,1),INDEX(LinMotor!$AK$1:$AK$1305,A106,1)),TEXT(IF(Calc!$A$90,INDEX(Motor!$AM$1:$AM$1452,A106,1),INDEX(LinMotor!$AK$1:$AK$1305,A106,1))/1000,"0.0k")),"") -> 1.7k
A107: 502 | B107: =IF(Calc!$A$90,INDEX(Motor!$B$1:$B$1452,A107,1),INDEX(LinMotor!$B$1:$B$1291,A107,1)) -> AKM2G-43I 400 V | C107: =IF(Calc!$A$90,INDEX(Motor!$T$1:$T$1452,A107,1),INDEX(LinMotor!$R$1:$R$1305,A107,1)) -> 12.82051279 | D107: =IF(Calc!$A$90,INDEX(Motor!$U$1:$U$1452,A107,1),INDEX(LinMotor!$S$1:$S$1305,A107,1)) -> 0.6792399657 | E107: =IF(Calc!$A$90,INDEX(Motor!$V$1:$V$1452,A107,1),INDEX(LinMotor!$T$1:$T$1305,A107,1)) -> 0.6225181811 | F107: =IF(Calc!$A$90,INDEX(Motor!$W$1:$W$1452,A107,1),INDEX(LinMotor!$U$1:$U$1305,A107,1)) -> 0.8512710847 | G107: =IF(A107<>2,IF(ABS(IF(Calc!$A$90,INDEX(Motor!$X$1:$X$1452,A107,1),INDEX(LinMotor!$V$1:$V$1305,A107,1)))<1000,IF(Calc!$A$90,INDEX(Motor!$X$1:$X$1452,A107,1),INDEX(LinMotor!$V$1:$V$1305,A107,1)),TEXT(IF(Calc!$A$90,INDEX(Motor!$X$1:$X$1452,A107,1),INDEX(LinMotor!$V$1:$V$1305,A107,1))/1000,"0.0k")),"") -> 13.13513386 | H107: =IF(A107<>2,IF(ABS(IF(move1,IF(Calc!$A$90,INDEX(Motor!$Y$1:$Y$1452,A107,1),INDEX(LinMotor!$W$1:$W$1305,A107,1)),IF(Calc!$A$90,INDEX(Motor!$Z$1:$Z$1452,A107,1),INDEX(LinMotor!$X$1:$X$1305,A107,1))))<1000,IF(move1,IF(Calc!$A$90,INDEX(Motor!$Y$1:$Y$1452,A107,1),INDEX(LinMotor!$W$1:$W$1305,A107,1)),IF(Calc!$A$90,INDEX(Motor!$Z$1:$Z$1452,A107,1),INDEX(LinMotor!$X$1:$X$1305,A107,1))),TEXT(IF(move1,IF(Calc!$A$90,INDEX(Motor!$Y$1:$Y$1452,A107,1),INDEX(LinMotor!$W$1:$W$1305,A107,1)),IF(Calc!$A$90,INDEX(Motor!$Z$1:$Z$1452,A107,1),INDEX(LinMotor!$X$1:$X$1305,A107,1)))/1000,"0.0k")),"") -> 0 | I107: =IF(A107<>2,IF(ABS(IF(move1,IF(Calc!$A$90,INDEX(Motor!$Z$1:$Z$1452,A107,1),INDEX(LinMotor!$X$1:$X$1305,A107,1)),IF(Calc!$A$90,INDEX(Motor!$AB$1:$AB$1452,A107,1),INDEX(LinMotor!$Z$1:$Z$1305,A107,1))))<1000,IF(move1,IF(Calc!$A$90,INDEX(Motor!$Z$1:$Z$1452,A107,1),INDEX(LinMotor!$X$1:$X$1305,A107,1)),IF(Calc!$A$90,INDEX(Motor!$AB$1:$AB$1452,A107,1),INDEX(LinMotor!$Z$1:$Z$1305,A107,1))),TEXT(IF(move1,IF(Calc!$A$90,INDEX(Motor!$Z$1:$Z$1452,A107,1),INDEX(LinMotor!$X$1:$X$1305,A107,1)),IF(Calc!$A$90,INDEX(Motor!$AB$1:$AB$1452,A107,1),INDEX(LinMotor!$Z$1:$Z$1305,A107,1)))/1000,"0.0k")),"") -> -10.63945843 | J107: =IF(A107<>2,IF(ABS(IF(move1,IF(Calc!$A$90,INDEX(Motor!$AA$1:$AA$1452,A107,1),INDEX(LinMotor!$Y$1:$Y$1305,A107,1)),IF(Calc!$A$90,INDEX(Motor!$AD$1:$AD$1452,A107,1),INDEX(LinMotor!$AB$1:$AB$1305,A107,1))))<1000,IF(move1,IF(Calc!$A$90,INDEX(Motor!$AA$1:$AA$1452,A107,1),INDEX(LinMotor!$Y$1:$Y$1305,A107,1)),IF(Calc!$A$90,INDEX(Motor!$AD$1:$AD$1452,A107,1),INDEX(LinMotor!$AB$1:$AB$1305,A107,1))),TEXT(IF(move1,IF(Calc!$A$90,INDEX(Motor!$AA$1:$AA$1452,A107,1),INDEX(LinMotor!$Y$1:$Y$1305,A107,1)),IF(Calc!$A$90,INDEX(Motor!$AD$1:$AD$1452,A107,1),INDEX(LinMotor!$AB$1:$AB$1305,A107,1)))/1000,"0.0k")),"") -> 0 | K107: =IF(Calc!$A$90,INDEX(Motor!$AF$1:$AF$1452,A107,1),INDEX(LinMotor!$AD$1:$AD$1305,A107,1)) -> 0.3935368621 | L107: =IF(Calc!$A$90,INDEX(Motor!$AG$1:$AG$1452,A107,1),INDEX(LinMotor!$AE$1:$AE$1305,A107,1)) -> 0.5598427277 | M107: =IF(Calc!$A$90,INDEX(Motor!$AH$1:$AH$1452,A107,1),INDEX(LinMotor!$AF$1:$AF$1305,A107,1)) -> 4.722442346 | N107: =IF(Calc!$A$90,INDEX(Motor!$AI$1:$AI$1452,A107,1),INDEX(LinMotor!$AG$1:$AG$1305,A107,1)) -> 13.43622547 | O107: =IF(A107<>2,IF(IF(Calc!$A$90,INDEX(Motor!$AK$1:$AK$1452,A107,1),INDEX(LinMotor!$AI$1:$AI$1305,A107,1))<1000,IF(Calc!$A$90,INDEX(Motor!$AK$1:$AK$1452,A107,1),INDEX(LinMotor!$AI$1:$AI$1305,A107,1)),TEXT(IF(Calc!$A$90,INDEX(Motor!$AK$1:$AK$1452,A107,1),INDEX(LinMotor!$AI$1:$AI$1305,A107,1))/1000,"0.0k")),"") -> 218.2907121 | P107: =IF(A107<>2,IF(IF(Calc!$A$90,INDEX(Motor!$AL$1:$AL$1452,A107,1),INDEX(LinMotor!$AJ$1:$AJ$1305,A107,1))<1000,IF(Calc!$A$90,INDEX(Motor!$AL$1:$AL$1452,A107,1),INDEX(LinMotor!$AJ$1:$AJ$1305,A107,1)),TEXT(IF(Calc!$A$90,INDEX(Motor!$AL$1:$AL$1452,A107,1),INDEX(LinMotor!$AJ$1:$AJ$1305,A107,1))/1000,"0.0k")),"") -> 176.9556495 | Q107: =IF(A107<>2,IF(IF(Calc!$A$90,INDEX(Motor!$AM$1:$AM$1452,A107,1),INDEX(LinMotor!$AK$1:$AK$1305,A107,1))<1000,IF(Calc!$A$90,INDEX(Motor!$AM$1:$AM$1452,A107,1),INDEX(LinMotor!$AK$1:$AK$1305,A107,1)),TEXT(IF(Calc!$A$90,INDEX(Motor!$AM$1:$AM$1452,A107,1),INDEX(LinMotor!$AK$1:$AK$1305,A107,1))/1000,"0.0k")),"") -> 1.7k
A108: 503 | B108: =IF(Calc!$A$90,INDEX(Motor!$B$1:$B$1452,A108,1),INDEX(LinMotor!$B$1:$B$1291,A108,1)) -> AKM2G-43I 480 V | C108: =IF(Calc!$A$90,INDEX(Motor!$T$1:$T$1452,A108,1),INDEX(LinMotor!$R$1:$R$1305,A108,1)) -> 12.82051279 | D108: =IF(Calc!$A$90,INDEX(Motor!$U$1:$U$1452,A108,1),INDEX(LinMotor!$S$1:$S$1305,A108,1)) -> 0.6831588169 | E108: =IF(Calc!$A$90,INDEX(Motor!$V$1:$V$1452,A108,1),INDEX(LinMotor!$T$1:$T$1305,A108,1)) -> 0.6225181811 | F108: =IF(Calc!$A$90,INDEX(Motor!$W$1:$W$1452,A108,1),INDEX(LinMotor!$U$1:$U$1305,A108,1)) -> 0.8512710847 | G108: =IF(A108<>2,IF(ABS(IF(Calc!$A$90,INDEX(Motor!$X$1:$X$1452,A108,1),INDEX(LinMotor!$V$1:$V$1305,A108,1)))<1000,IF(Calc!$A$90,INDEX(Motor!$X$1:$X$1452,A108,1),INDEX(LinMotor!$V$1:$V$1305,A108,1)),TEXT(IF(Calc!$A$90,INDEX(Motor!$X$1:$X$1452,A108,1),INDEX(LinMotor!$V$1:$V$1305,A108,1))/1000,"0.0k")),"") -> 13.13513386 | H108: =IF(A108<>2,IF(ABS(IF(move1,IF(Calc!$A$90,INDEX(Motor!$Y$1:$Y$1452,A108,1),INDEX(LinMotor!$W$1:$W$1305,A108,1)),IF(Calc!$A$90,INDEX(Motor!$Z$1:$Z$1452,A108,1),INDEX(LinMotor!$X$1:$X$1305,A108,1))))<1000,IF(move1,IF(Calc!$A$90,INDEX(Motor!$Y$1:$Y$1452,A108,1),INDEX(LinMotor!$W$1:$W$1305,A108,1)),IF(Calc!$A$90,INDEX(Motor!$Z$1:$Z$1452,A108,1),INDEX(LinMotor!$X$1:$X$1305,A108,1))),TEXT(IF(move1,IF(Calc!$A$90,INDEX(Motor!$Y$1:$Y$1452,A108,1),INDEX(LinMotor!$W$1:$W$1305,A108,1)),IF(Calc!$A$90,INDEX(Motor!$Z$1:$Z$1452,A108,1),INDEX(LinMotor!$X$1:$X$1305,A108,1)))/1000,"0.0k")),"") -> 0 | I108: =IF(A108<>2,IF(ABS(IF(move1,IF(Calc!$A$90,INDEX(Motor!$Z$1:$Z$1452,A108,1),INDEX(LinMotor!$X$1:$X$1305,A108,1)),IF(Calc!$A$90,INDEX(Motor!$AB$1:$AB$1452,A108,1),INDEX(LinMotor!$Z$1:$Z$1305,A108,1))))<1000,IF(move1,IF(Calc!$A$90,INDEX(Motor!$Z$1:$Z$1452,A108,1),INDEX(LinMotor!$X$1:$X$1305,A108,1)),IF(Calc!$A$90,INDEX(Motor!$AB$1:$AB$1452,A108,1),INDEX(LinMotor!$Z$1:$Z$1305,A108,1))),TEXT(IF(move1,IF(Calc!$A$90,INDEX(Motor!$Z$1:$Z$1452,A108,1),INDEX(LinMotor!$X$1:$X$1305,A108,1)),IF(Calc!$A$90,INDEX(Motor!$AB$1:$AB$1452,A108,1),INDEX(LinMotor!$Z$1:$Z$1305,A108,1)))/1000,"0.0k")),"") -> -10.63945843 | J108: =IF(A108<>2,IF(ABS(IF(move1,IF(Calc!$A$90,INDEX(Motor!$AA$1:$AA$1452,A108,1),INDEX(LinMotor!$Y$1:$Y$1305,A108,1)),IF(Calc!$A$90,INDEX(Motor!$AD$1:$AD$1452,A108,1),INDEX(LinMotor!$AB$1:$AB$1305,A108,1))))<1000,IF(move1,IF(Calc!$A$90,INDEX(Motor!$AA$1:$AA$1452,A108,1),INDEX(LinMotor!$Y$1:$Y$1305,A108,1)),IF(Calc!$A$90,INDEX(Motor!$AD$1:$AD$1452,A108,1),INDEX(LinMotor!$AB$1:$AB$1305,A108,1))),TEXT(IF(move1,IF(Calc!$A$90,INDEX(Motor!$AA$1:$AA$1452,A108,1),INDEX(LinMotor!$Y$1:$Y$1305,A108,1)),IF(Calc!$A$90,INDEX(Motor!$AD$1:$AD$1452,A108,1),INDEX(LinMotor!$AB$1:$AB$1305,A108,1)))/1000,"0.0k")),"") -> 0 | K108: =IF(Calc!$A$90,INDEX(Motor!$AF$1:$AF$1452,A108,1),INDEX(LinMotor!$AD$1:$AD$1305,A108,1)) -> 0.3935368621 | L108: =IF(Calc!$A$90,INDEX(Motor!$AG$1:$AG$1452,A108,1),INDEX(LinMotor!$AE$1:$AE$1305,A108,1)) -> 0.5598427277 | M108: =IF(Calc!$A$90,INDEX(Motor!$AH$1:$AH$1452,A108,1),INDEX(LinMotor!$AF$1:$AF$1305,A108,1)) -> 4.722442346 | N108: =IF(Calc!$A$90,INDEX(Motor!$AI$1:$AI$1452,A108,1),INDEX(LinMotor!$AG$1:$AG$1305,A108,1)) -> 13.43622547 | O108: =IF(A108<>2,IF(IF(Calc!$A$90,INDEX(Motor!$AK$1:$AK$1452,A108,1),INDEX(LinMotor!$AI$1:$AI$1305,A108,1))<1000,IF(Calc!$A$90,INDEX(Motor!$AK$1:$AK$1452,A108,1),INDEX(LinMotor!$AI$1:$AI$1305,A108,1)),TEXT(IF(Calc!$A$90,INDEX(Motor!$AK$1:$AK$1452,A108,1),INDEX(LinMotor!$AI$1:$AI$1305,A108,1))/1000,"0.0k")),"") -> 218.2907121 | P108: =IF(A108<>2,IF(IF(Calc!$A$90,INDEX(Motor!$AL$1:$AL$1452,A108,1),INDEX(LinMotor!$AJ$1:$AJ$1305,A108,1))<1000,IF(Calc!$A$90,INDEX(Motor!$AL$1:$AL$1452,A108,1),INDEX(LinMotor!$AJ$1:$AJ$1305,A108,1)),TEXT(IF(Calc!$A$90,INDEX(Motor!$AL$1:$AL$1452,A108,1),INDEX(LinMotor!$AJ$1:$AJ$1305,A108,1))/1000,"0.0k")),"") -> 176.9556495 | Q108: =IF(A108<>2,IF(IF(Calc!$A$90,INDEX(Motor!$AM$1:$AM$1452,A108,1),INDEX(LinMotor!$AK$1:$AK$1305,A108,1))<1000,IF(Calc!$A$90,INDEX(Motor!$AM$1:$AM$1452,A108,1),INDEX(LinMotor!$AK$1:$AK$1305,A108,1)),TEXT(IF(Calc!$A$90,INDEX(Motor!$AM$1:$AM$1452,A108,1),INDEX(LinMotor!$AK$1:$AK$1305,A108,1))/1000,"0.0k")),"") -> 1.7k
A109: 512 | B109: =IF(Calc!$A$90,INDEX(Motor!$B$1:$B$1452,A109,1),INDEX(LinMotor!$B$1:$B$1291,A109,1)) -> AKM2G-44J 240 V | C109: =IF(Calc!$A$90,INDEX(Motor!$T$1:$T$1452,A109,1),INDEX(LinMotor!$R$1:$R$1305,A109,1)) -> 9.881422706 | D109: =IF(Calc!$A$90,INDEX(Motor!$U$1:$U$1452,A109,1),INDEX(LinMotor!$S$1:$S$1305,A109,1)) -> 0.5672948511 | E109: =IF(Calc!$A$90,INDEX(Motor!$V$1:$V$1452,A109,1),INDEX(LinMotor!$T$1:$T$1305,A109,1)) -> 0.4988037064 | F109: =IF(Calc!$A$90,INDEX(Motor!$W$1:$W$1452,A109,1),INDEX(LinMotor!$U$1:$U$1305,A109,1)) -> 0.9555671307 | G109: =IF(A109<>2,IF(ABS(IF(Calc!$A$90,INDEX(Motor!$X$1:$X$1452,A109,1),INDEX(LinMotor!$V$1:$V$1305,A109,1)))<1000,IF(Calc!$A$90,INDEX(Motor!$X$1:$X$1452,A109,1),INDEX(LinMotor!$V$1:$V$1305,A109,1)),TEXT(IF(Calc!$A$90,INDEX(Motor!$X$1:$X$1452,A109,1),INDEX(LinMotor!$V$1:$V$1305,A109,1))/1000,"0.0k")),"") -> 13.41781951 | H109: =IF(A109<>2,IF(ABS(IF(move1,IF(Calc!$A$90,INDEX(Motor!$Y$1:$Y$1452,A109,1),INDEX(LinMotor!$W$1:$W$1305,A109,1)),IF(Calc!$A$90,INDEX(Motor!$Z$1:$Z$1452,A109,1),INDEX(LinMotor!$X$1:$X$1305,A109,1))))<1000,IF(move1,IF(Calc!$A$90,INDEX(Motor!$Y$1:$Y$1452,A109,1),INDEX(LinMotor!$W$1:$W$1305,A109,1)),IF(Calc!$A$90,INDEX(Motor!$Z$1:$Z$1452,A109,1),INDEX(LinMotor!$X$1:$X$1305,A109,1))),TEXT(IF(move1,IF(Calc!$A$90,INDEX(Motor!$Y$1:$Y$1452,A109,1),INDEX(LinMotor!$W$1:$W$1305,A109,1)),IF(Calc!$A$90,INDEX(Motor!$Z$1:$Z$1452,A109,1),INDEX(LinMotor!$X$1:$X$1305,A109,1)))/1000,"0.0k")),"") -> 0 | I109: =IF(A109<>2,IF(ABS(IF(move1,IF(Calc!$A$90,INDEX(Motor!$Z$1:$Z$1452,A109,1),INDEX(LinMotor!$X$1:$X$1305,A109,1)),IF(Calc!$A$90,INDEX(Motor!$AB$1:$AB$1452,A109,1),INDEX(LinMotor!$Z$1:$Z$1305,A109,1))))<1000,IF(move1,IF(Calc!$A$90,INDEX(Motor!$Z$1:$Z$1452,A109,1),INDEX(LinMotor!$X$1:$X$1305,A109,1)),IF(Calc!$A$90,INDEX(Motor!$AB$1:$AB$1452,A109,1),INDEX(LinMotor!$Z$1:$Z$1305,A109,1))),TEXT(IF(move1,IF(Calc!$A$90,INDEX(Motor!$Z$1:$Z$1452,A109,1),INDEX(LinMotor!$X$1:$X$1305,A109,1)),IF(Calc!$A$90,INDEX(Motor!$AB$1:$AB$1452,A109,1),INDEX(LinMotor!$Z$1:$Z$1305,A109,1)))/1000,"0.0k")),"") -> -10.8684338 | J109: =IF(A109<>2,IF(ABS(IF(move1,IF(Calc!$A$90,INDEX(Motor!$AA$1:$AA$1452,A109,1),INDEX(LinMotor!$Y$1:$Y$1305,A109,1)),IF(Calc!$A$90,INDEX(Motor!$AD$1:$AD$1452,A109,1),INDEX(LinMotor!$AB$1:$AB$1305,A109,1))))<1000,IF(move1,IF(Calc!$A$90,INDEX(Motor!$AA$1:$AA$1452,A109,1),INDEX(LinMotor!$Y$1:$Y$1305,A109,1)),IF(Calc!$A$90,INDEX(Motor!$AD$1:$AD$1452,A109,1),INDEX(LinMotor!$AB$1:$AB$1305,A109,1))),TEXT(IF(move1,IF(Calc!$A$90,INDEX(Motor!$AA$1:$AA$1452,A109,1),INDEX(LinMotor!$Y$1:$Y$1305,A109,1)),IF(Calc!$A$90,INDEX(Motor!$AD$1:$AD$1452,A109,1),INDEX(LinMotor!$AB$1:$AB$1305,A109,1)))/1000,"0.0k")),"") -> 0 | K109: =IF(Calc!$A$90,INDEX(Motor!$AF$1:$AF$1452,A109,1),INDEX(LinMotor!$AD$1:$AD$1305,A109,1)) -> 0.3387111776 | L109: =IF(Calc!$A$90,INDEX(Motor!$AG$1:$AG$1452,A109,1),INDEX(LinMotor!$AE$1:$AE$1305,A109,1)) -> 0.4818481006 | M109: =IF(Calc!$A$90,INDEX(Motor!$AH$1:$AH$1452,A109,1),INDEX(LinMotor!$AF$1:$AF$1305,A109,1)) -> 4.064534131 | N109: =IF(Calc!$A$90,INDEX(Motor!$AI$1:$AI$1452,A109,1),INDEX(LinMotor!$AG$1:$AG$1305,A109,1)) -> 11.56435442 | O109: =IF(A109<>2,IF(IF(Calc!$A$90,INDEX(Motor!$AK$1:$AK$1452,A109,1),INDEX(LinMotor!$AI$1:$AI$1305,A109,1))<1000,IF(Calc!$A$90,INDEX(Motor!$AK$1:$AK$1452,A109,1),INDEX(LinMotor!$AI$1:$AI$1305,A109,1)),TEXT(IF(Calc!$A$90,INDEX(Motor!$AK$1:$AK$1452,A109,1),INDEX(LinMotor!$AI$1:$AI$1305,A109,1))/1000,"0.0k")),"") -> 222.9886202 | P109: =IF(A109<>2,IF(IF(Calc!$A$90,INDEX(Motor!$AL$1:$AL$1452,A109,1),INDEX(LinMotor!$AJ$1:$AJ$1305,A109,1))<1000,IF(Calc!$A$90,INDEX(Motor!$AL$1:$AL$1452,A109,1),INDEX(LinMotor!$AJ$1:$AJ$1305,A109,1)),TEXT(IF(Calc!$A$90,INDEX(Motor!$AL$1:$AL$1452,A109,1),INDEX(LinMotor!$AJ$1:$AJ$1305,A109,1))/1000,"0.0k")),"") -> 180.7639718 | Q109: =IF(A109<>2,IF(IF(Calc!$A$90,INDEX(Motor!$AM$1:$AM$1452,A109,1),INDEX(LinMotor!$AK$1:$AK$1305,A109,1))<1000,IF(Calc!$A$90,INDEX(Motor!$AM$1:$AM$1452,A109,1),INDEX(LinMotor!$AK$1:$AK$1305,A109,1)),TEXT(IF(Calc!$A$90,INDEX(Motor!$AM$1:$AM$1452,A109,1),INDEX(LinMotor!$AK$1:$AK$1305,A109,1))/1000,"0.0k")),"") -> 1.7k
A110: 513 | B110: =IF(Calc!$A$90,INDEX(Motor!$B$1:$B$1452,A110,1),INDEX(LinMotor!$B$1:$B$1291,A110,1)) -> AKM2G-44J 400 V | C110: =IF(Calc!$A$90,INDEX(Motor!$T$1:$T$1452,A110,1),INDEX(LinMotor!$R$1:$R$1305,A110,1)) -> 9.881422706 | D110: =IF(Calc!$A$90,INDEX(Motor!$U$1:$U$1452,A110,1),INDEX(LinMotor!$S$1:$S$1305,A110,1)) -> 0.5733800192 | E110: =IF(Calc!$A$90,INDEX(Motor!$V$1:$V$1452,A110,1),INDEX(LinMotor!$T$1:$T$1305,A110,1)) -> 0.4988037064 | F110: =IF(Calc!$A$90,INDEX(Motor!$W$1:$W$1452,A110,1),INDEX(LinMotor!$U$1:$U$1305,A110,1)) -> 0.9555671307 | G110: =IF(A110<>2,IF(ABS(IF(Calc!$A$90,INDEX(Motor!$X$1:$X$1452,A110,1),INDEX(LinMotor!$V$1:$V$1305,A110,1)))<1000,IF(Calc!$A$90,INDEX(Motor!$X$1:$X$1452,A110,1),INDEX(LinMotor!$V$1:$V$1305,A110,1)),TEXT(IF(Calc!$A$90,INDEX(Motor!$X$1:$X$1452,A110,1),INDEX(LinMotor!$V$1:$V$1305,A110,1))/1000,"0.0k")),"") -> 13.41781951 | H110: =IF(A110<>2,IF(ABS(IF(move1,IF(Calc!$A$90,INDEX(Motor!$Y$1:$Y$1452,A110,1),INDEX(LinMotor!$W$1:$W$1305,A110,1)),IF(Calc!$A$90,INDEX(Motor!$Z$1:$Z$1452,A110,1),INDEX(LinMotor!$X$1:$X$1305,A110,1))))<1000,IF(move1,IF(Calc!$A$90,INDEX(Motor!$Y$1:$Y$1452,A110,1),INDEX(LinMotor!$W$1:$W$1305,A110,1)),IF(Calc!$A$90,INDEX(Motor!$Z$1:$Z$1452,A110,1),INDEX(LinMotor!$X$1:$X$1305,A110,1))),TEXT(IF(move1,IF(Calc!$A$90,INDEX(Motor!$Y$1:$Y$1452,A110,1),INDEX(LinMotor!$W$1:$W$1305,A110,1)),IF(Calc!$A$90,INDEX(Motor!$Z$1:$Z$1452,A110,1),INDEX(LinMotor!$X$1:$X$1305,A110,1)))/1000,"0.0k")),"") -> 0 | I110: =IF(A110<>2,IF(ABS(IF(move1,IF(Calc!$A$90,INDEX(Motor!$Z$1:$Z$1452,A110,1),INDEX(LinMotor!$X$1:$X$1305,A110,1)),IF(Calc!$A$90,INDEX(Motor!$AB$1:$AB$1452,A110,1),INDEX(LinMotor!$Z$1:$Z$1305,A110,1))))<1000,IF(move1,IF(Calc!$A$90,INDEX(Motor!$Z$1:$Z$1452,A110,1),INDEX(LinMotor!$X$1:$X$1305,A110,1)),IF(Calc!$A$90,INDEX(Motor!$AB$1:$AB$1452,A110,1),INDEX(LinMotor!$Z$1:$Z$1305,A110,1))),TEXT(IF(move1,IF(Calc!$A$90,INDEX(Motor!$Z$1:$Z$1452,A110,1),INDEX(LinMotor!$X$1:$X$1305,A110,1)),IF(Calc!$A$90,INDEX(Motor!$AB$1:$AB$1452,A110,1),INDEX(LinMotor!$Z$1:$Z$1305,A110,1)))/1000,"0.0k")),"") -> -10.8684338 | J110: =IF(A110<>2,IF(ABS(IF(move1,IF(Calc!$A$90,INDEX(Motor!$AA$1:$AA$1452,A110,1),INDEX(LinMotor!$Y$1:$Y$1305,A110,1)),IF(Calc!$A$90,INDEX(Motor!$AD$1:$AD$1452,A110,1),INDEX(LinMotor!$AB$1:$AB$1305,A110,1))))<1000,IF(move1,IF(Calc!$A$90,INDEX(Motor!$AA$1:$AA$1452,A110,1),INDEX(LinMotor!$Y$1:$Y$1305,A110,1)),IF(Calc!$A$90,INDEX(Motor!$AD$1:$AD$1452,A110,1),INDEX(LinMotor!$AB$1:$AB$1305,A110,1))),TEXT(IF(move1,IF(Calc!$A$90,INDEX(Motor!$AA$1:$AA$1452,A110,1),INDEX(LinMotor!$Y$1:$Y$1305,A110,1)),IF(Calc!$A$90,INDEX(Motor!$AD$1:$AD$1452,A110,1),INDEX(LinMotor!$AB$1:$AB$1305,A110,1)))/1000,"0.0k")),"") -> 0 | K110: =IF(Calc!$A$90,INDEX(Motor!$AF$1:$AF$1452,A110,1),INDEX(LinMotor!$AD$1:$AD$1305,A110,1)) -> 0.3387111776 | L110: =IF(Calc!$A$90,INDEX(Motor!$AG$1:$AG$1452,A110,1),INDEX(LinMotor!$AE$1:$AE$1305,A110,1)) -> 0.4818481006 | M110: =IF(Calc!$A$90,INDEX(Motor!$AH$1:$AH$1452,A110,1),INDEX(LinMotor!$AF$1:$AF$1305,A110,1)) -> 4.064534131 | N110: =IF(Calc!$A$90,INDEX(Motor!$AI$1:$AI$1452,A110,1),INDEX(LinMotor!$AG$1:$AG$1305,A110,1)) -> 11.56435442 | O110: =IF(A110<>2,IF(IF(Calc!$A$90,INDEX(Motor!$AK$1:$AK$1452,A110,1),INDEX(LinMotor!$AI$1:$AI$1305,A110,1))<1000,IF(Calc!$A$90,INDEX(Motor!$AK$1:$AK$1452,A110,1),INDEX(LinMotor!$AI$1:$AI$1305,A110,1)),TEXT(IF(Calc!$A$90,INDEX(Motor!$AK$1:$AK$1452,A110,1),INDEX(LinMotor!$AI$1:$AI$1305,A110,1))/1000,"0.0k")),"") -> 222.9886202 | P110: =IF(A110<>2,IF(IF(Calc!$A$90,INDEX(Motor!$AL$1:$AL$1452,A110,1),INDEX(LinMotor!$AJ$1:$AJ$1305,A110,1))<1000,IF(Calc!$A$90,INDEX(Motor!$AL$1:$AL$1452,A110,1),INDEX(LinMotor!$AJ$1:$AJ$1305,A110,1)),TEXT(IF(Calc!$A$90,INDEX(Motor!$AL$1:$AL$1452,A110,1),INDEX(LinMotor!$AJ$1:$AJ$1305,A110,1))/1000,"0.0k")),"") -> 180.7639718 | Q110: =IF(A110<>2,IF(IF(Calc!$A$90,INDEX(Motor!$AM$1:$AM$1452,A110,1),INDEX(LinMotor!$AK$1:$AK$1305,A110,1))<1000,IF(Calc!$A$90,INDEX(Motor!$AM$1:$AM$1452,A110,1),INDEX(LinMotor!$AK$1:$AK$1305,A110,1)),TEXT(IF(Calc!$A$90,INDEX(Motor!$AM$1:$AM$1452,A110,1),INDEX(LinMotor!$AK$1:$AK$1305,A110,1))/1000,"0.0k")),"") -> 1.7k
A111: 514 | B111: =IF(Calc!$A$90,INDEX(Motor!$B$1:$B$1452,A111,1),INDEX(LinMotor!$B$1:$B$1291,A111,1)) -> AKM2G-44J 480 V | C111: =IF(Calc!$A$90,INDEX(Motor!$T$1:$T$1452,A111,1),INDEX(LinMotor!$R$1:$R$1305,A111,1)) -> 9.881422706 | D111: =IF(Calc!$A$90,INDEX(Motor!$U$1:$U$1452,A111,1),INDEX(LinMotor!$S$1:$S$1305,A111,1)) -> 0.577029379 | E111: =IF(Calc!$A$90,INDEX(Motor!$V$1:$V$1452,A111,1),INDEX(LinMotor!$T$1:$T$1305,A111,1)) -> 0.4988037064 | F111: =IF(Calc!$A$90,INDEX(Motor!$W$1:$W$1452,A111,1),INDEX(LinMotor!$U$1:$U$1305,A111,1)) -> 0.9555671307 | G111: =IF(A111<>2,IF(ABS(IF(Calc!$A$90,INDEX(Motor!$X$1:$X$1452,A111,1),INDEX(LinMotor!$V$1:$V$1305,A111,1)))<1000,IF(Calc!$A$90,INDEX(Motor!$X$1:$X$1452,A111,1),INDEX(LinMotor!$V$1:$V$1305,A111,1)),TEXT(IF(Calc!$A$90,INDEX(Motor!$X$1:$X$1452,A111,1),INDEX(LinMotor!$V$1:$V$1305,A111,1))/1000,"0.0k")),"") -> 13.41781951 | H111: =IF(A111<>2,IF(ABS(IF(move1,IF(Calc!$A$90,INDEX(Motor!$Y$1:$Y$1452,A111,1),INDEX(LinMotor!$W$1:$W$1305,A111,1)),IF(Calc!$A$90,INDEX(Motor!$Z$1:$Z$1452,A111,1),INDEX(LinMotor!$X$1:$X$1305,A111,1))))<1000,IF(move1,IF(Calc!$A$90,INDEX(Motor!$Y$1:$Y$1452,A111,1),INDEX(LinMotor!$W$1:$W$1305,A111,1)),IF(Calc!$A$90,INDEX(Motor!$Z$1:$Z$1452,A111,1),INDEX(LinMotor!$X$1:$X$1305,A111,1))),TEXT(IF(move1,IF(Calc!$A$90,INDEX(Motor!$Y$1:$Y$1452,A111,1),INDEX(LinMotor!$W$1:$W$1305,A111,1)),IF(Calc!$A$90,INDEX(Motor!$Z$1:$Z$1452,A111,1),INDEX(LinMotor!$X$1:$X$1305,A111,1)))/1000,"0.0k")),"") -> 0 | I111: =IF(A111<>2,IF(ABS(IF(move1,IF(Calc!$A$90,INDEX(Motor!$Z$1:$Z$1452,A111,1),INDEX(LinMotor!$X$1:$X$1305,A111,1)),IF(Calc!$A$90,INDEX(Motor!$AB$1:$AB$1452,A111,1),INDEX(LinMotor!$Z$1:$Z$1305,A111,1))))<1000,IF(move1,IF(Calc!$A$90,INDEX(Motor!$Z$1:$Z$1452,A111,1),INDEX(LinMotor!$X$1:$X$1305,A111,1)),IF(Calc!$A$90,INDEX(Motor!$AB$1:$AB$1452,A111,1),INDEX(LinMotor!$Z$1:$Z$1305,A111,1))),TEXT(IF(move1,IF(Calc!$A$90,INDEX(Motor!$Z$1:$Z$1452,A111,1),INDEX(LinMotor!$X$1:$X$1305,A111,1)),IF(Calc!$A$90,INDEX(Motor!$AB$1:$AB$1452,A111,1),INDEX(LinMotor!$Z$1:$Z$1305,A111,1)))/1000,"0.0k")),"") -> -10.8684338 | J111: =IF(A111<>2,IF(ABS(IF(move1,IF(Calc!$A$90,INDEX(Motor!$AA$1:$AA$1452,A111,1),INDEX(LinMotor!$Y$1:$Y$1305,A111,1)),IF(Calc!$A$90,INDEX(Motor!$AD$1:$AD$1452,A111,1),INDEX(LinMotor!$AB$1:$AB$1305,A111,1))))<1000,IF(move1,IF(Calc!$A$90,INDEX(Motor!$AA$1:$AA$1452,A111,1),INDEX(LinMotor!$Y$1:$Y$1305,A111,1)),IF(Calc!$A$90,INDEX(Motor!$AD$1:$AD$1452,A111,1),INDEX(LinMotor!$AB$1:$AB$1305,A111,1))),TEXT(IF(move1,IF(Calc!$A$90,INDEX(Motor!$AA$1:$AA$1452,A111,1),INDEX(LinMotor!$Y$1:$Y$1305,A111,1)),IF(Calc!$A$90,INDEX(Motor!$AD$1:$AD$1452,A111,1),INDEX(LinMotor!$AB$1:$AB$1305,A111,1)))/1000,"0.0k")),"") -> 0 | K111: =IF(Calc!$A$90,INDEX(Motor!$AF$1:$AF$1452,A111,1),INDEX(LinMotor!$AD$1:$AD$1305,A111,1)) -> 0.3387111776 | L111: =IF(Calc!$A$90,INDEX(Motor!$AG$1:$AG$1452,A111,1),INDEX(LinMotor!$AE$1:$AE$1305,A111,1)) -> 0.4818481006 | M111: =IF(Calc!$A$90,INDEX(Motor!$AH$1:$AH$1452,A111,1),INDEX(LinMotor!$AF$1:$AF$1305,A111,1)) -> 4.064534131 | N111: =IF(Calc!$A$90,INDEX(Motor!$AI$1:$AI$1452,A111,1),INDEX(LinMotor!$AG$1:$AG$1305,A111,1)) -> 11.56435442 | O111: =IF(A111<>2,IF(IF(Calc!$A$90,INDEX(Motor!$AK$1:$AK$1452,A111,1),INDEX(LinMotor!$AI$1:$AI$1305,A111,1))<1000,IF(Calc!$A$90,INDEX(Motor!$AK$1:$AK$1452,A111,1),INDEX(LinMotor!$AI$1:$AI$1305,A111,1)),TEXT(IF(Calc!$A$90,INDEX(Motor!$AK$1:$AK$1452,A111,1),INDEX(LinMotor!$AI$1:$AI$1305,A111,1))/1000,"0.0k")),"") -> 222.9886202 | P111: =IF(A111<>2,IF(IF(Calc!$A$90,INDEX(Motor!$AL$1:$AL$1452,A111,1),INDEX(LinMotor!$AJ$1:$AJ$1305,A111,1))<1000,IF(Calc!$A$90,INDEX(Motor!$AL$1:$AL$1452,A111,1),INDEX(LinMotor!$AJ$1:$AJ$1305,A111,1)),TEXT(IF(Calc!$A$90,INDEX(Motor!$AL$1:$AL$1452,A111,1),INDEX(LinMotor!$AJ$1:$AJ$1305,A111,1))/1000,"0.0k")),"") -> 180.7639718 | Q111: =IF(A111<>2,IF(IF(Calc!$A$90,INDEX(Motor!$AM$1:$AM$1452,A111,1),INDEX(LinMotor!$AK$1:$AK$1305,A111,1))<1000,IF(Calc!$A$90,INDEX(Motor!$AM$1:$AM$1452,A111,1),INDEX(LinMotor!$AK$1:$AK$1305,A111,1)),TEXT(IF(Calc!$A$90,INDEX(Motor!$AM$1:$AM$1452,A111,1),INDEX(LinMotor!$AK$1:$AK$1305,A111,1))/1000,"0.0k")),"") -> 1.7k
A112: 524 | B112: =IF(Calc!$A$90,INDEX(Motor!$B$1:$B$1452,A112,1),INDEX(LinMotor!$B$1:$B$1291,A112,1)) -> AKM2G-51K 240 V | C112: =IF(Calc!$A$90,INDEX(Motor!$T$1:$T$1452,A112,1),INDEX(LinMotor!$R$1:$R$1305,A112,1)) -> 9.920634999 | D112: =IF(Calc!$A$90,INDEX(Motor!$U$1:$U$1452,A112,1),INDEX(LinMotor!$S$1:$S$1305,A112,1)) -> 0.7030034409 | E112: =IF(Calc!$A$90,INDEX(Motor!$V$1:$V$1452,A112,1),INDEX(LinMotor!$T$1:$T$1305,A112,1)) -> 0.8543277546 | F112: =IF(Calc!$A$90,INDEX(Motor!$W$1:$W$1452,A112,1),INDEX(LinMotor!$U$1:$U$1305,A112,1)) -> 0.6562488388 | G112: =IF(A112<>2,IF(ABS(IF(Calc!$A$90,INDEX(Motor!$X$1:$X$1452,A112,1),INDEX(LinMotor!$V$1:$V$1305,A112,1)))<1000,IF(Calc!$A$90,INDEX(Motor!$X$1:$X$1452,A112,1),INDEX(LinMotor!$V$1:$V$1305,A112,1)),TEXT(IF(Calc!$A$90,INDEX(Motor!$X$1:$X$1452,A112,1),INDEX(LinMotor!$V$1:$V$1305,A112,1))/1000,"0.0k")),"") -> 13.41294558 | H112: =IF(A112<>2,IF(ABS(IF(move1,IF(Calc!$A$90,INDEX(Motor!$Y$1:$Y$1452,A112,1),INDEX(LinMotor!$W$1:$W$1305,A112,1)),IF(Calc!$A$90,INDEX(Motor!$Z$1:$Z$1452,A112,1),INDEX(LinMotor!$X$1:$X$1305,A112,1))))<1000,IF(move1,IF(Calc!$A$90,INDEX(Motor!$Y$1:$Y$1452,A112,1),INDEX(LinMotor!$W$1:$W$1305,A112,1)),IF(Calc!$A$90,INDEX(Motor!$Z$1:$Z$1452,A112,1),INDEX(LinMotor!$X$1:$X$1305,A112,1))),TEXT(IF(move1,IF(Calc!$A$90,INDEX(Motor!$Y$1:$Y$1452,A112,1),INDEX(LinMotor!$W$1:$W$1305,A112,1)),IF(Calc!$A$90,INDEX(Motor!$Z$1:$Z$1452,A112,1),INDEX(LinMotor!$X$1:$X$1305,A112,1)))/1000,"0.0k")),"") -> 0 | I112: =IF(A112<>2,IF(ABS(IF(move1,IF(Calc!$A$90,INDEX(Motor!$Z$1:$Z$1452,A112,1),INDEX(LinMotor!$X$1:$X$1305,A112,1)),IF(Calc!$A$90,INDEX(Motor!$AB$1:$AB$1452,A112,1),INDEX(LinMotor!$Z$1:$Z$1305,A112,1))))<1000,IF(move1,IF(Calc!$A$90,INDEX(Motor!$Z$1:$Z$1452,A112,1),INDEX(LinMotor!$X$1:$X$1305,A112,1)),IF(Calc!$A$90,INDEX(Motor!$AB$1:$AB$1452,A112,1),INDEX(LinMotor!$Z$1:$Z$1305,A112,1))),TEXT(IF(move1,IF(Calc!$A$90,INDEX(Motor!$Z$1:$Z$1452,A112,1),INDEX(LinMotor!$X$1:$X$1305,A112,1)),IF(Calc!$A$90,INDEX(Motor!$AB$1:$AB$1452,A112,1),INDEX(LinMotor!$Z$1:$Z$1305,A112,1)))/1000,"0.0k")),"") -> -10.86448592 | J112: =IF(A112<>2,IF(ABS(IF(move1,IF(Calc!$A$90,INDEX(Motor!$AA$1:$AA$1452,A112,1),INDEX(LinMotor!$Y$1:$Y$1305,A112,1)),IF(Calc!$A$90,INDEX(Motor!$AD$1:$AD$1452,A112,1),INDEX(LinMotor!$AB$1:$AB$1305,A112,1))))<1000,IF(move1,IF(Calc!$A$90,INDEX(Motor!$AA$1:$AA$1452,A112,1),INDEX(LinMotor!$Y$1:$Y$1305,A112,1)),IF(Calc!$A$90,INDEX(Motor!$AD$1:$AD$1452,A112,1),INDEX(LinMotor!$AB$1:$AB$1305,A112,1))),TEXT(IF(move1,IF(Calc!$A$90,INDEX(Motor!$AA$1:$AA$1452,A112,1),INDEX(LinMotor!$Y$1:$Y$1305,A112,1)),IF(Calc!$A$90,INDEX(Motor!$AD$1:$AD$1452,A112,1),INDEX(LinMotor!$AB$1:$AB$1305,A112,1)))/1000,"0.0k")),"") -> 0 | K112: =IF(Calc!$A$90,INDEX(Motor!$AF$1:$AF$1452,A112,1),INDEX(LinMotor!$AD$1:$AD$1305,A112,1)) -> 0.5884171926 | L112: =IF(Calc!$A$90,INDEX(Motor!$AG$1:$AG$1452,A112,1),INDEX(LinMotor!$AE$1:$AE$1305,A112,1)) -> 0.8370780931 | M112: =IF(Calc!$A$90,INDEX(Motor!$AH$1:$AH$1452,A112,1),INDEX(LinMotor!$AF$1:$AF$1305,A112,1)) -> 7.061006311 | N112: =IF(Calc!$A$90,INDEX(Motor!$AI$1:$AI$1452,A112,1),INDEX(LinMotor!$AG$1:$AG$1305,A112,1)) -> 20.08987424 | O112: =IF(A112<>2,IF(IF(Calc!$A$90,INDEX(Motor!$AK$1:$AK$1452,A112,1),INDEX(LinMotor!$AI$1:$AI$1305,A112,1))<1000,IF(Calc!$A$90,INDEX(Motor!$AK$1:$AK$1452,A112,1),INDEX(LinMotor!$AI$1:$AI$1305,A112,1)),TEXT(IF(Calc!$A$90,INDEX(Motor!$AK$1:$AK$1452,A112,1),INDEX(LinMotor!$AI$1:$AI$1305,A112,1))/1000,"0.0k")),"") -> 222.9076212 | P112: =IF(A112<>2,IF(IF(Calc!$A$90,INDEX(Motor!$AL$1:$AL$1452,A112,1),INDEX(LinMotor!$AJ$1:$AJ$1305,A112,1))<1000,IF(Calc!$A$90,INDEX(Motor!$AL$1:$AL$1452,A112,1),INDEX(LinMotor!$AJ$1:$AJ$1305,A112,1)),TEXT(IF(Calc!$A$90,INDEX(Motor!$AL$1:$AL$1452,A112,1),INDEX(LinMotor!$AJ$1:$AJ$1305,A112,1))/1000,"0.0k")),"") -> 180.6983106 | Q112: =IF(A112<>2,IF(IF(Calc!$A$90,INDEX(Motor!$AM$1:$AM$1452,A112,1),INDEX(LinMotor!$AK$1:$AK$1305,A112,1))<1000,IF(Calc!$A$90,INDEX(Motor!$AM$1:$AM$1452,A112,1),INDEX(LinMotor!$AK$1:$AK$1305,A112,1)),TEXT(IF(Calc!$A$90,INDEX(Motor!$AM$1:$AM$1452,A112,1),INDEX(LinMotor!$AK$1:$AK$1305,A112,1))/1000,"0.0k")),"") -> 1.7k
A113: 525 | B113: =IF(Calc!$A$90,INDEX(Motor!$B$1:$B$1452,A113,1),INDEX(LinMotor!$B$1:$B$1291,A113,1)) -> AKM2G-51K 400 V | C113: =IF(Calc!$A$90,INDEX(Motor!$T$1:$T$1452,A113,1),INDEX(LinMotor!$R$1:$R$1305,A113,1)) -> 9.920634999 | D113: =IF(Calc!$A$90,INDEX(Motor!$U$1:$U$1452,A113,1),INDEX(LinMotor!$S$1:$S$1305,A113,1)) -> 0.7090754113 | E113: =IF(Calc!$A$90,INDEX(Motor!$V$1:$V$1452,A113,1),INDEX(LinMotor!$T$1:$T$1305,A113,1)) -> 0.8543277546 | F113: =IF(Calc!$A$90,INDEX(Motor!$W$1:$W$1452,A113,1),INDEX(LinMotor!$U$1:$U$1305,A113,1)) -> 0.6562488388 | G113: =IF(A113<>2,IF(ABS(IF(Calc!$A$90,INDEX(Motor!$X$1:$X$1452,A113,1),INDEX(LinMotor!$V$1:$V$1305,A113,1)))<1000,IF(Calc!$A$90,INDEX(Motor!$X$1:$X$1452,A113,1),INDEX(LinMotor!$V$1:$V$1305,A113,1)),TEXT(IF(Calc!$A$90,INDEX(Motor!$X$1:$X$1452,A113,1),INDEX(LinMotor!$V$1:$V$1305,A113,1))/1000,"0.0k")),"") -> 13.41294558 | H113: =IF(A113<>2,IF(ABS(IF(move1,IF(Calc!$A$90,INDEX(Motor!$Y$1:$Y$1452,A113,1),INDEX(LinMotor!$W$1:$W$1305,A113,1)),IF(Calc!$A$90,INDEX(Motor!$Z$1:$Z$1452,A113,1),INDEX(LinMotor!$X$1:$X$1305,A113,1))))<1000,IF(move1,IF(Calc!$A$90,INDEX(Motor!$Y$1:$Y$1452,A113,1),INDEX(LinMotor!$W$1:$W$1305,A113,1)),IF(Calc!$A$90,INDEX(Motor!$Z$1:$Z$1452,A113,1),INDEX(LinMotor!$X$1:$X$1305,A113,1))),TEXT(IF(move1,IF(Calc!$A$90,INDEX(Motor!$Y$1:$Y$1452,A113,1),INDEX(LinMotor!$W$1:$W$1305,A113,1)),IF(Calc!$A$90,INDEX(Motor!$Z$1:$Z$1452,A113,1),INDEX(LinMotor!$X$1:$X$1305,A113,1)))/1000,"0.0k")),"") -> 0 | I113: =IF(A113<>2,IF(ABS(IF(move1,IF(Calc!$A$90,INDEX(Motor!$Z$1:$Z$1452,A113,1),INDEX(LinMotor!$X$1:$X$1305,A113,1)),IF(Calc!$A$90,INDEX(Motor!$AB$1:$AB$1452,A113,1),INDEX(LinMotor!$Z$1:$Z$1305,A113,1))))<1000,IF(move1,IF(Calc!$A$90,INDEX(Motor!$Z$1:$Z$1452,A113,1),INDEX(LinMotor!$X$1:$X$1305,A113,1)),IF(Calc!$A$90,INDEX(Motor!$AB$1:$AB$1452,A113,1),INDEX(LinMotor!$Z$1:$Z$1305,A113,1))),TEXT(IF(move1,IF(Calc!$A$90,INDEX(Motor!$Z$1:$Z$1452,A113,1),INDEX(LinMotor!$X$1:$X$1305,A113,1)),IF(Calc!$A$90,INDEX(Motor!$AB$1:$AB$1452,A113,1),INDEX(LinMotor!$Z$1:$Z$1305,A113,1)))/1000,"0.0k")),"") -> -10.86448592 | J113: =IF(A113<>2,IF(ABS(IF(move1,IF(Calc!$A$90,INDEX(Motor!$AA$1:$AA$1452,A113,1),INDEX(LinMotor!$Y$1:$Y$1305,A113,1)),IF(Calc!$A$90,INDEX(Motor!$AD$1:$AD$1452,A113,1),INDEX(LinMotor!$AB$1:$AB$1305,A113,1))))<1000,IF(move1,IF(Calc!$A$90,INDEX(Motor!$AA$1:$AA$1452,A113,1),INDEX(LinMotor!$Y$1:$Y$1305,A113,1)),IF(Calc!$A$90,INDEX(Motor!$AD$1:$AD$1452,A113,1),INDEX(LinMotor!$AB$1:$AB$1305,A113,1))),TEXT(IF(move1,IF(Calc!$A$90,INDEX(Motor!$AA$1:$AA$1452,A113,1),INDEX(LinMotor!$Y$1:$Y$1305,A113,1)),IF(Calc!$A$90,INDEX(Motor!$AD$1:$AD$1452,A113,1),INDEX(LinMotor!$AB$1:$AB$1305,A113,1)))/1000,"0.0k")),"") -> 0 | K113: =IF(Calc!$A$90,INDEX(Motor!$AF$1:$AF$1452,A113,1),INDEX(LinMotor!$AD$1:$AD$1305,A113,1)) -> 0.5884171926 | L113: =IF(Calc!$A$90,INDEX(Motor!$AG$1:$AG$1452,A113,1),INDEX(LinMotor!$AE$1:$AE$1305,A113,1)) -> 0.8370780931 | M113: =IF(Calc!$A$90,INDEX(Motor!$AH$1:$AH$1452,A113,1),INDEX(LinMotor!$AF$1:$AF$1305,A113,1)) -> 7.061006311 | N113: =IF(Calc!$A$90,INDEX(Motor!$AI$1:$AI$1452,A113,1),INDEX(LinMotor!$AG$1:$AG$1305,A113,1)) -> 20.08987424 | O113: =IF(A113<>2,IF(IF(Calc!$A$90,INDEX(Motor!$AK$1:$AK$1452,A113,1),INDEX(LinMotor!$AI$1:$AI$1305,A113,1))<1000,IF(Calc!$A$90,INDEX(Motor!$AK$1:$AK$1452,A113,1),INDEX(LinMotor!$AI$1:$AI$1305,A113,1)),TEXT(IF(Calc!$A$90,INDEX(Motor!$AK$1:$AK$1452,A113,1),INDEX(LinMotor!$AI$1:$AI$1305,A113,1))/1000,"0.0k")),"") -> 222.9076212 | P113: =IF(A113<>2,IF(IF(Calc!$A$90,INDEX(Motor!$AL$1:$AL$1452,A113,1),INDEX(LinMotor!$AJ$1:$AJ$1305,A113,1))<1000,IF(Calc!$A$90,INDEX(Motor!$AL$1:$AL$1452,A113,1),INDEX(LinMotor!$AJ$1:$AJ$1305,A113,1)),TEXT(IF(Calc!$A$90,INDEX(Motor!$AL$1:$AL$1452,A113,1),INDEX(LinMotor!$AJ$1:$AJ$1305,A113,1))/1000,"0.0k")),"") -> 180.6983106 | Q113: =IF(A113<>2,IF(IF(Calc!$A$90,INDEX(Motor!$AM$1:$AM$1452,A113,1),INDEX(LinMotor!$AK$1:$AK$1305,A113,1))<1000,IF(Calc!$A$90,INDEX(Motor!$AM$1:$AM$1452,A113,1),INDEX(LinMotor!$AK$1:$AK$1305,A113,1)),TEXT(IF(Calc!$A$90,INDEX(Motor!$AM$1:$AM$1452,A113,1),INDEX(LinMotor!$AK$1:$AK$1305,A113,1))/1000,"0.0k")),"") -> 1.7k
A114: 530 | B114: =IF(Calc!$A$90,INDEX(Motor!$B$1:$B$1452,A114,1),INDEX(LinMotor!$B$1:$B$1291,A114,1)) -> AKM2G-52K 240 V | C114: =IF(Calc!$A$90,INDEX(Motor!$T$1:$T$1452,A114,1),INDEX(LinMotor!$R$1:$R$1305,A114,1)) -> 5.458515344 | D114: =IF(Calc!$A$90,INDEX(Motor!$U$1:$U$1452,A114,1),INDEX(LinMotor!$S$1:$S$1305,A114,1)) -> 0.4329698045 | E114: =IF(Calc!$A$90,INDEX(Motor!$V$1:$V$1452,A114,1),INDEX(LinMotor!$T$1:$T$1305,A114,1)) -> 0.4971367908 | F114: =IF(Calc!$A$90,INDEX(Motor!$W$1:$W$1452,A114,1),INDEX(LinMotor!$U$1:$U$1305,A114,1)) -> 0.96 | G114: =IF(A114<>2,IF(ABS(IF(Calc!$A$90,INDEX(Motor!$X$1:$X$1452,A114,1),INDEX(LinMotor!$V$1:$V$1305,A114,1)))<1000,IF(Calc!$A$90,INDEX(Motor!$X$1:$X$1452,A114,1),INDEX(LinMotor!$V$1:$V$1305,A114,1)),TEXT(IF(Calc!$A$90,INDEX(Motor!$X$1:$X$1452,A114,1),INDEX(LinMotor!$V$1:$V$1305,A114,1))/1000,"0.0k")),"") -> 14.41696693 | H114: =IF(A114<>2,IF(ABS(IF(move1,IF(Calc!$A$90,INDEX(Motor!$Y$1:$Y$1452,A114,1),INDEX(LinMotor!$W$1:$W$1305,A114,1)),IF(Calc!$A$90,INDEX(Motor!$Z$1:$Z$1452,A114,1),INDEX(LinMotor!$X$1:$X$1305,A114,1))))<1000,IF(move1,IF(Calc!$A$90,INDEX(Motor!$Y$1:$Y$1452,A114,1),INDEX(LinMotor!$W$1:$W$1305,A114,1)),IF(Calc!$A$90,INDEX(Motor!$Z$1:$Z$1452,A114,1),INDEX(LinMotor!$X$1:$X$1305,A114,1))),TEXT(IF(move1,IF(Calc!$A$90,INDEX(Motor!$Y$1:$Y$1452,A114,1),INDEX(LinMotor!$W$1:$W$1305,A114,1)),IF(Calc!$A$90,INDEX(Motor!$Z$1:$Z$1452,A114,1),INDEX(LinMotor!$X$1:$X$1305,A114,1)))/1000,"0.0k")),"") -> 0 | I114: =IF(A114<>2,IF(ABS(IF(move1,IF(Calc!$A$90,INDEX(Motor!$Z$1:$Z$1452,A114,1),INDEX(LinMotor!$X$1:$X$1305,A114,1)),IF(Calc!$A$90,INDEX(Motor!$AB$1:$AB$1452,A114,1),INDEX(LinMotor!$Z$1:$Z$1305,A114,1))))<1000,IF(move1,IF(Calc!$A$90,INDEX(Motor!$Z$1:$Z$1452,A114,1),INDEX(LinMotor!$X$1:$X$1305,A114,1)),IF(Calc!$A$90,INDEX(Motor!$AB$1:$AB$1452,A114,1),INDEX(LinMotor!$Z$1:$Z$1305,A114,1))),TEXT(IF(move1,IF(Calc!$A$90,INDEX(Motor!$Z$1:$Z$1452,A114,1),INDEX(LinMotor!$X$1:$X$1305,A114,1)),IF(Calc!$A$90,INDEX(Motor!$AB$1:$AB$1452,A114,1),INDEX(LinMotor!$Z$1:$Z$1305,A114,1)))/1000,"0.0k")),"") -> -11.67774322 | J114: =IF(A114<>2,IF(ABS(IF(move1,IF(Calc!$A$90,INDEX(Motor!$AA$1:$AA$1452,A114,1),INDEX(LinMotor!$Y$1:$Y$1305,A114,1)),IF(Calc!$A$90,INDEX(Motor!$AD$1:$AD$1452,A114,1),INDEX(LinMotor!$AB$1:$AB$1305,A114,1))))<1000,IF(move1,IF(Calc!$A$90,INDEX(Motor!$AA$1:$AA$1452,A114,1),INDEX(LinMotor!$Y$1:$Y$1305,A114,1)),IF(Calc!$A$90,INDEX(Motor!$AD$1:$AD$1452,A114,1),INDEX(LinMotor!$AB$1:$AB$1305,A114,1))),TEXT(IF(move1,IF(Calc!$A$90,INDEX(Motor!$AA$1:$AA$1452,A114,1),INDEX(LinMotor!$Y$1:$Y$1305,A114,1)),IF(Calc!$A$90,INDEX(Motor!$AD$1:$AD$1452,A114,1),INDEX(LinMotor!$AB$1:$AB$1305,A114,1)))/1000,"0.0k")),"") -> 0 | K114: =IF(Calc!$A$90,INDEX(Motor!$AF$1:$AF$1452,A114,1),INDEX(LinMotor!$AD$1:$AD$1305,A114,1)) -> 0.3548420589 | L114: =IF(Calc!$A$90,INDEX(Motor!$AG$1:$AG$1452,A114,1),INDEX(LinMotor!$AE$1:$AE$1305,A114,1)) -> 0.5047957771 | M114: =IF(Calc!$A$90,INDEX(Motor!$AH$1:$AH$1452,A114,1),INDEX(LinMotor!$AF$1:$AF$1305,A114,1)) -> 4.258104707 | N114: =IF(Calc!$A$90,INDEX(Motor!$AI$1:$AI$1452,A114,1),INDEX(LinMotor!$AG$1:$AG$1305,A114,1)) -> 12.11509865 | O114: =IF(A114<>2,IF(IF(Calc!$A$90,INDEX(Motor!$AK$1:$AK$1452,A114,1),INDEX(LinMotor!$AI$1:$AI$1305,A114,1))<1000,IF(Calc!$A$90,INDEX(Motor!$AK$1:$AK$1452,A114,1),INDEX(LinMotor!$AI$1:$AI$1305,A114,1)),TEXT(IF(Calc!$A$90,INDEX(Motor!$AK$1:$AK$1452,A114,1),INDEX(LinMotor!$AI$1:$AI$1305,A114,1))/1000,"0.0k")),"") -> 239.5932932 | P114: =IF(A114<>2,IF(IF(Calc!$A$90,INDEX(Motor!$AL$1:$AL$1452,A114,1),INDEX(LinMotor!$AJ$1:$AJ$1305,A114,1))<1000,IF(Calc!$A$90,INDEX(Motor!$AL$1:$AL$1452,A114,1),INDEX(LinMotor!$AJ$1:$AJ$1305,A114,1)),TEXT(IF(Calc!$A$90,INDEX(Motor!$AL$1:$AL$1452,A114,1),INDEX(LinMotor!$AJ$1:$AJ$1305,A114,1))/1000,"0.0k")),"") -> 194.2244194 | Q114: =IF(A114<>2,IF(IF(Calc!$A$90,INDEX(Motor!$AM$1:$AM$1452,A114,1),INDEX(LinMotor!$AK$1:$AK$1305,A114,1))<1000,IF(Calc!$A$90,INDEX(Motor!$AM$1:$AM$1452,A114,1),INDEX(LinMotor!$AK$1:$AK$1305,A114,1)),TEXT(IF(Calc!$A$90,INDEX(Motor!$AM$1:$AM$1452,A114,1),INDEX(LinMotor!$AK$1:$AK$1305,A114,1))/1000,"0.0k")),"") -> 1.9k
A115: 531 | B115: =IF(Calc!$A$90,INDEX(Motor!$B$1:$B$1452,A115,1),INDEX(LinMotor!$B$1:$B$1291,A115,1)) -> AKM2G-52K 400 V | C115: =IF(Calc!$A$90,INDEX(Motor!$T$1:$T$1452,A115,1),INDEX(LinMotor!$R$1:$R$1305,A115,1)) -> 5.458515344 | D115: =IF(Calc!$A$90,INDEX(Motor!$U$1:$U$1452,A115,1),INDEX(LinMotor!$S$1:$S$1305,A115,1)) -> 0.4367884699 | E115: =IF(Calc!$A$90,INDEX(Motor!$V$1:$V$1452,A115,1),INDEX(LinMotor!$T$1:$T$1305,A115,1)) -> 0.4971367908 | F115: =IF(Calc!$A$90,INDEX(Motor!$W$1:$W$1452,A115,1),INDEX(LinMotor!$U$1:$U$1305,A115,1)) -> 0.956296788 | G115: =IF(A115<>2,IF(ABS(IF(Calc!$A$90,INDEX(Motor!$X$1:$X$1452,A115,1),INDEX(LinMotor!$V$1:$V$1305,A115,1)))<1000,IF(Calc!$A$90,INDEX(Motor!$X$1:$X$1452,A115,1),INDEX(LinMotor!$V$1:$V$1305,A115,1)),TEXT(IF(Calc!$A$90,INDEX(Motor!$X$1:$X$1452,A115,1),INDEX(LinMotor!$V$1:$V$1305,A115,1))/1000,"0.0k")),"") -> 14.41696693 | H115: =IF(A115<>2,IF(ABS(IF(move1,IF(Calc!$A$90,INDEX(Motor!$Y$1:$Y$1452,A115,1),INDEX(LinMotor!$W$1:$W$1305,A115,1)),IF(Calc!$A$90,INDEX(Motor!$Z$1:$Z$1452,A115,1),INDEX(LinMotor!$X$1:$X$1305,A115,1))))<1000,IF(move1,IF(Calc!$A$90,INDEX(Motor!$Y$1:$Y$1452,A115,1),INDEX(LinMotor!$W$1:$W$1305,A115,1)),IF(Calc!$A$90,INDEX(Motor!$Z$1:$Z$1452,A115,1),INDEX(LinMotor!$X$1:$X$1305,A115,1))),TEXT(IF(move1,IF(Calc!$A$90,INDEX(Motor!$Y$1:$Y$1452,A115,1),INDEX(LinMotor!$W$1:$W$1305,A115,1)),IF(Calc!$A$90,INDEX(Motor!$Z$1:$Z$1452,A115,1),INDEX(LinMotor!$X$1:$X$1305,A115,1)))/1000,"0.0k")),"") -> 0 | I115: =IF(A115<>2,IF(ABS(IF(move1,IF(Calc!$A$90,INDEX(Motor!$Z$1:$Z$1452,A115,1),INDEX(LinMotor!$X$1:$X$1305,A115,1)),IF(Calc!$A$90,INDEX(Motor!$AB$1:$AB$1452,A115,1),INDEX(LinMotor!$Z$1:$Z$1305,A115,1))))<1000,IF(move1,IF(Calc!$A$90,INDEX(Motor!$Z$1:$Z$1452,A115,1),INDEX(LinMotor!$X$1:$X$1305,A115,1)),IF(Calc!$A$90,INDEX(Motor!$AB$1:$AB$1452,A115,1),INDEX(LinMotor!$Z$1:$Z$1305,A115,1))),TEXT(IF(move1,IF(Calc!$A$90,INDEX(Motor!$Z$1:$Z$1452,A115,1),INDEX(LinMotor!$X$1:$X$1305,A115,1)),IF(Calc!$A$90,INDEX(Motor!$AB$1:$AB$1452,A115,1),INDEX(LinMotor!$Z$1:$Z$1305,A115,1)))/1000,"0.0k")),"") -> -11.67774322 | J115: =IF(A115<>2,IF(ABS(IF(move1,IF(Calc!$A$90,INDEX(Motor!$AA$1:$AA$1452,A115,1),INDEX(LinMotor!$Y$1:$Y$1305,A115,1)),IF(Calc!$A$90,INDEX(Motor!$AD$1:$AD$1452,A115,1),INDEX(LinMotor!$AB$1:$AB$1305,A115,1))))<1000,IF(move1,IF(Calc!$A$90,INDEX(Motor!$AA$1:$AA$1452,A115,1),INDEX(LinMotor!$Y$1:$Y$1305,A115,1)),IF(Calc!$A$90,INDEX(Motor!$AD$1:$AD$1452,A115,1),INDEX(LinMotor!$AB$1:$AB$1305,A115,1))),TEXT(IF(move1,IF(Calc!$A$90,INDEX(Motor!$AA$1:$AA$1452,A115,1),INDEX(LinMotor!$Y$1:$Y$1305,A115,1)),IF(Calc!$A$90,INDEX(Motor!$AD$1:$AD$1452,A115,1),INDEX(LinMotor!$AB$1:$AB$1305,A115,1)))/1000,"0.0k")),"") -> 0 | K115: =IF(Calc!$A$90,INDEX(Motor!$AF$1:$AF$1452,A115,1),INDEX(LinMotor!$AD$1:$AD$1305,A115,1)) -> 0.3548420589 | L115: =IF(Calc!$A$90,INDEX(Motor!$AG$1:$AG$1452,A115,1),INDEX(LinMotor!$AE$1:$AE$1305,A115,1)) -> 0.5047957771 | M115: =IF(Calc!$A$90,INDEX(Motor!$AH$1:$AH$1452,A115,1),INDEX(LinMotor!$AF$1:$AF$1305,A115,1)) -> 4.258104707 | N115: =IF(Calc!$A$90,INDEX(Motor!$AI$1:$AI$1452,A115,1),INDEX(LinMotor!$AG$1:$AG$1305,A115,1)) -> 12.11509865 | O115: =IF(A115<>2,IF(IF(Calc!$A$90,INDEX(Motor!$AK$1:$AK$1452,A115,1),INDEX(LinMotor!$AI$1:$AI$1305,A115,1))<1000,IF(Calc!$A$90,INDEX(Motor!$AK$1:$AK$1452,A115,1),INDEX(LinMotor!$AI$1:$AI$1305,A115,1)),TEXT(IF(Calc!$A$90,INDEX(Motor!$AK$1:$AK$1452,A115,1),INDEX(LinMotor!$AI$1:$AI$1305,A115,1))/1000,"0.0k")),"") -> 239.5932932 | P115: =IF(A115<>2,IF(IF(Calc!$A$90,INDEX(Motor!$AL$1:$AL$1452,A115,1),INDEX(LinMotor!$AJ$1:$AJ$1305,A115,1))<1000,IF(Calc!$A$90,INDEX(Motor!$AL$1:$AL$1452,A115,1),INDEX(LinMotor!$AJ$1:$AJ$1305,A115,1)),TEXT(IF(Calc!$A$90,INDEX(Motor!$AL$1:$AL$1452,A115,1),INDEX(LinMotor!$AJ$1:$AJ$1305,A115,1))/1000,"0.0k")),"") -> 194.2244194 | Q115: =IF(A115<>2,IF(IF(Calc!$A$90,INDEX(Motor!$AM$1:$AM$1452,A115,1),INDEX(LinMotor!$AK$1:$AK$1305,A115,1))<1000,IF(Calc!$A$90,INDEX(Motor!$AM$1:$AM$1452,A115,1),INDEX(LinMotor!$AK$1:$AK$1305,A115,1)),TEXT(IF(Calc!$A$90,INDEX(Motor!$AM$1:$AM$1452,A115,1),INDEX(LinMotor!$AK$1:$AK$1305,A115,1))/1000,"0.0k")),"") -> 1.9k
A116: 532 | B116: =IF(Calc!$A$90,INDEX(Motor!$B$1:$B$1452,A116,1),INDEX(LinMotor!$B$1:$B$1291,A116,1)) -> AKM2G-52K 480 V | C116: =IF(Calc!$A$90,INDEX(Motor!$T$1:$T$1452,A116,1),INDEX(LinMotor!$R$1:$R$1305,A116,1)) -> 5.458515344 | D116: =IF(Calc!$A$90,INDEX(Motor!$U$1:$U$1452,A116,1),INDEX(LinMotor!$S$1:$S$1305,A116,1)) -> 0.4386226503 | E116: =IF(Calc!$A$90,INDEX(Motor!$V$1:$V$1452,A116,1),INDEX(LinMotor!$T$1:$T$1305,A116,1)) -> 0.4971367908 | F116: =IF(Calc!$A$90,INDEX(Motor!$W$1:$W$1452,A116,1),INDEX(LinMotor!$U$1:$U$1305,A116,1)) -> 0.956296788 | G116: =IF(A116<>2,IF(ABS(IF(Calc!$A$90,INDEX(Motor!$X$1:$X$1452,A116,1),INDEX(LinMotor!$V$1:$V$1305,A116,1)))<1000,IF(Calc!$A$90,INDEX(Motor!$X$1:$X$1452,A116,1),INDEX(LinMotor!$V$1:$V$1305,A116,1)),TEXT(IF(Calc!$A$90,INDEX(Motor!$X$1:$X$1452,A116,1),INDEX(LinMotor!$V$1:$V$1305,A116,1))/1000,"0.0k")),"") -> 14.41696693 | H116: =IF(A116<>2,IF(ABS(IF(move1,IF(Calc!$A$90,INDEX(Motor!$Y$1:$Y$1452,A116,1),INDEX(LinMotor!$W$1:$W$1305,A116,1)),IF(Calc!$A$90,INDEX(Motor!$Z$1:$Z$1452,A116,1),INDEX(LinMotor!$X$1:$X$1305,A116,1))))<1000,IF(move1,IF(Calc!$A$90,INDEX(Motor!$Y$1:$Y$1452,A116,1),INDEX(LinMotor!$W$1:$W$1305,A116,1)),IF(Calc!$A$90,INDEX(Motor!$Z$1:$Z$1452,A116,1),INDEX(LinMotor!$X$1:$X$1305,A116,1))),TEXT(IF(move1,IF(Calc!$A$90,INDEX(Motor!$Y$1:$Y$1452,A116,1),INDEX(LinMotor!$W$1:$W$1305,A116,1)),IF(Calc!$A$90,INDEX(Motor!$Z$1:$Z$1452,A116,1),INDEX(LinMotor!$X$1:$X$1305,A116,1)))/1000,"0.0k")),"") -> 0 | I116: =IF(A116<>2,IF(ABS(IF(move1,IF(Calc!$A$90,INDEX(Motor!$Z$1:$Z$1452,A116,1),INDEX(LinMotor!$X$1:$X$1305,A116,1)),IF(Calc!$A$90,INDEX(Motor!$AB$1:$AB$1452,A116,1),INDEX(LinMotor!$Z$1:$Z$1305,A116,1))))<1000,IF(move1,IF(Calc!$A$90,INDEX(Motor!$Z$1:$Z$1452,A116,1),INDEX(LinMotor!$X$1:$X$1305,A116,1)),IF(Calc!$A$90,INDEX(Motor!$AB$1:$AB$1452,A116,1),INDEX(LinMotor!$Z$1:$Z$1305,A116,1))),TEXT(IF(move1,IF(Calc!$A$90,INDEX(Motor!$Z$1:$Z$1452,A116,1),INDEX(LinMotor!$X$1:$X$1305,A116,1)),IF(Calc!$A$90,INDEX(Motor!$AB$1:$AB$1452,A116,1),INDEX(LinMotor!$Z$1:$Z$1305,A116,1)))/1000,"0.0k")),"") -> -11.67774322 | J116: =IF(A116<>2,IF(ABS(IF(move1,IF(Calc!$A$90,INDEX(Motor!$AA$1:$AA$1452,A116,1),INDEX(LinMotor!$Y$1:$Y$1305,A116,1)),IF(Calc!$A$90,INDEX(Motor!$AD$1:$AD$1452,A116,1),INDEX(LinMotor!$AB$1:$AB$1305,A116,1))))<1000,IF(move1,IF(Calc!$A$90,INDEX(Motor!$AA$1:$AA$1452,A116,1),INDEX(LinMotor!$Y$1:$Y$1305,A116,1)),IF(Calc!$A$90,INDEX(Motor!$AD$1:$AD$1452,A116,1),INDEX(LinMotor!$AB$1:$AB$1305,A116,1))),TEXT(IF(move1,IF(Calc!$A$90,INDEX(Motor!$AA$1:$AA$1452,A116,1),INDEX(LinMotor!$Y$1:$Y$1305,A116,1)),IF(Calc!$A$90,INDEX(Motor!$AD$1:$AD$1452,A116,1),INDEX(LinMotor!$AB$1:$AB$1305,A116,1)))/1000,"0.0k")),"") -> 0 | K116: =IF(Calc!$A$90,INDEX(Motor!$AF$1:$AF$1452,A116,1),INDEX(LinMotor!$AD$1:$AD$1305,A116,1)) -> 0.3548420589 | L116: =IF(Calc!$A$90,INDEX(Motor!$AG$1:$AG$1452,A116,1),INDEX(LinMotor!$AE$1:$AE$1305,A116,1)) -> 0.5047957771 | M116: =IF(Calc!$A$90,INDEX(Motor!$AH$1:$AH$1452,A116,1),INDEX(LinMotor!$AF$1:$AF$1305,A116,1)) -> 4.258104707 | N116: =IF(Calc!$A$90,INDEX(Motor!$AI$1:$AI$1452,A116,1),INDEX(LinMotor!$AG$1:$AG$1305,A116,1)) -> 12.11509865 | O116: =IF(A116<>2,IF(IF(Calc!$A$90,INDEX(Motor!$AK$1:$AK$1452,A116,1),INDEX(LinMotor!$AI$1:$AI$1305,A116,1))<1000,IF(Calc!$A$90,INDEX(Motor!$AK$1:$AK$1452,A116,1),INDEX(LinMotor!$AI$1:$AI$1305,A116,1)),TEXT(IF(Calc!$A$90,INDEX(Motor!$AK$1:$AK$1452,A116,1),INDEX(LinMotor!$AI$1:$AI$1305,A116,1))/1000,"0.0k")),"") -> 239.5932932 | P116: =IF(A116<>2,IF(IF(Calc!$A$90,INDEX(Motor!$AL$1:$AL$1452,A116,1),INDEX(LinMotor!$AJ$1:$AJ$1305,A116,1))<1000,IF(Calc!$A$90,INDEX(Motor!$AL$1:$AL$1452,A116,1),INDEX(LinMotor!$AJ$1:$AJ$1305,A116,1)),TEXT(IF(Calc!$A$90,INDEX(Motor!$AL$1:$AL$1452,A116,1),INDEX(LinMotor!$AJ$1:$AJ$1305,A116,1))/1000,"0.0k")),"") -> 194.2244194 | Q116: =IF(A116<>2,IF(IF(Calc!$A$90,INDEX(Motor!$AM$1:$AM$1452,A116,1),INDEX(LinMotor!$AK$1:$AK$1305,A116,1))<1000,IF(Calc!$A$90,INDEX(Motor!$AM$1:$AM$1452,A116,1),INDEX(LinMotor!$AK$1:$AK$1305,A116,1)),TEXT(IF(Calc!$A$90,INDEX(Motor!$AM$1:$AM$1452,A116,1),INDEX(LinMotor!$AK$1:$AK$1305,A116,1))/1000,"0.0k")),"") -> 1.9k
A117: 534 | B117: =IF(Calc!$A$90,INDEX(Motor!$B$1:$B$1452,A117,1),INDEX(LinMotor!$B$1:$B$1291,A117,1)) -> AKM2G-52L 240 V | C117: =IF(Calc!$A$90,INDEX(Motor!$T$1:$T$1452,A117,1),INDEX(LinMotor!$R$1:$R$1305,A117,1)) -> 5.458515344 | D117: =IF(Calc!$A$90,INDEX(Motor!$U$1:$U$1452,A117,1),INDEX(LinMotor!$S$1:$S$1305,A117,1)) -> 0.434536428 | E117: =IF(Calc!$A$90,INDEX(Motor!$V$1:$V$1452,A117,1),INDEX(LinMotor!$T$1:$T$1305,A117,1)) -> 0.4988569939 | F117: =IF(Calc!$A$90,INDEX(Motor!$W$1:$W$1452,A117,1),INDEX(LinMotor!$U$1:$U$1305,A117,1)) -> 0.7602039163 | G117: =IF(A117<>2,IF(ABS(IF(Calc!$A$90,INDEX(Motor!$X$1:$X$1452,A117,1),INDEX(LinMotor!$V$1:$V$1305,A117,1)))<1000,IF(Calc!$A$90,INDEX(Motor!$X$1:$X$1452,A117,1),INDEX(LinMotor!$V$1:$V$1305,A117,1)),TEXT(IF(Calc!$A$90,INDEX(Motor!$X$1:$X$1452,A117,1),INDEX(LinMotor!$V$1:$V$1305,A117,1))/1000,"0.0k")),"") -> 14.41696693 | H117: =IF(A117<>2,IF(ABS(IF(move1,IF(Calc!$A$90,INDEX(Motor!$Y$1:$Y$1452,A117,1),INDEX(LinMotor!$W$1:$W$1305,A117,1)),IF(Calc!$A$90,INDEX(Motor!$Z$1:$Z$1452,A117,1),INDEX(LinMotor!$X$1:$X$1305,A117,1))))<1000,IF(move1,IF(Calc!$A$90,INDEX(Motor!$Y$1:$Y$1452,A117,1),INDEX(LinMotor!$W$1:$W$1305,A117,1)),IF(Calc!$A$90,INDEX(Motor!$Z$1:$Z$1452,A117,1),INDEX(LinMotor!$X$1:$X$1305,A117,1))),TEXT(IF(move1,IF(Calc!$A$90,INDEX(Motor!$Y$1:$Y$1452,A117,1),INDEX(LinMotor!$W$1:$W$1305,A117,1)),IF(Calc!$A$90,INDEX(Motor!$Z$1:$Z$1452,A117,1),INDEX(LinMotor!$X$1:$X$1305,A117,1)))/1000,"0.0k")),"") -> 0 | I117: =IF(A117<>2,IF(ABS(IF(move1,IF(Calc!$A$90,INDEX(Motor!$Z$1:$Z$1452,A117,1),INDEX(LinMotor!$X$1:$X$1305,A117,1)),IF(Calc!$A$90,INDEX(Motor!$AB$1:$AB$1452,A117,1),INDEX(LinMotor!$Z$1:$Z$1305,A117,1))))<1000,IF(move1,IF(Calc!$A$90,INDEX(Motor!$Z$1:$Z$1452,A117,1),INDEX(LinMotor!$X$1:$X$1305,A117,1)),IF(Calc!$A$90,INDEX(Motor!$AB$1:$AB$1452,A117,1),INDEX(LinMotor!$Z$1:$Z$1305,A117,1))),TEXT(IF(move1,IF(Calc!$A$90,INDEX(Motor!$Z$1:$Z$1452,A117,1),INDEX(LinMotor!$X$1:$X$1305,A117,1)),IF(Calc!$A$90,INDEX(Motor!$AB$1:$AB$1452,A117,1),INDEX(LinMotor!$Z$1:$Z$1305,A117,1)))/1000,"0.0k")),"") -> -11.67774322 | J117: =IF(A117<>2,IF(ABS(IF(move1,IF(Calc!$A$90,INDEX(Motor!$AA$1:$AA$1452,A117,1),INDEX(LinMotor!$Y$1:$Y$1305,A117,1)),IF(Calc!$A$90,INDEX(Motor!$AD$1:$AD$1452,A117,1),INDEX(LinMotor!$AB$1:$AB$1305,A117,1))))<1000,IF(move1,IF(Calc!$A$90,INDEX(Motor!$AA$1:$AA$1452,A117,1),INDEX(LinMotor!$Y$1:$Y$1305,A117,1)),IF(Calc!$A$90,INDEX(Motor!$AD$1:$AD$1452,A117,1),INDEX(LinMotor!$AB$1:$AB$1305,A117,1))),TEXT(IF(move1,IF(Calc!$A$90,INDEX(Motor!$AA$1:$AA$1452,A117,1),INDEX(LinMotor!$Y$1:$Y$1305,A117,1)),IF(Calc!$A$90,INDEX(Motor!$AD$1:$AD$1452,A117,1),INDEX(LinMotor!$AB$1:$AB$1305,A117,1)))/1000,"0.0k")),"") -> 0 | K117: =IF(Calc!$A$90,INDEX(Motor!$AF$1:$AF$1452,A117,1),INDEX(LinMotor!$AD$1:$AD$1305,A117,1)) -> 0.4435525736 | L117: =IF(Calc!$A$90,INDEX(Motor!$AG$1:$AG$1452,A117,1),INDEX(LinMotor!$AE$1:$AE$1305,A117,1)) -> 0.6309947214 | M117: =IF(Calc!$A$90,INDEX(Motor!$AH$1:$AH$1452,A117,1),INDEX(LinMotor!$AF$1:$AF$1305,A117,1)) -> 5.322630883 | N117: =IF(Calc!$A$90,INDEX(Motor!$AI$1:$AI$1452,A117,1),INDEX(LinMotor!$AG$1:$AG$1305,A117,1)) -> 15.14387331 | O117: =IF(A117<>2,IF(IF(Calc!$A$90,INDEX(Motor!$AK$1:$AK$1452,A117,1),INDEX(LinMotor!$AI$1:$AI$1305,A117,1))<1000,IF(Calc!$A$90,INDEX(Motor!$AK$1:$AK$1452,A117,1),INDEX(LinMotor!$AI$1:$AI$1305,A117,1)),TEXT(IF(Calc!$A$90,INDEX(Motor!$AK$1:$AK$1452,A117,1),INDEX(LinMotor!$AI$1:$AI$1305,A117,1))/1000,"0.0k")),"") -> 239.5932932 | P117: =IF(A117<>2,IF(IF(Calc!$A$90,INDEX(Motor!$AL$1:$AL$1452,A117,1),INDEX(LinMotor!$AJ$1:$AJ$1305,A117,1))<1000,IF(Calc!$A$90,INDEX(Motor!$AL$1:$AL$1452,A117,1),INDEX(LinMotor!$AJ$1:$AJ$1305,A117,1)),TEXT(IF(Calc!$A$90,INDEX(Motor!$AL$1:$AL$1452,A117,1),INDEX(LinMotor!$AJ$1:$AJ$1305,A117,1))/1000,"0.0k")),"") -> 194.2244194 | Q117: =IF(A117<>2,IF(IF(Calc!$A$90,INDEX(Motor!$AM$1:$AM$1452,A117,1),INDEX(LinMotor!$AK$1:$AK$1305,A117,1))<1000,IF(Calc!$A$90,INDEX(Motor!$AM$1:$AM$1452,A117,1),INDEX(LinMotor!$AK$1:$AK$1305,A117,1)),TEXT(IF(Calc!$A$90,INDEX(Motor!$AM$1:$AM$1452,A117,1),INDEX(LinMotor!$AK$1:$AK$1305,A117,1))/1000,"0.0k")),"") -> 1.9k
A118: 535 | B118: =IF(Calc!$A$90,INDEX(Motor!$B$1:$B$1452,A118,1),INDEX(LinMotor!$B$1:$B$1291,A118,1)) -> AKM2G-52L 400 V | C118: =IF(Calc!$A$90,INDEX(Motor!$T$1:$T$1452,A118,1),INDEX(LinMotor!$R$1:$R$1305,A118,1)) -> 5.458515344 | D118: =IF(Calc!$A$90,INDEX(Motor!$U$1:$U$1452,A118,1),INDEX(LinMotor!$S$1:$S$1305,A118,1)) -> 0.43914666 | E118: =IF(Calc!$A$90,INDEX(Motor!$V$1:$V$1452,A118,1),INDEX(LinMotor!$T$1:$T$1305,A118,1)) -> 0.4988569939 | F118: =IF(Calc!$A$90,INDEX(Motor!$W$1:$W$1452,A118,1),INDEX(LinMotor!$U$1:$U$1305,A118,1)) -> 0.7602039163 | G118: =IF(A118<>2,IF(ABS(IF(Calc!$A$90,INDEX(Motor!$X$1:$X$1452,A118,1),INDEX(LinMotor!$V$1:$V$1305,A118,1)))<1000,IF(Calc!$A$90,INDEX(Motor!$X$1:$X$1452,A118,1),INDEX(LinMotor!$V$1:$V$1305,A118,1)),TEXT(IF(Calc!$A$90,INDEX(Motor!$X$1:$X$1452,A118,1),INDEX(LinMotor!$V$1:$V$1305,A118,1))/1000,"0.0k")),"") -> 14.41696693 | H118: =IF(A118<>2,IF(ABS(IF(move1,IF(Calc!$A$90,INDEX(Motor!$Y$1:$Y$1452,A118,1),INDEX(LinMotor!$W$1:$W$1305,A118,1)),IF(Calc!$A$90,INDEX(Motor!$Z$1:$Z$1452,A118,1),INDEX(LinMotor!$X$1:$X$1305,A118,1))))<1000,IF(move1,IF(Calc!$A$90,INDEX(Motor!$Y$1:$Y$1452,A118,1),INDEX(LinMotor!$W$1:$W$1305,A118,1)),IF(Calc!$A$90,INDEX(Motor!$Z$1:$Z$1452,A118,1),INDEX(LinMotor!$X$1:$X$1305,A118,1))),TEXT(IF(move1,IF(Calc!$A$90,INDEX(Motor!$Y$1:$Y$1452,A118,1),INDEX(LinMotor!$W$1:$W$1305,A118,1)),IF(Calc!$A$90,INDEX(Motor!$Z$1:$Z$1452,A118,1),INDEX(LinMotor!$X$1:$X$1305,A118,1)))/1000,"0.0k")),"") -> 0 | I118: =IF(A118<>2,IF(ABS(IF(move1,IF(Calc!$A$90,INDEX(Motor!$Z$1:$Z$1452,A118,1),INDEX(LinMotor!$X$1:$X$1305,A118,1)),IF(Calc!$A$90,INDEX(Motor!$AB$1:$AB$1452,A118,1),INDEX(LinMotor!$Z$1:$Z$1305,A118,1))))<1000,IF(move1,IF(Calc!$A$90,INDEX(Motor!$Z$1:$Z$1452,A118,1),INDEX(LinMotor!$X$1:$X$1305,A118,1)),IF(Calc!$A$90,INDEX(Motor!$AB$1:$AB$1452,A118,1),INDEX(LinMotor!$Z$1:$Z$1305,A118,1))),TEXT(IF(move1,IF(Calc!$A$90,INDEX(Motor!$Z$1:$Z$1452,A118,1),INDEX(LinMotor!$X$1:$X$1305,A118,1)),IF(Calc!$A$90,INDEX(Motor!$AB$1:$AB$1452,A118,1),INDEX(LinMotor!$Z$1:$Z$1305,A118,1)))/1000,"0.0k")),"") -> -11.67774322 | J118: =IF(A118<>2,IF(ABS(IF(move1,IF(Calc!$A$90,INDEX(Motor!$AA$1:$AA$1452,A118,1),INDEX(LinMotor!$Y$1:$Y$1305,A118,1)),IF(Calc!$A$90,INDEX(Motor!$AD$1:$AD$1452,A118,1),INDEX(LinMotor!$AB$1:$AB$1305,A118,1))))<1000,IF(move1,IF(Calc!$A$90,INDEX(Motor!$AA$1:$AA$1452,A118,1),INDEX(LinMotor!$Y$1:$Y$1305,A118,1)),IF(Calc!$A$90,INDEX(Motor!$AD$1:$AD$1452,A118,1),INDEX(LinMotor!$AB$1:$AB$1305,A118,1))),TEXT(IF(move1,IF(Calc!$A$90,INDEX(Motor!$AA$1:$AA$1452,A118,1),INDEX(LinMotor!$Y$1:$Y$1305,A118,1)),IF(Calc!$A$90,INDEX(Motor!$AD$1:$AD$1452,A118,1),INDEX(LinMotor!$AB$1:$AB$1305,A118,1)))/1000,"0.0k")),"") -> 0 | K118: =IF(Calc!$A$90,INDEX(Motor!$AF$1:$AF$1452,A118,1),INDEX(LinMotor!$AD$1:$AD$1305,A118,1)) -> 0.4435525736 | L118: =IF(Calc!$A$90,INDEX(Motor!$AG$1:$AG$1452,A118,1),INDEX(LinMotor!$AE$1:$AE$1305,A118,1)) -> 0.6309947214 | M118: =IF(Calc!$A$90,INDEX(Motor!$AH$1:$AH$1452,A118,1),INDEX(LinMotor!$AF$1:$AF$1305,A118,1)) -> 5.322630883 | N118: =IF(Calc!$A$90,INDEX(Motor!$AI$1:$AI$1452,A118,1),INDEX(LinMotor!$AG$1:$AG$1305,A118,1)) -> 15.14387331 | O118: =IF(A118<>2,IF(IF(Calc!$A$90,INDEX(Motor!$AK$1:$AK$1452,A118,1),INDEX(LinMotor!$AI$1:$AI$1305,A118,1))<1000,IF(Calc!$A$90,INDEX(Motor!$AK$1:$AK$1452,A118,1),INDEX(LinMotor!$AI$1:$AI$1305,A118,1)),TEXT(IF(Calc!$A$90,INDEX(Motor!$AK$1:$AK$1452,A118,1),INDEX(LinMotor!$AI$1:$AI$1305,A118,1))/1000,"0.0k")),"") -> 239.5932932 | P118: =IF(A118<>2,IF(IF(Calc!$A$90,INDEX(Motor!$AL$1:$AL$1452,A118,1),INDEX(LinMotor!$AJ$1:$AJ$1305,A118,1))<1000,IF(Calc!$A$90,INDEX(Motor!$AL$1:$AL$1452,A118,1),INDEX(LinMotor!$AJ$1:$AJ$1305,A118,1)),TEXT(IF(Calc!$A$90,INDEX(Motor!$AL$1:$AL$1452,A118,1),INDEX(LinMotor!$AJ$1:$AJ$1305,A118,1))/1000,"0.0k")),"") -> 194.2244194 | Q118: =IF(A118<>2,IF(IF(Calc!$A$90,INDEX(Motor!$AM$1:$AM$1452,A118,1),INDEX(LinMotor!$AK$1:$AK$1305,A118,1))<1000,IF(Calc!$A$90,INDEX(Motor!$AM$1:$AM$1452,A118,1),INDEX(LinMotor!$AK$1:$AK$1305,A118,1)),TEXT(IF(Calc!$A$90,INDEX(Motor!$AM$1:$AM$1452,A118,1),INDEX(LinMotor!$AK$1:$AK$1305,A118,1))/1000,"0.0k")),"") -> 1.9k
A119: 540 | B119: =IF(Calc!$A$90,INDEX(Motor!$B$1:$B$1452,A119,1),INDEX(LinMotor!$B$1:$B$1291,A119,1)) -> AKM2G-53L 240 V | C119: =IF(Calc!$A$90,INDEX(Motor!$T$1:$T$1452,A119,1),INDEX(LinMotor!$R$1:$R$1305,A119,1)) -> 3.765060287 | D119: =IF(Calc!$A$90,INDEX(Motor!$U$1:$U$1452,A119,1),INDEX(LinMotor!$S$1:$S$1305,A119,1)) -> 0.3467167075 | E119: =IF(Calc!$A$90,INDEX(Motor!$V$1:$V$1452,A119,1),INDEX(LinMotor!$T$1:$T$1305,A119,1)) -> 0.3724876259 | F119: =IF(Calc!$A$90,INDEX(Motor!$W$1:$W$1452,A119,1),INDEX(LinMotor!$U$1:$U$1305,A119,1)) -> 1 | G119: =IF(A119<>2,IF(ABS(IF(Calc!$A$90,INDEX(Motor!$X$1:$X$1452,A119,1),INDEX(LinMotor!$V$1:$V$1305,A119,1)))<1000,IF(Calc!$A$90,INDEX(Motor!$X$1:$X$1452,A119,1),INDEX(LinMotor!$V$1:$V$1305,A119,1)),TEXT(IF(Calc!$A$90,INDEX(Motor!$X$1:$X$1452,A119,1),INDEX(LinMotor!$V$1:$V$1305,A119,1))/1000,"0.0k")),"") -> 15.42098828 | H119: =IF(A119<>2,IF(ABS(IF(move1,IF(Calc!$A$90,INDEX(Motor!$Y$1:$Y$1452,A119,1),INDEX(LinMotor!$W$1:$W$1305,A119,1)),IF(Calc!$A$90,INDEX(Motor!$Z$1:$Z$1452,A119,1),INDEX(LinMotor!$X$1:$X$1305,A119,1))))<1000,IF(move1,IF(Calc!$A$90,INDEX(Motor!$Y$1:$Y$1452,A119,1),INDEX(LinMotor!$W$1:$W$1305,A119,1)),IF(Calc!$A$90,INDEX(Motor!$Z$1:$Z$1452,A119,1),INDEX(LinMotor!$X$1:$X$1305,A119,1))),TEXT(IF(move1,IF(Calc!$A$90,INDEX(Motor!$Y$1:$Y$1452,A119,1),INDEX(LinMotor!$W$1:$W$1305,A119,1)),IF(Calc!$A$90,INDEX(Motor!$Z$1:$Z$1452,A119,1),INDEX(LinMotor!$X$1:$X$1305,A119,1)))/1000,"0.0k")),"") -> 0 | I119: =IF(A119<>2,IF(ABS(IF(move1,IF(Calc!$A$90,INDEX(Motor!$Z$1:$Z$1452,A119,1),INDEX(LinMotor!$X$1:$X$1305,A119,1)),IF(Calc!$A$90,INDEX(Motor!$AB$1:$AB$1452,A119,1),INDEX(LinMotor!$Z$1:$Z$1305,A119,1))))<1000,IF(move1,IF(Calc!$A$90,INDEX(Motor!$Z$1:$Z$1452,A119,1),INDEX(LinMotor!$X$1:$X$1305,A119,1)),IF(Calc!$A$90,INDEX(Motor!$AB$1:$AB$1452,A119,1),INDEX(LinMotor!$Z$1:$Z$1305,A119,1))),TEXT(IF(move1,IF(Calc!$A$90,INDEX(Motor!$Z$1:$Z$1452,A119,1),INDEX(LinMotor!$X$1:$X$1305,A119,1)),IF(Calc!$A$90,INDEX(Motor!$AB$1:$AB$1452,A119,1),INDEX(LinMotor!$Z$1:$Z$1305,A119,1)))/1000,"0.0k")),"") -> -12.49100051 | J119: =IF(A119<>2,IF(ABS(IF(move1,IF(Calc!$A$90,INDEX(Motor!$AA$1:$AA$1452,A119,1),INDEX(LinMotor!$Y$1:$Y$1305,A119,1)),IF(Calc!$A$90,INDEX(Motor!$AD$1:$AD$1452,A119,1),INDEX(LinMotor!$AB$1:$AB$1305,A119,1))))<1000,IF(move1,IF(Calc!$A$90,INDEX(Motor!$AA$1:$AA$1452,A119,1),INDEX(LinMotor!$Y$1:$Y$1305,A119,1)),IF(Calc!$A$90,INDEX(Motor!$AD$1:$AD$1452,A119,1),INDEX(LinMotor!$AB$1:$AB$1305,A119,1))),TEXT(IF(move1,IF(Calc!$A$90,INDEX(Motor!$AA$1:$AA$1452,A119,1),INDEX(LinMotor!$Y$1:$Y$1305,A119,1)),IF(Calc!$A$90,INDEX(Motor!$AD$1:$AD$1452,A119,1),INDEX(LinMotor!$AB$1:$AB$1305,A119,1)))/1000,"0.0k")),"") -> 0 | K119: =IF(Calc!$A$90,INDEX(Motor!$AF$1:$AF$1452,A119,1),INDEX(LinMotor!$AD$1:$AD$1305,A119,1)) -> 0.3528664539 | L119: =IF(Calc!$A$90,INDEX(Motor!$AG$1:$AG$1452,A119,1),INDEX(LinMotor!$AE$1:$AE$1305,A119,1)) -> 0.5019852956 | M119: =IF(Calc!$A$90,INDEX(Motor!$AH$1:$AH$1452,A119,1),INDEX(LinMotor!$AF$1:$AF$1305,A119,1)) -> 4.234397447 | N119: =IF(Calc!$A$90,INDEX(Motor!$AI$1:$AI$1452,A119,1),INDEX(LinMotor!$AG$1:$AG$1305,A119,1)) -> 12.04764709 | O119: =IF(A119<>2,IF(IF(Calc!$A$90,INDEX(Motor!$AK$1:$AK$1452,A119,1),INDEX(LinMotor!$AI$1:$AI$1305,A119,1))<1000,IF(Calc!$A$90,INDEX(Motor!$AK$1:$AK$1452,A119,1),INDEX(LinMotor!$AI$1:$AI$1305,A119,1)),TEXT(IF(Calc!$A$90,INDEX(Motor!$AK$1:$AK$1452,A119,1),INDEX(LinMotor!$AI$1:$AI$1305,A119,1))/1000,"0.0k")),"") -> 256.2789652 | P119: =IF(A119<>2,IF(IF(Calc!$A$90,INDEX(Motor!$AL$1:$AL$1452,A119,1),INDEX(LinMotor!$AJ$1:$AJ$1305,A119,1))<1000,IF(Calc!$A$90,INDEX(Motor!$AL$1:$AL$1452,A119,1),INDEX(LinMotor!$AJ$1:$AJ$1305,A119,1)),TEXT(IF(Calc!$A$90,INDEX(Motor!$AL$1:$AL$1452,A119,1),INDEX(LinMotor!$AJ$1:$AJ$1305,A119,1))/1000,"0.0k")),"") -> 207.7505282 | Q119: =IF(A119<>2,IF(IF(Calc!$A$90,INDEX(Motor!$AM$1:$AM$1452,A119,1),INDEX(LinMotor!$AK$1:$AK$1305,A119,1))<1000,IF(Calc!$A$90,INDEX(Motor!$AM$1:$AM$1452,A119,1),INDEX(LinMotor!$AK$1:$AK$1305,A119,1)),TEXT(IF(Calc!$A$90,INDEX(Motor!$AM$1:$AM$1452,A119,1),INDEX(LinMotor!$AK$1:$AK$1305,A119,1))/1000,"0.0k")),"") -> 2.0k
A120: 541 | B120: =IF(Calc!$A$90,INDEX(Motor!$B$1:$B$1452,A120,1),INDEX(LinMotor!$B$1:$B$1291,A120,1)) -> AKM2G-53L 400 V | C120: =IF(Calc!$A$90,INDEX(Motor!$T$1:$T$1452,A120,1),INDEX(LinMotor!$R$1:$R$1305,A120,1)) -> 3.765060287 | D120: =IF(Calc!$A$90,INDEX(Motor!$U$1:$U$1452,A120,1),INDEX(LinMotor!$S$1:$S$1305,A120,1)) -> 0.3509044964 | E120: =IF(Calc!$A$90,INDEX(Motor!$V$1:$V$1452,A120,1),INDEX(LinMotor!$T$1:$T$1305,A120,1)) -> 0.3724876259 | F120: =IF(Calc!$A$90,INDEX(Motor!$W$1:$W$1452,A120,1),INDEX(LinMotor!$U$1:$U$1305,A120,1)) -> 0.9821590343 | G120: =IF(A120<>2,IF(ABS(IF(Calc!$A$90,INDEX(Motor!$X$1:$X$1452,A120,1),INDEX(LinMotor!$V$1:$V$1305,A120,1)))<1000,IF(Calc!$A$90,INDEX(Motor!$X$1:$X$1452,A120,1),INDEX(LinMotor!$V$1:$V$1305,A120,1)),TEXT(IF(Calc!$A$90,INDEX(Motor!$X$1:$X$1452,A120,1),INDEX(LinMotor!$V$1:$V$1305,A120,1))/1000,"0.0k")),"") -> 15.42098828 | H120: =IF(A120<>2,IF(ABS(IF(move1,IF(Calc!$A$90,INDEX(Motor!$Y$1:$Y$1452,A120,1),INDEX(LinMotor!$W$1:$W$1305,A120,1)),IF(Calc!$A$90,INDEX(Motor!$Z$1:$Z$1452,A120,1),INDEX(LinMotor!$X$1:$X$1305,A120,1))))<1000,IF(move1,IF(Calc!$A$90,INDEX(Motor!$Y$1:$Y$1452,A120,1),INDEX(LinMotor!$W$1:$W$1305,A120,1)),IF(Calc!$A$90,INDEX(Motor!$Z$1:$Z$1452,A120,1),INDEX(LinMotor!$X$1:$X$1305,A120,1))),TEXT(IF(move1,IF(Calc!$A$90,INDEX(Motor!$Y$1:$Y$1452,A120,1),INDEX(LinMotor!$W$1:$W$1305,A120,1)),IF(Calc!$A$90,INDEX(Motor!$Z$1:$Z$1452,A120,1),INDEX(LinMotor!$X$1:$X$1305,A120,1)))/1000,"0.0k")),"") -> 0 | I120: =IF(A120<>2,IF(ABS(IF(move1,IF(Calc!$A$90,INDEX(Motor!$Z$1:$Z$1452,A120,1),INDEX(LinMotor!$X$1:$X$1305,A120,1)),IF(Calc!$A$90,INDEX(Motor!$AB$1:$AB$1452,A120,1),INDEX(LinMotor!$Z$1:$Z$1305,A120,1))))<1000,IF(move1,IF(Calc!$A$90,INDEX(Motor!$Z$1:$Z$1452,A120,1),INDEX(LinMotor!$X$1:$X$1305,A120,1)),IF(Calc!$A$90,INDEX(Motor!$AB$1:$AB$1452,A120,1),INDEX(LinMotor!$Z$1:$Z$1305,A120,1))),TEXT(IF(move1,IF(Calc!$A$90,INDEX(Motor!$Z$1:$Z$1452,A120,1),INDEX(LinMotor!$X$1:$X$1305,A120,1)),IF(Calc!$A$90,INDEX(Motor!$AB$1:$AB$1452,A120,1),INDEX(LinMotor!$Z$1:$Z$1305,A120,1)))/1000,"0.0k")),"") -> -12.49100051 | J120: =IF(A120<>2,IF(ABS(IF(move1,IF(Calc!$A$90,INDEX(Motor!$AA$1:$AA$1452,A120,1),INDEX(LinMotor!$Y$1:$Y$1305,A120,1)),IF(Calc!$A$90,INDEX(Motor!$AD$1:$AD$1452,A120,1),INDEX(LinMotor!$AB$1:$AB$1305,A120,1))))<1000,IF(move1,IF(Calc!$A$90,INDEX(Motor!$AA$1:$AA$1452,A120,1),INDEX(LinMotor!$Y$1:$Y$1305,A120,1)),IF(Calc!$A$90,INDEX(Motor!$AD$1:$AD$1452,A120,1),INDEX(LinMotor!$AB$1:$AB$1305,A120,1))),TEXT(IF(move1,IF(Calc!$A$90,INDEX(Motor!$AA$1:$AA$1452,A120,1),INDEX(LinMotor!$Y$1:$Y$1305,A120,1)),IF(Calc!$A$90,INDEX(Motor!$AD$1:$AD$1452,A120,1),INDEX(LinMotor!$AB$1:$AB$1305,A120,1)))/1000,"0.0k")),"") -> 0 | K120: =IF(Calc!$A$90,INDEX(Motor!$AF$1:$AF$1452,A120,1),INDEX(LinMotor!$AD$1:$AD$1305,A120,1)) -> 0.3528664539 | L120: =IF(Calc!$A$90,INDEX(Motor!$AG$1:$AG$1452,A120,1),INDEX(LinMotor!$AE$1:$AE$1305,A120,1)) -> 0.5019852956 | M120: =IF(Calc!$A$90,INDEX(Motor!$AH$1:$AH$1452,A120,1),INDEX(LinMotor!$AF$1:$AF$1305,A120,1)) -> 4.234397447 | N120: =IF(Calc!$A$90,INDEX(Motor!$AI$1:$AI$1452,A120,1),INDEX(LinMotor!$AG$1:$AG$1305,A120,1)) -> 12.04764709 | O120: =IF(A120<>2,IF(IF(Calc!$A$90,INDEX(Motor!$AK$1:$AK$1452,A120,1),INDEX(LinMotor!$AI$1:$AI$1305,A120,1))<1000,IF(Calc!$A$90,INDEX(Motor!$AK$1:$AK$1452,A120,1),INDEX(LinMotor!$AI$1:$AI$1305,A120,1)),TEXT(IF(Calc!$A$90,INDEX(Motor!$AK$1:$AK$1452,A120,1),INDEX(LinMotor!$AI$1:$AI$1305,A120,1))/1000,"0.0k")),"") -> 256.2789652 | P120: =IF(A120<>2,IF(IF(Calc!$A$90,INDEX(Motor!$AL$1:$AL$1452,A120,1),INDEX(LinMotor!$AJ$1:$AJ$1305,A120,1))<1000,IF(Calc!$A$90,INDEX(Motor!$AL$1:$AL$1452,A120,1),INDEX(LinMotor!$AJ$1:$AJ$1305,A120,1)),TEXT(IF(Calc!$A$90,INDEX(Motor!$AL$1:$AL$1452,A120,1),INDEX(LinMotor!$AJ$1:$AJ$1305,A120,1))/1000,"0.0k")),"") -> 207.7505282 | Q120: =IF(A120<>2,IF(IF(Calc!$A$90,INDEX(Motor!$AM$1:$AM$1452,A120,1),INDEX(LinMotor!$AK$1:$AK$1305,A120,1))<1000,IF(Calc!$A$90,INDEX(Motor!$AM$1:$AM$1452,A120,1),INDEX(LinMotor!$AK$1:$AK$1305,A120,1)),TEXT(IF(Calc!$A$90,INDEX(Motor!$AM$1:$AM$1452,A120,1),INDEX(LinMotor!$AK$1:$AK$1305,A120,1))/1000,"0.0k")),"") -> 2.0k
A121: 542 | B121: =IF(Calc!$A$90,INDEX(Motor!$B$1:$B$1452,A121,1),INDEX(LinMotor!$B$1:$B$1291,A121,1)) -> AKM2G-53L 480 V | C121: =IF(Calc!$A$90,INDEX(Motor!$T$1:$T$1452,A121,1),INDEX(LinMotor!$R$1:$R$1305,A121,1)) -> 3.765060287 | D121: =IF(Calc!$A$90,INDEX(Motor!$U$1:$U$1452,A121,1),INDEX(LinMotor!$S$1:$S$1305,A121,1)) -> 0.3531499482 | E121: =IF(Calc!$A$90,INDEX(Motor!$V$1:$V$1452,A121,1),INDEX(LinMotor!$T$1:$T$1305,A121,1)) -> 0.3724876259 | F121: =IF(Calc!$A$90,INDEX(Motor!$W$1:$W$1452,A121,1),INDEX(LinMotor!$U$1:$U$1305,A121,1)) -> 0.9821590343 | G121: =IF(A121<>2,IF(ABS(IF(Calc!$A$90,INDEX(Motor!$X$1:$X$1452,A121,1),INDEX(LinMotor!$V$1:$V$1305,A121,1)))<1000,IF(Calc!$A$90,INDEX(Motor!$X$1:$X$1452,A121,1),INDEX(LinMotor!$V$1:$V$1305,A121,1)),TEXT(IF(Calc!$A$90,INDEX(Motor!$X$1:$X$1452,A121,1),INDEX(LinMotor!$V$1:$V$1305,A121,1))/1000,"0.0k")),"") -> 15.42098828 | H121: =IF(A121<>2,IF(ABS(IF(move1,IF(Calc!$A$90,INDEX(Motor!$Y$1:$Y$1452,A121,1),INDEX(LinMotor!$W$1:$W$1305,A121,1)),IF(Calc!$A$90,INDEX(Motor!$Z$1:$Z$1452,A121,1),INDEX(LinMotor!$X$1:$X$1305,A121,1))))<1000,IF(move1,IF(Calc!$A$90,INDEX(Motor!$Y$1:$Y$1452,A121,1),INDEX(LinMotor!$W$1:$W$1305,A121,1)),IF(Calc!$A$90,INDEX(Motor!$Z$1:$Z$1452,A121,1),INDEX(LinMotor!$X$1:$X$1305,A121,1))),TEXT(IF(move1,IF(Calc!$A$90,INDEX(Motor!$Y$1:$Y$1452,A121,1),INDEX(LinMotor!$W$1:$W$1305,A121,1)),IF(Calc!$A$90,INDEX(Motor!$Z$1:$Z$1452,A121,1),INDEX(LinMotor!$X$1:$X$1305,A121,1)))/1000,"0.0k")),"") -> 0 | I121: =IF(A121<>2,IF(ABS(IF(move1,IF(Calc!$A$90,INDEX(Motor!$Z$1:$Z$1452,A121,1),INDEX(LinMotor!$X$1:$X$1305,A121,1)),IF(Calc!$A$90,INDEX(Motor!$AB$1:$AB$1452,A121,1),INDEX(LinMotor!$Z$1:$Z$1305,A121,1))))<1000,IF(move1,IF(Calc!$A$90,INDEX(Motor!$Z$1:$Z$1452,A121,1),INDEX(LinMotor!$X$1:$X$1305,A121,1)),IF(Calc!$A$90,INDEX(Motor!$AB$1:$AB$1452,A121,1),INDEX(LinMotor!$Z$1:$Z$1305,A121,1))),TEXT(IF(move1,IF(Calc!$A$90,INDEX(Motor!$Z$1:$Z$1452,A121,1),INDEX(LinMotor!$X$1:$X$1305,A121,1)),IF(Calc!$A$90,INDEX(Motor!$AB$1:$AB$1452,A121,1),INDEX(LinMotor!$Z$1:$Z$1305,A121,1)))/1000,"0.0k")),"") -> -12.49100051 | J121: =IF(A121<>2,IF(ABS(IF(move1,IF(Calc!$A$90,INDEX(Motor!$AA$1:$AA$1452,A121,1),INDEX(LinMotor!$Y$1:$Y$1305,A121,1)),IF(Calc!$A$90,INDEX(Motor!$AD$1:$AD$1452,A121,1),INDEX(LinMotor!$AB$1:$AB$1305,A121,1))))<1000,IF(move1,IF(Calc!$A$90,INDEX(Motor!$AA$1:$AA$1452,A121,1),INDEX(LinMotor!$Y$1:$Y$1305,A121,1)),IF(Calc!$A$90,INDEX(Motor!$AD$1:$AD$1452,A121,1),INDEX(LinMotor!$AB$1:$AB$1305,A121,1))),TEXT(IF(move1,IF(Calc!$A$90,INDEX(Motor!$AA$1:$AA$1452,A121,1),INDEX(LinMotor!$Y$1:$Y$1305,A121,1)),IF(Calc!$A$90,INDEX(Motor!$AD$1:$AD$1452,A121,1),INDEX(LinMotor!$AB$1:$AB$1305,A121,1)))/1000,"0.0k")),"") -> 0 | K121: =IF(Calc!$A$90,INDEX(Motor!$AF$1:$AF$1452,A121,1),INDEX(LinMotor!$AD$1:$AD$1305,A121,1)) -> 0.3528664539 | L121: =IF(Calc!$A$90,INDEX(Motor!$AG$1:$AG$1452,A121,1),INDEX(LinMotor!$AE$1:$AE$1305,A121,1)) -> 0.5019852956 | M121: =IF(Calc!$A$90,INDEX(Motor!$AH$1:$AH$1452,A121,1),INDEX(LinMotor!$AF$1:$AF$1305,A121,1)) -> 4.234397447 | N121: =IF(Calc!$A$90,INDEX(Motor!$AI$1:$AI$1452,A121,1),INDEX(LinMotor!$AG$1:$AG$1305,A121,1)) -> 12.04764709 | O121: =IF(A121<>2,IF(IF(Calc!$A$90,INDEX(Motor!$AK$1:$AK$1452,A121,1),INDEX(LinMotor!$AI$1:$AI$1305,A121,1))<1000,IF(Calc!$A$90,INDEX(Motor!$AK$1:$AK$1452,A121,1),INDEX(LinMotor!$AI$1:$AI$1305,A121,1)),TEXT(IF(Calc!$A$90,INDEX(Motor!$AK$1:$AK$1452,A121,1),INDEX(LinMotor!$AI$1:$AI$1305,A121,1))/1000,"0.0k")),"") -> 256.2789652 | P121: =IF(A121<>2,IF(IF(Calc!$A$90,INDEX(Motor!$AL$1:$AL$1452,A121,1),INDEX(LinMotor!$AJ$1:$AJ$1305,A121,1))<1000,IF(Calc!$A$90,INDEX(Motor!$AL$1:$AL$1452,A121,1),INDEX(LinMotor!$AJ$1:$AJ$1305,A121,1)),TEXT(IF(Calc!$A$90,INDEX(Motor!$AL$1:$AL$1452,A121,1),INDEX(LinMotor!$AJ$1:$AJ$1305,A121,1))/1000,"0.0k")),"") -> 207.7505282 | Q121: =IF(A121<>2,IF(IF(Calc!$A$90,INDEX(Motor!$AM$1:$AM$1452,A121,1),INDEX(LinMotor!$AK$1:$AK$1305,A121,1))<1000,IF(Calc!$A$90,INDEX(Motor!$AM$1:$AM$1452,A121,1),INDEX(LinMotor!$AK$1:$AK$1305,A121,1)),TEXT(IF(Calc!$A$90,INDEX(Motor!$AM$1:$AM$1452,A121,1),INDEX(LinMotor!$AK$1:$AK$1305,A121,1))/1000,"0.0k")),"") -> 2.0k
A122: 544 | B122: =IF(Calc!$A$90,INDEX(Motor!$B$1:$B$1452,A122,1),INDEX(LinMotor!$B$1:$B$1291,A122,1)) -> AKM2G-53M 240 V | C122: =IF(Calc!$A$90,INDEX(Motor!$T$1:$T$1452,A122,1),INDEX(LinMotor!$R$1:$R$1305,A122,1)) -> 3.765060287 | D122: =IF(Calc!$A$90,INDEX(Motor!$U$1:$U$1452,A122,1),INDEX(LinMotor!$S$1:$S$1305,A122,1)) -> 0.3455057301 | E122: =IF(Calc!$A$90,INDEX(Motor!$V$1:$V$1452,A122,1),INDEX(LinMotor!$T$1:$T$1305,A122,1)) -> 0.3724876259 | F122: =IF(Calc!$A$90,INDEX(Motor!$W$1:$W$1452,A122,1),INDEX(LinMotor!$U$1:$U$1305,A122,1)) -> 0.867557289 | G122: =IF(A122<>2,IF(ABS(IF(Calc!$A$90,INDEX(Motor!$X$1:$X$1452,A122,1),INDEX(LinMotor!$V$1:$V$1305,A122,1)))<1000,IF(Calc!$A$90,INDEX(Motor!$X$1:$X$1452,A122,1),INDEX(LinMotor!$V$1:$V$1305,A122,1)),TEXT(IF(Calc!$A$90,INDEX(Motor!$X$1:$X$1452,A122,1),INDEX(LinMotor!$V$1:$V$1305,A122,1))/1000,"0.0k")),"") -> 15.42098828 | H122: =IF(A122<>2,IF(ABS(IF(move1,IF(Calc!$A$90,INDEX(Motor!$Y$1:$Y$1452,A122,1),INDEX(LinMotor!$W$1:$W$1305,A122,1)),IF(Calc!$A$90,INDEX(Motor!$Z$1:$Z$1452,A122,1),INDEX(LinMotor!$X$1:$X$1305,A122,1))))<1000,IF(move1,IF(Calc!$A$90,INDEX(Motor!$Y$1:$Y$1452,A122,1),INDEX(LinMotor!$W$1:$W$1305,A122,1)),IF(Calc!$A$90,INDEX(Motor!$Z$1:$Z$1452,A122,1),INDEX(LinMotor!$X$1:$X$1305,A122,1))),TEXT(IF(move1,IF(Calc!$A$90,INDEX(Motor!$Y$1:$Y$1452,A122,1),INDEX(LinMotor!$W$1:$W$1305,A122,1)),IF(Calc!$A$90,INDEX(Motor!$Z$1:$Z$1452,A122,1),INDEX(LinMotor!$X$1:$X$1305,A122,1)))/1000,"0.0k")),"") -> 0 | I122: =IF(A122<>2,IF(ABS(IF(move1,IF(Calc!$A$90,INDEX(Motor!$Z$1:$Z$1452,A122,1),INDEX(LinMotor!$X$1:$X$1305,A122,1)),IF(Calc!$A$90,INDEX(Motor!$AB$1:$AB$1452,A122,1),INDEX(LinMotor!$Z$1:$Z$1305,A122,1))))<1000,IF(move1,IF(Calc!$A$90,INDEX(Motor!$Z$1:$Z$1452,A122,1),INDEX(LinMotor!$X$1:$X$1305,A122,1)),IF(Calc!$A$90,INDEX(Motor!$AB$1:$AB$1452,A122,1),INDEX(LinMotor!$Z$1:$Z$1305,A122,1))),TEXT(IF(move1,IF(Calc!$A$90,INDEX(Motor!$Z$1:$Z$1452,A122,1),INDEX(LinMotor!$X$1:$X$1305,A122,1)),IF(Calc!$A$90,INDEX(Motor!$AB$1:$AB$1452,A122,1),INDEX(LinMotor!$Z$1:$Z$1305,A122,1)))/1000,"0.0k")),"") -> -12.49100051 | J122: =IF(A122<>2,IF(ABS(IF(move1,IF(Calc!$A$90,INDEX(Motor!$AA$1:$AA$1452,A122,1),INDEX(LinMotor!$Y$1:$Y$1305,A122,1)),IF(Calc!$A$90,INDEX(Motor!$AD$1:$AD$1452,A122,1),INDEX(LinMotor!$AB$1:$AB$1305,A122,1))))<1000,IF(move1,IF(Calc!$A$90,INDEX(Motor!$AA$1:$AA$1452,A122,1),INDEX(LinMotor!$Y$1:$Y$1305,A122,1)),IF(Calc!$A$90,INDEX(Motor!$AD$1:$AD$1452,A122,1),INDEX(LinMotor!$AB$1:$AB$1305,A122,1))),TEXT(IF(move1,IF(Calc!$A$90,INDEX(Motor!$AA$1:$AA$1452,A122,1),INDEX(LinMotor!$Y$1:$Y$1305,A122,1)),IF(Calc!$A$90,INDEX(Motor!$AD$1:$AD$1452,A122,1),INDEX(LinMotor!$AB$1:$AB$1305,A122,1)))/1000,"0.0k")),"") -> 0 | K122: =IF(Calc!$A$90,INDEX(Motor!$AF$1:$AF$1452,A122,1),INDEX(LinMotor!$AD$1:$AD$1305,A122,1)) -> 0.3983664862 | L122: =IF(Calc!$A$90,INDEX(Motor!$AG$1:$AG$1452,A122,1),INDEX(LinMotor!$AE$1:$AE$1305,A122,1)) -> 0.5667133164 | M122: =IF(Calc!$A$90,INDEX(Motor!$AH$1:$AH$1452,A122,1),INDEX(LinMotor!$AF$1:$AF$1305,A122,1)) -> 4.780397835 | N122: =IF(Calc!$A$90,INDEX(Motor!$AI$1:$AI$1452,A122,1),INDEX(LinMotor!$AG$1:$AG$1305,A122,1)) -> 13.60111959 | O122: =IF(A122<>2,IF(IF(Calc!$A$90,INDEX(Motor!$AK$1:$AK$1452,A122,1),INDEX(LinMotor!$AI$1:$AI$1305,A122,1))<1000,IF(Calc!$A$90,INDEX(Motor!$AK$1:$AK$1452,A122,1),INDEX(LinMotor!$AI$1:$AI$1305,A122,1)),TEXT(IF(Calc!$A$90,INDEX(Motor!$AK$1:$AK$1452,A122,1),INDEX(LinMotor!$AI$1:$AI$1305,A122,1))/1000,"0.0k")),"") -> 256.2789652 | P122: =IF(A122<>2,IF(IF(Calc!$A$90,INDEX(Motor!$AL$1:$AL$1452,A122,1),INDEX(LinMotor!$AJ$1:$AJ$1305,A122,1))<1000,IF(Calc!$A$90,INDEX(Motor!$AL$1:$AL$1452,A122,1),INDEX(LinMotor!$AJ$1:$AJ$1305,A122,1)),TEXT(IF(Calc!$A$90,INDEX(Motor!$AL$1:$AL$1452,A122,1),INDEX(LinMotor!$AJ$1:$AJ$1305,A122,1))/1000,"0.0k")),"") -> 207.7505282 | Q122: =IF(A122<>2,IF(IF(Calc!$A$90,INDEX(Motor!$AM$1:$AM$1452,A122,1),INDEX(LinMotor!$AK$1:$AK$1305,A122,1))<1000,IF(Calc!$A$90,INDEX(Motor!$AM$1:$AM$1452,A122,1),INDEX(LinMotor!$AK$1:$AK$1305,A122,1)),TEXT(IF(Calc!$A$90,INDEX(Motor!$AM$1:$AM$1452,A122,1),INDEX(LinMotor!$AK$1:$AK$1305,A122,1))/1000,"0.0k")),"") -> 2.0k
A123: 545 | B123: =IF(Calc!$A$90,INDEX(Motor!$B$1:$B$1452,A123,1),INDEX(LinMotor!$B$1:$B$1291,A123,1)) -> AKM2G-53M 400 V | C123: =IF(Calc!$A$90,INDEX(Motor!$T$1:$T$1452,A123,1),INDEX(LinMotor!$R$1:$R$1305,A123,1)) -> 3.765060287 | D123: =IF(Calc!$A$90,INDEX(Motor!$U$1:$U$1452,A123,1),INDEX(LinMotor!$S$1:$S$1305,A123,1)) -> 0.3496222713 | E123: =IF(Calc!$A$90,INDEX(Motor!$V$1:$V$1452,A123,1),INDEX(LinMotor!$T$1:$T$1305,A123,1)) -> 0.3724876259 | F123: =IF(Calc!$A$90,INDEX(Motor!$W$1:$W$1452,A123,1),INDEX(LinMotor!$U$1:$U$1305,A123,1)) -> 0.867557289 | G123: =IF(A123<>2,IF(ABS(IF(Calc!$A$90,INDEX(Motor!$X$1:$X$1452,A123,1),INDEX(LinMotor!$V$1:$V$1305,A123,1)))<1000,IF(Calc!$A$90,INDEX(Motor!$X$1:$X$1452,A123,1),INDEX(LinMotor!$V$1:$V$1305,A123,1)),TEXT(IF(Calc!$A$90,INDEX(Motor!$X$1:$X$1452,A123,1),INDEX(LinMotor!$V$1:$V$1305,A123,1))/1000,"0.0k")),"") -> 15.42098828 | H123: =IF(A123<>2,IF(ABS(IF(move1,IF(Calc!$A$90,INDEX(Motor!$Y$1:$Y$1452,A123,1),INDEX(LinMotor!$W$1:$W$1305,A123,1)),IF(Calc!$A$90,INDEX(Motor!$Z$1:$Z$1452,A123,1),INDEX(LinMotor!$X$1:$X$1305,A123,1))))<1000,IF(move1,IF(Calc!$A$90,INDEX(Motor!$Y$1:$Y$1452,A123,1),INDEX(LinMotor!$W$1:$W$1305,A123,1)),IF(Calc!$A$90,INDEX(Motor!$Z$1:$Z$1452,A123,1),INDEX(LinMotor!$X$1:$X$1305,A123,1))),TEXT(IF(move1,IF(Calc!$A$90,INDEX(Motor!$Y$1:$Y$1452,A123,1),INDEX(LinMotor!$W$1:$W$1305,A123,1)),IF(Calc!$A$90,INDEX(Motor!$Z$1:$Z$1452,A123,1),INDEX(LinMotor!$X$1:$X$1305,A123,1)))/1000,"0.0k")),"") -> 0 | I123: =IF(A123<>2,IF(ABS(IF(move1,IF(Calc!$A$90,INDEX(Motor!$Z$1:$Z$1452,A123,1),INDEX(LinMotor!$X$1:$X$1305,A123,1)),IF(Calc!$A$90,INDEX(Motor!$AB$1:$AB$1452,A123,1),INDEX(LinMotor!$Z$1:$Z$1305,A123,1))))<1000,IF(move1,IF(Calc!$A$90,INDEX(Motor!$Z$1:$Z$1452,A123,1),INDEX(LinMotor!$X$1:$X$1305,A123,1)),IF(Calc!$A$90,INDEX(Motor!$AB$1:$AB$1452,A123,1),INDEX(LinMotor!$Z$1:$Z$1305,A123,1))),TEXT(IF(move1,IF(Calc!$A$90,INDEX(Motor!$Z$1:$Z$1452,A123,1),INDEX(LinMotor!$X$1:$X$1305,A123,1)),IF(Calc!$A$90,INDEX(Motor!$AB$1:$AB$1452,A123,1),INDEX(LinMotor!$Z$1:$Z$1305,A123,1)))/1000,"0.0k")),"") -> -12.49100051 | J123: =IF(A123<>2,IF(ABS(IF(move1,IF(Calc!$A$90,INDEX(Motor!$AA$1:$AA$1452,A123,1),INDEX(LinMotor!$Y$1:$Y$1305,A123,1)),IF(Calc!$A$90,INDEX(Motor!$AD$1:$AD$1452,A123,1),INDEX(LinMotor!$AB$1:$AB$1305,A123,1))))<1000,IF(move1,IF(Calc!$A$90,INDEX(Motor!$AA$1:$AA$1452,A123,1),INDEX(LinMotor!$Y$1:$Y$1305,A123,1)),IF(Calc!$A$90,INDEX(Motor!$AD$1:$AD$1452,A123,1),INDEX(LinMotor!$AB$1:$AB$1305,A123,1))),TEXT(IF(move1,IF(Calc!$A$90,INDEX(Motor!$AA$1:$AA$1452,A123,1),INDEX(LinMotor!$Y$1:$Y$1305,A123,1)),IF(Calc!$A$90,INDEX(Motor!$AD$1:$AD$1452,A123,1),INDEX(LinMotor!$AB$1:$AB$1305,A123,1)))/1000,"0.0k")),"") -> 0 | K123: =IF(Calc!$A$90,INDEX(Motor!$AF$1:$AF$1452,A123,1),INDEX(LinMotor!$AD$1:$AD$1305,A123,1)) -> 0.3983664862 | L123: =IF(Calc!$A$90,INDEX(Motor!$AG$1:$AG$1452,A123,1),INDEX(LinMotor!$AE$1:$AE$1305,A123,1)) -> 0.5667133164 | M123: =IF(Calc!$A$90,INDEX(Motor!$AH$1:$AH$1452,A123,1),INDEX(LinMotor!$AF$1:$AF$1305,A123,1)) -> 4.780397835 | N123: =IF(Calc!$A$90,INDEX(Motor!$AI$1:$AI$1452,A123,1),INDEX(LinMotor!$AG$1:$AG$1305,A123,1)) -> 13.60111959 | O123: =IF(A123<>2,IF(IF(Calc!$A$90,INDEX(Motor!$AK$1:$AK$1452,A123,1),INDEX(LinMotor!$AI$1:$AI$1305,A123,1))<1000,IF(Calc!$A$90,INDEX(Motor!$AK$1:$AK$1452,A123,1),INDEX(LinMotor!$AI$1:$AI$1305,A123,1)),TEXT(IF(Calc!$A$90,INDEX(Motor!$AK$1:$AK$1452,A123,1),INDEX(LinMotor!$AI$1:$AI$1305,A123,1))/1000,"0.0k")),"") -> 256.2789652 | P123: =IF(A123<>2,IF(IF(Calc!$A$90,INDEX(Motor!$AL$1:$AL$1452,A123,1),INDEX(LinMotor!$AJ$1:$AJ$1305,A123,1))<1000,IF(Calc!$A$90,INDEX(Motor!$AL$1:$AL$1452,A123,1),INDEX(LinMotor!$AJ$1:$AJ$1305,A123,1)),TEXT(IF(Calc!$A$90,INDEX(Motor!$AL$1:$AL$1452,A123,1),INDEX(LinMotor!$AJ$1:$AJ$1305,A123,1))/1000,"0.0k")),"") -> 207.7505282 | Q123: =IF(A123<>2,IF(IF(Calc!$A$90,INDEX(Motor!$AM$1:$AM$1452,A123,1),INDEX(LinMotor!$AK$1:$AK$1305,A123,1))<1000,IF(Calc!$A$90,INDEX(Motor!$AM$1:$AM$1452,A123,1),INDEX(LinMotor!$AK$1:$AK$1305,A123,1)),TEXT(IF(Calc!$A$90,INDEX(Motor!$AM$1:$AM$1452,A123,1),INDEX(LinMotor!$AK$1:$AK$1305,A123,1))/1000,"0.0k")),"") -> 2.0k
A124: 550 | B124: =IF(Calc!$A$90,INDEX(Motor!$B$1:$B$1452,A124,1),INDEX(LinMotor!$B$1:$B$1291,A124,1)) -> AKM2G-54M 240 V | C124: =IF(Calc!$A$90,INDEX(Motor!$T$1:$T$1452,A124,1),INDEX(LinMotor!$R$1:$R$1305,A124,1)) -> 2.873563255 | D124: =IF(Calc!$A$90,INDEX(Motor!$U$1:$U$1452,A124,1),INDEX(LinMotor!$S$1:$S$1305,A124,1)) -> 0.296958096 | E124: =IF(Calc!$A$90,INDEX(Motor!$V$1:$V$1452,A124,1),INDEX(LinMotor!$T$1:$T$1305,A124,1)) -> 0.3002743949 | F124: =IF(Calc!$A$90,INDEX(Motor!$W$1:$W$1452,A124,1),INDEX(LinMotor!$U$1:$U$1305,A124,1)) -> 1.043478261 | G124: =IF(A124<>2,IF(ABS(IF(Calc!$A$90,INDEX(Motor!$X$1:$X$1452,A124,1),INDEX(LinMotor!$V$1:$V$1305,A124,1)))<1000,IF(Calc!$A$90,INDEX(Motor!$X$1:$X$1452,A124,1),INDEX(LinMotor!$V$1:$V$1305,A124,1)),TEXT(IF(Calc!$A$90,INDEX(Motor!$X$1:$X$1452,A124,1),INDEX(LinMotor!$V$1:$V$1305,A124,1))/1000,"0.0k")),"") -> 16.42500963 | H124: =IF(A124<>2,IF(ABS(IF(move1,IF(Calc!$A$90,INDEX(Motor!$Y$1:$Y$1452,A124,1),INDEX(LinMotor!$W$1:$W$1305,A124,1)),IF(Calc!$A$90,INDEX(Motor!$Z$1:$Z$1452,A124,1),INDEX(LinMotor!$X$1:$X$1305,A124,1))))<1000,IF(move1,IF(Calc!$A$90,INDEX(Motor!$Y$1:$Y$1452,A124,1),INDEX(LinMotor!$W$1:$W$1305,A124,1)),IF(Calc!$A$90,INDEX(Motor!$Z$1:$Z$1452,A124,1),INDEX(LinMotor!$X$1:$X$1305,A124,1))),TEXT(IF(move1,IF(Calc!$A$90,INDEX(Motor!$Y$1:$Y$1452,A124,1),INDEX(LinMotor!$W$1:$W$1305,A124,1)),IF(Calc!$A$90,INDEX(Motor!$Z$1:$Z$1452,A124,1),INDEX(LinMotor!$X$1:$X$1305,A124,1)))/1000,"0.0k")),"") -> 0 | I124: =IF(A124<>2,IF(ABS(IF(move1,IF(Calc!$A$90,INDEX(Motor!$Z$1:$Z$1452,A124,1),INDEX(LinMotor!$X$1:$X$1305,A124,1)),IF(Calc!$A$90,INDEX(Motor!$AB$1:$AB$1452,A124,1),INDEX(LinMotor!$Z$1:$Z$1305,A124,1))))<1000,IF(move1,IF(Calc!$A$90,INDEX(Motor!$Z$1:$Z$1452,A124,1),INDEX(LinMotor!$X$1:$X$1305,A124,1)),IF(Calc!$A$90,INDEX(Motor!$AB$1:$AB$1452,A124,1),INDEX(LinMotor!$Z$1:$Z$1305,A124,1))),TEXT(IF(move1,IF(Calc!$A$90,INDEX(Motor!$Z$1:$Z$1452,A124,1),INDEX(LinMotor!$X$1:$X$1305,A124,1)),IF(Calc!$A$90,INDEX(Motor!$AB$1:$AB$1452,A124,1),INDEX(LinMotor!$Z$1:$Z$1305,A124,1)))/1000,"0.0k")),"") -> -13.3042578 | J124: =IF(A124<>2,IF(ABS(IF(move1,IF(Calc!$A$90,INDEX(Motor!$AA$1:$AA$1452,A124,1),INDEX(LinMotor!$Y$1:$Y$1305,A124,1)),IF(Calc!$A$90,INDEX(Motor!$AD$1:$AD$1452,A124,1),INDEX(LinMotor!$AB$1:$AB$1305,A124,1))))<1000,IF(move1,IF(Calc!$A$90,INDEX(Motor!$AA$1:$AA$1452,A124,1),INDEX(LinMotor!$Y$1:$Y$1305,A124,1)),IF(Calc!$A$90,INDEX(Motor!$AD$1:$AD$1452,A124,1),INDEX(LinMotor!$AB$1:$AB$1305,A124,1))),TEXT(IF(move1,IF(Calc!$A$90,INDEX(Motor!$AA$1:$AA$1452,A124,1),INDEX(LinMotor!$Y$1:$Y$1305,A124,1)),IF(Calc!$A$90,INDEX(Motor!$AD$1:$AD$1452,A124,1),INDEX(LinMotor!$AB$1:$AB$1305,A124,1)))/1000,"0.0k")),"") -> 0 | K124: =IF(Calc!$A$90,INDEX(Motor!$AF$1:$AF$1452,A124,1),INDEX(LinMotor!$AD$1:$AD$1305,A124,1)) -> 0.3511855516 | L124: =IF(Calc!$A$90,INDEX(Motor!$AG$1:$AG$1452,A124,1),INDEX(LinMotor!$AE$1:$AE$1305,A124,1)) -> 0.499594056 | M124: =IF(Calc!$A$90,INDEX(Motor!$AH$1:$AH$1452,A124,1),INDEX(LinMotor!$AF$1:$AF$1305,A124,1)) -> 4.214226619 | N124: =IF(Calc!$A$90,INDEX(Motor!$AI$1:$AI$1452,A124,1),INDEX(LinMotor!$AG$1:$AG$1305,A124,1)) -> 11.99025734 | O124: =IF(A124<>2,IF(IF(Calc!$A$90,INDEX(Motor!$AK$1:$AK$1452,A124,1),INDEX(LinMotor!$AI$1:$AI$1305,A124,1))<1000,IF(Calc!$A$90,INDEX(Motor!$AK$1:$AK$1452,A124,1),INDEX(LinMotor!$AI$1:$AI$1305,A124,1)),TEXT(IF(Calc!$A$90,INDEX(Motor!$AK$1:$AK$1452,A124,1),INDEX(LinMotor!$AI$1:$AI$1305,A124,1))/1000,"0.0k")),"") -> 272.9646372 | P124: =IF(A124<>2,IF(IF(Calc!$A$90,INDEX(Motor!$AL$1:$AL$1452,A124,1),INDEX(LinMotor!$AJ$1:$AJ$1305,A124,1))<1000,IF(Calc!$A$90,INDEX(Motor!$AL$1:$AL$1452,A124,1),INDEX(LinMotor!$AJ$1:$AJ$1305,A124,1)),TEXT(IF(Calc!$A$90,INDEX(Motor!$AL$1:$AL$1452,A124,1),INDEX(LinMotor!$AJ$1:$AJ$1305,A124,1))/1000,"0.0k")),"") -> 221.276637 | Q124: =IF(A124<>2,IF(IF(Calc!$A$90,INDEX(Motor!$AM$1:$AM$1452,A124,1),INDEX(LinMotor!$AK$1:$AK$1305,A124,1))<1000,IF(Calc!$A$90,INDEX(Motor!$AM$1:$AM$1452,A124,1),INDEX(LinMotor!$AK$1:$AK$1305,A124,1)),TEXT(IF(Calc!$A$90,INDEX(Motor!$AM$1:$AM$1452,A124,1),INDEX(LinMotor!$AK$1:$AK$1305,A124,1))/1000,"0.0k")),"") -> 2.1k
A125: 551 | B125: =IF(Calc!$A$90,INDEX(Motor!$B$1:$B$1452,A125,1),INDEX(LinMotor!$B$1:$B$1291,A125,1)) -> AKM2G-54M 400 V | C125: =IF(Calc!$A$90,INDEX(Motor!$T$1:$T$1452,A125,1),INDEX(LinMotor!$R$1:$R$1305,A125,1)) -> 2.873563255 | D125: =IF(Calc!$A$90,INDEX(Motor!$U$1:$U$1452,A125,1),INDEX(LinMotor!$S$1:$S$1305,A125,1)) -> 0.3009654451 | E125: =IF(Calc!$A$90,INDEX(Motor!$V$1:$V$1452,A125,1),INDEX(LinMotor!$T$1:$T$1305,A125,1)) -> 0.3002743949 | F125: =IF(Calc!$A$90,INDEX(Motor!$W$1:$W$1452,A125,1),INDEX(LinMotor!$U$1:$U$1305,A125,1)) -> 1.032952094 | G125: =IF(A125<>2,IF(ABS(IF(Calc!$A$90,INDEX(Motor!$X$1:$X$1452,A125,1),INDEX(LinMotor!$V$1:$V$1305,A125,1)))<1000,IF(Calc!$A$90,INDEX(Motor!$X$1:$X$1452,A125,1),INDEX(LinMotor!$V$1:$V$1305,A125,1)),TEXT(IF(Calc!$A$90,INDEX(Motor!$X$1:$X$1452,A125,1),INDEX(LinMotor!$V$1:$V$1305,A125,1))/1000,"0.0k")),"") -> 16.42500963 | H125: =IF(A125<>2,IF(ABS(IF(move1,IF(Calc!$A$90,INDEX(Motor!$Y$1:$Y$1452,A125,1),INDEX(LinMotor!$W$1:$W$1305,A125,1)),IF(Calc!$A$90,INDEX(Motor!$Z$1:$Z$1452,A125,1),INDEX(LinMotor!$X$1:$X$1305,A125,1))))<1000,IF(move1,IF(Calc!$A$90,INDEX(Motor!$Y$1:$Y$1452,A125,1),INDEX(LinMotor!$W$1:$W$1305,A125,1)),IF(Calc!$A$90,INDEX(Motor!$Z$1:$Z$1452,A125,1),INDEX(LinMotor!$X$1:$X$1305,A125,1))),TEXT(IF(move1,IF(Calc!$A$90,INDEX(Motor!$Y$1:$Y$1452,A125,1),INDEX(LinMotor!$W$1:$W$1305,A125,1)),IF(Calc!$A$90,INDEX(Motor!$Z$1:$Z$1452,A125,1),INDEX(LinMotor!$X$1:$X$1305,A125,1)))/1000,"0.0k")),"") -> 0 | I125: =IF(A125<>2,IF(ABS(IF(move1,IF(Calc!$A$90,INDEX(Motor!$Z$1:$Z$1452,A125,1),INDEX(LinMotor!$X$1:$X$1305,A125,1)),IF(Calc!$A$90,INDEX(Motor!$AB$1:$AB$1452,A125,1),INDEX(LinMotor!$Z$1:$Z$1305,A125,1))))<1000,IF(move1,IF(Calc!$A$90,INDEX(Motor!$Z$1:$Z$1452,A125,1),INDEX(LinMotor!$X$1:$X$1305,A125,1)),IF(Calc!$A$90,INDEX(Motor!$AB$1:$AB$1452,A125,1),INDEX(LinMotor!$Z$1:$Z$1305,A125,1))),TEXT(IF(move1,IF(Calc!$A$90,INDEX(Motor!$Z$1:$Z$1452,A125,1),INDEX(LinMotor!$X$1:$X$1305,A125,1)),IF(Calc!$A$90,INDEX(Motor!$AB$1:$AB$1452,A125,1),INDEX(LinMotor!$Z$1:$Z$1305,A125,1)))/1000,"0.0k")),"") -> -13.3042578 | J125: =IF(A125<>2,IF(ABS(IF(move1,IF(Calc!$A$90,INDEX(Motor!$AA$1:$AA$1452,A125,1),INDEX(LinMotor!$Y$1:$Y$1305,A125,1)),IF(Calc!$A$90,INDEX(Motor!$AD$1:$AD$1452,A125,1),INDEX(LinMotor!$AB$1:$AB$1305,A125,1))))<1000,IF(move1,IF(Calc!$A$90,INDEX(Motor!$AA$1:$AA$1452,A125,1),INDEX(LinMotor!$Y$1:$Y$1305,A125,1)),IF(Calc!$A$90,INDEX(Motor!$AD$1:$AD$1452,A125,1),INDEX(LinMotor!$AB$1:$AB$1305,A125,1))),TEXT(IF(move1,IF(Calc!$A$90,INDEX(Motor!$AA$1:$AA$1452,A125,1),INDEX(LinMotor!$Y$1:$Y$1305,A125,1)),IF(Calc!$A$90,INDEX(Motor!$AD$1:$AD$1452,A125,1),INDEX(LinMotor!$AB$1:$AB$1305,A125,1)))/1000,"0.0k")),"") -> 0 | K125: =IF(Calc!$A$90,INDEX(Motor!$AF$1:$AF$1452,A125,1),INDEX(LinMotor!$AD$1:$AD$1305,A125,1)) -> 0.3511855516 | L125: =IF(Calc!$A$90,INDEX(Motor!$AG$1:$AG$1452,A125,1),INDEX(LinMotor!$AE$1:$AE$1305,A125,1)) -> 0.499594056 | M125: =IF(Calc!$A$90,INDEX(Motor!$AH$1:$AH$1452,A125,1),INDEX(LinMotor!$AF$1:$AF$1305,A125,1)) -> 4.214226619 | N125: =IF(Calc!$A$90,INDEX(Motor!$AI$1:$AI$1452,A125,1),INDEX(LinMotor!$AG$1:$AG$1305,A125,1)) -> 11.99025734 | O125: =IF(A125<>2,IF(IF(Calc!$A$90,INDEX(Motor!$AK$1:$AK$1452,A125,1),INDEX(LinMotor!$AI$1:$AI$1305,A125,1))<1000,IF(Calc!$A$90,INDEX(Motor!$AK$1:$AK$1452,A125,1),INDEX(LinMotor!$AI$1:$AI$1305,A125,1)),TEXT(IF(Calc!$A$90,INDEX(Motor!$AK$1:$AK$1452,A125,1),INDEX(LinMotor!$AI$1:$AI$1305,A125,1))/1000,"0.0k")),"") -> 272.9646372 | P125: =IF(A125<>2,IF(IF(Calc!$A$90,INDEX(Motor!$AL$1:$AL$1452,A125,1),INDEX(LinMotor!$AJ$1:$AJ$1305,A125,1))<1000,IF(Calc!$A$90,INDEX(Motor!$AL$1:$AL$1452,A125,1),INDEX(LinMotor!$AJ$1:$AJ$1305,A125,1)),TEXT(IF(Calc!$A$90,INDEX(Motor!$AL$1:$AL$1452,A125,1),INDEX(LinMotor!$AJ$1:$AJ$1305,A125,1))/1000,"0.0k")),"") -> 221.276637 | Q125: =IF(A125<>2,IF(IF(Calc!$A$90,INDEX(Motor!$AM$1:$AM$1452,A125,1),INDEX(LinMotor!$AK$1:$AK$1305,A125,1))<1000,IF(Calc!$A$90,INDEX(Motor!$AM$1:$AM$1452,A125,1),INDEX(LinMotor!$AK$1:$AK$1305,A125,1)),TEXT(IF(Calc!$A$90,INDEX(Motor!$AM$1:$AM$1452,A125,1),INDEX(LinMotor!$AK$1:$AK$1305,A125,1))/1000,"0.0k")),"") -> 2.1k
A126: 552 | B126: =IF(Calc!$A$90,INDEX(Motor!$B$1:$B$1452,A126,1),INDEX(LinMotor!$B$1:$B$1291,A126,1)) -> AKM2G-54M 480 V | C126: =IF(Calc!$A$90,INDEX(Motor!$T$1:$T$1452,A126,1),INDEX(LinMotor!$R$1:$R$1305,A126,1)) -> 2.873563255 | D126: =IF(Calc!$A$90,INDEX(Motor!$U$1:$U$1452,A126,1),INDEX(LinMotor!$S$1:$S$1305,A126,1)) -> 0.3032091148 | E126: =IF(Calc!$A$90,INDEX(Motor!$V$1:$V$1452,A126,1),INDEX(LinMotor!$T$1:$T$1305,A126,1)) -> 0.3002743949 | F126: =IF(Calc!$A$90,INDEX(Motor!$W$1:$W$1452,A126,1),INDEX(LinMotor!$U$1:$U$1305,A126,1)) -> 1.032952094 | G126: =IF(A126<>2,IF(ABS(IF(Calc!$A$90,INDEX(Motor!$X$1:$X$1452,A126,1),INDEX(LinMotor!$V$1:$V$1305,A126,1)))<1000,IF(Calc!$A$90,INDEX(Motor!$X$1:$X$1452,A126,1),INDEX(LinMotor!$V$1:$V$1305,A126,1)),TEXT(IF(Calc!$A$90,INDEX(Motor!$X$1:$X$1452,A126,1),INDEX(LinMotor!$V$1:$V$1305,A126,1))/1000,"0.0k")),"") -> 16.42500963 | H126: =IF(A126<>2,IF(ABS(IF(move1,IF(Calc!$A$90,INDEX(Motor!$Y$1:$Y$1452,A126,1),INDEX(LinMotor!$W$1:$W$1305,A126,1)),IF(Calc!$A$90,INDEX(Motor!$Z$1:$Z$1452,A126,1),INDEX(LinMotor!$X$1:$X$1305,A126,1))))<1000,IF(move1,IF(Calc!$A$90,INDEX(Motor!$Y$1:$Y$1452,A126,1),INDEX(LinMotor!$W$1:$W$1305,A126,1)),IF(Calc!$A$90,INDEX(Motor!$Z$1:$Z$1452,A126,1),INDEX(LinMotor!$X$1:$X$1305,A126,1))),TEXT(IF(move1,IF(Calc!$A$90,INDEX(Motor!$Y$1:$Y$1452,A126,1),INDEX(LinMotor!$W$1:$W$1305,A126,1)),IF(Calc!$A$90,INDEX(Motor!$Z$1:$Z$1452,A126,1),INDEX(LinMotor!$X$1:$X$1305,A126,1)))/1000,"0.0k")),"") -> 0 | I126: =IF(A126<>2,IF(ABS(IF(move1,IF(Calc!$A$90,INDEX(Motor!$Z$1:$Z$1452,A126,1),INDEX(LinMotor!$X$1:$X$1305,A126,1)),IF(Calc!$A$90,INDEX(Motor!$AB$1:$AB$1452,A126,1),INDEX(LinMotor!$Z$1:$Z$1305,A126,1))))<1000,IF(move1,IF(Calc!$A$90,INDEX(Motor!$Z$1:$Z$1452,A126,1),INDEX(LinMotor!$X$1:$X$1305,A126,1)),IF(Calc!$A$90,INDEX(Motor!$AB$1:$AB$1452,A126,1),INDEX(LinMotor!$Z$1:$Z$1305,A126,1))),TEXT(IF(move1,IF(Calc!$A$90,INDEX(Motor!$Z$1:$Z$1452,A126,1),INDEX(LinMotor!$X$1:$X$1305,A126,1)),IF(Calc!$A$90,INDEX(Motor!$AB$1:$AB$1452,A126,1),INDEX(LinMotor!$Z$1:$Z$1305,A126,1)))/1000,"0.0k")),"") -> -13.3042578 | J126: =IF(A126<>2,IF(ABS(IF(move1,IF(Calc!$A$90,INDEX(Motor!$AA$1:$AA$1452,A126,1),INDEX(LinMotor!$Y$1:$Y$1305,A126,1)),IF(Calc!$A$90,INDEX(Motor!$AD$1:$AD$1452,A126,1),INDEX(LinMotor!$AB$1:$AB$1305,A126,1))))<1000,IF(move1,IF(Calc!$A$90,INDEX(Motor!$AA$1:$AA$1452,A126,1),INDEX(LinMotor!$Y$1:$Y$1305,A126,1)),IF(Calc!$A$90,INDEX(Motor!$AD$1:$AD$1452,A126,1),INDEX(LinMotor!$AB$1:$AB$1305,A126,1))),TEXT(IF(move1,IF(Calc!$A$90,INDEX(Motor!$AA$1:$AA$1452,A126,1),INDEX(LinMotor!$Y$1:$Y$1305,A126,1)),IF(Calc!$A$90,INDEX(Motor!$AD$1:$AD$1452,A126,1),INDEX(LinMotor!$AB$1:$AB$1305,A126,1)))/1000,"0.0k")),"") -> 0 | K126: =IF(Calc!$A$90,INDEX(Motor!$AF$1:$AF$1452,A126,1),INDEX(LinMotor!$AD$1:$AD$1305,A126,1)) -> 0.3511855516 | L126: =IF(Calc!$A$90,INDEX(Motor!$AG$1:$AG$1452,A126,1),INDEX(LinMotor!$AE$1:$AE$1305,A126,1)) -> 0.499594056 | M126: =IF(Calc!$A$90,INDEX(Motor!$AH$1:$AH$1452,A126,1),INDEX(LinMotor!$AF$1:$AF$1305,A126,1)) -> 4.214226619 | N126: =IF(Calc!$A$90,INDEX(Motor!$AI$1:$AI$1452,A126,1),INDEX(LinMotor!$AG$1:$AG$1305,A126,1)) -> 11.99025734 | O126: =IF(A126<>2,IF(IF(Calc!$A$90,INDEX(Motor!$AK$1:$AK$1452,A126,1),INDEX(LinMotor!$AI$1:$AI$1305,A126,1))<1000,IF(Calc!$A$90,INDEX(Motor!$AK$1:$AK$1452,A126,1),INDEX(LinMotor!$AI$1:$AI$1305,A126,1)),TEXT(IF(Calc!$A$90,INDEX(Motor!$AK$1:$AK$1452,A126,1),INDEX(LinMotor!$AI$1:$AI$1305,A126,1))/1000,"0.0k")),"") -> 272.9646372 | P126: =IF(A126<>2,IF(IF(Calc!$A$90,INDEX(Motor!$AL$1:$AL$1452,A126,1),INDEX(LinMotor!$AJ$1:$AJ$1305,A126,1))<1000,IF(Calc!$A$90,INDEX(Motor!$AL$1:$AL$1452,A126,1),INDEX(LinMotor!$AJ$1:$AJ$1305,A126,1)),TEXT(IF(Calc!$A$90,INDEX(Motor!$AL$1:$AL$1452,A126,1),INDEX(LinMotor!$AJ$1:$AJ$1305,A126,1))/1000,"0.0k")),"") -> 221.276637 | Q126: =IF(A126<>2,IF(IF(Calc!$A$90,INDEX(Motor!$AM$1:$AM$1452,A126,1),INDEX(LinMotor!$AK$1:$AK$1305,A126,1))<1000,IF(Calc!$A$90,INDEX(Motor!$AM$1:$AM$1452,A126,1),INDEX(LinMotor!$AK$1:$AK$1305,A126,1)),TEXT(IF(Calc!$A$90,INDEX(Motor!$AM$1:$AM$1452,A126,1),INDEX(LinMotor!$AK$1:$AK$1305,A126,1))/1000,"0.0k")),"") -> 2.1k
A127: 554 | B127: =IF(Calc!$A$90,INDEX(Motor!$B$1:$B$1452,A127,1),INDEX(LinMotor!$B$1:$B$1291,A127,1)) -> AKM2G-54N 240 V | C127: =IF(Calc!$A$90,INDEX(Motor!$T$1:$T$1452,A127,1),INDEX(LinMotor!$R$1:$R$1305,A127,1)) -> 2.873563255 | D127: =IF(Calc!$A$90,INDEX(Motor!$U$1:$U$1452,A127,1),INDEX(LinMotor!$S$1:$S$1305,A127,1)) -> 0.2977145976 | E127: =IF(Calc!$A$90,INDEX(Motor!$V$1:$V$1452,A127,1),INDEX(LinMotor!$T$1:$T$1305,A127,1)) -> 0.3002743949 | F127: =IF(Calc!$A$90,INDEX(Motor!$W$1:$W$1452,A127,1),INDEX(LinMotor!$U$1:$U$1305,A127,1)) -> 0.9270969017 | G127: =IF(A127<>2,IF(ABS(IF(Calc!$A$90,INDEX(Motor!$X$1:$X$1452,A127,1),INDEX(LinMotor!$V$1:$V$1305,A127,1)))<1000,IF(Calc!$A$90,INDEX(Motor!$X$1:$X$1452,A127,1),INDEX(LinMotor!$V$1:$V$1305,A127,1)),TEXT(IF(Calc!$A$90,INDEX(Motor!$X$1:$X$1452,A127,1),INDEX(LinMotor!$V$1:$V$1305,A127,1))/1000,"0.0k")),"") -> 16.42500963 | H127: =IF(A127<>2,IF(ABS(IF(move1,IF(Calc!$A$90,INDEX(Motor!$Y$1:$Y$1452,A127,1),INDEX(LinMotor!$W$1:$W$1305,A127,1)),IF(Calc!$A$90,INDEX(Motor!$Z$1:$Z$1452,A127,1),INDEX(LinMotor!$X$1:$X$1305,A127,1))))<1000,IF(move1,IF(Calc!$A$90,INDEX(Motor!$Y$1:$Y$1452,A127,1),INDEX(LinMotor!$W$1:$W$1305,A127,1)),IF(Calc!$A$90,INDEX(Motor!$Z$1:$Z$1452,A127,1),INDEX(LinMotor!$X$1:$X$1305,A127,1))),TEXT(IF(move1,IF(Calc!$A$90,INDEX(Motor!$Y$1:$Y$1452,A127,1),INDEX(LinMotor!$W$1:$W$1305,A127,1)),IF(Calc!$A$90,INDEX(Motor!$Z$1:$Z$1452,A127,1),INDEX(LinMotor!$X$1:$X$1305,A127,1)))/1000,"0.0k")),"") -> 0 | I127: =IF(A127<>2,IF(ABS(IF(move1,IF(Calc!$A$90,INDEX(Motor!$Z$1:$Z$1452,A127,1),INDEX(LinMotor!$X$1:$X$1305,A127,1)),IF(Calc!$A$90,INDEX(Motor!$AB$1:$AB$1452,A127,1),INDEX(LinMotor!$Z$1:$Z$1305,A127,1))))<1000,IF(move1,IF(Calc!$A$90,INDEX(Motor!$Z$1:$Z$1452,A127,1),INDEX(LinMotor!$X$1:$X$1305,A127,1)),IF(Calc!$A$90,INDEX(Motor!$AB$1:$AB$1452,A127,1),INDEX(LinMotor!$Z$1:$Z$1305,A127,1))),TEXT(IF(move1,IF(Calc!$A$90,INDEX(Motor!$Z$1:$Z$1452,A127,1),INDEX(LinMotor!$X$1:$X$1305,A127,1)),IF(Calc!$A$90,INDEX(Motor!$AB$1:$AB$1452,A127,1),INDEX(LinMotor!$Z$1:$Z$1305,A127,1)))/1000,"0.0k")),"") -> -13.3042578 | J127: =IF(A127<>2,IF(ABS(IF(move1,IF(Calc!$A$90,INDEX(Motor!$AA$1:$AA$1452,A127,1),INDEX(LinMotor!$Y$1:$Y$1305,A127,1)),IF(Calc!$A$90,INDEX(Motor!$AD$1:$AD$1452,A127,1),INDEX(LinMotor!$AB$1:$AB$1305,A127,1))))<1000,IF(move1,IF(Calc!$A$90,INDEX(Motor!$AA$1:$AA$1452,A127,1),INDEX(LinMotor!$Y$1:$Y$1305,A127,1)),IF(Calc!$A$90,INDEX(Motor!$AD$1:$AD$1452,A127,1),INDEX(LinMotor!$AB$1:$AB$1305,A127,1))),TEXT(IF(move1,IF(Calc!$A$90,INDEX(Motor!$AA$1:$AA$1452,A127,1),INDEX(LinMotor!$Y$1:$Y$1305,A127,1)),IF(Calc!$A$90,INDEX(Motor!$AD$1:$AD$1452,A127,1),INDEX(LinMotor!$AB$1:$AB$1305,A127,1)))/1000,"0.0k")),"") -> 0 | K127: =IF(Calc!$A$90,INDEX(Motor!$AF$1:$AF$1452,A127,1),INDEX(LinMotor!$AD$1:$AD$1305,A127,1)) -> 0.3920769913 | L127: =IF(Calc!$A$90,INDEX(Motor!$AG$1:$AG$1452,A127,1),INDEX(LinMotor!$AE$1:$AE$1305,A127,1)) -> 0.5577659259 | M127: =IF(Calc!$A$90,INDEX(Motor!$AH$1:$AH$1452,A127,1),INDEX(LinMotor!$AF$1:$AF$1305,A127,1)) -> 4.704923896 | N127: =IF(Calc!$A$90,INDEX(Motor!$AI$1:$AI$1452,A127,1),INDEX(LinMotor!$AG$1:$AG$1305,A127,1)) -> 13.38638222 | O127: =IF(A127<>2,IF(IF(Calc!$A$90,INDEX(Motor!$AK$1:$AK$1452,A127,1),INDEX(LinMotor!$AI$1:$AI$1305,A127,1))<1000,IF(Calc!$A$90,INDEX(Motor!$AK$1:$AK$1452,A127,1),INDEX(LinMotor!$AI$1:$AI$1305,A127,1)),TEXT(IF(Calc!$A$90,INDEX(Motor!$AK$1:$AK$1452,A127,1),INDEX(LinMotor!$AI$1:$AI$1305,A127,1))/1000,"0.0k")),"") -> 272.9646372 | P127: =IF(A127<>2,IF(IF(Calc!$A$90,INDEX(Motor!$AL$1:$AL$1452,A127,1),INDEX(LinMotor!$AJ$1:$AJ$1305,A127,1))<1000,IF(Calc!$A$90,INDEX(Motor!$AL$1:$AL$1452,A127,1),INDEX(LinMotor!$AJ$1:$AJ$1305,A127,1)),TEXT(IF(Calc!$A$90,INDEX(Motor!$AL$1:$AL$1452,A127,1),INDEX(LinMotor!$AJ$1:$AJ$1305,A127,1))/1000,"0.0k")),"") -> 221.276637 | Q127: =IF(A127<>2,IF(IF(Calc!$A$90,INDEX(Motor!$AM$1:$AM$1452,A127,1),INDEX(LinMotor!$AK$1:$AK$1305,A127,1))<1000,IF(Calc!$A$90,INDEX(Motor!$AM$1:$AM$1452,A127,1),INDEX(LinMotor!$AK$1:$AK$1305,A127,1)),TEXT(IF(Calc!$A$90,INDEX(Motor!$AM$1:$AM$1452,A127,1),INDEX(LinMotor!$AK$1:$AK$1305,A127,1))/1000,"0.0k")),"") -> 2.1k
A128: 555 | B128: =IF(Calc!$A$90,INDEX(Motor!$B$1:$B$1452,A128,1),INDEX(LinMotor!$B$1:$B$1291,A128,1)) -> AKM2G-54N 400 V | C128: =IF(Calc!$A$90,INDEX(Motor!$T$1:$T$1452,A128,1),INDEX(LinMotor!$R$1:$R$1305,A128,1)) -> 2.873563255 | D128: =IF(Calc!$A$90,INDEX(Motor!$U$1:$U$1452,A128,1),INDEX(LinMotor!$S$1:$S$1305,A128,1)) -> 0.3022396444 | E128: =IF(Calc!$A$90,INDEX(Motor!$V$1:$V$1452,A128,1),INDEX(LinMotor!$T$1:$T$1305,A128,1)) -> 0.3002743949 | F128: =IF(Calc!$A$90,INDEX(Motor!$W$1:$W$1452,A128,1),INDEX(LinMotor!$U$1:$U$1305,A128,1)) -> 0.9270969017 | G128: =IF(A128<>2,IF(ABS(IF(Calc!$A$90,INDEX(Motor!$X$1:$X$1452,A128,1),INDEX(LinMotor!$V$1:$V$1305,A128,1)))<1000,IF(Calc!$A$90,INDEX(Motor!$X$1:$X$1452,A128,1),INDEX(LinMotor!$V$1:$V$1305,A128,1)),TEXT(IF(Calc!$A$90,INDEX(Motor!$X$1:$X$1452,A128,1),INDEX(LinMotor!$V$1:$V$1305,A128,1))/1000,"0.0k")),"") -> 16.42500963 | H128: =IF(A128<>2,IF(ABS(IF(move1,IF(Calc!$A$90,INDEX(Motor!$Y$1:$Y$1452,A128,1),INDEX(LinMotor!$W$1:$W$1305,A128,1)),IF(Calc!$A$90,INDEX(Motor!$Z$1:$Z$1452,A128,1),INDEX(LinMotor!$X$1:$X$1305,A128,1))))<1000,IF(move1,IF(Calc!$A$90,INDEX(Motor!$Y$1:$Y$1452,A128,1),INDEX(LinMotor!$W$1:$W$1305,A128,1)),IF(Calc!$A$90,INDEX(Motor!$Z$1:$Z$1452,A128,1),INDEX(LinMotor!$X$1:$X$1305,A128,1))),TEXT(IF(move1,IF(Calc!$A$90,INDEX(Motor!$Y$1:$Y$1452,A128,1),INDEX(LinMotor!$W$1:$W$1305,A128,1)),IF(Calc!$A$90,INDEX(Motor!$Z$1:$Z$1452,A128,1),INDEX(LinMotor!$X$1:$X$1305,A128,1)))/1000,"0.0k")),"") -> 0 | I128: =IF(A128<>2,IF(ABS(IF(move1,IF(Calc!$A$90,INDEX(Motor!$Z$1:$Z$1452,A128,1),INDEX(LinMotor!$X$1:$X$1305,A128,1)),IF(Calc!$A$90,INDEX(Motor!$AB$1:$AB$1452,A128,1),INDEX(LinMotor!$Z$1:$Z$1305,A128,1))))<1000,IF(move1,IF(Calc!$A$90,INDEX(Motor!$Z$1:$Z$1452,A128,1),INDEX(LinMotor!$X$1:$X$1305,A128,1)),IF(Calc!$A$90,INDEX(Motor!$AB$1:$AB$1452,A128,1),INDEX(LinMotor!$Z$1:$Z$1305,A128,1))),TEXT(IF(move1,IF(Calc!$A$90,INDEX(Motor!$Z$1:$Z$1452,A128,1),INDEX(LinMotor!$X$1:$X$1305,A128,1)),IF(Calc!$A$90,INDEX(Motor!$AB$1:$AB$1452,A128,1),INDEX(LinMotor!$Z$1:$Z$1305,A128,1)))/1000,"0.0k")),"") -> -13.3042578 | J128: =IF(A128<>2,IF(ABS(IF(move1,IF(Calc!$A$90,INDEX(Motor!$AA$1:$AA$1452,A128,1),INDEX(LinMotor!$Y$1:$Y$1305,A128,1)),IF(Calc!$A$90,INDEX(Motor!$AD$1:$AD$1452,A128,1),INDEX(LinMotor!$AB$1:$AB$1305,A128,1))))<1000,IF(move1,IF(Calc!$A$90,INDEX(Motor!$AA$1:$AA$1452,A128,1),INDEX(LinMotor!$Y$1:$Y$1305,A128,1)),IF(Calc!$A$90,INDEX(Motor!$AD$1:$AD$1452,A128,1),INDEX(LinMotor!$AB$1:$AB$1305,A128,1))),TEXT(IF(move1,IF(Calc!$A$90,INDEX(Motor!$AA$1:$AA$1452,A128,1),INDEX(LinMotor!$Y$1:$Y$1305,A128,1)),IF(Calc!$A$90,INDEX(Motor!$AD$1:$AD$1452,A128,1),INDEX(LinMotor!$AB$1:$AB$1305,A128,1)))/1000,"0.0k")),"") -> 0 | K128: =IF(Calc!$A$90,INDEX(Motor!$AF$1:$AF$1452,A128,1),INDEX(LinMotor!$AD$1:$AD$1305,A128,1)) -> 0.3920769913 | L128: =IF(Calc!$A$90,INDEX(Motor!$AG$1:$AG$1452,A128,1),INDEX(LinMotor!$AE$1:$AE$1305,A128,1)) -> 0.5577659259 | M128: =IF(Calc!$A$90,INDEX(Motor!$AH$1:$AH$1452,A128,1),INDEX(LinMotor!$AF$1:$AF$1305,A128,1)) -> 4.704923896 | N128: =IF(Calc!$A$90,INDEX(Motor!$AI$1:$AI$1452,A128,1),INDEX(LinMotor!$AG$1:$AG$1305,A128,1)) -> 13.38638222 | O128: =IF(A128<>2,IF(IF(Calc!$A$90,INDEX(Motor!$AK$1:$AK$1452,A128,1),INDEX(LinMotor!$AI$1:$AI$1305,A128,1))<1000,IF(Calc!$A$90,INDEX(Motor!$AK$1:$AK$1452,A128,1),INDEX(LinMotor!$AI$1:$AI$1305,A128,1)),TEXT(IF(Calc!$A$90,INDEX(Motor!$AK$1:$AK$1452,A128,1),INDEX(LinMotor!$AI$1:$AI$1305,A128,1))/1000,"0.0k")),"") -> 272.9646372 | P128: =IF(A128<>2,IF(IF(Calc!$A$90,INDEX(Motor!$AL$1:$AL$1452,A128,1),INDEX(LinMotor!$AJ$1:$AJ$1305,A128,1))<1000,IF(Calc!$A$90,INDEX(Motor!$AL$1:$AL$1452,A128,1),INDEX(LinMotor!$AJ$1:$AJ$1305,A128,1)),TEXT(IF(Calc!$A$90,INDEX(Motor!$AL$1:$AL$1452,A128,1),INDEX(LinMotor!$AJ$1:$AJ$1305,A128,1))/1000,"0.0k")),"") -> 221.276637 | Q128: =IF(A128<>2,IF(IF(Calc!$A$90,INDEX(Motor!$AM$1:$AM$1452,A128,1),INDEX(LinMotor!$AK$1:$AK$1305,A128,1))<1000,IF(Calc!$A$90,INDEX(Motor!$AM$1:$AM$1452,A128,1),INDEX(LinMotor!$AK$1:$AK$1305,A128,1)),TEXT(IF(Calc!$A$90,INDEX(Motor!$AM$1:$AM$1452,A128,1),INDEX(LinMotor!$AK$1:$AK$1305,A128,1))/1000,"0.0k")),"") -> 2.1k
A129: 560 | B129: =IF(Calc!$A$90,INDEX(Motor!$B$1:$B$1452,A129,1),INDEX(LinMotor!$B$1:$B$1291,A129,1)) -> AKM2G-62L 240 V | C129: =IF(Calc!$A$90,INDEX(Motor!$T$1:$T$1452,A129,1),INDEX(LinMotor!$R$1:$R$1305,A129,1)) -> 2.74725274 | D129: =IF(Calc!$A$90,INDEX(Motor!$U$1:$U$1452,A129,1),INDEX(LinMotor!$S$1:$S$1305,A129,1)) -> 0.3914542435 | E129: =IF(Calc!$A$90,INDEX(Motor!$V$1:$V$1452,A129,1),INDEX(LinMotor!$T$1:$T$1305,A129,1)) -> 0.4443840808 | F129: =IF(Calc!$A$90,INDEX(Motor!$W$1:$W$1452,A129,1),INDEX(LinMotor!$U$1:$U$1305,A129,1)) -> 1.090909091 | G129: =IF(A129<>2,IF(ABS(IF(Calc!$A$90,INDEX(Motor!$X$1:$X$1452,A129,1),INDEX(LinMotor!$V$1:$V$1305,A129,1)))<1000,IF(Calc!$A$90,INDEX(Motor!$X$1:$X$1452,A129,1),INDEX(LinMotor!$V$1:$V$1305,A129,1)),TEXT(IF(Calc!$A$90,INDEX(Motor!$X$1:$X$1452,A129,1),INDEX(LinMotor!$V$1:$V$1305,A129,1))/1000,"0.0k")),"") -> 16.6199653 | H129: =IF(A129<>2,IF(ABS(IF(move1,IF(Calc!$A$90,INDEX(Motor!$Y$1:$Y$1452,A129,1),INDEX(LinMotor!$W$1:$W$1305,A129,1)),IF(Calc!$A$90,INDEX(Motor!$Z$1:$Z$1452,A129,1),INDEX(LinMotor!$X$1:$X$1305,A129,1))))<1000,IF(move1,IF(Calc!$A$90,INDEX(Motor!$Y$1:$Y$1452,A129,1),INDEX(LinMotor!$W$1:$W$1305,A129,1)),IF(Calc!$A$90,INDEX(Motor!$Z$1:$Z$1452,A129,1),INDEX(LinMotor!$X$1:$X$1305,A129,1))),TEXT(IF(move1,IF(Calc!$A$90,INDEX(Motor!$Y$1:$Y$1452,A129,1),INDEX(LinMotor!$W$1:$W$1305,A129,1)),IF(Calc!$A$90,INDEX(Motor!$Z$1:$Z$1452,A129,1),INDEX(LinMotor!$X$1:$X$1305,A129,1)))/1000,"0.0k")),"") -> 0 | I129: =IF(A129<>2,IF(ABS(IF(move1,IF(Calc!$A$90,INDEX(Motor!$Z$1:$Z$1452,A129,1),INDEX(LinMotor!$X$1:$X$1305,A129,1)),IF(Calc!$A$90,INDEX(Motor!$AB$1:$AB$1452,A129,1),INDEX(LinMotor!$Z$1:$Z$1305,A129,1))))<1000,IF(move1,IF(Calc!$A$90,INDEX(Motor!$Z$1:$Z$1452,A129,1),INDEX(LinMotor!$X$1:$X$1305,A129,1)),IF(Calc!$A$90,INDEX(Motor!$AB$1:$AB$1452,A129,1),INDEX(LinMotor!$Z$1:$Z$1305,A129,1))),TEXT(IF(move1,IF(Calc!$A$90,INDEX(Motor!$Z$1:$Z$1452,A129,1),INDEX(LinMotor!$X$1:$X$1305,A129,1)),IF(Calc!$A$90,INDEX(Motor!$AB$1:$AB$1452,A129,1),INDEX(LinMotor!$Z$1:$Z$1305,A129,1)))/1000,"0.0k")),"") -> -13.46217189 | J129: =IF(A129<>2,IF(ABS(IF(move1,IF(Calc!$A$90,INDEX(Motor!$AA$1:$AA$1452,A129,1),INDEX(LinMotor!$Y$1:$Y$1305,A129,1)),IF(Calc!$A$90,INDEX(Motor!$AD$1:$AD$1452,A129,1),INDEX(LinMotor!$AB$1:$AB$1305,A129,1))))<1000,IF(move1,IF(Calc!$A$90,INDEX(Motor!$AA$1:$AA$1452,A129,1),INDEX(LinMotor!$Y$1:$Y$1305,A129,1)),IF(Calc!$A$90,INDEX(Motor!$AD$1:$AD$1452,A129,1),INDEX(LinMotor!$AB$1:$AB$1305,A129,1))),TEXT(IF(move1,IF(Calc!$A$90,INDEX(Motor!$AA$1:$AA$1452,A129,1),INDEX(LinMotor!$Y$1:$Y$1305,A129,1)),IF(Calc!$A$90,INDEX(Motor!$AD$1:$AD$1452,A129,1),INDEX(LinMotor!$AB$1:$AB$1305,A129,1)))/1000,"0.0k")),"") -> 0 | K129: =IF(Calc!$A$90,INDEX(Motor!$AF$1:$AF$1452,A129,1),INDEX(LinMotor!$AD$1:$AD$1305,A129,1)) -> 0.3714947403 | L129: =IF(Calc!$A$90,INDEX(Motor!$AG$1:$AG$1452,A129,1),INDEX(LinMotor!$AE$1:$AE$1305,A129,1)) -> 0.5284857627 | M129: =IF(Calc!$A$90,INDEX(Motor!$AH$1:$AH$1452,A129,1),INDEX(LinMotor!$AF$1:$AF$1305,A129,1)) -> 4.457936884 | N129: =IF(Calc!$A$90,INDEX(Motor!$AI$1:$AI$1452,A129,1),INDEX(LinMotor!$AG$1:$AG$1305,A129,1)) -> 12.68365831 | O129: =IF(A129<>2,IF(IF(Calc!$A$90,INDEX(Motor!$AK$1:$AK$1452,A129,1),INDEX(LinMotor!$AI$1:$AI$1305,A129,1))<1000,IF(Calc!$A$90,INDEX(Motor!$AK$1:$AK$1452,A129,1),INDEX(LinMotor!$AI$1:$AI$1305,A129,1)),TEXT(IF(Calc!$A$90,INDEX(Motor!$AK$1:$AK$1452,A129,1),INDEX(LinMotor!$AI$1:$AI$1305,A129,1))/1000,"0.0k")),"") -> 276.2045747 | P129: =IF(A129<>2,IF(IF(Calc!$A$90,INDEX(Motor!$AL$1:$AL$1452,A129,1),INDEX(LinMotor!$AJ$1:$AJ$1305,A129,1))<1000,IF(Calc!$A$90,INDEX(Motor!$AL$1:$AL$1452,A129,1),INDEX(LinMotor!$AJ$1:$AJ$1305,A129,1)),TEXT(IF(Calc!$A$90,INDEX(Motor!$AL$1:$AL$1452,A129,1),INDEX(LinMotor!$AJ$1:$AJ$1305,A129,1))/1000,"0.0k")),"") -> 223.9030668 | Q129: =IF(A129<>2,IF(IF(Calc!$A$90,INDEX(Motor!$AM$1:$AM$1452,A129,1),INDEX(LinMotor!$AK$1:$AK$1305,A129,1))<1000,IF(Calc!$A$90,INDEX(Motor!$AM$1:$AM$1452,A129,1),INDEX(LinMotor!$AK$1:$AK$1305,A129,1)),TEXT(IF(Calc!$A$90,INDEX(Motor!$AM$1:$AM$1452,A129,1),INDEX(LinMotor!$AK$1:$AK$1305,A129,1))/1000,"0.0k")),"") -> 2.2k
A130: 561 | B130: =IF(Calc!$A$90,INDEX(Motor!$B$1:$B$1452,A130,1),INDEX(LinMotor!$B$1:$B$1291,A130,1)) -> AKM2G-62L 400 V | C130: =IF(Calc!$A$90,INDEX(Motor!$T$1:$T$1452,A130,1),INDEX(LinMotor!$R$1:$R$1305,A130,1)) -> 2.74725274 | D130: =IF(Calc!$A$90,INDEX(Motor!$U$1:$U$1452,A130,1),INDEX(LinMotor!$S$1:$S$1305,A130,1)) -> 0.3954225943 | E130: =IF(Calc!$A$90,INDEX(Motor!$V$1:$V$1452,A130,1),INDEX(LinMotor!$T$1:$T$1305,A130,1)) -> 0.4443840808 | F130: =IF(Calc!$A$90,INDEX(Motor!$W$1:$W$1452,A130,1),INDEX(LinMotor!$U$1:$U$1305,A130,1)) -> 1.055231829 | G130: =IF(A130<>2,IF(ABS(IF(Calc!$A$90,INDEX(Motor!$X$1:$X$1452,A130,1),INDEX(LinMotor!$V$1:$V$1305,A130,1)))<1000,IF(Calc!$A$90,INDEX(Motor!$X$1:$X$1452,A130,1),INDEX(LinMotor!$V$1:$V$1305,A130,1)),TEXT(IF(Calc!$A$90,INDEX(Motor!$X$1:$X$1452,A130,1),INDEX(LinMotor!$V$1:$V$1305,A130,1))/1000,"0.0k")),"") -> 16.6199653 | H130: =IF(A130<>2,IF(ABS(IF(move1,IF(Calc!$A$90,INDEX(Motor!$Y$1:$Y$1452,A130,1),INDEX(LinMotor!$W$1:$W$1305,A130,1)),IF(Calc!$A$90,INDEX(Motor!$Z$1:$Z$1452,A130,1),INDEX(LinMotor!$X$1:$X$1305,A130,1))))<1000,IF(move1,IF(Calc!$A$90,INDEX(Motor!$Y$1:$Y$1452,A130,1),INDEX(LinMotor!$W$1:$W$1305,A130,1)),IF(Calc!$A$90,INDEX(Motor!$Z$1:$Z$1452,A130,1),INDEX(LinMotor!$X$1:$X$1305,A130,1))),TEXT(IF(move1,IF(Calc!$A$90,INDEX(Motor!$Y$1:$Y$1452,A130,1),INDEX(LinMotor!$W$1:$W$1305,A130,1)),IF(Calc!$A$90,INDEX(Motor!$Z$1:$Z$1452,A130,1),INDEX(LinMotor!$X$1:$X$1305,A130,1)))/1000,"0.0k")),"") -> 0 | I130: =IF(A130<>2,IF(ABS(IF(move1,IF(Calc!$A$90,INDEX(Motor!$Z$1:$Z$1452,A130,1),INDEX(LinMotor!$X$1:$X$1305,A130,1)),IF(Calc!$A$90,INDEX(Motor!$AB$1:$AB$1452,A130,1),INDEX(LinMotor!$Z$1:$Z$1305,A130,1))))<1000,IF(move1,IF(Calc!$A$90,INDEX(Motor!$Z$1:$Z$1452,A130,1),INDEX(LinMotor!$X$1:$X$1305,A130,1)),IF(Calc!$A$90,INDEX(Motor!$AB$1:$AB$1452,A130,1),INDEX(LinMotor!$Z$1:$Z$1305,A130,1))),TEXT(IF(move1,IF(Calc!$A$90,INDEX(Motor!$Z$1:$Z$1452,A130,1),INDEX(LinMotor!$X$1:$X$1305,A130,1)),IF(Calc!$A$90,INDEX(Motor!$AB$1:$AB$1452,A130,1),INDEX(LinMotor!$Z$1:$Z$1305,A130,1)))/1000,"0.0k")),"") -> -13.46217189 | J130: =IF(A130<>2,IF(ABS(IF(move1,IF(Calc!$A$90,INDEX(Motor!$AA$1:$AA$1452,A130,1),INDEX(LinMotor!$Y$1:$Y$1305,A130,1)),IF(Calc!$A$90,INDEX(Motor!$AD$1:$AD$1452,A130,1),INDEX(LinMotor!$AB$1:$AB$1305,A130,1))))<1000,IF(move1,IF(Calc!$A$90,INDEX(Motor!$AA$1:$AA$1452,A130,1),INDEX(LinMotor!$Y$1:$Y$1305,A130,1)),IF(Calc!$A$90,INDEX(Motor!$AD$1:$AD$1452,A130,1),INDEX(LinMotor!$AB$1:$AB$1305,A130,1))),TEXT(IF(move1,IF(Calc!$A$90,INDEX(Motor!$AA$1:$AA$1452,A130,1),INDEX(LinMotor!$Y$1:$Y$1305,A130,1)),IF(Calc!$A$90,INDEX(Motor!$AD$1:$AD$1452,A130,1),INDEX(LinMotor!$AB$1:$AB$1305,A130,1)))/1000,"0.0k")),"") -> 0 | K130: =IF(Calc!$A$90,INDEX(Motor!$AF$1:$AF$1452,A130,1),INDEX(LinMotor!$AD$1:$AD$1305,A130,1)) -> 0.3714947403 | L130: =IF(Calc!$A$90,INDEX(Motor!$AG$1:$AG$1452,A130,1),INDEX(LinMotor!$AE$1:$AE$1305,A130,1)) -> 0.5284857627 | M130: =IF(Calc!$A$90,INDEX(Motor!$AH$1:$AH$1452,A130,1),INDEX(LinMotor!$AF$1:$AF$1305,A130,1)) -> 4.457936884 | N130: =IF(Calc!$A$90,INDEX(Motor!$AI$1:$AI$1452,A130,1),INDEX(LinMotor!$AG$1:$AG$1305,A130,1)) -> 12.68365831 | O130: =IF(A130<>2,IF(IF(Calc!$A$90,INDEX(Motor!$AK$1:$AK$1452,A130,1),INDEX(LinMotor!$AI$1:$AI$1305,A130,1))<1000,IF(Calc!$A$90,INDEX(Motor!$AK$1:$AK$1452,A130,1),INDEX(LinMotor!$AI$1:$AI$1305,A130,1)),TEXT(IF(Calc!$A$90,INDEX(Motor!$AK$1:$AK$1452,A130,1),INDEX(LinMotor!$AI$1:$AI$1305,A130,1))/1000,"0.0k")),"") -> 276.2045747 | P130: =IF(A130<>2,IF(IF(Calc!$A$90,INDEX(Motor!$AL$1:$AL$1452,A130,1),INDEX(LinMotor!$AJ$1:$AJ$1305,A130,1))<1000,IF(Calc!$A$90,INDEX(Motor!$AL$1:$AL$1452,A130,1),INDEX(LinMotor!$AJ$1:$AJ$1305,A130,1)),TEXT(IF(Calc!$A$90,INDEX(Motor!$AL$1:$AL$1452,A130,1),INDEX(LinMotor!$AJ$1:$AJ$1305,A130,1))/1000,"0.0k")),"") -> 223.9030668 | Q130: =IF(A130<>2,IF(IF(Calc!$A$90,INDEX(Motor!$AM$1:$AM$1452,A130,1),INDEX(LinMotor!$AK$1:$AK$1305,A130,1))<1000,IF(Calc!$A$90,INDEX(Motor!$AM$1:$AM$1452,A130,1),INDEX(LinMotor!$AK$1:$AK$1305,A130,1)),TEXT(IF(Calc!$A$90,INDEX(Motor!$AM$1:$AM$1452,A130,1),INDEX(LinMotor!$AK$1:$AK$1305,A130,1))/1000,"0.0k")),"") -> 2.2k
A131: 562 | B131: =IF(Calc!$A$90,INDEX(Motor!$B$1:$B$1452,A131,1),INDEX(LinMotor!$B$1:$B$1291,A131,1)) -> AKM2G-62L 480 V | C131: =IF(Calc!$A$90,INDEX(Motor!$T$1:$T$1452,A131,1),INDEX(LinMotor!$R$1:$R$1305,A131,1)) -> 2.74725274 | D131: =IF(Calc!$A$90,INDEX(Motor!$U$1:$U$1452,A131,1),INDEX(LinMotor!$S$1:$S$1305,A131,1)) -> 0.3974696994 | E131: =IF(Calc!$A$90,INDEX(Motor!$V$1:$V$1452,A131,1),INDEX(LinMotor!$T$1:$T$1305,A131,1)) -> 0.4443840808 | F131: =IF(Calc!$A$90,INDEX(Motor!$W$1:$W$1452,A131,1),INDEX(LinMotor!$U$1:$U$1305,A131,1)) -> 1.055231829 | G131: =IF(A131<>2,IF(ABS(IF(Calc!$A$90,INDEX(Motor!$X$1:$X$1452,A131,1),INDEX(LinMotor!$V$1:$V$1305,A131,1)))<1000,IF(Calc!$A$90,INDEX(Motor!$X$1:$X$1452,A131,1),INDEX(LinMotor!$V$1:$V$1305,A131,1)),TEXT(IF(Calc!$A$90,INDEX(Motor!$X$1:$X$1452,A131,1),INDEX(LinMotor!$V$1:$V$1305,A131,1))/1000,"0.0k")),"") -> 16.6199653 | H131: =IF(A131<>2,IF(ABS(IF(move1,IF(Calc!$A$90,INDEX(Motor!$Y$1:$Y$1452,A131,1),INDEX(LinMotor!$W$1:$W$1305,A131,1)),IF(Calc!$A$90,INDEX(Motor!$Z$1:$Z$1452,A131,1),INDEX(LinMotor!$X$1:$X$1305,A131,1))))<1000,IF(move1,IF(Calc!$A$90,INDEX(Motor!$Y$1:$Y$1452,A131,1),INDEX(LinMotor!$W$1:$W$1305,A131,1)),IF(Calc!$A$90,INDEX(Motor!$Z$1:$Z$1452,A131,1),INDEX(LinMotor!$X$1:$X$1305,A131,1))),TEXT(IF(move1,IF(Calc!$A$90,INDEX(Motor!$Y$1:$Y$1452,A131,1),INDEX(LinMotor!$W$1:$W$1305,A131,1)),IF(Calc!$A$90,INDEX(Motor!$Z$1:$Z$1452,A131,1),INDEX(LinMotor!$X$1:$X$1305,A131,1)))/1000,"0.0k")),"") -> 0 | I131: =IF(A131<>2,IF(ABS(IF(move1,IF(Calc!$A$90,INDEX(Motor!$Z$1:$Z$1452,A131,1),INDEX(LinMotor!$X$1:$X$1305,A131,1)),IF(Calc!$A$90,INDEX(Motor!$AB$1:$AB$1452,A131,1),INDEX(LinMotor!$Z$1:$Z$1305,A131,1))))<1000,IF(move1,IF(Calc!$A$90,INDEX(Motor!$Z$1:$Z$1452,A131,1),INDEX(LinMotor!$X$1:$X$1305,A131,1)),IF(Calc!$A$90,INDEX(Motor!$AB$1:$AB$1452,A131,1),INDEX(LinMotor!$Z$1:$Z$1305,A131,1))),TEXT(IF(move1,IF(Calc!$A$90,INDEX(Motor!$Z$1:$Z$1452,A131,1),INDEX(LinMotor!$X$1:$X$1305,A131,1)),IF(Calc!$A$90,INDEX(Motor!$AB$1:$AB$1452,A131,1),INDEX(LinMotor!$Z$1:$Z$1305,A131,1)))/1000,"0.0k")),"") -> -13.46217189 | J131: =IF(A131<>2,IF(ABS(IF(move1,IF(Calc!$A$90,INDEX(Motor!$AA$1:$AA$1452,A131,1),INDEX(LinMotor!$Y$1:$Y$1305,A131,1)),IF(Calc!$A$90,INDEX(Motor!$AD$1:$AD$1452,A131,1),INDEX(LinMotor!$AB$1:$AB$1305,A131,1))))<1000,IF(move1,IF(Calc!$A$90,INDEX(Motor!$AA$1:$AA$1452,A131,1),INDEX(LinMotor!$Y$1:$Y$1305,A131,1)),IF(Calc!$A$90,INDEX(Motor!$AD$1:$AD$1452,A131,1),INDEX(LinMotor!$AB$1:$AB$1305,A131,1))),TEXT(IF(move1,IF(Calc!$A$90,INDEX(Motor!$AA$1:$AA$1452,A131,1),INDEX(LinMotor!$Y$1:$Y$1305,A131,1)),IF(Calc!$A$90,INDEX(Motor!$AD$1:$AD$1452,A131,1),INDEX(LinMotor!$AB$1:$AB$1305,A131,1)))/1000,"0.0k")),"") -> 0 | K131: =IF(Calc!$A$90,INDEX(Motor!$AF$1:$AF$1452,A131,1),INDEX(LinMotor!$AD$1:$AD$1305,A131,1)) -> 0.3714947403 | L131: =IF(Calc!$A$90,INDEX(Motor!$AG$1:$AG$1452,A131,1),INDEX(LinMotor!$AE$1:$AE$1305,A131,1)) -> 0.5284857627 | M131: =IF(Calc!$A$90,INDEX(Motor!$AH$1:$AH$1452,A131,1),INDEX(LinMotor!$AF$1:$AF$1305,A131,1)) -> 4.457936884 | N131: =IF(Calc!$A$90,INDEX(Motor!$AI$1:$AI$1452,A131,1),INDEX(LinMotor!$AG$1:$AG$1305,A131,1)) -> 12.68365831 | O131: =IF(A131<>2,IF(IF(Calc!$A$90,INDEX(Motor!$AK$1:$AK$1452,A131,1),INDEX(LinMotor!$AI$1:$AI$1305,A131,1))<1000,IF(Calc!$A$90,INDEX(Motor!$AK$1:$AK$1452,A131,1),INDEX(LinMotor!$AI$1:$AI$1305,A131,1)),TEXT(IF(Calc!$A$90,INDEX(Motor!$AK$1:$AK$1452,A131,1),INDEX(LinMotor!$AI$1:$AI$1305,A131,1))/1000,"0.0k")),"") -> 276.2045747 | P131: =IF(A131<>2,IF(IF(Calc!$A$90,INDEX(Motor!$AL$1:$AL$1452,A131,1),INDEX(LinMotor!$AJ$1:$AJ$1305,A131,1))<1000,IF(Calc!$A$90,INDEX(Motor!$AL$1:$AL$1452,A131,1),INDEX(LinMotor!$AJ$1:$AJ$1305,A131,1)),TEXT(IF(Calc!$A$90,INDEX(Motor!$AL$1:$AL$1452,A131,1),INDEX(LinMotor!$AJ$1:$AJ$1305,A131,1))/1000,"0.0k")),"") -> 223.9030668 | Q131: =IF(A131<>2,IF(IF(Calc!$A$90,INDEX(Motor!$AM$1:$AM$1452,A131,1),INDEX(LinMotor!$AK$1:$AK$1305,A131,1))<1000,IF(Calc!$A$90,INDEX(Motor!$AM$1:$AM$1452,A131,1),INDEX(LinMotor!$AK$1:$AK$1305,A131,1)),TEXT(IF(Calc!$A$90,INDEX(Motor!$AM$1:$AM$1452,A131,1),INDEX(LinMotor!$AK$1:$AK$1305,A131,1))/1000,"0.0k")),"") -> 2.2k
A132: 564 | B132: =IF(Calc!$A$90,INDEX(Motor!$B$1:$B$1452,A132,1),INDEX(LinMotor!$B$1:$B$1291,A132,1)) -> AKM2G-62M 240 V | C132: =IF(Calc!$A$90,INDEX(Motor!$T$1:$T$1452,A132,1),INDEX(LinMotor!$R$1:$R$1305,A132,1)) -> 2.74725274 | D132: =IF(Calc!$A$90,INDEX(Motor!$U$1:$U$1452,A132,1),INDEX(LinMotor!$S$1:$S$1305,A132,1)) -> 0.3951588143 | E132: =IF(Calc!$A$90,INDEX(Motor!$V$1:$V$1452,A132,1),INDEX(LinMotor!$T$1:$T$1305,A132,1)) -> 0.4443840808 | F132: =IF(Calc!$A$90,INDEX(Motor!$W$1:$W$1452,A132,1),INDEX(LinMotor!$U$1:$U$1305,A132,1)) -> 0.8571428571 | G132: =IF(A132<>2,IF(ABS(IF(Calc!$A$90,INDEX(Motor!$X$1:$X$1452,A132,1),INDEX(LinMotor!$V$1:$V$1305,A132,1)))<1000,IF(Calc!$A$90,INDEX(Motor!$X$1:$X$1452,A132,1),INDEX(LinMotor!$V$1:$V$1305,A132,1)),TEXT(IF(Calc!$A$90,INDEX(Motor!$X$1:$X$1452,A132,1),INDEX(LinMotor!$V$1:$V$1305,A132,1))/1000,"0.0k")),"") -> 16.6199653 | H132: =IF(A132<>2,IF(ABS(IF(move1,IF(Calc!$A$90,INDEX(Motor!$Y$1:$Y$1452,A132,1),INDEX(LinMotor!$W$1:$W$1305,A132,1)),IF(Calc!$A$90,INDEX(Motor!$Z$1:$Z$1452,A132,1),INDEX(LinMotor!$X$1:$X$1305,A132,1))))<1000,IF(move1,IF(Calc!$A$90,INDEX(Motor!$Y$1:$Y$1452,A132,1),INDEX(LinMotor!$W$1:$W$1305,A132,1)),IF(Calc!$A$90,INDEX(Motor!$Z$1:$Z$1452,A132,1),INDEX(LinMotor!$X$1:$X$1305,A132,1))),TEXT(IF(move1,IF(Calc!$A$90,INDEX(Motor!$Y$1:$Y$1452,A132,1),INDEX(LinMotor!$W$1:$W$1305,A132,1)),IF(Calc!$A$90,INDEX(Motor!$Z$1:$Z$1452,A132,1),INDEX(LinMotor!$X$1:$X$1305,A132,1)))/1000,"0.0k")),"") -> 0 | I132: =IF(A132<>2,IF(ABS(IF(move1,IF(Calc!$A$90,INDEX(Motor!$Z$1:$Z$1452,A132,1),INDEX(LinMotor!$X$1:$X$1305,A132,1)),IF(Calc!$A$90,INDEX(Motor!$AB$1:$AB$1452,A132,1),INDEX(LinMotor!$Z$1:$Z$1305,A132,1))))<1000,IF(move1,IF(Calc!$A$90,INDEX(Motor!$Z$1:$Z$1452,A132,1),INDEX(LinMotor!$X$1:$X$1305,A132,1)),IF(Calc!$A$90,INDEX(Motor!$AB$1:$AB$1452,A132,1),INDEX(LinMotor!$Z$1:$Z$1305,A132,1))),TEXT(IF(move1,IF(Calc!$A$90,INDEX(Motor!$Z$1:$Z$1452,A132,1),INDEX(LinMotor!$X$1:$X$1305,A132,1)),IF(Calc!$A$90,INDEX(Motor!$AB$1:$AB$1452,A132,1),INDEX(LinMotor!$Z$1:$Z$1305,A132,1)))/1000,"0.0k")),"") -> -13.46217189 | J132: =IF(A132<>2,IF(ABS(IF(move1,IF(Calc!$A$90,INDEX(Motor!$AA$1:$AA$1452,A132,1),INDEX(LinMotor!$Y$1:$Y$1305,A132,1)),IF(Calc!$A$90,INDEX(Motor!$AD$1:$AD$1452,A132,1),INDEX(LinMotor!$AB$1:$AB$1305,A132,1))))<1000,IF(move1,IF(Calc!$A$90,INDEX(Motor!$AA$1:$AA$1452,A132,1),INDEX(LinMotor!$Y$1:$Y$1305,A132,1)),IF(Calc!$A$90,INDEX(Motor!$AD$1:$AD$1452,A132,1),INDEX(LinMotor!$AB$1:$AB$1305,A132,1))),TEXT(IF(move1,IF(Calc!$A$90,INDEX(Motor!$AA$1:$AA$1452,A132,1),INDEX(LinMotor!$Y$1:$Y$1305,A132,1)),IF(Calc!$A$90,INDEX(Motor!$AD$1:$AD$1452,A132,1),INDEX(LinMotor!$AB$1:$AB$1305,A132,1)))/1000,"0.0k")),"") -> 0 | K132: =IF(Calc!$A$90,INDEX(Motor!$AF$1:$AF$1452,A132,1),INDEX(LinMotor!$AD$1:$AD$1305,A132,1)) -> 0.4706674418 | L132: =IF(Calc!$A$90,INDEX(Motor!$AG$1:$AG$1452,A132,1),INDEX(LinMotor!$AE$1:$AE$1305,A132,1)) -> 0.6695681391 | M132: =IF(Calc!$A$90,INDEX(Motor!$AH$1:$AH$1452,A132,1),INDEX(LinMotor!$AF$1:$AF$1305,A132,1)) -> 5.648009301 | N132: =IF(Calc!$A$90,INDEX(Motor!$AI$1:$AI$1452,A132,1),INDEX(LinMotor!$AG$1:$AG$1305,A132,1)) -> 16.06963534 | O132: =IF(A132<>2,IF(IF(Calc!$A$90,INDEX(Motor!$AK$1:$AK$1452,A132,1),INDEX(LinMotor!$AI$1:$AI$1305,A132,1))<1000,IF(Calc!$A$90,INDEX(Motor!$AK$1:$AK$1452,A132,1),INDEX(LinMotor!$AI$1:$AI$1305,A132,1)),TEXT(IF(Calc!$A$90,INDEX(Motor!$AK$1:$AK$1452,A132,1),INDEX(LinMotor!$AI$1:$AI$1305,A132,1))/1000,"0.0k")),"") -> 276.2045747 | P132: =IF(A132<>2,IF(IF(Calc!$A$90,INDEX(Motor!$AL$1:$AL$1452,A132,1),INDEX(LinMotor!$AJ$1:$AJ$1305,A132,1))<1000,IF(Calc!$A$90,INDEX(Motor!$AL$1:$AL$1452,A132,1),INDEX(LinMotor!$AJ$1:$AJ$1305,A132,1)),TEXT(IF(Calc!$A$90,INDEX(Motor!$AL$1:$AL$1452,A132,1),INDEX(LinMotor!$AJ$1:$AJ$1305,A132,1))/1000,"0.0k")),"") -> 223.9030668 | Q132: =IF(A132<>2,IF(IF(Calc!$A$90,INDEX(Motor!$AM$1:$AM$1452,A132,1),INDEX(LinMotor!$AK$1:$AK$1305,A132,1))<1000,IF(Calc!$A$90,INDEX(Motor!$AM$1:$AM$1452,A132,1),INDEX(LinMotor!$AK$1:$AK$1305,A132,1)),TEXT(IF(Calc!$A$90,INDEX(Motor!$AM$1:$AM$1452,A132,1),INDEX(LinMotor!$AK$1:$AK$1305,A132,1))/1000,"0.0k")),"") -> 2.2k
A133: 565 | B133: =IF(Calc!$A$90,INDEX(Motor!$B$1:$B$1452,A133,1),INDEX(LinMotor!$B$1:$B$1291,A133,1)) -> AKM2G-62M 400 V | C133: =IF(Calc!$A$90,INDEX(Motor!$T$1:$T$1452,A133,1),INDEX(LinMotor!$R$1:$R$1305,A133,1)) -> 2.74725274 | D133: =IF(Calc!$A$90,INDEX(Motor!$U$1:$U$1452,A133,1),INDEX(LinMotor!$S$1:$S$1305,A133,1)) -> 0.3999901734 | E133: =IF(Calc!$A$90,INDEX(Motor!$V$1:$V$1452,A133,1),INDEX(LinMotor!$T$1:$T$1305,A133,1)) -> 0.4443840808 | F133: =IF(Calc!$A$90,INDEX(Motor!$W$1:$W$1452,A133,1),INDEX(LinMotor!$U$1:$U$1305,A133,1)) -> 0.8385613544 | G133: =IF(A133<>2,IF(ABS(IF(Calc!$A$90,INDEX(Motor!$X$1:$X$1452,A133,1),INDEX(LinMotor!$V$1:$V$1305,A133,1)))<1000,IF(Calc!$A$90,INDEX(Motor!$X$1:$X$1452,A133,1),INDEX(LinMotor!$V$1:$V$1305,A133,1)),TEXT(IF(Calc!$A$90,INDEX(Motor!$X$1:$X$1452,A133,1),INDEX(LinMotor!$V$1:$V$1305,A133,1))/1000,"0.0k")),"") -> 16.6199653 | H133: =IF(A133<>2,IF(ABS(IF(move1,IF(Calc!$A$90,INDEX(Motor!$Y$1:$Y$1452,A133,1),INDEX(LinMotor!$W$1:$W$1305,A133,1)),IF(Calc!$A$90,INDEX(Motor!$Z$1:$Z$1452,A133,1),INDEX(LinMotor!$X$1:$X$1305,A133,1))))<1000,IF(move1,IF(Calc!$A$90,INDEX(Motor!$Y$1:$Y$1452,A133,1),INDEX(LinMotor!$W$1:$W$1305,A133,1)),IF(Calc!$A$90,INDEX(Motor!$Z$1:$Z$1452,A133,1),INDEX(LinMotor!$X$1:$X$1305,A133,1))),TEXT(IF(move1,IF(Calc!$A$90,INDEX(Motor!$Y$1:$Y$1452,A133,1),INDEX(LinMotor!$W$1:$W$1305,A133,1)),IF(Calc!$A$90,INDEX(Motor!$Z$1:$Z$1452,A133,1),INDEX(LinMotor!$X$1:$X$1305,A133,1)))/1000,"0.0k")),"") -> 0 | I133: =IF(A133<>2,IF(ABS(IF(move1,IF(Calc!$A$90,INDEX(Motor!$Z$1:$Z$1452,A133,1),INDEX(LinMotor!$X$1:$X$1305,A133,1)),IF(Calc!$A$90,INDEX(Motor!$AB$1:$AB$1452,A133,1),INDEX(LinMotor!$Z$1:$Z$1305,A133,1))))<1000,IF(move1,IF(Calc!$A$90,INDEX(Motor!$Z$1:$Z$1452,A133,1),INDEX(LinMotor!$X$1:$X$1305,A133,1)),IF(Calc!$A$90,INDEX(Motor!$AB$1:$AB$1452,A133,1),INDEX(LinMotor!$Z$1:$Z$1305,A133,1))),TEXT(IF(move1,IF(Calc!$A$90,INDEX(Motor!$Z$1:$Z$1452,A133,1),INDEX(LinMotor!$X$1:$X$1305,A133,1)),IF(Calc!$A$90,INDEX(Motor!$AB$1:$AB$1452,A133,1),INDEX(LinMotor!$Z$1:$Z$1305,A133,1)))/1000,"0.0k")),"") -> -13.46217189 | J133: =IF(A133<>2,IF(ABS(IF(move1,IF(Calc!$A$90,INDEX(Motor!$AA$1:$AA$1452,A133,1),INDEX(LinMotor!$Y$1:$Y$1305,A133,1)),IF(Calc!$A$90,INDEX(Motor!$AD$1:$AD$1452,A133,1),INDEX(LinMotor!$AB$1:$AB$1305,A133,1))))<1000,IF(move1,IF(Calc!$A$90,INDEX(Motor!$AA$1:$AA$1452,A133,1),INDEX(LinMotor!$Y$1:$Y$1305,A133,1)),IF(Calc!$A$90,INDEX(Motor!$AD$1:$AD$1452,A133,1),INDEX(LinMotor!$AB$1:$AB$1305,A133,1))),TEXT(IF(move1,IF(Calc!$A$90,INDEX(Motor!$AA$1:$AA$1452,A133,1),INDEX(LinMotor!$Y$1:$Y$1305,A133,1)),IF(Calc!$A$90,INDEX(Motor!$AD$1:$AD$1452,A133,1),INDEX(LinMotor!$AB$1:$AB$1305,A133,1)))/1000,"0.0k")),"") -> 0 | K133: =IF(Calc!$A$90,INDEX(Motor!$AF$1:$AF$1452,A133,1),INDEX(LinMotor!$AD$1:$AD$1305,A133,1)) -> 0.4706674418 | L133: =IF(Calc!$A$90,INDEX(Motor!$AG$1:$AG$1452,A133,1),INDEX(LinMotor!$AE$1:$AE$1305,A133,1)) -> 0.6695681391 | M133: =IF(Calc!$A$90,INDEX(Motor!$AH$1:$AH$1452,A133,1),INDEX(LinMotor!$AF$1:$AF$1305,A133,1)) -> 5.648009301 | N133: =IF(Calc!$A$90,INDEX(Motor!$AI$1:$AI$1452,A133,1),INDEX(LinMotor!$AG$1:$AG$1305,A133,1)) -> 16.06963534 | O133: =IF(A133<>2,IF(IF(Calc!$A$90,INDEX(Motor!$AK$1:$AK$1452,A133,1),INDEX(LinMotor!$AI$1:$AI$1305,A133,1))<1000,IF(Calc!$A$90,INDEX(Motor!$AK$1:$AK$1452,A133,1),INDEX(LinMotor!$AI$1:$AI$1305,A133,1)),TEXT(IF(Calc!$A$90,INDEX(Motor!$AK$1:$AK$1452,A133,1),INDEX(LinMotor!$AI$1:$AI$1305,A133,1))/1000,"0.0k")),"") -> 276.2045747 | P133: =IF(A133<>2,IF(IF(Calc!$A$90,INDEX(Motor!$AL$1:$AL$1452,A133,1),INDEX(LinMotor!$AJ$1:$AJ$1305,A133,1))<1000,IF(Calc!$A$90,INDEX(Motor!$AL$1:$AL$1452,A133,1),INDEX(LinMotor!$AJ$1:$AJ$1305,A133,1)),TEXT(IF(Calc!$A$90,INDEX(Motor!$AL$1:$AL$1452,A133,1),INDEX(LinMotor!$AJ$1:$AJ$1305,A133,1))/1000,"0.0k")),"") -> 223.9030668 | Q133: =IF(A133<>2,IF(IF(Calc!$A$90,INDEX(Motor!$AM$1:$AM$1452,A133,1),INDEX(LinMotor!$AK$1:$AK$1305,A133,1))<1000,IF(Calc!$A$90,INDEX(Motor!$AM$1:$AM$1452,A133,1),INDEX(LinMotor!$AK$1:$AK$1305,A133,1)),TEXT(IF(Calc!$A$90,INDEX(Motor!$AM$1:$AM$1452,A133,1),INDEX(LinMotor!$AK$1:$AK$1305,A133,1))/1000,"0.0k")),"") -> 2.2k
A134: 570 | B134: =IF(Calc!$A$90,INDEX(Motor!$B$1:$B$1452,A134,1),INDEX(LinMotor!$B$1:$B$1291,A134,1)) -> AKM2G-63M 240 V | C134: =IF(Calc!$A$90,INDEX(Motor!$T$1:$T$1452,A134,1),INDEX(LinMotor!$R$1:$R$1305,A134,1)) -> 1.923076918 | D134: =IF(Calc!$A$90,INDEX(Motor!$U$1:$U$1452,A134,1),INDEX(LinMotor!$S$1:$S$1305,A134,1)) -> 0.311233553 | E134: =IF(Calc!$A$90,INDEX(Motor!$V$1:$V$1452,A134,1),INDEX(LinMotor!$T$1:$T$1305,A134,1)) -> 0.3398308706 | F134: =IF(Calc!$A$90,INDEX(Motor!$W$1:$W$1452,A134,1),INDEX(LinMotor!$U$1:$U$1305,A134,1)) -> 1.142857143 | G134: =IF(A134<>2,IF(ABS(IF(Calc!$A$90,INDEX(Motor!$X$1:$X$1452,A134,1),INDEX(LinMotor!$V$1:$V$1305,A134,1)))<1000,IF(Calc!$A$90,INDEX(Motor!$X$1:$X$1452,A134,1),INDEX(LinMotor!$V$1:$V$1305,A134,1)),TEXT(IF(Calc!$A$90,INDEX(Motor!$X$1:$X$1452,A134,1),INDEX(LinMotor!$V$1:$V$1305,A134,1))/1000,"0.0k")),"") -> 18.52078245 | H134: =IF(A134<>2,IF(ABS(IF(move1,IF(Calc!$A$90,INDEX(Motor!$Y$1:$Y$1452,A134,1),INDEX(LinMotor!$W$1:$W$1305,A134,1)),IF(Calc!$A$90,INDEX(Motor!$Z$1:$Z$1452,A134,1),INDEX(LinMotor!$X$1:$X$1305,A134,1))))<1000,IF(move1,IF(Calc!$A$90,INDEX(Motor!$Y$1:$Y$1452,A134,1),INDEX(LinMotor!$W$1:$W$1305,A134,1)),IF(Calc!$A$90,INDEX(Motor!$Z$1:$Z$1452,A134,1),INDEX(LinMotor!$X$1:$X$1305,A134,1))),TEXT(IF(move1,IF(Calc!$A$90,INDEX(Motor!$Y$1:$Y$1452,A134,1),INDEX(LinMotor!$W$1:$W$1305,A134,1)),IF(Calc!$A$90,INDEX(Motor!$Z$1:$Z$1452,A134,1),INDEX(LinMotor!$X$1:$X$1305,A134,1)))/1000,"0.0k")),"") -> 0 | I134: =IF(A134<>2,IF(ABS(IF(move1,IF(Calc!$A$90,INDEX(Motor!$Z$1:$Z$1452,A134,1),INDEX(LinMotor!$X$1:$X$1305,A134,1)),IF(Calc!$A$90,INDEX(Motor!$AB$1:$AB$1452,A134,1),INDEX(LinMotor!$Z$1:$Z$1305,A134,1))))<1000,IF(move1,IF(Calc!$A$90,INDEX(Motor!$Z$1:$Z$1452,A134,1),INDEX(LinMotor!$X$1:$X$1305,A134,1)),IF(Calc!$A$90,INDEX(Motor!$AB$1:$AB$1452,A134,1),INDEX(LinMotor!$Z$1:$Z$1305,A134,1))),TEXT(IF(move1,IF(Calc!$A$90,INDEX(Motor!$Z$1:$Z$1452,A134,1),INDEX(LinMotor!$X$1:$X$1305,A134,1)),IF(Calc!$A$90,INDEX(Motor!$AB$1:$AB$1452,A134,1),INDEX(LinMotor!$Z$1:$Z$1305,A134,1)))/1000,"0.0k")),"") -> -15.00183378 | J134: =IF(A134<>2,IF(ABS(IF(move1,IF(Calc!$A$90,INDEX(Motor!$AA$1:$AA$1452,A134,1),INDEX(LinMotor!$Y$1:$Y$1305,A134,1)),IF(Calc!$A$90,INDEX(Motor!$AD$1:$AD$1452,A134,1),INDEX(LinMotor!$AB$1:$AB$1305,A134,1))))<1000,IF(move1,IF(Calc!$A$90,INDEX(Motor!$AA$1:$AA$1452,A134,1),INDEX(LinMotor!$Y$1:$Y$1305,A134,1)),IF(Calc!$A$90,INDEX(Motor!$AD$1:$AD$1452,A134,1),INDEX(LinMotor!$AB$1:$AB$1305,A134,1))),TEXT(IF(move1,IF(Calc!$A$90,INDEX(Motor!$AA$1:$AA$1452,A134,1),INDEX(LinMotor!$Y$1:$Y$1305,A134,1)),IF(Calc!$A$90,INDEX(Motor!$AD$1:$AD$1452,A134,1),INDEX(LinMotor!$AB$1:$AB$1305,A134,1)))/1000,"0.0k")),"") -> 0 | K134: =IF(Calc!$A$90,INDEX(Motor!$AF$1:$AF$1452,A134,1),INDEX(LinMotor!$AD$1:$AD$1305,A134,1)) -> 0.3852984686 | L134: =IF(Calc!$A$90,INDEX(Motor!$AG$1:$AG$1452,A134,1),INDEX(LinMotor!$AE$1:$AE$1305,A134,1)) -> 0.548122848 | M134: =IF(Calc!$A$90,INDEX(Motor!$AH$1:$AH$1452,A134,1),INDEX(LinMotor!$AF$1:$AF$1305,A134,1)) -> 4.623581624 | N134: =IF(Calc!$A$90,INDEX(Motor!$AI$1:$AI$1452,A134,1),INDEX(LinMotor!$AG$1:$AG$1305,A134,1)) -> 13.15494835 | O134: =IF(A134<>2,IF(IF(Calc!$A$90,INDEX(Motor!$AK$1:$AK$1452,A134,1),INDEX(LinMotor!$AI$1:$AI$1305,A134,1))<1000,IF(Calc!$A$90,INDEX(Motor!$AK$1:$AK$1452,A134,1),INDEX(LinMotor!$AI$1:$AI$1305,A134,1)),TEXT(IF(Calc!$A$90,INDEX(Motor!$AK$1:$AK$1452,A134,1),INDEX(LinMotor!$AI$1:$AI$1305,A134,1))/1000,"0.0k")),"") -> 307.7939542 | P134: =IF(A134<>2,IF(IF(Calc!$A$90,INDEX(Motor!$AL$1:$AL$1452,A134,1),INDEX(LinMotor!$AJ$1:$AJ$1305,A134,1))<1000,IF(Calc!$A$90,INDEX(Motor!$AL$1:$AL$1452,A134,1),INDEX(LinMotor!$AJ$1:$AJ$1305,A134,1)),TEXT(IF(Calc!$A$90,INDEX(Motor!$AL$1:$AL$1452,A134,1),INDEX(LinMotor!$AJ$1:$AJ$1305,A134,1))/1000,"0.0k")),"") -> 249.510749 | Q134: =IF(A134<>2,IF(IF(Calc!$A$90,INDEX(Motor!$AM$1:$AM$1452,A134,1),INDEX(LinMotor!$AK$1:$AK$1305,A134,1))<1000,IF(Calc!$A$90,INDEX(Motor!$AM$1:$AM$1452,A134,1),INDEX(LinMotor!$AK$1:$AK$1305,A134,1)),TEXT(IF(Calc!$A$90,INDEX(Motor!$AM$1:$AM$1452,A134,1),INDEX(LinMotor!$AK$1:$AK$1305,A134,1))/1000,"0.0k")),"") -> 2.4k
A135: 571 | B135: =IF(Calc!$A$90,INDEX(Motor!$B$1:$B$1452,A135,1),INDEX(LinMotor!$B$1:$B$1291,A135,1)) -> AKM2G-63M 400 V | C135: =IF(Calc!$A$90,INDEX(Motor!$T$1:$T$1452,A135,1),INDEX(LinMotor!$R$1:$R$1305,A135,1)) -> 1.923076918 | D135: =IF(Calc!$A$90,INDEX(Motor!$U$1:$U$1452,A135,1),INDEX(LinMotor!$S$1:$S$1305,A135,1)) -> 0.3148910849 | E135: =IF(Calc!$A$90,INDEX(Motor!$V$1:$V$1452,A135,1),INDEX(LinMotor!$T$1:$T$1305,A135,1)) -> 0.3398308706 | F135: =IF(Calc!$A$90,INDEX(Motor!$W$1:$W$1452,A135,1),INDEX(LinMotor!$U$1:$U$1305,A135,1)) -> 1.085873824 | G135: =IF(A135<>2,IF(ABS(IF(Calc!$A$90,INDEX(Motor!$X$1:$X$1452,A135,1),INDEX(LinMotor!$V$1:$V$1305,A135,1)))<1000,IF(Calc!$A$90,INDEX(Motor!$X$1:$X$1452,A135,1),INDEX(LinMotor!$V$1:$V$1305,A135,1)),TEXT(IF(Calc!$A$90,INDEX(Motor!$X$1:$X$1452,A135,1),INDEX(LinMotor!$V$1:$V$1305,A135,1))/1000,"0.0k")),"") -> 18.52078245 | H135: =IF(A135<>2,IF(ABS(IF(move1,IF(Calc!$A$90,INDEX(Motor!$Y$1:$Y$1452,A135,1),INDEX(LinMotor!$W$1:$W$1305,A135,1)),IF(Calc!$A$90,INDEX(Motor!$Z$1:$Z$1452,A135,1),INDEX(LinMotor!$X$1:$X$1305,A135,1))))<1000,IF(move1,IF(Calc!$A$90,INDEX(Motor!$Y$1:$Y$1452,A135,1),INDEX(LinMotor!$W$1:$W$1305,A135,1)),IF(Calc!$A$90,INDEX(Motor!$Z$1:$Z$1452,A135,1),INDEX(LinMotor!$X$1:$X$1305,A135,1))),TEXT(IF(move1,IF(Calc!$A$90,INDEX(Motor!$Y$1:$Y$1452,A135,1),INDEX(LinMotor!$W$1:$W$1305,A135,1)),IF(Calc!$A$90,INDEX(Motor!$Z$1:$Z$1452,A135,1),INDEX(LinMotor!$X$1:$X$1305,A135,1)))/1000,"0.0k")),"") -> 0 | I135: =IF(A135<>2,IF(ABS(IF(move1,IF(Calc!$A$90,INDEX(Motor!$Z$1:$Z$1452,A135,1),INDEX(LinMotor!$X$1:$X$1305,A135,1)),IF(Calc!$A$90,INDEX(Motor!$AB$1:$AB$1452,A135,1),INDEX(LinMotor!$Z$1:$Z$1305,A135,1))))<1000,IF(move1,IF(Calc!$A$90,INDEX(Motor!$Z$1:$Z$1452,A135,1),INDEX(LinMotor!$X$1:$X$1305,A135,1)),IF(Calc!$A$90,INDEX(Motor!$AB$1:$AB$1452,A135,1),INDEX(LinMotor!$Z$1:$Z$1305,A135,1))),TEXT(IF(move1,IF(Calc!$A$90,INDEX(Motor!$Z$1:$Z$1452,A135,1),INDEX(LinMotor!$X$1:$X$1305,A135,1)),IF(Calc!$A$90,INDEX(Motor!$AB$1:$AB$1452,A135,1),INDEX(LinMotor!$Z$1:$Z$1305,A135,1)))/1000,"0.0k")),"") -> -15.00183378 | J135: =IF(A135<>2,IF(ABS(IF(move1,IF(Calc!$A$90,INDEX(Motor!$AA$1:$AA$1452,A135,1),INDEX(LinMotor!$Y$1:$Y$1305,A135,1)),IF(Calc!$A$90,INDEX(Motor!$AD$1:$AD$1452,A135,1),INDEX(LinMotor!$AB$1:$AB$1305,A135,1))))<1000,IF(move1,IF(Calc!$A$90,INDEX(Motor!$AA$1:$AA$1452,A135,1),INDEX(LinMotor!$Y$1:$Y$1305,A135,1)),IF(Calc!$A$90,INDEX(Motor!$AD$1:$AD$1452,A135,1),INDEX(LinMotor!$AB$1:$AB$1305,A135,1))),TEXT(IF(move1,IF(Calc!$A$90,INDEX(Motor!$AA$1:$AA$1452,A135,1),INDEX(LinMotor!$Y$1:$Y$1305,A135,1)),IF(Calc!$A$90,INDEX(Motor!$AD$1:$AD$1452,A135,1),INDEX(LinMotor!$AB$1:$AB$1305,A135,1)))/1000,"0.0k")),"") -> 0 | K135: =IF(Calc!$A$90,INDEX(Motor!$AF$1:$AF$1452,A135,1),INDEX(LinMotor!$AD$1:$AD$1305,A135,1)) -> 0.3852984686 | L135: =IF(Calc!$A$90,INDEX(Motor!$AG$1:$AG$1452,A135,1),INDEX(LinMotor!$AE$1:$AE$1305,A135,1)) -> 0.548122848 | M135: =IF(Calc!$A$90,INDEX(Motor!$AH$1:$AH$1452,A135,1),INDEX(LinMotor!$AF$1:$AF$1305,A135,1)) -> 4.623581624 | N135: =IF(Calc!$A$90,INDEX(Motor!$AI$1:$AI$1452,A135,1),INDEX(LinMotor!$AG$1:$AG$1305,A135,1)) -> 13.15494835 | O135: =IF(A135<>2,IF(IF(Calc!$A$90,INDEX(Motor!$AK$1:$AK$1452,A135,1),INDEX(LinMotor!$AI$1:$AI$1305,A135,1))<1000,IF(Calc!$A$90,INDEX(Motor!$AK$1:$AK$1452,A135,1),INDEX(LinMotor!$AI$1:$AI$1305,A135,1)),TEXT(IF(Calc!$A$90,INDEX(Motor!$AK$1:$AK$1452,A135,1),INDEX(LinMotor!$AI$1:$AI$1305,A135,1))/1000,"0.0k")),"") -> 307.7939542 | P135: =IF(A135<>2,IF(IF(Calc!$A$90,INDEX(Motor!$AL$1:$AL$1452,A135,1),INDEX(LinMotor!$AJ$1:$AJ$1305,A135,1))<1000,IF(Calc!$A$90,INDEX(Motor!$AL$1:$AL$1452,A135,1),INDEX(LinMotor!$AJ$1:$AJ$1305,A135,1)),TEXT(IF(Calc!$A$90,INDEX(Motor!$AL$1:$AL$1452,A135,1),INDEX(LinMotor!$AJ$1:$AJ$1305,A135,1))/1000,"0.0k")),"") -> 249.510749 | Q135: =IF(A135<>2,IF(IF(Calc!$A$90,INDEX(Motor!$AM$1:$AM$1452,A135,1),INDEX(LinMotor!$AK$1:$AK$1305,A135,1))<1000,IF(Calc!$A$90,INDEX(Motor!$AM$1:$AM$1452,A135,1),INDEX(LinMotor!$AK$1:$AK$1305,A135,1)),TEXT(IF(Calc!$A$90,INDEX(Motor!$AM$1:$AM$1452,A135,1),INDEX(LinMotor!$AK$1:$AK$1305,A135,1))/1000,"0.0k")),"") -> 2.4k
A136: 572 | B136: =IF(Calc!$A$90,INDEX(Motor!$B$1:$B$1452,A136,1),INDEX(LinMotor!$B$1:$B$1291,A136,1)) -> AKM2G-63M 480 V | C136: =IF(Calc!$A$90,INDEX(Motor!$T$1:$T$1452,A136,1),INDEX(LinMotor!$R$1:$R$1305,A136,1)) -> 1.923076918 | D136: =IF(Calc!$A$90,INDEX(Motor!$U$1:$U$1452,A136,1),INDEX(LinMotor!$S$1:$S$1305,A136,1)) -> 0.3169039099 | E136: =IF(Calc!$A$90,INDEX(Motor!$V$1:$V$1452,A136,1),INDEX(LinMotor!$T$1:$T$1305,A136,1)) -> 0.3398308706 | F136: =IF(Calc!$A$90,INDEX(Motor!$W$1:$W$1452,A136,1),INDEX(LinMotor!$U$1:$U$1305,A136,1)) -> 1.085873824 | G136: =IF(A136<>2,IF(ABS(IF(Calc!$A$90,INDEX(Motor!$X$1:$X$1452,A136,1),INDEX(LinMotor!$V$1:$V$1305,A136,1)))<1000,IF(Calc!$A$90,INDEX(Motor!$X$1:$X$1452,A136,1),INDEX(LinMotor!$V$1:$V$1305,A136,1)),TEXT(IF(Calc!$A$90,INDEX(Motor!$X$1:$X$1452,A136,1),INDEX(LinMotor!$V$1:$V$1305,A136,1))/1000,"0.0k")),"") -> 18.52078245 | H136: =IF(A136<>2,IF(ABS(IF(move1,IF(Calc!$A$90,INDEX(Motor!$Y$1:$Y$1452,A136,1),INDEX(LinMotor!$W$1:$W$1305,A136,1)),IF(Calc!$A$90,INDEX(Motor!$Z$1:$Z$1452,A136,1),INDEX(LinMotor!$X$1:$X$1305,A136,1))))<1000,IF(move1,IF(Calc!$A$90,INDEX(Motor!$Y$1:$Y$1452,A136,1),INDEX(LinMotor!$W$1:$W$1305,A136,1)),IF(Calc!$A$90,INDEX(Motor!$Z$1:$Z$1452,A136,1),INDEX(LinMotor!$X$1:$X$1305,A136,1))),TEXT(IF(move1,IF(Calc!$A$90,INDEX(Motor!$Y$1:$Y$1452,A136,1),INDEX(LinMotor!$W$1:$W$1305,A136,1)),IF(Calc!$A$90,INDEX(Motor!$Z$1:$Z$1452,A136,1),INDEX(LinMotor!$X$1:$X$1305,A136,1)))/1000,"0.0k")),"") -> 0 | I136: =IF(A136<>2,IF(ABS(IF(move1,IF(Calc!$A$90,INDEX(Motor!$Z$1:$Z$1452,A136,1),INDEX(LinMotor!$X$1:$X$1305,A136,1)),IF(Calc!$A$90,INDEX(Motor!$AB$1:$AB$1452,A136,1),INDEX(LinMotor!$Z$1:$Z$1305,A136,1))))<1000,IF(move1,IF(Calc!$A$90,INDEX(Motor!$Z$1:$Z$1452,A136,1),INDEX(LinMotor!$X$1:$X$1305,A136,1)),IF(Calc!$A$90,INDEX(Motor!$AB$1:$AB$1452,A136,1),INDEX(LinMotor!$Z$1:$Z$1305,A136,1))),TEXT(IF(move1,IF(Calc!$A$90,INDEX(Motor!$Z$1:$Z$1452,A136,1),INDEX(LinMotor!$X$1:$X$1305,A136,1)),IF(Calc!$A$90,INDEX(Motor!$AB$1:$AB$1452,A136,1),INDEX(LinMotor!$Z$1:$Z$1305,A136,1)))/1000,"0.0k")),"") -> -15.00183378 | J136: =IF(A136<>2,IF(ABS(IF(move1,IF(Calc!$A$90,INDEX(Motor!$AA$1:$AA$1452,A136,1),INDEX(LinMotor!$Y$1:$Y$1305,A136,1)),IF(Calc!$A$90,INDEX(Motor!$AD$1:$AD$1452,A136,1),INDEX(LinMotor!$AB$1:$AB$1305,A136,1))))<1000,IF(move1,IF(Calc!$A$90,INDEX(Motor!$AA$1:$AA$1452,A136,1),INDEX(LinMotor!$Y$1:$Y$1305,A136,1)),IF(Calc!$A$90,INDEX(Motor!$AD$1:$AD$1452,A136,1),INDEX(LinMotor!$AB$1:$AB$1305,A136,1))),TEXT(IF(move1,IF(Calc!$A$90,INDEX(Motor!$AA$1:$AA$1452,A136,1),INDEX(LinMotor!$Y$1:$Y$1305,A136,1)),IF(Calc!$A$90,INDEX(Motor!$AD$1:$AD$1452,A136,1),INDEX(LinMotor!$AB$1:$AB$1305,A136,1)))/1000,"0.0k")),"") -> 0 | K136: =IF(Calc!$A$90,INDEX(Motor!$AF$1:$AF$1452,A136,1),INDEX(LinMotor!$AD$1:$AD$1305,A136,1)) -> 0.3852984686 | L136: =IF(Calc!$A$90,INDEX(Motor!$AG$1:$AG$1452,A136,1),INDEX(LinMotor!$AE$1:$AE$1305,A136,1)) -> 0.548122848 | M136: =IF(Calc!$A$90,INDEX(Motor!$AH$1:$AH$1452,A136,1),INDEX(LinMotor!$AF$1:$AF$1305,A136,1)) -> 4.623581624 | N136: =IF(Calc!$A$90,INDEX(Motor!$AI$1:$AI$1452,A136,1),INDEX(LinMotor!$AG$1:$AG$1305,A136,1)) -> 13.15494835 | O136: =IF(A136<>2,IF(IF(Calc!$A$90,INDEX(Motor!$AK$1:$AK$1452,A136,1),INDEX(LinMotor!$AI$1:$AI$1305,A136,1))<1000,IF(Calc!$A$90,INDEX(Motor!$AK$1:$AK$1452,A136,1),INDEX(LinMotor!$AI$1:$AI$1305,A136,1)),TEXT(IF(Calc!$A$90,INDEX(Motor!$AK$1:$AK$1452,A136,1),INDEX(LinMotor!$AI$1:$AI$1305,A136,1))/1000,"0.0k")),"") -> 307.7939542 | P136: =IF(A136<>2,IF(IF(Calc!$A$90,INDEX(Motor!$AL$1:$AL$1452,A136,1),INDEX(LinMotor!$AJ$1:$AJ$1305,A136,1))<1000,IF(Calc!$A$90,INDEX(Motor!$AL$1:$AL$1452,A136,1),INDEX(LinMotor!$AJ$1:$AJ$1305,A136,1)),TEXT(IF(Calc!$A$90,INDEX(Motor!$AL$1:$AL$1452,A136,1),INDEX(LinMotor!$AJ$1:$AJ$1305,A136,1))/1000,"0.0k")),"") -> 249.510749 | Q136: =IF(A136<>2,IF(IF(Calc!$A$90,INDEX(Motor!$AM$1:$AM$1452,A136,1),INDEX(LinMotor!$AK$1:$AK$1305,A136,1))<1000,IF(Calc!$A$90,INDEX(Motor!$AM$1:$AM$1452,A136,1),INDEX(LinMotor!$AK$1:$AK$1305,A136,1)),TEXT(IF(Calc!$A$90,INDEX(Motor!$AM$1:$AM$1452,A136,1),INDEX(LinMotor!$AK$1:$AK$1305,A136,1))/1000,"0.0k")),"") -> 2.4k
A137: 574 | B137: =IF(Calc!$A$90,INDEX(Motor!$B$1:$B$1452,A137,1),INDEX(LinMotor!$B$1:$B$1291,A137,1)) -> AKM2G-63N 240 V | C137: =IF(Calc!$A$90,INDEX(Motor!$T$1:$T$1452,A137,1),INDEX(LinMotor!$R$1:$R$1305,A137,1)) -> 1.923076918 | D137: =IF(Calc!$A$90,INDEX(Motor!$U$1:$U$1452,A137,1),INDEX(LinMotor!$S$1:$S$1305,A137,1)) -> 0.3118320248 | E137: =IF(Calc!$A$90,INDEX(Motor!$V$1:$V$1452,A137,1),INDEX(LinMotor!$T$1:$T$1305,A137,1)) -> 0.3398308706 | F137: =IF(Calc!$A$90,INDEX(Motor!$W$1:$W$1452,A137,1),INDEX(LinMotor!$U$1:$U$1305,A137,1)) -> 1.043478261 | G137: =IF(A137<>2,IF(ABS(IF(Calc!$A$90,INDEX(Motor!$X$1:$X$1452,A137,1),INDEX(LinMotor!$V$1:$V$1305,A137,1)))<1000,IF(Calc!$A$90,INDEX(Motor!$X$1:$X$1452,A137,1),INDEX(LinMotor!$V$1:$V$1305,A137,1)),TEXT(IF(Calc!$A$90,INDEX(Motor!$X$1:$X$1452,A137,1),INDEX(LinMotor!$V$1:$V$1305,A137,1))/1000,"0.0k")),"") -> 18.52078245 | H137: =IF(A137<>2,IF(ABS(IF(move1,IF(Calc!$A$90,INDEX(Motor!$Y$1:$Y$1452,A137,1),INDEX(LinMotor!$W$1:$W$1305,A137,1)),IF(Calc!$A$90,INDEX(Motor!$Z$1:$Z$1452,A137,1),INDEX(LinMotor!$X$1:$X$1305,A137,1))))<1000,IF(move1,IF(Calc!$A$90,INDEX(Motor!$Y$1:$Y$1452,A137,1),INDEX(LinMotor!$W$1:$W$1305,A137,1)),IF(Calc!$A$90,INDEX(Motor!$Z$1:$Z$1452,A137,1),INDEX(LinMotor!$X$1:$X$1305,A137,1))),TEXT(IF(move1,IF(Calc!$A$90,INDEX(Motor!$Y$1:$Y$1452,A137,1),INDEX(LinMotor!$W$1:$W$1305,A137,1)),IF(Calc!$A$90,INDEX(Motor!$Z$1:$Z$1452,A137,1),INDEX(LinMotor!$X$1:$X$1305,A137,1)))/1000,"0.0k")),"") -> 0 | I137: =IF(A137<>2,IF(ABS(IF(move1,IF(Calc!$A$90,INDEX(Motor!$Z$1:$Z$1452,A137,1),INDEX(LinMotor!$X$1:$X$1305,A137,1)),IF(Calc!$A$90,INDEX(Motor!$AB$1:$AB$1452,A137,1),INDEX(LinMotor!$Z$1:$Z$1305,A137,1))))<1000,IF(move1,IF(Calc!$A$90,INDEX(Motor!$Z$1:$Z$1452,A137,1),INDEX(LinMotor!$X$1:$X$1305,A137,1)),IF(Calc!$A$90,INDEX(Motor!$AB$1:$AB$1452,A137,1),INDEX(LinMotor!$Z$1:$Z$1305,A137,1))),TEXT(IF(move1,IF(Calc!$A$90,INDEX(Motor!$Z$1:$Z$1452,A137,1),INDEX(LinMotor!$X$1:$X$1305,A137,1)),IF(Calc!$A$90,INDEX(Motor!$AB$1:$AB$1452,A137,1),INDEX(LinMotor!$Z$1:$Z$1305,A137,1)))/1000,"0.0k")),"") -> -15.00183378 | J137: =IF(A137<>2,IF(ABS(IF(move1,IF(Calc!$A$90,INDEX(Motor!$AA$1:$AA$1452,A137,1),INDEX(LinMotor!$Y$1:$Y$1305,A137,1)),IF(Calc!$A$90,INDEX(Motor!$AD$1:$AD$1452,A137,1),INDEX(LinMotor!$AB$1:$AB$1305,A137,1))))<1000,IF(move1,IF(Calc!$A$90,INDEX(Motor!$AA$1:$AA$1452,A137,1),INDEX(LinMotor!$Y$1:$Y$1305,A137,1)),IF(Calc!$A$90,INDEX(Motor!$AD$1:$AD$1452,A137,1),INDEX(LinMotor!$AB$1:$AB$1305,A137,1))),TEXT(IF(move1,IF(Calc!$A$90,INDEX(Motor!$AA$1:$AA$1452,A137,1),INDEX(LinMotor!$Y$1:$Y$1305,A137,1)),IF(Calc!$A$90,INDEX(Motor!$AD$1:$AD$1452,A137,1),INDEX(LinMotor!$AB$1:$AB$1305,A137,1)))/1000,"0.0k")),"") -> 0 | K137: =IF(Calc!$A$90,INDEX(Motor!$AF$1:$AF$1452,A137,1),INDEX(LinMotor!$AD$1:$AD$1305,A137,1)) -> 0.4258561882 | L137: =IF(Calc!$A$90,INDEX(Motor!$AG$1:$AG$1452,A137,1),INDEX(LinMotor!$AE$1:$AE$1305,A137,1)) -> 0.60581997 | M137: =IF(Calc!$A$90,INDEX(Motor!$AH$1:$AH$1452,A137,1),INDEX(LinMotor!$AF$1:$AF$1305,A137,1)) -> 5.110274258 | N137: =IF(Calc!$A$90,INDEX(Motor!$AI$1:$AI$1452,A137,1),INDEX(LinMotor!$AG$1:$AG$1305,A137,1)) -> 14.53967928 | O137: =IF(A137<>2,IF(IF(Calc!$A$90,INDEX(Motor!$AK$1:$AK$1452,A137,1),INDEX(LinMotor!$AI$1:$AI$1305,A137,1))<1000,IF(Calc!$A$90,INDEX(Motor!$AK$1:$AK$1452,A137,1),INDEX(LinMotor!$AI$1:$AI$1305,A137,1)),TEXT(IF(Calc!$A$90,INDEX(Motor!$AK$1:$AK$1452,A137,1),INDEX(LinMotor!$AI$1:$AI$1305,A137,1))/1000,"0.0k")),"") -> 307.7939542 | P137: =IF(A137<>2,IF(IF(Calc!$A$90,INDEX(Motor!$AL$1:$AL$1452,A137,1),INDEX(LinMotor!$AJ$1:$AJ$1305,A137,1))<1000,IF(Calc!$A$90,INDEX(Motor!$AL$1:$AL$1452,A137,1),INDEX(LinMotor!$AJ$1:$AJ$1305,A137,1)),TEXT(IF(Calc!$A$90,INDEX(Motor!$AL$1:$AL$1452,A137,1),INDEX(LinMotor!$AJ$1:$AJ$1305,A137,1))/1000,"0.0k")),"") -> 249.510749 | Q137: =IF(A137<>2,IF(IF(Calc!$A$90,INDEX(Motor!$AM$1:$AM$1452,A137,1),INDEX(LinMotor!$AK$1:$AK$1305,A137,1))<1000,IF(Calc!$A$90,INDEX(Motor!$AM$1:$AM$1452,A137,1),INDEX(LinMotor!$AK$1:$AK$1305,A137,1)),TEXT(IF(Calc!$A$90,INDEX(Motor!$AM$1:$AM$1452,A137,1),INDEX(LinMotor!$AK$1:$AK$1305,A137,1))/1000,"0.0k")),"") -> 2.4k
A138: 575 | B138: =IF(Calc!$A$90,INDEX(Motor!$B$1:$B$1452,A138,1),INDEX(LinMotor!$B$1:$B$1291,A138,1)) -> AKM2G-63N 400 V | C138: =IF(Calc!$A$90,INDEX(Motor!$T$1:$T$1452,A138,1),INDEX(LinMotor!$R$1:$R$1305,A138,1)) -> 1.923076918 | D138: =IF(Calc!$A$90,INDEX(Motor!$U$1:$U$1452,A138,1),INDEX(LinMotor!$S$1:$S$1305,A138,1)) -> 0.3159919187 | E138: =IF(Calc!$A$90,INDEX(Motor!$V$1:$V$1452,A138,1),INDEX(LinMotor!$T$1:$T$1305,A138,1)) -> 0.3398308706 | F138: =IF(Calc!$A$90,INDEX(Motor!$W$1:$W$1452,A138,1),INDEX(LinMotor!$U$1:$U$1305,A138,1)) -> 0.9751865238 | G138: =IF(A138<>2,IF(ABS(IF(Calc!$A$90,INDEX(Motor!$X$1:$X$1452,A138,1),INDEX(LinMotor!$V$1:$V$1305,A138,1)))<1000,IF(Calc!$A$90,INDEX(Motor!$X$1:$X$1452,A138,1),INDEX(LinMotor!$V$1:$V$1305,A138,1)),TEXT(IF(Calc!$A$90,INDEX(Motor!$X$1:$X$1452,A138,1),INDEX(LinMotor!$V$1:$V$1305,A138,1))/1000,"0.0k")),"") -> 18.52078245 | H138: =IF(A138<>2,IF(ABS(IF(move1,IF(Calc!$A$90,INDEX(Motor!$Y$1:$Y$1452,A138,1),INDEX(LinMotor!$W$1:$W$1305,A138,1)),IF(Calc!$A$90,INDEX(Motor!$Z$1:$Z$1452,A138,1),INDEX(LinMotor!$X$1:$X$1305,A138,1))))<1000,IF(move1,IF(Calc!$A$90,INDEX(Motor!$Y$1:$Y$1452,A138,1),INDEX(LinMotor!$W$1:$W$1305,A138,1)),IF(Calc!$A$90,INDEX(Motor!$Z$1:$Z$1452,A138,1),INDEX(LinMotor!$X$1:$X$1305,A138,1))),TEXT(IF(move1,IF(Calc!$A$90,INDEX(Motor!$Y$1:$Y$1452,A138,1),INDEX(LinMotor!$W$1:$W$1305,A138,1)),IF(Calc!$A$90,INDEX(Motor!$Z$1:$Z$1452,A138,1),INDEX(LinMotor!$X$1:$X$1305,A138,1)))/1000,"0.0k")),"") -> 0 | I138: =IF(A138<>2,IF(ABS(IF(move1,IF(Calc!$A$90,INDEX(Motor!$Z$1:$Z$1452,A138,1),INDEX(LinMotor!$X$1:$X$1305,A138,1)),IF(Calc!$A$90,INDEX(Motor!$AB$1:$AB$1452,A138,1),INDEX(LinMotor!$Z$1:$Z$1305,A138,1))))<1000,IF(move1,IF(Calc!$A$90,INDEX(Motor!$Z$1:$Z$1452,A138,1),INDEX(LinMotor!$X$1:$X$1305,A138,1)),IF(Calc!$A$90,INDEX(Motor!$AB$1:$AB$1452,A138,1),INDEX(LinMotor!$Z$1:$Z$1305,A138,1))),TEXT(IF(move1,IF(Calc!$A$90,INDEX(Motor!$Z$1:$Z$1452,A138,1),INDEX(LinMotor!$X$1:$X$1305,A138,1)),IF(Calc!$A$90,INDEX(Motor!$AB$1:$AB$1452,A138,1),INDEX(LinMotor!$Z$1:$Z$1305,A138,1)))/1000,"0.0k")),"") -> -15.00183378 | J138: =IF(A138<>2,IF(ABS(IF(move1,IF(Calc!$A$90,INDEX(Motor!$AA$1:$AA$1452,A138,1),INDEX(LinMotor!$Y$1:$Y$1305,A138,1)),IF(Calc!$A$90,INDEX(Motor!$AD$1:$AD$1452,A138,1),INDEX(LinMotor!$AB$1:$AB$1305,A138,1))))<1000,IF(move1,IF(Calc!$A$90,INDEX(Motor!$AA$1:$AA$1452,A138,1),INDEX(LinMotor!$Y$1:$Y$1305,A138,1)),IF(Calc!$A$90,INDEX(Motor!$AD$1:$AD$1452,A138,1),INDEX(LinMotor!$AB$1:$AB$1305,A138,1))),TEXT(IF(move1,IF(Calc!$A$90,INDEX(Motor!$AA$1:$AA$1452,A138,1),INDEX(LinMotor!$Y$1:$Y$1305,A138,1)),IF(Calc!$A$90,INDEX(Motor!$AD$1:$AD$1452,A138,1),INDEX(LinMotor!$AB$1:$AB$1305,A138,1)))/1000,"0.0k")),"") -> 0 | K138: =IF(Calc!$A$90,INDEX(Motor!$AF$1:$AF$1452,A138,1),INDEX(LinMotor!$AD$1:$AD$1305,A138,1)) -> 0.4258561882 | L138: =IF(Calc!$A$90,INDEX(Motor!$AG$1:$AG$1452,A138,1),INDEX(LinMotor!$AE$1:$AE$1305,A138,1)) -> 0.60581997 | M138: =IF(Calc!$A$90,INDEX(Motor!$AH$1:$AH$1452,A138,1),INDEX(LinMotor!$AF$1:$AF$1305,A138,1)) -> 5.110274258 | N138: =IF(Calc!$A$90,INDEX(Motor!$AI$1:$AI$1452,A138,1),INDEX(LinMotor!$AG$1:$AG$1305,A138,1)) -> 14.53967928 | O138: =IF(A138<>2,IF(IF(Calc!$A$90,INDEX(Motor!$AK$1:$AK$1452,A138,1),INDEX(LinMotor!$AI$1:$AI$1305,A138,1))<1000,IF(Calc!$A$90,INDEX(Motor!$AK$1:$AK$1452,A138,1),INDEX(LinMotor!$AI$1:$AI$1305,A138,1)),TEXT(IF(Calc!$A$90,INDEX(Motor!$AK$1:$AK$1452,A138,1),INDEX(LinMotor!$AI$1:$AI$1305,A138,1))/1000,"0.0k")),"") -> 307.7939542 | P138: =IF(A138<>2,IF(IF(Calc!$A$90,INDEX(Motor!$AL$1:$AL$1452,A138,1),INDEX(LinMotor!$AJ$1:$AJ$1305,A138,1))<1000,IF(Calc!$A$90,INDEX(Motor!$AL$1:$AL$1452,A138,1),INDEX(LinMotor!$AJ$1:$AJ$1305,A138,1)),TEXT(IF(Calc!$A$90,INDEX(Motor!$AL$1:$AL$1452,A138,1),INDEX(LinMotor!$AJ$1:$AJ$1305,A138,1))/1000,"0.0k")),"") -> 249.510749 | Q138: =IF(A138<>2,IF(IF(Calc!$A$90,INDEX(Motor!$AM$1:$AM$1452,A138,1),INDEX(LinMotor!$AK$1:$AK$1305,A138,1))<1000,IF(Calc!$A$90,INDEX(Motor!$AM$1:$AM$1452,A138,1),INDEX(LinMotor!$AK$1:$AK$1305,A138,1)),TEXT(IF(Calc!$A$90,INDEX(Motor!$AM$1:$AM$1452,A138,1),INDEX(LinMotor!$AK$1:$AK$1305,A138,1))/1000,"0.0k")),"") -> 2.4k
A139: 583 | B139: =IF(Calc!$A$90,INDEX(Motor!$B$1:$B$1452,A139,1),INDEX(LinMotor!$B$1:$B$1291,A139,1)) -> AKM2G-64N 240 V | C139: =IF(Calc!$A$90,INDEX(Motor!$T$1:$T$1452,A139,1),INDEX(LinMotor!$R$1:$R$1305,A139,1)) -> 1.479289988 | D139: =IF(Calc!$A$90,INDEX(Motor!$U$1:$U$1452,A139,1),INDEX(LinMotor!$S$1:$S$1305,A139,1)) -> 0.2748138915 | E139: =IF(Calc!$A$90,INDEX(Motor!$V$1:$V$1452,A139,1),INDEX(LinMotor!$T$1:$T$1305,A139,1)) -> 0.290492154 | F139: =IF(Calc!$A$90,INDEX(Motor!$W$1:$W$1452,A139,1),INDEX(LinMotor!$U$1:$U$1305,A139,1)) -> 1.2 | G139: =IF(A139<>2,IF(ABS(IF(Calc!$A$90,INDEX(Motor!$X$1:$X$1452,A139,1),INDEX(LinMotor!$V$1:$V$1305,A139,1)))<1000,IF(Calc!$A$90,INDEX(Motor!$X$1:$X$1452,A139,1),INDEX(LinMotor!$V$1:$V$1305,A139,1)),TEXT(IF(Calc!$A$90,INDEX(Motor!$X$1:$X$1452,A139,1),INDEX(LinMotor!$V$1:$V$1305,A139,1))/1000,"0.0k")),"") -> 20.42159932 | H139: =IF(A139<>2,IF(ABS(IF(move1,IF(Calc!$A$90,INDEX(Motor!$Y$1:$Y$1452,A139,1),INDEX(LinMotor!$W$1:$W$1305,A139,1)),IF(Calc!$A$90,INDEX(Motor!$Z$1:$Z$1452,A139,1),INDEX(LinMotor!$X$1:$X$1305,A139,1))))<1000,IF(move1,IF(Calc!$A$90,INDEX(Motor!$Y$1:$Y$1452,A139,1),INDEX(LinMotor!$W$1:$W$1305,A139,1)),IF(Calc!$A$90,INDEX(Motor!$Z$1:$Z$1452,A139,1),INDEX(LinMotor!$X$1:$X$1305,A139,1))),TEXT(IF(move1,IF(Calc!$A$90,INDEX(Motor!$Y$1:$Y$1452,A139,1),INDEX(LinMotor!$W$1:$W$1305,A139,1)),IF(Calc!$A$90,INDEX(Motor!$Z$1:$Z$1452,A139,1),INDEX(LinMotor!$X$1:$X$1305,A139,1)))/1000,"0.0k")),"") -> 0 | I139: =IF(A139<>2,IF(ABS(IF(move1,IF(Calc!$A$90,INDEX(Motor!$Z$1:$Z$1452,A139,1),INDEX(LinMotor!$X$1:$X$1305,A139,1)),IF(Calc!$A$90,INDEX(Motor!$AB$1:$AB$1452,A139,1),INDEX(LinMotor!$Z$1:$Z$1305,A139,1))))<1000,IF(move1,IF(Calc!$A$90,INDEX(Motor!$Z$1:$Z$1452,A139,1),INDEX(LinMotor!$X$1:$X$1305,A139,1)),IF(Calc!$A$90,INDEX(Motor!$AB$1:$AB$1452,A139,1),INDEX(LinMotor!$Z$1:$Z$1305,A139,1))),TEXT(IF(move1,IF(Calc!$A$90,INDEX(Motor!$Z$1:$Z$1452,A139,1),INDEX(LinMotor!$X$1:$X$1305,A139,1)),IF(Calc!$A$90,INDEX(Motor!$AB$1:$AB$1452,A139,1),INDEX(LinMotor!$Z$1:$Z$1305,A139,1)))/1000,"0.0k")),"") -> -16.54149545 | J139: =IF(A139<>2,IF(ABS(IF(move1,IF(Calc!$A$90,INDEX(Motor!$AA$1:$AA$1452,A139,1),INDEX(LinMotor!$Y$1:$Y$1305,A139,1)),IF(Calc!$A$90,INDEX(Motor!$AD$1:$AD$1452,A139,1),INDEX(LinMotor!$AB$1:$AB$1305,A139,1))))<1000,IF(move1,IF(Calc!$A$90,INDEX(Motor!$AA$1:$AA$1452,A139,1),INDEX(LinMotor!$Y$1:$Y$1305,A139,1)),IF(Calc!$A$90,INDEX(Motor!$AD$1:$AD$1452,A139,1),INDEX(LinMotor!$AB$1:$AB$1305,A139,1))),TEXT(IF(move1,IF(Calc!$A$90,INDEX(Motor!$AA$1:$AA$1452,A139,1),INDEX(LinMotor!$Y$1:$Y$1305,A139,1)),IF(Calc!$A$90,INDEX(Motor!$AD$1:$AD$1452,A139,1),INDEX(LinMotor!$AB$1:$AB$1305,A139,1)))/1000,"0.0k")),"") -> 0 | K139: =IF(Calc!$A$90,INDEX(Motor!$AF$1:$AF$1452,A139,1),INDEX(LinMotor!$AD$1:$AD$1305,A139,1)) -> 0.3972675467 | L139: =IF(Calc!$A$90,INDEX(Motor!$AG$1:$AG$1452,A139,1),INDEX(LinMotor!$AE$1:$AE$1305,A139,1)) -> 0.5651499729 | M139: =IF(Calc!$A$90,INDEX(Motor!$AH$1:$AH$1452,A139,1),INDEX(LinMotor!$AF$1:$AF$1305,A139,1)) -> 4.767210561 | N139: =IF(Calc!$A$90,INDEX(Motor!$AI$1:$AI$1452,A139,1),INDEX(LinMotor!$AG$1:$AG$1305,A139,1)) -> 13.56359935 | O139: =IF(A139<>2,IF(IF(Calc!$A$90,INDEX(Motor!$AK$1:$AK$1452,A139,1),INDEX(LinMotor!$AI$1:$AI$1305,A139,1))<1000,IF(Calc!$A$90,INDEX(Motor!$AK$1:$AK$1452,A139,1),INDEX(LinMotor!$AI$1:$AI$1305,A139,1)),TEXT(IF(Calc!$A$90,INDEX(Motor!$AK$1:$AK$1452,A139,1),INDEX(LinMotor!$AI$1:$AI$1305,A139,1))/1000,"0.0k")),"") -> 339.3833291 | P139: =IF(A139<>2,IF(IF(Calc!$A$90,INDEX(Motor!$AL$1:$AL$1452,A139,1),INDEX(LinMotor!$AJ$1:$AJ$1305,A139,1))<1000,IF(Calc!$A$90,INDEX(Motor!$AL$1:$AL$1452,A139,1),INDEX(LinMotor!$AJ$1:$AJ$1305,A139,1)),TEXT(IF(Calc!$A$90,INDEX(Motor!$AL$1:$AL$1452,A139,1),INDEX(LinMotor!$AJ$1:$AJ$1305,A139,1))/1000,"0.0k")),"") -> 275.1184274 | Q139: =IF(A139<>2,IF(IF(Calc!$A$90,INDEX(Motor!$AM$1:$AM$1452,A139,1),INDEX(LinMotor!$AK$1:$AK$1305,A139,1))<1000,IF(Calc!$A$90,INDEX(Motor!$AM$1:$AM$1452,A139,1),INDEX(LinMotor!$AK$1:$AK$1305,A139,1)),TEXT(IF(Calc!$A$90,INDEX(Motor!$AM$1:$AM$1452,A139,1),INDEX(LinMotor!$AK$1:$AK$1305,A139,1))/1000,"0.0k")),"") -> 2.6k
A140: 584 | B140: =IF(Calc!$A$90,INDEX(Motor!$B$1:$B$1452,A140,1),INDEX(LinMotor!$B$1:$B$1291,A140,1)) -> AKM2G-64N 400 V | C140: =IF(Calc!$A$90,INDEX(Motor!$T$1:$T$1452,A140,1),INDEX(LinMotor!$R$1:$R$1305,A140,1)) -> 1.479289988 | D140: =IF(Calc!$A$90,INDEX(Motor!$U$1:$U$1452,A140,1),INDEX(LinMotor!$S$1:$S$1305,A140,1)) -> 0.278768661 | E140: =IF(Calc!$A$90,INDEX(Motor!$V$1:$V$1452,A140,1),INDEX(LinMotor!$T$1:$T$1305,A140,1)) -> 0.290492154 | F140: =IF(Calc!$A$90,INDEX(Motor!$W$1:$W$1452,A140,1),INDEX(LinMotor!$U$1:$U$1305,A140,1)) -> 1.136660373 | G140: =IF(A140<>2,IF(ABS(IF(Calc!$A$90,INDEX(Motor!$X$1:$X$1452,A140,1),INDEX(LinMotor!$V$1:$V$1305,A140,1)))<1000,IF(Calc!$A$90,INDEX(Motor!$X$1:$X$1452,A140,1),INDEX(LinMotor!$V$1:$V$1305,A140,1)),TEXT(IF(Calc!$A$90,INDEX(Motor!$X$1:$X$1452,A140,1),INDEX(LinMotor!$V$1:$V$1305,A140,1))/1000,"0.0k")),"") -> 20.42159932 | H140: =IF(A140<>2,IF(ABS(IF(move1,IF(Calc!$A$90,INDEX(Motor!$Y$1:$Y$1452,A140,1),INDEX(LinMotor!$W$1:$W$1305,A140,1)),IF(Calc!$A$90,INDEX(Motor!$Z$1:$Z$1452,A140,1),INDEX(LinMotor!$X$1:$X$1305,A140,1))))<1000,IF(move1,IF(Calc!$A$90,INDEX(Motor!$Y$1:$Y$1452,A140,1),INDEX(LinMotor!$W$1:$W$1305,A140,1)),IF(Calc!$A$90,INDEX(Motor!$Z$1:$Z$1452,A140,1),INDEX(LinMotor!$X$1:$X$1305,A140,1))),TEXT(IF(move1,IF(Calc!$A$90,INDEX(Motor!$Y$1:$Y$1452,A140,1),INDEX(LinMotor!$W$1:$W$1305,A140,1)),IF(Calc!$A$90,INDEX(Motor!$Z$1:$Z$1452,A140,1),INDEX(LinMotor!$X$1:$X$1305,A140,1)))/1000,"0.0k")),"") -> 0 | I140: =IF(A140<>2,IF(ABS(IF(move1,IF(Calc!$A$90,INDEX(Motor!$Z$1:$Z$1452,A140,1),INDEX(LinMotor!$X$1:$X$1305,A140,1)),IF(Calc!$A$90,INDEX(Motor!$AB$1:$AB$1452,A140,1),INDEX(LinMotor!$Z$1:$Z$1305,A140,1))))<1000,IF(move1,IF(Calc!$A$90,INDEX(Motor!$Z$1:$Z$1452,A140,1),INDEX(LinMotor!$X$1:$X$1305,A140,1)),IF(Calc!$A$90,INDEX(Motor!$AB$1:$AB$1452,A140,1),INDEX(LinMotor!$Z$1:$Z$1305,A140,1))),TEXT(IF(move1,IF(Calc!$A$90,INDEX(Motor!$Z$1:$Z$1452,A140,1),INDEX(LinMotor!$X$1:$X$1305,A140,1)),IF(Calc!$A$90,INDEX(Motor!$AB$1:$AB$1452,A140,1),INDEX(LinMotor!$Z$1:$Z$1305,A140,1)))/1000,"0.0k")),"") -> -16.54149545 | J140: =IF(A140<>2,IF(ABS(IF(move1,IF(Calc!$A$90,INDEX(Motor!$AA$1:$AA$1452,A140,1),INDEX(LinMotor!$Y$1:$Y$1305,A140,1)),IF(Calc!$A$90,INDEX(Motor!$AD$1:$AD$1452,A140,1),INDEX(LinMotor!$AB$1:$AB$1305,A140,1))))<1000,IF(move1,IF(Calc!$A$90,INDEX(Motor!$AA$1:$AA$1452,A140,1),INDEX(LinMotor!$Y$1:$Y$1305,A140,1)),IF(Calc!$A$90,INDEX(Motor!$AD$1:$AD$1452,A140,1),INDEX(LinMotor!$AB$1:$AB$1305,A140,1))),TEXT(IF(move1,IF(Calc!$A$90,INDEX(Motor!$AA$1:$AA$1452,A140,1),INDEX(LinMotor!$Y$1:$Y$1305,A140,1)),IF(Calc!$A$90,INDEX(Motor!$AD$1:$AD$1452,A140,1),INDEX(LinMotor!$AB$1:$AB$1305,A140,1)))/1000,"0.0k")),"") -> 0 | K140: =IF(Calc!$A$90,INDEX(Motor!$AF$1:$AF$1452,A140,1),INDEX(LinMotor!$AD$1:$AD$1305,A140,1)) -> 0.3972675467 | L140: =IF(Calc!$A$90,INDEX(Motor!$AG$1:$AG$1452,A140,1),INDEX(LinMotor!$AE$1:$AE$1305,A140,1)) -> 0.5651499729 | M140: =IF(Calc!$A$90,INDEX(Motor!$AH$1:$AH$1452,A140,1),INDEX(LinMotor!$AF$1:$AF$1305,A140,1)) -> 4.767210561 | N140: =IF(Calc!$A$90,INDEX(Motor!$AI$1:$AI$1452,A140,1),INDEX(LinMotor!$AG$1:$AG$1305,A140,1)) -> 13.56359935 | O140: =IF(A140<>2,IF(IF(Calc!$A$90,INDEX(Motor!$AK$1:$AK$1452,A140,1),INDEX(LinMotor!$AI$1:$AI$1305,A140,1))<1000,IF(Calc!$A$90,INDEX(Motor!$AK$1:$AK$1452,A140,1),INDEX(LinMotor!$AI$1:$AI$1305,A140,1)),TEXT(IF(Calc!$A$90,INDEX(Motor!$AK$1:$AK$1452,A140,1),INDEX(LinMotor!$AI$1:$AI$1305,A140,1))/1000,"0.0k")),"") -> 339.3833291 | P140: =IF(A140<>2,IF(IF(Calc!$A$90,INDEX(Motor!$AL$1:$AL$1452,A140,1),INDEX(LinMotor!$AJ$1:$AJ$1305,A140,1))<1000,IF(Calc!$A$90,INDEX(Motor!$AL$1:$AL$1452,A140,1),INDEX(LinMotor!$AJ$1:$AJ$1305,A140,1)),TEXT(IF(Calc!$A$90,INDEX(Motor!$AL$1:$AL$1452,A140,1),INDEX(LinMotor!$AJ$1:$AJ$1305,A140,1))/1000,"0.0k")),"") -> 275.1184274 | Q140: =IF(A140<>2,IF(IF(Calc!$A$90,INDEX(Motor!$AM$1:$AM$1452,A140,1),INDEX(LinMotor!$AK$1:$AK$1305,A140,1))<1000,IF(Calc!$A$90,INDEX(Motor!$AM$1:$AM$1452,A140,1),INDEX(LinMotor!$AK$1:$AK$1305,A140,1)),TEXT(IF(Calc!$A$90,INDEX(Motor!$AM$1:$AM$1452,A140,1),INDEX(LinMotor!$AK$1:$AK$1305,A140,1))/1000,"0.0k")),"") -> 2.6k
A141: 585 | B141: =IF(Calc!$A$90,INDEX(Motor!$B$1:$B$1452,A141,1),INDEX(LinMotor!$B$1:$B$1291,A141,1)) -> AKM2G-64N 480 V | C141: =IF(Calc!$A$90,INDEX(Motor!$T$1:$T$1452,A141,1),INDEX(LinMotor!$R$1:$R$1305,A141,1)) -> 1.479289988 | D141: =IF(Calc!$A$90,INDEX(Motor!$U$1:$U$1452,A141,1),INDEX(LinMotor!$S$1:$S$1305,A141,1)) -> 0.28093225 | E141: =IF(Calc!$A$90,INDEX(Motor!$V$1:$V$1452,A141,1),INDEX(LinMotor!$T$1:$T$1305,A141,1)) -> 0.290492154 | F141: =IF(Calc!$A$90,INDEX(Motor!$W$1:$W$1452,A141,1),INDEX(LinMotor!$U$1:$U$1305,A141,1)) -> 1.136660373 | G141: =IF(A141<>2,IF(ABS(IF(Calc!$A$90,INDEX(Motor!$X$1:$X$1452,A141,1),INDEX(LinMotor!$V$1:$V$1305,A141,1)))<1000,IF(Calc!$A$90,INDEX(Motor!$X$1:$X$1452,A141,1),INDEX(LinMotor!$V$1:$V$1305,A141,1)),TEXT(IF(Calc!$A$90,INDEX(Motor!$X$1:$X$1452,A141,1),INDEX(LinMotor!$V$1:$V$1305,A141,1))/1000,"0.0k")),"") -> 20.42159932 | H141: =IF(A141<>2,IF(ABS(IF(move1,IF(Calc!$A$90,INDEX(Motor!$Y$1:$Y$1452,A141,1),INDEX(LinMotor!$W$1:$W$1305,A141,1)),IF(Calc!$A$90,INDEX(Motor!$Z$1:$Z$1452,A141,1),INDEX(LinMotor!$X$1:$X$1305,A141,1))))<1000,IF(move1,IF(Calc!$A$90,INDEX(Motor!$Y$1:$Y$1452,A141,1),INDEX(LinMotor!$W$1:$W$1305,A141,1)),IF(Calc!$A$90,INDEX(Motor!$Z$1:$Z$1452,A141,1),INDEX(LinMotor!$X$1:$X$1305,A141,1))),TEXT(IF(move1,IF(Calc!$A$90,INDEX(Motor!$Y$1:$Y$1452,A141,1),INDEX(LinMotor!$W$1:$W$1305,A141,1)),IF(Calc!$A$90,INDEX(Motor!$Z$1:$Z$1452,A141,1),INDEX(LinMotor!$X$1:$X$1305,A141,1)))/1000,"0.0k")),"") -> 0 | I141: =IF(A141<>2,IF(ABS(IF(move1,IF(Calc!$A$90,INDEX(Motor!$Z$1:$Z$1452,A141,1),INDEX(LinMotor!$X$1:$X$1305,A141,1)),IF(Calc!$A$90,INDEX(Motor!$AB$1:$AB$1452,A141,1),INDEX(LinMotor!$Z$1:$Z$1305,A141,1))))<1000,IF(move1,IF(Calc!$A$90,INDEX(Motor!$Z$1:$Z$1452,A141,1),INDEX(LinMotor!$X$1:$X$1305,A141,1)),IF(Calc!$A$90,INDEX(Motor!$AB$1:$AB$1452,A141,1),INDEX(LinMotor!$Z$1:$Z$1305,A141,1))),TEXT(IF(move1,IF(Calc!$A$90,INDEX(Motor!$Z$1:$Z$1452,A141,1),INDEX(LinMotor!$X$1:$X$1305,A141,1)),IF(Calc!$A$90,INDEX(Motor!$AB$1:$AB$1452,A141,1),INDEX(LinMotor!$Z$1:$Z$1305,A141,1)))/1000,"0.0k")),"") -> -16.54149545 | J141: =IF(A141<>2,IF(ABS(IF(move1,IF(Calc!$A$90,INDEX(Motor!$AA$1:$AA$1452,A141,1),INDEX(LinMotor!$Y$1:$Y$1305,A141,1)),IF(Calc!$A$90,INDEX(Motor!$AD$1:$AD$1452,A141,1),INDEX(LinMotor!$AB$1:$AB$1305,A141,1))))<1000,IF(move1,IF(Calc!$A$90,INDEX(Motor!$AA$1:$AA$1452,A141,1),INDEX(LinMotor!$Y$1:$Y$1305,A141,1)),IF(Calc!$A$90,INDEX(Motor!$AD$1:$AD$1452,A141,1),INDEX(LinMotor!$AB$1:$AB$1305,A141,1))),TEXT(IF(move1,IF(Calc!$A$90,INDEX(Motor!$AA$1:$AA$1452,A141,1),INDEX(LinMotor!$Y$1:$Y$1305,A141,1)),IF(Calc!$A$90,INDEX(Motor!$AD$1:$AD$1452,A141,1),INDEX(LinMotor!$AB$1:$AB$1305,A141,1)))/1000,"0.0k")),"") -> 0 | K141: =IF(Calc!$A$90,INDEX(Motor!$AF$1:$AF$1452,A141,1),INDEX(LinMotor!$AD$1:$AD$1305,A141,1)) -> 0.3972675467 | L141: =IF(Calc!$A$90,INDEX(Motor!$AG$1:$AG$1452,A141,1),INDEX(LinMotor!$AE$1:$AE$1305,A141,1)) -> 0.5651499729 | M141: =IF(Calc!$A$90,INDEX(Motor!$AH$1:$AH$1452,A141,1),INDEX(LinMotor!$AF$1:$AF$1305,A141,1)) -> 4.767210561 | N141: =IF(Calc!$A$90,INDEX(Motor!$AI$1:$AI$1452,A141,1),INDEX(LinMotor!$AG$1:$AG$1305,A141,1)) -> 13.56359935 | O141: =IF(A141<>2,IF(IF(Calc!$A$90,INDEX(Motor!$AK$1:$AK$1452,A141,1),INDEX(LinMotor!$AI$1:$AI$1305,A141,1))<1000,IF(Calc!$A$90,INDEX(Motor!$AK$1:$AK$1452,A141,1),INDEX(LinMotor!$AI$1:$AI$1305,A141,1)),TEXT(IF(Calc!$A$90,INDEX(Motor!$AK$1:$AK$1452,A141,1),INDEX(LinMotor!$AI$1:$AI$1305,A141,1))/1000,"0.0k")),"") -> 339.3833291 | P141: =IF(A141<>2,IF(IF(Calc!$A$90,INDEX(Motor!$AL$1:$AL$1452,A141,1),INDEX(LinMotor!$AJ$1:$AJ$1305,A141,1))<1000,IF(Calc!$A$90,INDEX(Motor!$AL$1:$AL$1452,A141,1),INDEX(LinMotor!$AJ$1:$AJ$1305,A141,1)),TEXT(IF(Calc!$A$90,INDEX(Motor!$AL$1:$AL$1452,A141,1),INDEX(LinMotor!$AJ$1:$AJ$1305,A141,1))/1000,"0.0k")),"") -> 275.1184274 | Q141: =IF(A141<>2,IF(IF(Calc!$A$90,INDEX(Motor!$AM$1:$AM$1452,A141,1),INDEX(LinMotor!$AK$1:$AK$1305,A141,1))<1000,IF(Calc!$A$90,INDEX(Motor!$AM$1:$AM$1452,A141,1),INDEX(LinMotor!$AK$1:$AK$1305,A141,1)),TEXT(IF(Calc!$A$90,INDEX(Motor!$AM$1:$AM$1452,A141,1),INDEX(LinMotor!$AK$1:$AK$1305,A141,1))/1000,"0.0k")),"") -> 2.6k
A142: 599 | B142: =IF(Calc!$A$90,INDEX(Motor!$B$1:$B$1452,A142,1),INDEX(LinMotor!$B$1:$B$1291,A142,1)) -> AKM2G-71N 240 V | C142: =IF(Calc!$A$90,INDEX(Motor!$T$1:$T$1452,A142,1),INDEX(LinMotor!$R$1:$R$1305,A142,1)) -> 0.965250991 | D142: =IF(Calc!$A$90,INDEX(Motor!$U$1:$U$1452,A142,1),INDEX(LinMotor!$S$1:$S$1305,A142,1)) -> 0.394156809 | E142: =IF(Calc!$A$90,INDEX(Motor!$V$1:$V$1452,A142,1),INDEX(LinMotor!$T$1:$T$1305,A142,1)) -> 0.5032069113 | F142: =IF(Calc!$A$90,INDEX(Motor!$W$1:$W$1452,A142,1),INDEX(LinMotor!$U$1:$U$1305,A142,1)) -> 1.090909091 | G142: =IF(A142<>2,IF(ABS(IF(Calc!$A$90,INDEX(Motor!$X$1:$X$1452,A142,1),INDEX(LinMotor!$V$1:$V$1305,A142,1)))<1000,IF(Calc!$A$90,INDEX(Motor!$X$1:$X$1452,A142,1),INDEX(LinMotor!$V$1:$V$1305,A142,1)),TEXT(IF(Calc!$A$90,INDEX(Motor!$X$1:$X$1452,A142,1),INDEX(LinMotor!$V$1:$V$1305,A142,1))/1000,"0.0k")),"") -> 24.80810034 | H142: =IF(A142<>2,IF(ABS(IF(move1,IF(Calc!$A$90,INDEX(Motor!$Y$1:$Y$1452,A142,1),INDEX(LinMotor!$W$1:$W$1305,A142,1)),IF(Calc!$A$90,INDEX(Motor!$Z$1:$Z$1452,A142,1),INDEX(LinMotor!$X$1:$X$1305,A142,1))))<1000,IF(move1,IF(Calc!$A$90,INDEX(Motor!$Y$1:$Y$1452,A142,1),INDEX(LinMotor!$W$1:$W$1305,A142,1)),IF(Calc!$A$90,INDEX(Motor!$Z$1:$Z$1452,A142,1),INDEX(LinMotor!$X$1:$X$1305,A142,1))),TEXT(IF(move1,IF(Calc!$A$90,INDEX(Motor!$Y$1:$Y$1452,A142,1),INDEX(LinMotor!$W$1:$W$1305,A142,1)),IF(Calc!$A$90,INDEX(Motor!$Z$1:$Z$1452,A142,1),INDEX(LinMotor!$X$1:$X$1305,A142,1)))/1000,"0.0k")),"") -> 0 | I142: =IF(A142<>2,IF(ABS(IF(move1,IF(Calc!$A$90,INDEX(Motor!$Z$1:$Z$1452,A142,1),INDEX(LinMotor!$X$1:$X$1305,A142,1)),IF(Calc!$A$90,INDEX(Motor!$AB$1:$AB$1452,A142,1),INDEX(LinMotor!$Z$1:$Z$1305,A142,1))))<1000,IF(move1,IF(Calc!$A$90,INDEX(Motor!$Z$1:$Z$1452,A142,1),INDEX(LinMotor!$X$1:$X$1305,A142,1)),IF(Calc!$A$90,INDEX(Motor!$AB$1:$AB$1452,A142,1),INDEX(LinMotor!$Z$1:$Z$1305,A142,1))),TEXT(IF(move1,IF(Calc!$A$90,INDEX(Motor!$Z$1:$Z$1452,A142,1),INDEX(LinMotor!$X$1:$X$1305,A142,1)),IF(Calc!$A$90,INDEX(Motor!$AB$1:$AB$1452,A142,1),INDEX(LinMotor!$Z$1:$Z$1305,A142,1)))/1000,"0.0k")),"") -> -20.09456128 | J142: =IF(A142<>2,IF(ABS(IF(move1,IF(Calc!$A$90,INDEX(Motor!$AA$1:$AA$1452,A142,1),INDEX(LinMotor!$Y$1:$Y$1305,A142,1)),IF(Calc!$A$90,INDEX(Motor!$AD$1:$AD$1452,A142,1),INDEX(LinMotor!$AB$1:$AB$1305,A142,1))))<1000,IF(move1,IF(Calc!$A$90,INDEX(Motor!$AA$1:$AA$1452,A142,1),INDEX(LinMotor!$Y$1:$Y$1305,A142,1)),IF(Calc!$A$90,INDEX(Motor!$AD$1:$AD$1452,A142,1),INDEX(LinMotor!$AB$1:$AB$1305,A142,1))),TEXT(IF(move1,IF(Calc!$A$90,INDEX(Motor!$AA$1:$AA$1452,A142,1),INDEX(LinMotor!$Y$1:$Y$1305,A142,1)),IF(Calc!$A$90,INDEX(Motor!$AD$1:$AD$1452,A142,1),INDEX(LinMotor!$AB$1:$AB$1305,A142,1)))/1000,"0.0k")),"") -> 0 | K142: =IF(Calc!$A$90,INDEX(Motor!$AF$1:$AF$1452,A142,1),INDEX(LinMotor!$AD$1:$AD$1305,A142,1)) -> 0.5537603515 | L142: =IF(Calc!$A$90,INDEX(Motor!$AG$1:$AG$1452,A142,1),INDEX(LinMotor!$AE$1:$AE$1305,A142,1)) -> 0.7877755187 | M142: =IF(Calc!$A$90,INDEX(Motor!$AH$1:$AH$1452,A142,1),INDEX(LinMotor!$AF$1:$AF$1305,A142,1)) -> 6.645124218 | N142: =IF(Calc!$A$90,INDEX(Motor!$AI$1:$AI$1452,A142,1),INDEX(LinMotor!$AG$1:$AG$1305,A142,1)) -> 18.90661245 | O142: =IF(A142<>2,IF(IF(Calc!$A$90,INDEX(Motor!$AK$1:$AK$1452,A142,1),INDEX(LinMotor!$AI$1:$AI$1305,A142,1))<1000,IF(Calc!$A$90,INDEX(Motor!$AK$1:$AK$1452,A142,1),INDEX(LinMotor!$AI$1:$AI$1305,A142,1)),TEXT(IF(Calc!$A$90,INDEX(Motor!$AK$1:$AK$1452,A142,1),INDEX(LinMotor!$AI$1:$AI$1305,A142,1))/1000,"0.0k")),"") -> 412.2818959 | P142: =IF(A142<>2,IF(IF(Calc!$A$90,INDEX(Motor!$AL$1:$AL$1452,A142,1),INDEX(LinMotor!$AJ$1:$AJ$1305,A142,1))<1000,IF(Calc!$A$90,INDEX(Motor!$AL$1:$AL$1452,A142,1),INDEX(LinMotor!$AJ$1:$AJ$1305,A142,1)),TEXT(IF(Calc!$A$90,INDEX(Motor!$AL$1:$AL$1452,A142,1),INDEX(LinMotor!$AJ$1:$AJ$1305,A142,1))/1000,"0.0k")),"") -> 334.2130774 | Q142: =IF(A142<>2,IF(IF(Calc!$A$90,INDEX(Motor!$AM$1:$AM$1452,A142,1),INDEX(LinMotor!$AK$1:$AK$1305,A142,1))<1000,IF(Calc!$A$90,INDEX(Motor!$AM$1:$AM$1452,A142,1),INDEX(LinMotor!$AK$1:$AK$1305,A142,1)),TEXT(IF(Calc!$A$90,INDEX(Motor!$AM$1:$AM$1452,A142,1),INDEX(LinMotor!$AK$1:$AK$1305,A142,1))/1000,"0.0k")),"") -> 3.2k
A143: 600 | B143: =IF(Calc!$A$90,INDEX(Motor!$B$1:$B$1452,A143,1),INDEX(LinMotor!$B$1:$B$1291,A143,1)) -> AKM2G-71N 400 V | C143: =IF(Calc!$A$90,INDEX(Motor!$T$1:$T$1452,A143,1),INDEX(LinMotor!$R$1:$R$1305,A143,1)) -> 0.965250991 | D143: =IF(Calc!$A$90,INDEX(Motor!$U$1:$U$1452,A143,1),INDEX(LinMotor!$S$1:$S$1305,A143,1)) -> 0.3989265853 | E143: =IF(Calc!$A$90,INDEX(Motor!$V$1:$V$1452,A143,1),INDEX(LinMotor!$T$1:$T$1305,A143,1)) -> 0.5032069113 | F143: =IF(Calc!$A$90,INDEX(Motor!$W$1:$W$1452,A143,1),INDEX(LinMotor!$U$1:$U$1305,A143,1)) -> 1.037904673 | G143: =IF(A143<>2,IF(ABS(IF(Calc!$A$90,INDEX(Motor!$X$1:$X$1452,A143,1),INDEX(LinMotor!$V$1:$V$1305,A143,1)))<1000,IF(Calc!$A$90,INDEX(Motor!$X$1:$X$1452,A143,1),INDEX(LinMotor!$V$1:$V$1305,A143,1)),TEXT(IF(Calc!$A$90,INDEX(Motor!$X$1:$X$1452,A143,1),INDEX(LinMotor!$V$1:$V$1305,A143,1))/1000,"0.0k")),"") -> 24.80810034 | H143: =IF(A143<>2,IF(ABS(IF(move1,IF(Calc!$A$90,INDEX(Motor!$Y$1:$Y$1452,A143,1),INDEX(LinMotor!$W$1:$W$1305,A143,1)),IF(Calc!$A$90,INDEX(Motor!$Z$1:$Z$1452,A143,1),INDEX(LinMotor!$X$1:$X$1305,A143,1))))<1000,IF(move1,IF(Calc!$A$90,INDEX(Motor!$Y$1:$Y$1452,A143,1),INDEX(LinMotor!$W$1:$W$1305,A143,1)),IF(Calc!$A$90,INDEX(Motor!$Z$1:$Z$1452,A143,1),INDEX(LinMotor!$X$1:$X$1305,A143,1))),TEXT(IF(move1,IF(Calc!$A$90,INDEX(Motor!$Y$1:$Y$1452,A143,1),INDEX(LinMotor!$W$1:$W$1305,A143,1)),IF(Calc!$A$90,INDEX(Motor!$Z$1:$Z$1452,A143,1),INDEX(LinMotor!$X$1:$X$1305,A143,1)))/1000,"0.0k")),"") -> 0 | I143: =IF(A143<>2,IF(ABS(IF(move1,IF(Calc!$A$90,INDEX(Motor!$Z$1:$Z$1452,A143,1),INDEX(LinMotor!$X$1:$X$1305,A143,1)),IF(Calc!$A$90,INDEX(Motor!$AB$1:$AB$1452,A143,1),INDEX(LinMotor!$Z$1:$Z$1305,A143,1))))<1000,IF(move1,IF(Calc!$A$90,INDEX(Motor!$Z$1:$Z$1452,A143,1),INDEX(LinMotor!$X$1:$X$1305,A143,1)),IF(Calc!$A$90,INDEX(Motor!$AB$1:$AB$1452,A143,1),INDEX(LinMotor!$Z$1:$Z$1305,A143,1))),TEXT(IF(move1,IF(Calc!$A$90,INDEX(Motor!$Z$1:$Z$1452,A143,1),INDEX(LinMotor!$X$1:$X$1305,A143,1)),IF(Calc!$A$90,INDEX(Motor!$AB$1:$AB$1452,A143,1),INDEX(LinMotor!$Z$1:$Z$1305,A143,1)))/1000,"0.0k")),"") -> -20.09456128 | J143: =IF(A143<>2,IF(ABS(IF(move1,IF(Calc!$A$90,INDEX(Motor!$AA$1:$AA$1452,A143,1),INDEX(LinMotor!$Y$1:$Y$1305,A143,1)),IF(Calc!$A$90,INDEX(Motor!$AD$1:$AD$1452,A143,1),INDEX(LinMotor!$AB$1:$AB$1305,A143,1))))<1000,IF(move1,IF(Calc!$A$90,INDEX(Motor!$AA$1:$AA$1452,A143,1),INDEX(LinMotor!$Y$1:$Y$1305,A143,1)),IF(Calc!$A$90,INDEX(Motor!$AD$1:$AD$1452,A143,1),INDEX(LinMotor!$AB$1:$AB$1305,A143,1))),TEXT(IF(move1,IF(Calc!$A$90,INDEX(Motor!$AA$1:$AA$1452,A143,1),INDEX(LinMotor!$Y$1:$Y$1305,A143,1)),IF(Calc!$A$90,INDEX(Motor!$AD$1:$AD$1452,A143,1),INDEX(LinMotor!$AB$1:$AB$1305,A143,1)))/1000,"0.0k")),"") -> 0 | K143: =IF(Calc!$A$90,INDEX(Motor!$AF$1:$AF$1452,A143,1),INDEX(LinMotor!$AD$1:$AD$1305,A143,1)) -> 0.5537603515 | L143: =IF(Calc!$A$90,INDEX(Motor!$AG$1:$AG$1452,A143,1),INDEX(LinMotor!$AE$1:$AE$1305,A143,1)) -> 0.7877755187 | M143: =IF(Calc!$A$90,INDEX(Motor!$AH$1:$AH$1452,A143,1),INDEX(LinMotor!$AF$1:$AF$1305,A143,1)) -> 6.645124218 | N143: =IF(Calc!$A$90,INDEX(Motor!$AI$1:$AI$1452,A143,1),INDEX(LinMotor!$AG$1:$AG$1305,A143,1)) -> 18.90661245 | O143: =IF(A143<>2,IF(IF(Calc!$A$90,INDEX(Motor!$AK$1:$AK$1452,A143,1),INDEX(LinMotor!$AI$1:$AI$1305,A143,1))<1000,IF(Calc!$A$90,INDEX(Motor!$AK$1:$AK$1452,A143,1),INDEX(LinMotor!$AI$1:$AI$1305,A143,1)),TEXT(IF(Calc!$A$90,INDEX(Motor!$AK$1:$AK$1452,A143,1),INDEX(LinMotor!$AI$1:$AI$1305,A143,1))/1000,"0.0k")),"") -> 412.2818959 | P143: =IF(A143<>2,IF(IF(Calc!$A$90,INDEX(Motor!$AL$1:$AL$1452,A143,1),INDEX(LinMotor!$AJ$1:$AJ$1305,A143,1))<1000,IF(Calc!$A$90,INDEX(Motor!$AL$1:$AL$1452,A143,1),INDEX(LinMotor!$AJ$1:$AJ$1305,A143,1)),TEXT(IF(Calc!$A$90,INDEX(Motor!$AL$1:$AL$1452,A143,1),INDEX(LinMotor!$AJ$1:$AJ$1305,A143,1))/1000,"0.0k")),"") -> 334.2130774 | Q143: =IF(A143<>2,IF(IF(Calc!$A$90,INDEX(Motor!$AM$1:$AM$1452,A143,1),INDEX(LinMotor!$AK$1:$AK$1305,A143,1))<1000,IF(Calc!$A$90,INDEX(Motor!$AM$1:$AM$1452,A143,1),INDEX(LinMotor!$AK$1:$AK$1305,A143,1)),TEXT(IF(Calc!$A$90,INDEX(Motor!$AM$1:$AM$1452,A143,1),INDEX(LinMotor!$AK$1:$AK$1305,A143,1))/1000,"0.0k")),"") -> 3.2k
A144: 601 | B144: =IF(Calc!$A$90,INDEX(Motor!$B$1:$B$1452,A144,1),INDEX(LinMotor!$B$1:$B$1291,A144,1)) -> AKM2G-71N 480 V | C144: =IF(Calc!$A$90,INDEX(Motor!$T$1:$T$1452,A144,1),INDEX(LinMotor!$R$1:$R$1305,A144,1)) -> 0.965250991 | D144: =IF(Calc!$A$90,INDEX(Motor!$U$1:$U$1452,A144,1),INDEX(LinMotor!$S$1:$S$1305,A144,1)) -> 0.4016109275 | E144: =IF(Calc!$A$90,INDEX(Motor!$V$1:$V$1452,A144,1),INDEX(LinMotor!$T$1:$T$1305,A144,1)) -> 0.5032069113 | F144: =IF(Calc!$A$90,INDEX(Motor!$W$1:$W$1452,A144,1),INDEX(LinMotor!$U$1:$U$1305,A144,1)) -> 1.037904673 | G144: =IF(A144<>2,IF(ABS(IF(Calc!$A$90,INDEX(Motor!$X$1:$X$1452,A144,1),INDEX(LinMotor!$V$1:$V$1305,A144,1)))<1000,IF(Calc!$A$90,INDEX(Motor!$X$1:$X$1452,A144,1),INDEX(LinMotor!$V$1:$V$1305,A144,1)),TEXT(IF(Calc!$A$90,INDEX(Motor!$X$1:$X$1452,A144,1),INDEX(LinMotor!$V$1:$V$1305,A144,1))/1000,"0.0k")),"") -> 24.80810034 | H144: =IF(A144<>2,IF(ABS(IF(move1,IF(Calc!$A$90,INDEX(Motor!$Y$1:$Y$1452,A144,1),INDEX(LinMotor!$W$1:$W$1305,A144,1)),IF(Calc!$A$90,INDEX(Motor!$Z$1:$Z$1452,A144,1),INDEX(LinMotor!$X$1:$X$1305,A144,1))))<1000,IF(move1,IF(Calc!$A$90,INDEX(Motor!$Y$1:$Y$1452,A144,1),INDEX(LinMotor!$W$1:$W$1305,A144,1)),IF(Calc!$A$90,INDEX(Motor!$Z$1:$Z$1452,A144,1),INDEX(LinMotor!$X$1:$X$1305,A144,1))),TEXT(IF(move1,IF(Calc!$A$90,INDEX(Motor!$Y$1:$Y$1452,A144,1),INDEX(LinMotor!$W$1:$W$1305,A144,1)),IF(Calc!$A$90,INDEX(Motor!$Z$1:$Z$1452,A144,1),INDEX(LinMotor!$X$1:$X$1305,A144,1)))/1000,"0.0k")),"") -> 0 | I144: =IF(A144<>2,IF(ABS(IF(move1,IF(Calc!$A$90,INDEX(Motor!$Z$1:$Z$1452,A144,1),INDEX(LinMotor!$X$1:$X$1305,A144,1)),IF(Calc!$A$90,INDEX(Motor!$AB$1:$AB$1452,A144,1),INDEX(LinMotor!$Z$1:$Z$1305,A144,1))))<1000,IF(move1,IF(Calc!$A$90,INDEX(Motor!$Z$1:$Z$1452,A144,1),INDEX(LinMotor!$X$1:$X$1305,A144,1)),IF(Calc!$A$90,INDEX(Motor!$AB$1:$AB$1452,A144,1),INDEX(LinMotor!$Z$1:$Z$1305,A144,1))),TEXT(IF(move1,IF(Calc!$A$90,INDEX(Motor!$Z$1:$Z$1452,A144,1),INDEX(LinMotor!$X$1:$X$1305,A144,1)),IF(Calc!$A$90,INDEX(Motor!$AB$1:$AB$1452,A144,1),INDEX(LinMotor!$Z$1:$Z$1305,A144,1)))/1000,"0.0k")),"") -> -20.09456128 | J144: =IF(A144<>2,IF(ABS(IF(move1,IF(Calc!$A$90,INDEX(Motor!$AA$1:$AA$1452,A144,1),INDEX(LinMotor!$Y$1:$Y$1305,A144,1)),IF(Calc!$A$90,INDEX(Motor!$AD$1:$AD$1452,A144,1),INDEX(LinMotor!$AB$1:$AB$1305,A144,1))))<1000,IF(move1,IF(Calc!$A$90,INDEX(Motor!$AA$1:$AA$1452,A144,1),INDEX(LinMotor!$Y$1:$Y$1305,A144,1)),IF(Calc!$A$90,INDEX(Motor!$AD$1:$AD$1452,A144,1),INDEX(LinMotor!$AB$1:$AB$1305,A144,1))),TEXT(IF(move1,IF(Calc!$A$90,INDEX(Motor!$AA$1:$AA$1452,A144,1),INDEX(LinMotor!$Y$1:$Y$1305,A144,1)),IF(Calc!$A$90,INDEX(Motor!$AD$1:$AD$1452,A144,1),INDEX(LinMotor!$AB$1:$AB$1305,A144,1)))/1000,"0.0k")),"") -> 0 | K144: =IF(Calc!$A$90,INDEX(Motor!$AF$1:$AF$1452,A144,1),INDEX(LinMotor!$AD$1:$AD$1305,A144,1)) -> 0.5537603515 | L144: =IF(Calc!$A$90,INDEX(Motor!$AG$1:$AG$1452,A144,1),INDEX(LinMotor!$AE$1:$AE$1305,A144,1)) -> 0.7877755187 | M144: =IF(Calc!$A$90,INDEX(Motor!$AH$1:$AH$1452,A144,1),INDEX(LinMotor!$AF$1:$AF$1305,A144,1)) -> 6.645124218 | N144: =IF(Calc!$A$90,INDEX(Motor!$AI$1:$AI$1452,A144,1),INDEX(LinMotor!$AG$1:$AG$1305,A144,1)) -> 18.90661245 | O144: =IF(A144<>2,IF(IF(Calc!$A$90,INDEX(Motor!$AK$1:$AK$1452,A144,1),INDEX(LinMotor!$AI$1:$AI$1305,A144,1))<1000,IF(Calc!$A$90,INDEX(Motor!$AK$1:$AK$1452,A144,1),INDEX(LinMotor!$AI$1:$AI$1305,A144,1)),TEXT(IF(Calc!$A$90,INDEX(Motor!$AK$1:$AK$1452,A144,1),INDEX(LinMotor!$AI$1:$AI$1305,A144,1))/1000,"0.0k")),"") -> 412.2818959 | P144: =IF(A144<>2,IF(IF(Calc!$A$90,INDEX(Motor!$AL$1:$AL$1452,A144,1),INDEX(LinMotor!$AJ$1:$AJ$1305,A144,1))<1000,IF(Calc!$A$90,INDEX(Motor!$AL$1:$AL$1452,A144,1),INDEX(LinMotor!$AJ$1:$AJ$1305,A144,1)),TEXT(IF(Calc!$A$90,INDEX(Motor!$AL$1:$AL$1452,A144,1),INDEX(LinMotor!$AJ$1:$AJ$1305,A144,1))/1000,"0.0k")),"") -> 334.2130774 | Q144: =IF(A144<>2,IF(IF(Calc!$A$90,INDEX(Motor!$AM$1:$AM$1452,A144,1),INDEX(LinMotor!$AK$1:$AK$1305,A144,1))<1000,IF(Calc!$A$90,INDEX(Motor!$AM$1:$AM$1452,A144,1),INDEX(LinMotor!$AK$1:$AK$1305,A144,1)),TEXT(IF(Calc!$A$90,INDEX(Motor!$AM$1:$AM$1452,A144,1),INDEX(LinMotor!$AK$1:$AK$1305,A144,1))/1000,"0.0k")),"") -> 3.2k
A145: 603 | B145: =IF(Calc!$A$90,INDEX(Motor!$B$1:$B$1452,A145,1),INDEX(LinMotor!$B$1:$B$1291,A145,1)) -> AKM2G-71P 240 V | C145: =IF(Calc!$A$90,INDEX(Motor!$T$1:$T$1452,A145,1),INDEX(LinMotor!$R$1:$R$1305,A145,1)) -> 0.965250991 | D145: =IF(Calc!$A$90,INDEX(Motor!$U$1:$U$1452,A145,1),INDEX(LinMotor!$S$1:$S$1305,A145,1)) -> 0.3905792873 | E145: =IF(Calc!$A$90,INDEX(Motor!$V$1:$V$1452,A145,1),INDEX(LinMotor!$T$1:$T$1305,A145,1)) -> 0.498154633 | F145: =IF(Calc!$A$90,INDEX(Motor!$W$1:$W$1452,A145,1),INDEX(LinMotor!$U$1:$U$1305,A145,1)) -> 0.8888888889 | G145: =IF(A145<>2,IF(ABS(IF(Calc!$A$90,INDEX(Motor!$X$1:$X$1452,A145,1),INDEX(LinMotor!$V$1:$V$1305,A145,1)))<1000,IF(Calc!$A$90,INDEX(Motor!$X$1:$X$1452,A145,1),INDEX(LinMotor!$V$1:$V$1305,A145,1)),TEXT(IF(Calc!$A$90,INDEX(Motor!$X$1:$X$1452,A145,1),INDEX(LinMotor!$V$1:$V$1305,A145,1))/1000,"0.0k")),"") -> 24.80810034 | H145: =IF(A145<>2,IF(ABS(IF(move1,IF(Calc!$A$90,INDEX(Motor!$Y$1:$Y$1452,A145,1),INDEX(LinMotor!$W$1:$W$1305,A145,1)),IF(Calc!$A$90,INDEX(Motor!$Z$1:$Z$1452,A145,1),INDEX(LinMotor!$X$1:$X$1305,A145,1))))<1000,IF(move1,IF(Calc!$A$90,INDEX(Motor!$Y$1:$Y$1452,A145,1),INDEX(LinMotor!$W$1:$W$1305,A145,1)),IF(Calc!$A$90,INDEX(Motor!$Z$1:$Z$1452,A145,1),INDEX(LinMotor!$X$1:$X$1305,A145,1))),TEXT(IF(move1,IF(Calc!$A$90,INDEX(Motor!$Y$1:$Y$1452,A145,1),INDEX(LinMotor!$W$1:$W$1305,A145,1)),IF(Calc!$A$90,INDEX(Motor!$Z$1:$Z$1452,A145,1),INDEX(LinMotor!$X$1:$X$1305,A145,1)))/1000,"0.0k")),"") -> 0 | I145: =IF(A145<>2,IF(ABS(IF(move1,IF(Calc!$A$90,INDEX(Motor!$Z$1:$Z$1452,A145,1),INDEX(LinMotor!$X$1:$X$1305,A145,1)),IF(Calc!$A$90,INDEX(Motor!$AB$1:$AB$1452,A145,1),INDEX(LinMotor!$Z$1:$Z$1305,A145,1))))<1000,IF(move1,IF(Calc!$A$90,INDEX(Motor!$Z$1:$Z$1452,A145,1),INDEX(LinMotor!$X$1:$X$1305,A145,1)),IF(Calc!$A$90,INDEX(Motor!$AB$1:$AB$1452,A145,1),INDEX(LinMotor!$Z$1:$Z$1305,A145,1))),TEXT(IF(move1,IF(Calc!$A$90,INDEX(Motor!$Z$1:$Z$1452,A145,1),INDEX(LinMotor!$X$1:$X$1305,A145,1)),IF(Calc!$A$90,INDEX(Motor!$AB$1:$AB$1452,A145,1),INDEX(LinMotor!$Z$1:$Z$1305,A145,1)))/1000,"0.0k")),"") -> -20.09456128 | J145: =IF(A145<>2,IF(ABS(IF(move1,IF(Calc!$A$90,INDEX(Motor!$AA$1:$AA$1452,A145,1),INDEX(LinMotor!$Y$1:$Y$1305,A145,1)),IF(Calc!$A$90,INDEX(Motor!$AD$1:$AD$1452,A145,1),INDEX(LinMotor!$AB$1:$AB$1305,A145,1))))<1000,IF(move1,IF(Calc!$A$90,INDEX(Motor!$AA$1:$AA$1452,A145,1),INDEX(LinMotor!$Y$1:$Y$1305,A145,1)),IF(Calc!$A$90,INDEX(Motor!$AD$1:$AD$1452,A145,1),INDEX(LinMotor!$AB$1:$AB$1305,A145,1))),TEXT(IF(move1,IF(Calc!$A$90,INDEX(Motor!$AA$1:$AA$1452,A145,1),INDEX(LinMotor!$Y$1:$Y$1305,A145,1)),IF(Calc!$A$90,INDEX(Motor!$AD$1:$AD$1452,A145,1),INDEX(LinMotor!$AB$1:$AB$1305,A145,1)))/1000,"0.0k")),"") -> 0 | K145: =IF(Calc!$A$90,INDEX(Motor!$AF$1:$AF$1452,A145,1),INDEX(LinMotor!$AD$1:$AD$1305,A145,1)) -> 0.6665861296 | L145: =IF(Calc!$A$90,INDEX(Motor!$AG$1:$AG$1452,A145,1),INDEX(LinMotor!$AE$1:$AE$1305,A145,1)) -> 0.9482806643 | M145: =IF(Calc!$A$90,INDEX(Motor!$AH$1:$AH$1452,A145,1),INDEX(LinMotor!$AF$1:$AF$1305,A145,1)) -> 7.999033556 | N145: =IF(Calc!$A$90,INDEX(Motor!$AI$1:$AI$1452,A145,1),INDEX(LinMotor!$AG$1:$AG$1305,A145,1)) -> 22.75873594 | O145: =IF(A145<>2,IF(IF(Calc!$A$90,INDEX(Motor!$AK$1:$AK$1452,A145,1),INDEX(LinMotor!$AI$1:$AI$1305,A145,1))<1000,IF(Calc!$A$90,INDEX(Motor!$AK$1:$AK$1452,A145,1),INDEX(LinMotor!$AI$1:$AI$1305,A145,1)),TEXT(IF(Calc!$A$90,INDEX(Motor!$AK$1:$AK$1452,A145,1),INDEX(LinMotor!$AI$1:$AI$1305,A145,1))/1000,"0.0k")),"") -> 412.2818959 | P145: =IF(A145<>2,IF(IF(Calc!$A$90,INDEX(Motor!$AL$1:$AL$1452,A145,1),INDEX(LinMotor!$AJ$1:$AJ$1305,A145,1))<1000,IF(Calc!$A$90,INDEX(Motor!$AL$1:$AL$1452,A145,1),INDEX(LinMotor!$AJ$1:$AJ$1305,A145,1)),TEXT(IF(Calc!$A$90,INDEX(Motor!$AL$1:$AL$1452,A145,1),INDEX(LinMotor!$AJ$1:$AJ$1305,A145,1))/1000,"0.0k")),"") -> 334.2130774 | Q145: =IF(A145<>2,IF(IF(Calc!$A$90,INDEX(Motor!$AM$1:$AM$1452,A145,1),INDEX(LinMotor!$AK$1:$AK$1305,A145,1))<1000,IF(Calc!$A$90,INDEX(Motor!$AM$1:$AM$1452,A145,1),INDEX(LinMotor!$AK$1:$AK$1305,A145,1)),TEXT(IF(Calc!$A$90,INDEX(Motor!$AM$1:$AM$1452,A145,1),INDEX(LinMotor!$AK$1:$AK$1305,A145,1))/1000,"0.0k")),"") -> 3.2k
A146: 604 | B146: =IF(Calc!$A$90,INDEX(Motor!$B$1:$B$1452,A146,1),INDEX(LinMotor!$B$1:$B$1291,A146,1)) -> AKM2G-71P 400 V | C146: =IF(Calc!$A$90,INDEX(Motor!$T$1:$T$1452,A146,1),INDEX(LinMotor!$R$1:$R$1305,A146,1)) -> 0.965250991 | D146: =IF(Calc!$A$90,INDEX(Motor!$U$1:$U$1452,A146,1),INDEX(LinMotor!$S$1:$S$1305,A146,1)) -> 0.3965057407 | E146: =IF(Calc!$A$90,INDEX(Motor!$V$1:$V$1452,A146,1),INDEX(LinMotor!$T$1:$T$1305,A146,1)) -> 0.498154633 | F146: =IF(Calc!$A$90,INDEX(Motor!$W$1:$W$1452,A146,1),INDEX(LinMotor!$U$1:$U$1305,A146,1)) -> 0.8573737847 | G146: =IF(A146<>2,IF(ABS(IF(Calc!$A$90,INDEX(Motor!$X$1:$X$1452,A146,1),INDEX(LinMotor!$V$1:$V$1305,A146,1)))<1000,IF(Calc!$A$90,INDEX(Motor!$X$1:$X$1452,A146,1),INDEX(LinMotor!$V$1:$V$1305,A146,1)),TEXT(IF(Calc!$A$90,INDEX(Motor!$X$1:$X$1452,A146,1),INDEX(LinMotor!$V$1:$V$1305,A146,1))/1000,"0.0k")),"") -> 24.80810034 | H146: =IF(A146<>2,IF(ABS(IF(move1,IF(Calc!$A$90,INDEX(Motor!$Y$1:$Y$1452,A146,1),INDEX(LinMotor!$W$1:$W$1305,A146,1)),IF(Calc!$A$90,INDEX(Motor!$Z$1:$Z$1452,A146,1),INDEX(LinMotor!$X$1:$X$1305,A146,1))))<1000,IF(move1,IF(Calc!$A$90,INDEX(Motor!$Y$1:$Y$1452,A146,1),INDEX(LinMotor!$W$1:$W$1305,A146,1)),IF(Calc!$A$90,INDEX(Motor!$Z$1:$Z$1452,A146,1),INDEX(LinMotor!$X$1:$X$1305,A146,1))),TEXT(IF(move1,IF(Calc!$A$90,INDEX(Motor!$Y$1:$Y$1452,A146,1),INDEX(LinMotor!$W$1:$W$1305,A146,1)),IF(Calc!$A$90,INDEX(Motor!$Z$1:$Z$1452,A146,1),INDEX(LinMotor!$X$1:$X$1305,A146,1)))/1000,"0.0k")),"") -> 0 | I146: =IF(A146<>2,IF(ABS(IF(move1,IF(Calc!$A$90,INDEX(Motor!$Z$1:$Z$1452,A146,1),INDEX(LinMotor!$X$1:$X$1305,A146,1)),IF(Calc!$A$90,INDEX(Motor!$AB$1:$AB$1452,A146,1),INDEX(LinMotor!$Z$1:$Z$1305,A146,1))))<1000,IF(move1,IF(Calc!$A$90,INDEX(Motor!$Z$1:$Z$1452,A146,1),INDEX(LinMotor!$X$1:$X$1305,A146,1)),IF(Calc!$A$90,INDEX(Motor!$AB$1:$AB$1452,A146,1),INDEX(LinMotor!$Z$1:$Z$1305,A146,1))),TEXT(IF(move1,IF(Calc!$A$90,INDEX(Motor!$Z$1:$Z$1452,A146,1),INDEX(LinMotor!$X$1:$X$1305,A146,1)),IF(Calc!$A$90,INDEX(Motor!$AB$1:$AB$1452,A146,1),INDEX(LinMotor!$Z$1:$Z$1305,A146,1)))/1000,"0.0k")),"") -> -20.09456128 | J146: =IF(A146<>2,IF(ABS(IF(move1,IF(Calc!$A$90,INDEX(Motor!$AA$1:$AA$1452,A146,1),INDEX(LinMotor!$Y$1:$Y$1305,A146,1)),IF(Calc!$A$90,INDEX(Motor!$AD$1:$AD$1452,A146,1),INDEX(LinMotor!$AB$1:$AB$1305,A146,1))))<1000,IF(move1,IF(Calc!$A$90,INDEX(Motor!$AA$1:$AA$1452,A146,1),INDEX(LinMotor!$Y$1:$Y$1305,A146,1)),IF(Calc!$A$90,INDEX(Motor!$AD$1:$AD$1452,A146,1),INDEX(LinMotor!$AB$1:$AB$1305,A146,1))),TEXT(IF(move1,IF(Calc!$A$90,INDEX(Motor!$AA$1:$AA$1452,A146,1),INDEX(LinMotor!$Y$1:$Y$1305,A146,1)),IF(Calc!$A$90,INDEX(Motor!$AD$1:$AD$1452,A146,1),INDEX(LinMotor!$AB$1:$AB$1305,A146,1)))/1000,"0.0k")),"") -> 0 | K146: =IF(Calc!$A$90,INDEX(Motor!$AF$1:$AF$1452,A146,1),INDEX(LinMotor!$AD$1:$AD$1305,A146,1)) -> 0.6665861296 | L146: =IF(Calc!$A$90,INDEX(Motor!$AG$1:$AG$1452,A146,1),INDEX(LinMotor!$AE$1:$AE$1305,A146,1)) -> 0.9482806643 | M146: =IF(Calc!$A$90,INDEX(Motor!$AH$1:$AH$1452,A146,1),INDEX(LinMotor!$AF$1:$AF$1305,A146,1)) -> 7.999033556 | N146: =IF(Calc!$A$90,INDEX(Motor!$AI$1:$AI$1452,A146,1),INDEX(LinMotor!$AG$1:$AG$1305,A146,1)) -> 22.75873594 | O146: =IF(A146<>2,IF(IF(Calc!$A$90,INDEX(Motor!$AK$1:$AK$1452,A146,1),INDEX(LinMotor!$AI$1:$AI$1305,A146,1))<1000,IF(Calc!$A$90,INDEX(Motor!$AK$1:$AK$1452,A146,1),INDEX(LinMotor!$AI$1:$AI$1305,A146,1)),TEXT(IF(Calc!$A$90,INDEX(Motor!$AK$1:$AK$1452,A146,1),INDEX(LinMotor!$AI$1:$AI$1305,A146,1))/1000,"0.0k")),"") -> 412.2818959 | P146: =IF(A146<>2,IF(IF(Calc!$A$90,INDEX(Motor!$AL$1:$AL$1452,A146,1),INDEX(LinMotor!$AJ$1:$AJ$1305,A146,1))<1000,IF(Calc!$A$90,INDEX(Motor!$AL$1:$AL$1452,A146,1),INDEX(LinMotor!$AJ$1:$AJ$1305,A146,1)),TEXT(IF(Calc!$A$90,INDEX(Motor!$AL$1:$AL$1452,A146,1),INDEX(LinMotor!$AJ$1:$AJ$1305,A146,1))/1000,"0.0k")),"") -> 334.2130774 | Q146: =IF(A146<>2,IF(IF(Calc!$A$90,INDEX(Motor!$AM$1:$AM$1452,A146,1),INDEX(LinMotor!$AK$1:$AK$1305,A146,1))<1000,IF(Calc!$A$90,INDEX(Motor!$AM$1:$AM$1452,A146,1),INDEX(LinMotor!$AK$1:$AK$1305,A146,1)),TEXT(IF(Calc!$A$90,INDEX(Motor!$AM$1:$AM$1452,A146,1),INDEX(LinMotor!$AK$1:$AK$1305,A146,1))/1000,"0.0k")),"") -> 3.2k
A147: 630 | B147: =IF(Calc!$A$90,INDEX(Motor!$B$1:$B$1452,A147,1),INDEX(LinMotor!$B$1:$B$1291,A147,1)) -> AKM2G-74R 480 V | C147: =IF(Calc!$A$90,INDEX(Motor!$T$1:$T$1452,A147,1),INDEX(LinMotor!$R$1:$R$1305,A147,1)) -> 0.2821670299 | D147: =IF(Calc!$A$90,INDEX(Motor!$U$1:$U$1452,A147,1),INDEX(LinMotor!$S$1:$S$1305,A147,1)) -> 0.2962182554 | E147: =IF(Calc!$A$90,INDEX(Motor!$V$1:$V$1452,A147,1),INDEX(LinMotor!$T$1:$T$1305,A147,1)) -> 0.3398857935 | F147: =IF(Calc!$A$90,INDEX(Motor!$W$1:$W$1452,A147,1),INDEX(LinMotor!$U$1:$U$1305,A147,1)) -> 1.618226291 | G147: =IF(A147<>2,IF(ABS(IF(Calc!$A$90,INDEX(Motor!$X$1:$X$1452,A147,1),INDEX(LinMotor!$V$1:$V$1305,A147,1)))<1000,IF(Calc!$A$90,INDEX(Motor!$X$1:$X$1452,A147,1),INDEX(LinMotor!$V$1:$V$1305,A147,1)),TEXT(IF(Calc!$A$90,INDEX(Motor!$X$1:$X$1452,A147,1),INDEX(LinMotor!$V$1:$V$1305,A147,1))/1000,"0.0k")),"") -> 55.36739369 | H147: =IF(A147<>2,IF(ABS(IF(move1,IF(Calc!$A$90,INDEX(Motor!$Y$1:$Y$1452,A147,1),INDEX(LinMotor!$W$1:$W$1305,A147,1)),IF(Calc!$A$90,INDEX(Motor!$Z$1:$Z$1452,A147,1),INDEX(LinMotor!$X$1:$X$1305,A147,1))))<1000,IF(move1,IF(Calc!$A$90,INDEX(Motor!$Y$1:$Y$1452,A147,1),INDEX(LinMotor!$W$1:$W$1305,A147,1)),IF(Calc!$A$90,INDEX(Motor!$Z$1:$Z$1452,A147,1),INDEX(LinMotor!$X$1:$X$1305,A147,1))),TEXT(IF(move1,IF(Calc!$A$90,INDEX(Motor!$Y$1:$Y$1452,A147,1),INDEX(LinMotor!$W$1:$W$1305,A147,1)),IF(Calc!$A$90,INDEX(Motor!$Z$1:$Z$1452,A147,1),INDEX(LinMotor!$X$1:$X$1305,A147,1)))/1000,"0.0k")),"") -> 0 | I147: =IF(A147<>2,IF(ABS(IF(move1,IF(Calc!$A$90,INDEX(Motor!$Z$1:$Z$1452,A147,1),INDEX(LinMotor!$X$1:$X$1305,A147,1)),IF(Calc!$A$90,INDEX(Motor!$AB$1:$AB$1452,A147,1),INDEX(LinMotor!$Z$1:$Z$1305,A147,1))))<1000,IF(move1,IF(Calc!$A$90,INDEX(Motor!$Z$1:$Z$1452,A147,1),INDEX(LinMotor!$X$1:$X$1305,A147,1)),IF(Calc!$A$90,INDEX(Motor!$AB$1:$AB$1452,A147,1),INDEX(LinMotor!$Z$1:$Z$1305,A147,1))),TEXT(IF(move1,IF(Calc!$A$90,INDEX(Motor!$Z$1:$Z$1452,A147,1),INDEX(LinMotor!$X$1:$X$1305,A147,1)),IF(Calc!$A$90,INDEX(Motor!$AB$1:$AB$1452,A147,1),INDEX(LinMotor!$Z$1:$Z$1305,A147,1)))/1000,"0.0k")),"") -> -44.84758889 | J147: =IF(A147<>2,IF(ABS(IF(move1,IF(Calc!$A$90,INDEX(Motor!$AA$1:$AA$1452,A147,1),INDEX(LinMotor!$Y$1:$Y$1305,A147,1)),IF(Calc!$A$90,INDEX(Motor!$AD$1:$AD$1452,A147,1),INDEX(LinMotor!$AB$1:$AB$1305,A147,1))))<1000,IF(move1,IF(Calc!$A$90,INDEX(Motor!$AA$1:$AA$1452,A147,1),INDEX(LinMotor!$Y$1:$Y$1305,A147,1)),IF(Calc!$A$90,INDEX(Motor!$AD$1:$AD$1452,A147,1),INDEX(LinMotor!$AB$1:$AB$1305,A147,1))),TEXT(IF(move1,IF(Calc!$A$90,INDEX(Motor!$AA$1:$AA$1452,A147,1),INDEX(LinMotor!$Y$1:$Y$1305,A147,1)),IF(Calc!$A$90,INDEX(Motor!$AD$1:$AD$1452,A147,1),INDEX(LinMotor!$AB$1:$AB$1305,A147,1)))/1000,"0.0k")),"") -> 0 | K147: =IF(Calc!$A$90,INDEX(Motor!$AF$1:$AF$1452,A147,1),INDEX(LinMotor!$AD$1:$AD$1305,A147,1)) -> 0.7391899074 | L147: =IF(Calc!$A$90,INDEX(Motor!$AG$1:$AG$1452,A147,1),INDEX(LinMotor!$AE$1:$AE$1305,A147,1)) -> 1.05156628 | M147: =IF(Calc!$A$90,INDEX(Motor!$AH$1:$AH$1452,A147,1),INDEX(LinMotor!$AF$1:$AF$1305,A147,1)) -> 8.870278889 | N147: =IF(Calc!$A$90,INDEX(Motor!$AI$1:$AI$1452,A147,1),INDEX(LinMotor!$AG$1:$AG$1305,A147,1)) -> 25.23759071 | O147: =IF(A147<>2,IF(IF(Calc!$A$90,INDEX(Motor!$AK$1:$AK$1452,A147,1),INDEX(LinMotor!$AI$1:$AI$1305,A147,1))<1000,IF(Calc!$A$90,INDEX(Motor!$AK$1:$AK$1452,A147,1),INDEX(LinMotor!$AI$1:$AI$1305,A147,1)),TEXT(IF(Calc!$A$90,INDEX(Motor!$AK$1:$AK$1452,A147,1),INDEX(LinMotor!$AI$1:$AI$1305,A147,1))/1000,"0.0k")),"") -> 920.1419586 | P147: =IF(A147<>2,IF(IF(Calc!$A$90,INDEX(Motor!$AL$1:$AL$1452,A147,1),INDEX(LinMotor!$AJ$1:$AJ$1305,A147,1))<1000,IF(Calc!$A$90,INDEX(Motor!$AL$1:$AL$1452,A147,1),INDEX(LinMotor!$AJ$1:$AJ$1305,A147,1)),TEXT(IF(Calc!$A$90,INDEX(Motor!$AL$1:$AL$1452,A147,1),INDEX(LinMotor!$AJ$1:$AJ$1305,A147,1))/1000,"0.0k")),"") -> 745.9058443 | Q147: =IF(A147<>2,IF(IF(Calc!$A$90,INDEX(Motor!$AM$1:$AM$1452,A147,1),INDEX(LinMotor!$AK$1:$AK$1305,A147,1))<1000,IF(Calc!$A$90,INDEX(Motor!$AM$1:$AM$1452,A147,1),INDEX(LinMotor!$AK$1:$AK$1305,A147,1)),TEXT(IF(Calc!$A$90,INDEX(Motor!$AM$1:$AM$1452,A147,1),INDEX(LinMotor!$AK$1:$AK$1305,A147,1))/1000,"0.0k")),"") -> 7.2k
A148: 599 | B148: =IF(Calc!$A$90,INDEX(Motor!$B$1:$B$1452,A148,1),INDEX(LinMotor!$B$1:$B$1291,A148,1)) -> AKM2G-71N 240 V | C148: =IF(Calc!$A$90,INDEX(Motor!$T$1:$T$1452,A148,1),INDEX(LinMotor!$R$1:$R$1305,A148,1)) -> 0.965250991 | D148: =IF(Calc!$A$90,INDEX(Motor!$U$1:$U$1452,A148,1),INDEX(LinMotor!$S$1:$S$1305,A148,1)) -> 0.394156809 | E148: =IF(Calc!$A$90,INDEX(Motor!$V$1:$V$1452,A148,1),INDEX(LinMotor!$T$1:$T$1305,A148,1)) -> 0.5032069113 | F148: =IF(Calc!$A$90,INDEX(Motor!$W$1:$W$1452,A148,1),INDEX(LinMotor!$U$1:$U$1305,A148,1)) -> 1.090909091 | G148: =IF(A148<>2,IF(ABS(IF(Calc!$A$90,INDEX(Motor!$X$1:$X$1452,A148,1),INDEX(LinMotor!$V$1:$V$1305,A148,1)))<1000,IF(Calc!$A$90,INDEX(Motor!$X$1:$X$1452,A148,1),INDEX(LinMotor!$V$1:$V$1305,A148,1)),TEXT(IF(Calc!$A$90,INDEX(Motor!$X$1:$X$1452,A148,1),INDEX(LinMotor!$V$1:$V$1305,A148,1))/1000,"0.0k")),"") -> 24.80810034 | H148: =IF(A148<>2,IF(ABS(IF(move1,IF(Calc!$A$90,INDEX(Motor!$Y$1:$Y$1452,A148,1),INDEX(LinMotor!$W$1:$W$1305,A148,1)),IF(Calc!$A$90,INDEX(Motor!$Z$1:$Z$1452,A148,1),INDEX(LinMotor!$X$1:$X$1305,A148,1))))<1000,IF(move1,IF(Calc!$A$90,INDEX(Motor!$Y$1:$Y$1452,A148,1),INDEX(LinMotor!$W$1:$W$1305,A148,1)),IF(Calc!$A$90,INDEX(Motor!$Z$1:$Z$1452,A148,1),INDEX(LinMotor!$X$1:$X$1305,A148,1))),TEXT(IF(move1,IF(Calc!$A$90,INDEX(Motor!$Y$1:$Y$1452,A148,1),INDEX(LinMotor!$W$1:$W$1305,A148,1)),IF(Calc!$A$90,INDEX(Motor!$Z$1:$Z$1452,A148,1),INDEX(LinMotor!$X$1:$X$1305,A148,1)))/1000,"0.0k")),"") -> 0 | I148: =IF(A148<>2,IF(ABS(IF(move1,IF(Calc!$A$90,INDEX(Motor!$Z$1:$Z$1452,A148,1),INDEX(LinMotor!$X$1:$X$1305,A148,1)),IF(Calc!$A$90,INDEX(Motor!$AB$1:$AB$1452,A148,1),INDEX(LinMotor!$Z$1:$Z$1305,A148,1))))<1000,IF(move1,IF(Calc!$A$90,INDEX(Motor!$Z$1:$Z$1452,A148,1),INDEX(LinMotor!$X$1:$X$1305,A148,1)),IF(Calc!$A$90,INDEX(Motor!$AB$1:$AB$1452,A148,1),INDEX(LinMotor!$Z$1:$Z$1305,A148,1))),TEXT(IF(move1,IF(Calc!$A$90,INDEX(Motor!$Z$1:$Z$1452,A148,1),INDEX(LinMotor!$X$1:$X$1305,A148,1)),IF(Calc!$A$90,INDEX(Motor!$AB$1:$AB$1452,A148,1),INDEX(LinMotor!$Z$1:$Z$1305,A148,1)))/1000,"0.0k")),"") -> -20.09456128 | J148: =IF(A148<>2,IF(ABS(IF(move1,IF(Calc!$A$90,INDEX(Motor!$AA$1:$AA$1452,A148,1),INDEX(LinMotor!$Y$1:$Y$1305,A148,1)),IF(Calc!$A$90,INDEX(Motor!$AD$1:$AD$1452,A148,1),INDEX(LinMotor!$AB$1:$AB$1305,A148,1))))<1000,IF(move1,IF(Calc!$A$90,INDEX(Motor!$AA$1:$AA$1452,A148,1),INDEX(LinMotor!$Y$1:$Y$1305,A148,1)),IF(Calc!$A$90,INDEX(Motor!$AD$1:$AD$1452,A148,1),INDEX(LinMotor!$AB$1:$AB$1305,A148,1))),TEXT(IF(move1,IF(Calc!$A$90,INDEX(Motor!$AA$1:$AA$1452,A148,1),INDEX(LinMotor!$Y$1:$Y$1305,A148,1)),IF(Calc!$A$90,INDEX(Motor!$AD$1:$AD$1452,A148,1),INDEX(LinMotor!$AB$1:$AB$1305,A148,1)))/1000,"0.0k")),"") -> 0 | K148: =IF(Calc!$A$90,INDEX(Motor!$AF$1:$AF$1452,A148,1),INDEX(LinMotor!$AD$1:$AD$1305,A148,1)) -> 0.5537603515 | L148: =IF(Calc!$A$90,INDEX(Motor!$AG$1:$AG$1452,A148,1),INDEX(LinMotor!$AE$1:$AE$1305,A148,1)) -> 0.7877755187 | M148: =IF(Calc!$A$90,INDEX(Motor!$AH$1:$AH$1452,A148,1),INDEX(LinMotor!$AF$1:$AF$1305,A148,1)) -> 6.645124218 | N148: =IF(Calc!$A$90,INDEX(Motor!$AI$1:$AI$1452,A148,1),INDEX(LinMotor!$AG$1:$AG$1305,A148,1)) -> 18.90661245 | O148: =IF(A148<>2,IF(IF(Calc!$A$90,INDEX(Motor!$AK$1:$AK$1452,A148,1),INDEX(LinMotor!$AI$1:$AI$1305,A148,1))<1000,IF(Calc!$A$90,INDEX(Motor!$AK$1:$AK$1452,A148,1),INDEX(LinMotor!$AI$1:$AI$1305,A148,1)),TEXT(IF(Calc!$A$90,INDEX(Motor!$AK$1:$AK$1452,A148,1),INDEX(LinMotor!$AI$1:$AI$1305,A148,1))/1000,"0.0k")),"") -> 412.2818959 | P148: =IF(A148<>2,IF(IF(Calc!$A$90,INDEX(Motor!$AL$1:$AL$1452,A148,1),INDEX(LinMotor!$AJ$1:$AJ$1305,A148,1))<1000,IF(Calc!$A$90,INDEX(Motor!$AL$1:$AL$1452,A148,1),INDEX(LinMotor!$AJ$1:$AJ$1305,A148,1)),TEXT(IF(Calc!$A$90,INDEX(Motor!$AL$1:$AL$1452,A148,1),INDEX(LinMotor!$AJ$1:$AJ$1305,A148,1))/1000,"0.0k")),"") -> 334.2130774 | Q148: =IF(A148<>2,IF(IF(Calc!$A$90,INDEX(Motor!$AM$1:$AM$1452,A148,1),INDEX(LinMotor!$AK$1:$AK$1305,A148,1))<1000,IF(Calc!$A$90,INDEX(Motor!$AM$1:$AM$1452,A148,1),INDEX(LinMotor!$AK$1:$AK$1305,A148,1)),TEXT(IF(Calc!$A$90,INDEX(Motor!$AM$1:$AM$1452,A148,1),INDEX(LinMotor!$AK$1:$AK$1305,A148,1))/1000,"0.0k")),"") -> 3.2k
A149: 600 | B149: =IF(Calc!$A$90,INDEX(Motor!$B$1:$B$1452,A149,1),INDEX(LinMotor!$B$1:$B$1291,A149,1)) -> AKM2G-71N 400 V | C149: =IF(Calc!$A$90,INDEX(Motor!$T$1:$T$1452,A149,1),INDEX(LinMotor!$R$1:$R$1305,A149,1)) -> 0.965250991 | D149: =IF(Calc!$A$90,INDEX(Motor!$U$1:$U$1452,A149,1),INDEX(LinMotor!$S$1:$S$1305,A149,1)) -> 0.3989265853 | E149: =IF(Calc!$A$90,INDEX(Motor!$V$1:$V$1452,A149,1),INDEX(LinMotor!$T$1:$T$1305,A149,1)) -> 0.5032069113 | F149: =IF(Calc!$A$90,INDEX(Motor!$W$1:$W$1452,A149,1),INDEX(LinMotor!$U$1:$U$1305,A149,1)) -> 1.037904673 | G149: =IF(A149<>2,IF(ABS(IF(Calc!$A$90,INDEX(Motor!$X$1:$X$1452,A149,1),INDEX(LinMotor!$V$1:$V$1305,A149,1)))<1000,IF(Calc!$A$90,INDEX(Motor!$X$1:$X$1452,A149,1),INDEX(LinMotor!$V$1:$V$1305,A149,1)),TEXT(IF(Calc!$A$90,INDEX(Motor!$X$1:$X$1452,A149,1),INDEX(LinMotor!$V$1:$V$1305,A149,1))/1000,"0.0k")),"") -> 24.80810034 | H149: =IF(A149<>2,IF(ABS(IF(move1,IF(Calc!$A$90,INDEX(Motor!$Y$1:$Y$1452,A149,1),INDEX(LinMotor!$W$1:$W$1305,A149,1)),IF(Calc!$A$90,INDEX(Motor!$Z$1:$Z$1452,A149,1),INDEX(LinMotor!$X$1:$X$1305,A149,1))))<1000,IF(move1,IF(Calc!$A$90,INDEX(Motor!$Y$1:$Y$1452,A149,1),INDEX(LinMotor!$W$1:$W$1305,A149,1)),IF(Calc!$A$90,INDEX(Motor!$Z$1:$Z$1452,A149,1),INDEX(LinMotor!$X$1:$X$1305,A149,1))),TEXT(IF(move1,IF(Calc!$A$90,INDEX(Motor!$Y$1:$Y$1452,A149,1),INDEX(LinMotor!$W$1:$W$1305,A149,1)),IF(Calc!$A$90,INDEX(Motor!$Z$1:$Z$1452,A149,1),INDEX(LinMotor!$X$1:$X$1305,A149,1)))/1000,"0.0k")),"") -> 0 | I149: =IF(A149<>2,IF(ABS(IF(move1,IF(Calc!$A$90,INDEX(Motor!$Z$1:$Z$1452,A149,1),INDEX(LinMotor!$X$1:$X$1305,A149,1)),IF(Calc!$A$90,INDEX(Motor!$AB$1:$AB$1452,A149,1),INDEX(LinMotor!$Z$1:$Z$1305,A149,1))))<1000,IF(move1,IF(Calc!$A$90,INDEX(Motor!$Z$1:$Z$1452,A149,1),INDEX(LinMotor!$X$1:$X$1305,A149,1)),IF(Calc!$A$90,INDEX(Motor!$AB$1:$AB$1452,A149,1),INDEX(LinMotor!$Z$1:$Z$1305,A149,1))),TEXT(IF(move1,IF(Calc!$A$90,INDEX(Motor!$Z$1:$Z$1452,A149,1),INDEX(LinMotor!$X$1:$X$1305,A149,1)),IF(Calc!$A$90,INDEX(Motor!$AB$1:$AB$1452,A149,1),INDEX(LinMotor!$Z$1:$Z$1305,A149,1)))/1000,"0.0k")),"") -> -20.09456128 | J149: =IF(A149<>2,IF(ABS(IF(move1,IF(Calc!$A$90,INDEX(Motor!$AA$1:$AA$1452,A149,1),INDEX(LinMotor!$Y$1:$Y$1305,A149,1)),IF(Calc!$A$90,INDEX(Motor!$AD$1:$AD$1452,A149,1),INDEX(LinMotor!$AB$1:$AB$1305,A149,1))))<1000,IF(move1,IF(Calc!$A$90,INDEX(Motor!$AA$1:$AA$1452,A149,1),INDEX(LinMotor!$Y$1:$Y$1305,A149,1)),IF(Calc!$A$90,INDEX(Motor!$AD$1:$AD$1452,A149,1),INDEX(LinMotor!$AB$1:$AB$1305,A149,1))),TEXT(IF(move1,IF(Calc!$A$90,INDEX(Motor!$AA$1:$AA$1452,A149,1),INDEX(LinMotor!$Y$1:$Y$1305,A149,1)),IF(Calc!$A$90,INDEX(Motor!$AD$1:$AD$1452,A149,1),INDEX(LinMotor!$AB$1:$AB$1305,A149,1)))/1000,"0.0k")),"") -> 0 | K149: =IF(Calc!$A$90,INDEX(Motor!$AF$1:$AF$1452,A149,1),INDEX(LinMotor!$AD$1:$AD$1305,A149,1)) -> 0.5537603515 | L149: =IF(Calc!$A$90,INDEX(Motor!$AG$1:$AG$1452,A149,1),INDEX(LinMotor!$AE$1:$AE$1305,A149,1)) -> 0.7877755187 | M149: =IF(Calc!$A$90,INDEX(Motor!$AH$1:$AH$1452,A149,1),INDEX(LinMotor!$AF$1:$AF$1305,A149,1)) -> 6.645124218 | N149: =IF(Calc!$A$90,INDEX(Motor!$AI$1:$AI$1452,A149,1),INDEX(LinMotor!$AG$1:$AG$1305,A149,1)) -> 18.90661245 | O149: =IF(A149<>2,IF(IF(Calc!$A$90,INDEX(Motor!$AK$1:$AK$1452,A149,1),INDEX(LinMotor!$AI$1:$AI$1305,A149,1))<1000,IF(Calc!$A$90,INDEX(Motor!$AK$1:$AK$1452,A149,1),INDEX(LinMotor!$AI$1:$AI$1305,A149,1)),TEXT(IF(Calc!$A$90,INDEX(Motor!$AK$1:$AK$1452,A149,1),INDEX(LinMotor!$AI$1:$AI$1305,A149,1))/1000,"0.0k")),"") -> 412.2818959 | P149: =IF(A149<>2,IF(IF(Calc!$A$90,INDEX(Motor!$AL$1:$AL$1452,A149,1),INDEX(LinMotor!$AJ$1:$AJ$1305,A149,1))<1000,IF(Calc!$A$90,INDEX(Motor!$AL$1:$AL$1452,A149,1),INDEX(LinMotor!$AJ$1:$AJ$1305,A149,1)),TEXT(IF(Calc!$A$90,INDEX(Motor!$AL$1:$AL$1452,A149,1),INDEX(LinMotor!$AJ$1:$AJ$1305,A149,1))/1000,"0.0k")),"") -> 334.2130774 | Q149: =IF(A149<>2,IF(IF(Calc!$A$90,INDEX(Motor!$AM$1:$AM$1452,A149,1),INDEX(LinMotor!$AK$1:$AK$1305,A149,1))<1000,IF(Calc!$A$90,INDEX(Motor!$AM$1:$AM$1452,A149,1),INDEX(LinMotor!$AK$1:$AK$1305,A149,1)),TEXT(IF(Calc!$A$90,INDEX(Motor!$AM$1:$AM$1452,A149,1),INDEX(LinMotor!$AK$1:$AK$1305,A149,1))/1000,"0.0k")),"") -> 3.2k
A150: 601 | B150: =IF(Calc!$A$90,INDEX(Motor!$B$1:$B$1452,A150,1),INDEX(LinMotor!$B$1:$B$1291,A150,1)) -> AKM2G-71N 480 V | C150: =IF(Calc!$A$90,INDEX(Motor!$T$1:$T$1452,A150,1),INDEX(LinMotor!$R$1:$R$1305,A150,1)) -> 0.965250991 | D150: =IF(Calc!$A$90,INDEX(Motor!$U$1:$U$1452,A150,1),INDEX(LinMotor!$S$1:$S$1305,A150,1)) -> 0.4016109275 | E150: =IF(Calc!$A$90,INDEX(Motor!$V$1:$V$1452,A150,1),INDEX(LinMotor!$T$1:$T$1305,A150,1)) -> 0.5032069113 | F150: =IF(Calc!$A$90,INDEX(Motor!$W$1:$W$1452,A150,1),INDEX(LinMotor!$U$1:$U$1305,A150,1)) -> 1.037904673 | G150: =IF(A150<>2,IF(ABS(IF(Calc!$A$90,INDEX(Motor!$X$1:$X$1452,A150,1),INDEX(LinMotor!$V$1:$V$1305,A150,1)))<1000,IF(Calc!$A$90,INDEX(Motor!$X$1:$X$1452,A150,1),INDEX(LinMotor!$V$1:$V$1305,A150,1)),TEXT(IF(Calc!$A$90,INDEX(Motor!$X$1:$X$1452,A150,1),INDEX(LinMotor!$V$1:$V$1305,A150,1))/1000,"0.0k")),"") -> 24.80810034 | H150: =IF(A150<>2,IF(ABS(IF(move1,IF(Calc!$A$90,INDEX(Motor!$Y$1:$Y$1452,A150,1),INDEX(LinMotor!$W$1:$W$1305,A150,1)),IF(Calc!$A$90,INDEX(Motor!$Z$1:$Z$1452,A150,1),INDEX(LinMotor!$X$1:$X$1305,A150,1))))<1000,IF(move1,IF(Calc!$A$90,INDEX(Motor!$Y$1:$Y$1452,A150,1),INDEX(LinMotor!$W$1:$W$1305,A150,1)),IF(Calc!$A$90,INDEX(Motor!$Z$1:$Z$1452,A150,1),INDEX(LinMotor!$X$1:$X$1305,A150,1))),TEXT(IF(move1,IF(Calc!$A$90,INDEX(Motor!$Y$1:$Y$1452,A150,1),INDEX(LinMotor!$W$1:$W$1305,A150,1)),IF(Calc!$A$90,INDEX(Motor!$Z$1:$Z$1452,A150,1),INDEX(LinMotor!$X$1:$X$1305,A150,1)))/1000,"0.0k")),"") -> 0 | I150: =IF(A150<>2,IF(ABS(IF(move1,IF(Calc!$A$90,INDEX(Motor!$Z$1:$Z$1452,A150,1),INDEX(LinMotor!$X$1:$X$1305,A150,1)),IF(Calc!$A$90,INDEX(Motor!$AB$1:$AB$1452,A150,1),INDEX(LinMotor!$Z$1:$Z$1305,A150,1))))<1000,IF(move1,IF(Calc!$A$90,INDEX(Motor!$Z$1:$Z$1452,A150,1),INDEX(LinMotor!$X$1:$X$1305,A150,1)),IF(Calc!$A$90,INDEX(Motor!$AB$1:$AB$1452,A150,1),INDEX(LinMotor!$Z$1:$Z$1305,A150,1))),TEXT(IF(move1,IF(Calc!$A$90,INDEX(Motor!$Z$1:$Z$1452,A150,1),INDEX(LinMotor!$X$1:$X$1305,A150,1)),IF(Calc!$A$90,INDEX(Motor!$AB$1:$AB$1452,A150,1),INDEX(LinMotor!$Z$1:$Z$1305,A150,1)))/1000,"0.0k")),"") -> -20.09456128 | J150: =IF(A150<>2,IF(ABS(IF(move1,IF(Calc!$A$90,INDEX(Motor!$AA$1:$AA$1452,A150,1),INDEX(LinMotor!$Y$1:$Y$1305,A150,1)),IF(Calc!$A$90,INDEX(Motor!$AD$1:$AD$1452,A150,1),INDEX(LinMotor!$AB$1:$AB$1305,A150,1))))<1000,IF(move1,IF(Calc!$A$90,INDEX(Motor!$AA$1:$AA$1452,A150,1),INDEX(LinMotor!$Y$1:$Y$1305,A150,1)),IF(Calc!$A$90,INDEX(Motor!$AD$1:$AD$1452,A150,1),INDEX(LinMotor!$AB$1:$AB$1305,A150,1))),TEXT(IF(move1,IF(Calc!$A$90,INDEX(Motor!$AA$1:$AA$1452,A150,1),INDEX(LinMotor!$Y$1:$Y$1305,A150,1)),IF(Calc!$A$90,INDEX(Motor!$AD$1:$AD$1452,A150,1),INDEX(LinMotor!$AB$1:$AB$1305,A150,1)))/1000,"0.0k")),"") -> 0 | K150: =IF(Calc!$A$90,INDEX(Motor!$AF$1:$AF$1452,A150,1),INDEX(LinMotor!$AD$1:$AD$1305,A150,1)) -> 0.5537603515 | L150: =IF(Calc!$A$90,INDEX(Motor!$AG$1:$AG$1452,A150,1),INDEX(LinMotor!$AE$1:$AE$1305,A150,1)) -> 0.7877755187 | M150: =IF(Calc!$A$90,INDEX(Motor!$AH$1:$AH$1452,A150,1),INDEX(LinMotor!$AF$1:$AF$1305,A150,1)) -> 6.645124218 | N150: =IF(Calc!$A$90,INDEX(Motor!$AI$1:$AI$1452,A150,1),INDEX(LinMotor!$AG$1:$AG$1305,A150,1)) -> 18.90661245 | O150: =IF(A150<>2,IF(IF(Calc!$A$90,INDEX(Motor!$AK$1:$AK$1452,A150,1),INDEX(LinMotor!$AI$1:$AI$1305,A150,1))<1000,IF(Calc!$A$90,INDEX(Motor!$AK$1:$AK$1452,A150,1),INDEX(LinMotor!$AI$1:$AI$1305,A150,1)),TEXT(IF(Calc!$A$90,INDEX(Motor!$AK$1:$AK$1452,A150,1),INDEX(LinMotor!$AI$1:$AI$1305,A150,1))/1000,"0.0k")),"") -> 412.2818959 | P150: =IF(A150<>2,IF(IF(Calc!$A$90,INDEX(Motor!$AL$1:$AL$1452,A150,1),INDEX(LinMotor!$AJ$1:$AJ$1305,A150,1))<1000,IF(Calc!$A$90,INDEX(Motor!$AL$1:$AL$1452,A150,1),INDEX(LinMotor!$AJ$1:$AJ$1305,A150,1)),TEXT(IF(Calc!$A$90,INDEX(Motor!$AL$1:$AL$1452,A150,1),INDEX(LinMotor!$AJ$1:$AJ$1305,A150,1))/1000,"0.0k")),"") -> 334.2130774 | Q150: =IF(A150<>2,IF(IF(Calc!$A$90,INDEX(Motor!$AM$1:$AM$1452,A150,1),INDEX(LinMotor!$AK$1:$AK$1305,A150,1))<1000,IF(Calc!$A$90,INDEX(Motor!$AM$1:$AM$1452,A150,1),INDEX(LinMotor!$AK$1:$AK$1305,A150,1)),TEXT(IF(Calc!$A$90,INDEX(Motor!$AM$1:$AM$1452,A150,1),INDEX(LinMotor!$AK$1:$AK$1305,A150,1))/1000,"0.0k")),"") -> 3.2k
A151: 603 | B151: =IF(Calc!$A$90,INDEX(Motor!$B$1:$B$1452,A151,1),INDEX(LinMotor!$B$1:$B$1291,A151,1)) -> AKM2G-71P 240 V | C151: =IF(Calc!$A$90,INDEX(Motor!$T$1:$T$1452,A151,1),INDEX(LinMotor!$R$1:$R$1305,A151,1)) -> 0.965250991 | D151: =IF(Calc!$A$90,INDEX(Motor!$U$1:$U$1452,A151,1),INDEX(LinMotor!$S$1:$S$1305,A151,1)) -> 0.3905792873 | E151: =IF(Calc!$A$90,INDEX(Motor!$V$1:$V$1452,A151,1),INDEX(LinMotor!$T$1:$T$1305,A151,1)) -> 0.498154633 | F151: =IF(Calc!$A$90,INDEX(Motor!$W$1:$W$1452,A151,1),INDEX(LinMotor!$U$1:$U$1305,A151,1)) -> 0.8888888889 | G151: =IF(A151<>2,IF(ABS(IF(Calc!$A$90,INDEX(Motor!$X$1:$X$1452,A151,1),INDEX(LinMotor!$V$1:$V$1305,A151,1)))<1000,IF(Calc!$A$90,INDEX(Motor!$X$1:$X$1452,A151,1),INDEX(LinMotor!$V$1:$V$1305,A151,1)),TEXT(IF(Calc!$A$90,INDEX(Motor!$X$1:$X$1452,A151,1),INDEX(LinMotor!$V$1:$V$1305,A151,1))/1000,"0.0k")),"") -> 24.80810034 | H151: =IF(A151<>2,IF(ABS(IF(move1,IF(Calc!$A$90,INDEX(Motor!$Y$1:$Y$1452,A151,1),INDEX(LinMotor!$W$1:$W$1305,A151,1)),IF(Calc!$A$90,INDEX(Motor!$Z$1:$Z$1452,A151,1),INDEX(LinMotor!$X$1:$X$1305,A151,1))))<1000,IF(move1,IF(Calc!$A$90,INDEX(Motor!$Y$1:$Y$1452,A151,1),INDEX(LinMotor!$W$1:$W$1305,A151,1)),IF(Calc!$A$90,INDEX(Motor!$Z$1:$Z$1452,A151,1),INDEX(LinMotor!$X$1:$X$1305,A151,1))),TEXT(IF(move1,IF(Calc!$A$90,INDEX(Motor!$Y$1:$Y$1452,A151,1),INDEX(LinMotor!$W$1:$W$1305,A151,1)),IF(Calc!$A$90,INDEX(Motor!$Z$1:$Z$1452,A151,1),INDEX(LinMotor!$X$1:$X$1305,A151,1)))/1000,"0.0k")),"") -> 0 | I151: =IF(A151<>2,IF(ABS(IF(move1,IF(Calc!$A$90,INDEX(Motor!$Z$1:$Z$1452,A151,1),INDEX(LinMotor!$X$1:$X$1305,A151,1)),IF(Calc!$A$90,INDEX(Motor!$AB$1:$AB$1452,A151,1),INDEX(LinMotor!$Z$1:$Z$1305,A151,1))))<1000,IF(move1,IF(Calc!$A$90,INDEX(Motor!$Z$1:$Z$1452,A151,1),INDEX(LinMotor!$X$1:$X$1305,A151,1)),IF(Calc!$A$90,INDEX(Motor!$AB$1:$AB$1452,A151,1),INDEX(LinMotor!$Z$1:$Z$1305,A151,1))),TEXT(IF(move1,IF(Calc!$A$90,INDEX(Motor!$Z$1:$Z$1452,A151,1),INDEX(LinMotor!$X$1:$X$1305,A151,1)),IF(Calc!$A$90,INDEX(Motor!$AB$1:$AB$1452,A151,1),INDEX(LinMotor!$Z$1:$Z$1305,A151,1)))/1000,"0.0k")),"") -> -20.09456128 | J151: =IF(A151<>2,IF(ABS(IF(move1,IF(Calc!$A$90,INDEX(Motor!$AA$1:$AA$1452,A151,1),INDEX(LinMotor!$Y$1:$Y$1305,A151,1)),IF(Calc!$A$90,INDEX(Motor!$AD$1:$AD$1452,A151,1),INDEX(LinMotor!$AB$1:$AB$1305,A151,1))))<1000,IF(move1,IF(Calc!$A$90,INDEX(Motor!$AA$1:$AA$1452,A151,1),INDEX(LinMotor!$Y$1:$Y$1305,A151,1)),IF(Calc!$A$90,INDEX(Motor!$AD$1:$AD$1452,A151,1),INDEX(LinMotor!$AB$1:$AB$1305,A151,1))),TEXT(IF(move1,IF(Calc!$A$90,INDEX(Motor!$AA$1:$AA$1452,A151,1),INDEX(LinMotor!$Y$1:$Y$1305,A151,1)),IF(Calc!$A$90,INDEX(Motor!$AD$1:$AD$1452,A151,1),INDEX(LinMotor!$AB$1:$AB$1305,A151,1)))/1000,"0.0k")),"") -> 0 | K151: =IF(Calc!$A$90,INDEX(Motor!$AF$1:$AF$1452,A151,1),INDEX(LinMotor!$AD$1:$AD$1305,A151,1)) -> 0.6665861296 | L151: =IF(Calc!$A$90,INDEX(Motor!$AG$1:$AG$1452,A151,1),INDEX(LinMotor!$AE$1:$AE$1305,A151,1)) -> 0.9482806643 | M151: =IF(Calc!$A$90,INDEX(Motor!$AH$1:$AH$1452,A151,1),INDEX(LinMotor!$AF$1:$AF$1305,A151,1)) -> 7.999033556 | N151: =IF(Calc!$A$90,INDEX(Motor!$AI$1:$AI$1452,A151,1),INDEX(LinMotor!$AG$1:$AG$1305,A151,1)) -> 22.75873594 | O151: =IF(A151<>2,IF(IF(Calc!$A$90,INDEX(Motor!$AK$1:$AK$1452,A151,1),INDEX(LinMotor!$AI$1:$AI$1305,A151,1))<1000,IF(Calc!$A$90,INDEX(Motor!$AK$1:$AK$1452,A151,1),INDEX(LinMotor!$AI$1:$AI$1305,A151,1)),TEXT(IF(Calc!$A$90,INDEX(Motor!$AK$1:$AK$1452,A151,1),INDEX(LinMotor!$AI$1:$AI$1305,A151,1))/1000,"0.0k")),"") -> 412.2818959 | P151: =IF(A151<>2,IF(IF(Calc!$A$90,INDEX(Motor!$AL$1:$AL$1452,A151,1),INDEX(LinMotor!$AJ$1:$AJ$1305,A151,1))<1000,IF(Calc!$A$90,INDEX(Motor!$AL$1:$AL$1452,A151,1),INDEX(LinMotor!$AJ$1:$AJ$1305,A151,1)),TEXT(IF(Calc!$A$90,INDEX(Motor!$AL$1:$AL$1452,A151,1),INDEX(LinMotor!$AJ$1:$AJ$1305,A151,1))/1000,"0.0k")),"") -> 334.2130774 | Q151: =IF(A151<>2,IF(IF(Calc!$A$90,INDEX(Motor!$AM$1:$AM$1452,A151,1),INDEX(LinMotor!$AK$1:$AK$1305,A151,1))<1000,IF(Calc!$A$90,INDEX(Motor!$AM$1:$AM$1452,A151,1),INDEX(LinMotor!$AK$1:$AK$1305,A151,1)),TEXT(IF(Calc!$A$90,INDEX(Motor!$AM$1:$AM$1452,A151,1),INDEX(LinMotor!$AK$1:$AK$1305,A151,1))/1000,"0.0k")),"") -> 3.2k
A152: 604 | B152: =IF(Calc!$A$90,INDEX(Motor!$B$1:$B$1452,A152,1),INDEX(LinMotor!$B$1:$B$1291,A152,1)) -> AKM2G-71P 400 V | C152: =IF(Calc!$A$90,INDEX(Motor!$T$1:$T$1452,A152,1),INDEX(LinMotor!$R$1:$R$1305,A152,1)) -> 0.965250991 | D152: =IF(Calc!$A$90,INDEX(Motor!$U$1:$U$1452,A152,1),INDEX(LinMotor!$S$1:$S$1305,A152,1)) -> 0.3965057407 | E152: =IF(Calc!$A$90,INDEX(Motor!$V$1:$V$1452,A152,1),INDEX(LinMotor!$T$1:$T$1305,A152,1)) -> 0.498154633 | F152: =IF(Calc!$A$90,INDEX(Motor!$W$1:$W$1452,A152,1),INDEX(LinMotor!$U$1:$U$1305,A152,1)) -> 0.8573737847 | G152: =IF(A152<>2,IF(ABS(IF(Calc!$A$90,INDEX(Motor!$X$1:$X$1452,A152,1),INDEX(LinMotor!$V$1:$V$1305,A152,1)))<1000,IF(Calc!$A$90,INDEX(Motor!$X$1:$X$1452,A152,1),INDEX(LinMotor!$V$1:$V$1305,A152,1)),TEXT(IF(Calc!$A$90,INDEX(Motor!$X$1:$X$1452,A152,1),INDEX(LinMotor!$V$1:$V$1305,A152,1))/1000,"0.0k")),"") -> 24.80810034 | H152: =IF(A152<>2,IF(ABS(IF(move1,IF(Calc!$A$90,INDEX(Motor!$Y$1:$Y$1452,A152,1),INDEX(LinMotor!$W$1:$W$1305,A152,1)),IF(Calc!$A$90,INDEX(Motor!$Z$1:$Z$1452,A152,1),INDEX(LinMotor!$X$1:$X$1305,A152,1))))<1000,IF(move1,IF(Calc!$A$90,INDEX(Motor!$Y$1:$Y$1452,A152,1),INDEX(LinMotor!$W$1:$W$1305,A152,1)),IF(Calc!$A$90,INDEX(Motor!$Z$1:$Z$1452,A152,1),INDEX(LinMotor!$X$1:$X$1305,A152,1))),TEXT(IF(move1,IF(Calc!$A$90,INDEX(Motor!$Y$1:$Y$1452,A152,1),INDEX(LinMotor!$W$1:$W$1305,A152,1)),IF(Calc!$A$90,INDEX(Motor!$Z$1:$Z$1452,A152,1),INDEX(LinMotor!$X$1:$X$1305,A152,1)))/1000,"0.0k")),"") -> 0 | I152: =IF(A152<>2,IF(ABS(IF(move1,IF(Calc!$A$90,INDEX(Motor!$Z$1:$Z$1452,A152,1),INDEX(LinMotor!$X$1:$X$1305,A152,1)),IF(Calc!$A$90,INDEX(Motor!$AB$1:$AB$1452,A152,1),INDEX(LinMotor!$Z$1:$Z$1305,A152,1))))<1000,IF(move1,IF(Calc!$A$90,INDEX(Motor!$Z$1:$Z$1452,A152,1),INDEX(LinMotor!$X$1:$X$1305,A152,1)),IF(Calc!$A$90,INDEX(Motor!$AB$1:$AB$1452,A152,1),INDEX(LinMotor!$Z$1:$Z$1305,A152,1))),TEXT(IF(move1,IF(Calc!$A$90,INDEX(Motor!$Z$1:$Z$1452,A152,1),INDEX(LinMotor!$X$1:$X$1305,A152,1)),IF(Calc!$A$90,INDEX(Motor!$AB$1:$AB$1452,A152,1),INDEX(LinMotor!$Z$1:$Z$1305,A152,1)))/1000,"0.0k")),"") -> -20.09456128 | J152: =IF(A152<>2,IF(ABS(IF(move1,IF(Calc!$A$90,INDEX(Motor!$AA$1:$AA$1452,A152,1),INDEX(LinMotor!$Y$1:$Y$1305,A152,1)),IF(Calc!$A$90,INDEX(Motor!$AD$1:$AD$1452,A152,1),INDEX(LinMotor!$AB$1:$AB$1305,A152,1))))<1000,IF(move1,IF(Calc!$A$90,INDEX(Motor!$AA$1:$AA$1452,A152,1),INDEX(LinMotor!$Y$1:$Y$1305,A152,1)),IF(Calc!$A$90,INDEX(Motor!$AD$1:$AD$1452,A152,1),INDEX(LinMotor!$AB$1:$AB$1305,A152,1))),TEXT(IF(move1,IF(Calc!$A$90,INDEX(Motor!$AA$1:$AA$1452,A152,1),INDEX(LinMotor!$Y$1:$Y$1305,A152,1)),IF(Calc!$A$90,INDEX(Motor!$AD$1:$AD$1452,A152,1),INDEX(LinMotor!$AB$1:$AB$1305,A152,1)))/1000,"0.0k")),"") -> 0 | K152: =IF(Calc!$A$90,INDEX(Motor!$AF$1:$AF$1452,A152,1),INDEX(LinMotor!$AD$1:$AD$1305,A152,1)) -> 0.6665861296 | L152: =IF(Calc!$A$90,INDEX(Motor!$AG$1:$AG$1452,A152,1),INDEX(LinMotor!$AE$1:$AE$1305,A152,1)) -> 0.9482806643 | M152: =IF(Calc!$A$90,INDEX(Motor!$AH$1:$AH$1452,A152,1),INDEX(LinMotor!$AF$1:$AF$1305,A152,1)) -> 7.999033556 | N152: =IF(Calc!$A$90,INDEX(Motor!$AI$1:$AI$1452,A152,1),INDEX(LinMotor!$AG$1:$AG$1305,A152,1)) -> 22.75873594 | O152: =IF(A152<>2,IF(IF(Calc!$A$90,INDEX(Motor!$AK$1:$AK$1452,A152,1),INDEX(LinMotor!$AI$1:$AI$1305,A152,1))<1000,IF(Calc!$A$90,INDEX(Motor!$AK$1:$AK$1452,A152,1),INDEX(LinMotor!$AI$1:$AI$1305,A152,1)),TEXT(IF(Calc!$A$90,INDEX(Motor!$AK$1:$AK$1452,A152,1),INDEX(LinMotor!$AI$1:$AI$1305,A152,1))/1000,"0.0k")),"") -> 412.2818959 | P152: =IF(A152<>2,IF(IF(Calc!$A$90,INDEX(Motor!$AL$1:$AL$1452,A152,1),INDEX(LinMotor!$AJ$1:$AJ$1305,A152,1))<1000,IF(Calc!$A$90,INDEX(Motor!$AL$1:$AL$1452,A152,1),INDEX(LinMotor!$AJ$1:$AJ$1305,A152,1)),TEXT(IF(Calc!$A$90,INDEX(Motor!$AL$1:$AL$1452,A152,1),INDEX(LinMotor!$AJ$1:$AJ$1305,A152,1))/1000,"0.0k")),"") -> 334.2130774 | Q152: =IF(A152<>2,IF(IF(Calc!$A$90,INDEX(Motor!$AM$1:$AM$1452,A152,1),INDEX(LinMotor!$AK$1:$AK$1305,A152,1))<1000,IF(Calc!$A$90,INDEX(Motor!$AM$1:$AM$1452,A152,1),INDEX(LinMotor!$AK$1:$AK$1305,A152,1)),TEXT(IF(Calc!$A$90,INDEX(Motor!$AM$1:$AM$1452,A152,1),INDEX(LinMotor!$AK$1:$AK$1305,A152,1))/1000,"0.0k")),"") -> 3.2k
A153: 630 | B153: =IF(Calc!$A$90,INDEX(Motor!$B$1:$B$1452,A153,1),INDEX(LinMotor!$B$1:$B$1291,A153,1)) -> AKM2G-74R 480 V | C153: =IF(Calc!$A$90,INDEX(Motor!$T$1:$T$1452,A153,1),INDEX(LinMotor!$R$1:$R$1305,A153,1)) -> 0.2821670299 | D153: =IF(Calc!$A$90,INDEX(Motor!$U$1:$U$1452,A153,1),INDEX(LinMotor!$S$1:$S$1305,A153,1)) -> 0.2962182554 | E153: =IF(Calc!$A$90,INDEX(Motor!$V$1:$V$1452,A153,1),INDEX(LinMotor!$T$1:$T$1305,A153,1)) -> 0.3398857935 | F153: =IF(Calc!$A$90,INDEX(Motor!$W$1:$W$1452,A153,1),INDEX(LinMotor!$U$1:$U$1305,A153,1)) -> 1.618226291 | G153: =IF(A153<>2,IF(ABS(IF(Calc!$A$90,INDEX(Motor!$X$1:$X$1452,A153,1),INDEX(LinMotor!$V$1:$V$1305,A153,1)))<1000,IF(Calc!$A$90,INDEX(Motor!$X$1:$X$1452,A153,1),INDEX(LinMotor!$V$1:$V$1305,A153,1)),TEXT(IF(Calc!$A$90,INDEX(Motor!$X$1:$X$1452,A153,1),INDEX(LinMotor!$V$1:$V$1305,A153,1))/1000,"0.0k")),"") -> 55.36739369 | H153: =IF(A153<>2,IF(ABS(IF(move1,IF(Calc!$A$90,INDEX(Motor!$Y$1:$Y$1452,A153,1),INDEX(LinMotor!$W$1:$W$1305,A153,1)),IF(Calc!$A$90,INDEX(Motor!$Z$1:$Z$1452,A153,1),INDEX(LinMotor!$X$1:$X$1305,A153,1))))<1000,IF(move1,IF(Calc!$A$90,INDEX(Motor!$Y$1:$Y$1452,A153,1),INDEX(LinMotor!$W$1:$W$1305,A153,1)),IF(Calc!$A$90,INDEX(Motor!$Z$1:$Z$1452,A153,1),INDEX(LinMotor!$X$1:$X$1305,A153,1))),TEXT(IF(move1,IF(Calc!$A$90,INDEX(Motor!$Y$1:$Y$1452,A153,1),INDEX(LinMotor!$W$1:$W$1305,A153,1)),IF(Calc!$A$90,INDEX(Motor!$Z$1:$Z$1452,A153,1),INDEX(LinMotor!$X$1:$X$1305,A153,1)))/1000,"0.0k")),"") -> 0 | I153: =IF(A153<>2,IF(ABS(IF(move1,IF(Calc!$A$90,INDEX(Motor!$Z$1:$Z$1452,A153,1),INDEX(LinMotor!$X$1:$X$1305,A153,1)),IF(Calc!$A$90,INDEX(Motor!$AB$1:$AB$1452,A153,1),INDEX(LinMotor!$Z$1:$Z$1305,A153,1))))<1000,IF(move1,IF(Calc!$A$90,INDEX(Motor!$Z$1:$Z$1452,A153,1),INDEX(LinMotor!$X$1:$X$1305,A153,1)),IF(Calc!$A$90,INDEX(Motor!$AB$1:$AB$1452,A153,1),INDEX(LinMotor!$Z$1:$Z$1305,A153,1))),TEXT(IF(move1,IF(Calc!$A$90,INDEX(Motor!$Z$1:$Z$1452,A153,1),INDEX(LinMotor!$X$1:$X$1305,A153,1)),IF(Calc!$A$90,INDEX(Motor!$AB$1:$AB$1452,A153,1),INDEX(LinMotor!$Z$1:$Z$1305,A153,1)))/1000,"0.0k")),"") -> -44.84758889 | J153: =IF(A153<>2,IF(ABS(IF(move1,IF(Calc!$A$90,INDEX(Motor!$AA$1:$AA$1452,A153,1),INDEX(LinMotor!$Y$1:$Y$1305,A153,1)),IF(Calc!$A$90,INDEX(Motor!$AD$1:$AD$1452,A153,1),INDEX(LinMotor!$AB$1:$AB$1305,A153,1))))<1000,IF(move1,IF(Calc!$A$90,INDEX(Motor!$AA$1:$AA$1452,A153,1),INDEX(LinMotor!$Y$1:$Y$1305,A153,1)),IF(Calc!$A$90,INDEX(Motor!$AD$1:$AD$1452,A153,1),INDEX(LinMotor!$AB$1:$AB$1305,A153,1))),TEXT(IF(move1,IF(Calc!$A$90,INDEX(Motor!$AA$1:$AA$1452,A153,1),INDEX(LinMotor!$Y$1:$Y$1305,A153,1)),IF(Calc!$A$90,INDEX(Motor!$AD$1:$AD$1452,A153,1),INDEX(LinMotor!$AB$1:$AB$1305,A153,1)))/1000,"0.0k")),"") -> 0 | K153: =IF(Calc!$A$90,INDEX(Motor!$AF$1:$AF$1452,A153,1),INDEX(LinMotor!$AD$1:$AD$1305,A153,1)) -> 0.7391899074 | L153: =IF(Calc!$A$90,INDEX(Motor!$AG$1:$AG$1452,A153,1),INDEX(LinMotor!$AE$1:$AE$1305,A153,1)) -> 1.05156628 | M153: =IF(Calc!$A$90,INDEX(Motor!$AH$1:$AH$1452,A153,1),INDEX(LinMotor!$AF$1:$AF$1305,A153,1)) -> 8.870278889 | N153: =IF(Calc!$A$90,INDEX(Motor!$AI$1:$AI$1452,A153,1),INDEX(LinMotor!$AG$1:$AG$1305,A153,1)) -> 25.23759071 | O153: =IF(A153<>2,IF(IF(Calc!$A$90,INDEX(Motor!$AK$1:$AK$1452,A153,1),INDEX(LinMotor!$AI$1:$AI$1305,A153,1))<1000,IF(Calc!$A$90,INDEX(Motor!$AK$1:$AK$1452,A153,1),INDEX(LinMotor!$AI$1:$AI$1305,A153,1)),TEXT(IF(Calc!$A$90,INDEX(Motor!$AK$1:$AK$1452,A153,1),INDEX(LinMotor!$AI$1:$AI$1305,A153,1))/1000,"0.0k")),"") -> 920.1419586 | P153: =IF(A153<>2,IF(IF(Calc!$A$90,INDEX(Motor!$AL$1:$AL$1452,A153,1),INDEX(LinMotor!$AJ$1:$AJ$1305,A153,1))<1000,IF(Calc!$A$90,INDEX(Motor!$AL$1:$AL$1452,A153,1),INDEX(LinMotor!$AJ$1:$AJ$1305,A153,1)),TEXT(IF(Calc!$A$90,INDEX(Motor!$AL$1:$AL$1452,A153,1),INDEX(LinMotor!$AJ$1:$AJ$1305,A153,1))/1000,"0.0k")),"") -> 745.9058443 | Q153: =IF(A153<>2,IF(IF(Calc!$A$90,INDEX(Motor!$AM$1:$AM$1452,A153,1),INDEX(LinMotor!$AK$1:$AK$1305,A153,1))<1000,IF(Calc!$A$90,INDEX(Motor!$AM$1:$AM$1452,A153,1),INDEX(LinMotor!$AK$1:$AK$1305,A153,1)),TEXT(IF(Calc!$A$90,INDEX(Motor!$AM$1:$AM$1452,A153,1),INDEX(LinMotor!$AK$1:$AK$1305,A153,1))/1000,"0.0k")),"") -> 7.2k
A154: 544 | B154: =IF(Calc!$A$90,INDEX(Motor!$B$1:$B$1452,A154,1),INDEX(LinMotor!$B$1:$B$1291,A154,1)) -> AKM2G-53M 240 V | C154: =IF(Calc!$A$90,INDEX(Motor!$T$1:$T$1452,A154,1),INDEX(LinMotor!$R$1:$R$1305,A154,1)) -> 3.765060287 | D154: =IF(Calc!$A$90,INDEX(Motor!$U$1:$U$1452,A154,1),INDEX(LinMotor!$S$1:$S$1305,A154,1)) -> 0.3455057301 | E154: =IF(Calc!$A$90,INDEX(Motor!$V$1:$V$1452,A154,1),INDEX(LinMotor!$T$1:$T$1305,A154,1)) -> 0.3724876259 | F154: =IF(Calc!$A$90,INDEX(Motor!$W$1:$W$1452,A154,1),INDEX(LinMotor!$U$1:$U$1305,A154,1)) -> 0.867557289 | G154: =IF(A154<>2,IF(ABS(IF(Calc!$A$90,INDEX(Motor!$X$1:$X$1452,A154,1),INDEX(LinMotor!$V$1:$V$1305,A154,1)))<1000,IF(Calc!$A$90,INDEX(Motor!$X$1:$X$1452,A154,1),INDEX(LinMotor!$V$1:$V$1305,A154,1)),TEXT(IF(Calc!$A$90,INDEX(Motor!$X$1:$X$1452,A154,1),INDEX(LinMotor!$V$1:$V$1305,A154,1))/1000,"0.0k")),"") -> 15.42098828 | H154: =IF(A154<>2,IF(ABS(IF(move1,IF(Calc!$A$90,INDEX(Motor!$Y$1:$Y$1452,A154,1),INDEX(LinMotor!$W$1:$W$1305,A154,1)),IF(Calc!$A$90,INDEX(Motor!$Z$1:$Z$1452,A154,1),INDEX(LinMotor!$X$1:$X$1305,A154,1))))<1000,IF(move1,IF(Calc!$A$90,INDEX(Motor!$Y$1:$Y$1452,A154,1),INDEX(LinMotor!$W$1:$W$1305,A154,1)),IF(Calc!$A$90,INDEX(Motor!$Z$1:$Z$1452,A154,1),INDEX(LinMotor!$X$1:$X$1305,A154,1))),TEXT(IF(move1,IF(Calc!$A$90,INDEX(Motor!$Y$1:$Y$1452,A154,1),INDEX(LinMotor!$W$1:$W$1305,A154,1)),IF(Calc!$A$90,INDEX(Motor!$Z$1:$Z$1452,A154,1),INDEX(LinMotor!$X$1:$X$1305,A154,1)))/1000,"0.0k")),"") -> 0 | I154: =IF(A154<>2,IF(ABS(IF(move1,IF(Calc!$A$90,INDEX(Motor!$Z$1:$Z$1452,A154,1),INDEX(LinMotor!$X$1:$X$1305,A154,1)),IF(Calc!$A$90,INDEX(Motor!$AB$1:$AB$1452,A154,1),INDEX(LinMotor!$Z$1:$Z$1305,A154,1))))<1000,IF(move1,IF(Calc!$A$90,INDEX(Motor!$Z$1:$Z$1452,A154,1),INDEX(LinMotor!$X$1:$X$1305,A154,1)),IF(Calc!$A$90,INDEX(Motor!$AB$1:$AB$1452,A154,1),INDEX(LinMotor!$Z$1:$Z$1305,A154,1))),TEXT(IF(move1,IF(Calc!$A$90,INDEX(Motor!$Z$1:$Z$1452,A154,1),INDEX(LinMotor!$X$1:$X$1305,A154,1)),IF(Calc!$A$90,INDEX(Motor!$AB$1:$AB$1452,A154,1),INDEX(LinMotor!$Z$1:$Z$1305,A154,1)))/1000,"0.0k")),"") -> -12.49100051 | J154: =IF(A154<>2,IF(ABS(IF(move1,IF(Calc!$A$90,INDEX(Motor!$AA$1:$AA$1452,A154,1),INDEX(LinMotor!$Y$1:$Y$1305,A154,1)),IF(Calc!$A$90,INDEX(Motor!$AD$1:$AD$1452,A154,1),INDEX(LinMotor!$AB$1:$AB$1305,A154,1))))<1000,IF(move1,IF(Calc!$A$90,INDEX(Motor!$AA$1:$AA$1452,A154,1),INDEX(LinMotor!$Y$1:$Y$1305,A154,1)),IF(Calc!$A$90,INDEX(Motor!$AD$1:$AD$1452,A154,1),INDEX(LinMotor!$AB$1:$AB$1305,A154,1))),TEXT(IF(move1,IF(Calc!$A$90,INDEX(Motor!$AA$1:$AA$1452,A154,1),INDEX(LinMotor!$Y$1:$Y$1305,A154,1)),IF(Calc!$A$90,INDEX(Motor!$AD$1:$AD$1452,A154,1),INDEX(LinMotor!$AB$1:$AB$1305,A154,1)))/1000,"0.0k")),"") -> 0 | K154: =IF(Calc!$A$90,INDEX(Motor!$AF$1:$AF$1452,A154,1),INDEX(LinMotor!$AD$1:$AD$1305,A154,1)) -> 0.3983664862 | L154: =IF(Calc!$A$90,INDEX(Motor!$AG$1:$AG$1452,A154,1),INDEX(LinMotor!$AE$1:$AE$1305,A154,1)) -> 0.5667133164 | M154: =IF(Calc!$A$90,INDEX(Motor!$AH$1:$AH$1452,A154,1),INDEX(LinMotor!$AF$1:$AF$1305,A154,1)) -> 4.780397835 | N154: =IF(Calc!$A$90,INDEX(Motor!$AI$1:$AI$1452,A154,1),INDEX(LinMotor!$AG$1:$AG$1305,A154,1)) -> 13.60111959 | O154: =IF(A154<>2,IF(IF(Calc!$A$90,INDEX(Motor!$AK$1:$AK$1452,A154,1),INDEX(LinMotor!$AI$1:$AI$1305,A154,1))<1000,IF(Calc!$A$90,INDEX(Motor!$AK$1:$AK$1452,A154,1),INDEX(LinMotor!$AI$1:$AI$1305,A154,1)),TEXT(IF(Calc!$A$90,INDEX(Motor!$AK$1:$AK$1452,A154,1),INDEX(LinMotor!$AI$1:$AI$1305,A154,1))/1000,"0.0k")),"") -> 256.2789652 | P154: =IF(A154<>2,IF(IF(Calc!$A$90,INDEX(Motor!$AL$1:$AL$1452,A154,1),INDEX(LinMotor!$AJ$1:$AJ$1305,A154,1))<1000,IF(Calc!$A$90,INDEX(Motor!$AL$1:$AL$1452,A154,1),INDEX(LinMotor!$AJ$1:$AJ$1305,A154,1)),TEXT(IF(Calc!$A$90,INDEX(Motor!$AL$1:$AL$1452,A154,1),INDEX(LinMotor!$AJ$1:$AJ$1305,A154,1))/1000,"0.0k")),"") -> 207.7505282 | Q154: =IF(A154<>2,IF(IF(Calc!$A$90,INDEX(Motor!$AM$1:$AM$1452,A154,1),INDEX(LinMotor!$AK$1:$AK$1305,A154,1))<1000,IF(Calc!$A$90,INDEX(Motor!$AM$1:$AM$1452,A154,1),INDEX(LinMotor!$AK$1:$AK$1305,A154,1)),TEXT(IF(Calc!$A$90,INDEX(Motor!$AM$1:$AM$1452,A154,1),INDEX(LinMotor!$AK$1:$AK$1305,A154,1))/1000,"0.0k")),"") -> 2.0k
A155: 545 | B155: =IF(Calc!$A$90,INDEX(Motor!$B$1:$B$1452,A155,1),INDEX(LinMotor!$B$1:$B$1291,A155,1)) -> AKM2G-53M 400 V | C155: =IF(Calc!$A$90,INDEX(Motor!$T$1:$T$1452,A155,1),INDEX(LinMotor!$R$1:$R$1305,A155,1)) -> 3.765060287 | D155: =IF(Calc!$A$90,INDEX(Motor!$U$1:$U$1452,A155,1),INDEX(LinMotor!$S$1:$S$1305,A155,1)) -> 0.3496222713 | E155: =IF(Calc!$A$90,INDEX(Motor!$V$1:$V$1452,A155,1),INDEX(LinMotor!$T$1:$T$1305,A155,1)) -> 0.3724876259 | F155: =IF(Calc!$A$90,INDEX(Motor!$W$1:$W$1452,A155,1),INDEX(LinMotor!$U$1:$U$1305,A155,1)) -> 0.867557289 | G155: =IF(A155<>2,IF(ABS(IF(Calc!$A$90,INDEX(Motor!$X$1:$X$1452,A155,1),INDEX(LinMotor!$V$1:$V$1305,A155,1)))<1000,IF(Calc!$A$90,INDEX(Motor!$X$1:$X$1452,A155,1),INDEX(LinMotor!$V$1:$V$1305,A155,1)),TEXT(IF(Calc!$A$90,INDEX(Motor!$X$1:$X$1452,A155,1),INDEX(LinMotor!$V$1:$V$1305,A155,1))/1000,"0.0k")),"") -> 15.42098828 | H155: =IF(A155<>2,IF(ABS(IF(move1,IF(Calc!$A$90,INDEX(Motor!$Y$1:$Y$1452,A155,1),INDEX(LinMotor!$W$1:$W$1305,A155,1)),IF(Calc!$A$90,INDEX(Motor!$Z$1:$Z$1452,A155,1),INDEX(LinMotor!$X$1:$X$1305,A155,1))))<1000,IF(move1,IF(Calc!$A$90,INDEX(Motor!$Y$1:$Y$1452,A155,1),INDEX(LinMotor!$W$1:$W$1305,A155,1)),IF(Calc!$A$90,INDEX(Motor!$Z$1:$Z$1452,A155,1),INDEX(LinMotor!$X$1:$X$1305,A155,1))),TEXT(IF(move1,IF(Calc!$A$90,INDEX(Motor!$Y$1:$Y$1452,A155,1),INDEX(LinMotor!$W$1:$W$1305,A155,1)),IF(Calc!$A$90,INDEX(Motor!$Z$1:$Z$1452,A155,1),INDEX(LinMotor!$X$1:$X$1305,A155,1)))/1000,"0.0k")),"") -> 0 | I155: =IF(A155<>2,IF(ABS(IF(move1,IF(Calc!$A$90,INDEX(Motor!$Z$1:$Z$1452,A155,1),INDEX(LinMotor!$X$1:$X$1305,A155,1)),IF(Calc!$A$90,INDEX(Motor!$AB$1:$AB$1452,A155,1),INDEX(LinMotor!$Z$1:$Z$1305,A155,1))))<1000,IF(move1,IF(Calc!$A$90,INDEX(Motor!$Z$1:$Z$1452,A155,1),INDEX(LinMotor!$X$1:$X$1305,A155,1)),IF(Calc!$A$90,INDEX(Motor!$AB$1:$AB$1452,A155,1),INDEX(LinMotor!$Z$1:$Z$1305,A155,1))),TEXT(IF(move1,IF(Calc!$A$90,INDEX(Motor!$Z$1:$Z$1452,A155,1),INDEX(LinMotor!$X$1:$X$1305,A155,1)),IF(Calc!$A$90,INDEX(Motor!$AB$1:$AB$1452,A155,1),INDEX(LinMotor!$Z$1:$Z$1305,A155,1)))/1000,"0.0k")),"") -> -12.49100051 | J155: =IF(A155<>2,IF(ABS(IF(move1,IF(Calc!$A$90,INDEX(Motor!$AA$1:$AA$1452,A155,1),INDEX(LinMotor!$Y$1:$Y$1305,A155,1)),IF(Calc!$A$90,INDEX(Motor!$AD$1:$AD$1452,A155,1),INDEX(LinMotor!$AB$1:$AB$1305,A155,1))))<1000,IF(move1,IF(Calc!$A$90,INDEX(Motor!$AA$1:$AA$1452,A155,1),INDEX(LinMotor!$Y$1:$Y$1305,A155,1)),IF(Calc!$A$90,INDEX(Motor!$AD$1:$AD$1452,A155,1),INDEX(LinMotor!$AB$1:$AB$1305,A155,1))),TEXT(IF(move1,IF(Calc!$A$90,INDEX(Motor!$AA$1:$AA$1452,A155,1),INDEX(LinMotor!$Y$1:$Y$1305,A155,1)),IF(Calc!$A$90,INDEX(Motor!$AD$1:$AD$1452,A155,1),INDEX(LinMotor!$AB$1:$AB$1305,A155,1)))/1000,"0.0k")),"") -> 0 | K155: =IF(Calc!$A$90,INDEX(Motor!$AF$1:$AF$1452,A155,1),INDEX(LinMotor!$AD$1:$AD$1305,A155,1)) -> 0.3983664862 | L155: =IF(Calc!$A$90,INDEX(Motor!$AG$1:$AG$1452,A155,1),INDEX(LinMotor!$AE$1:$AE$1305,A155,1)) -> 0.5667133164 | M155: =IF(Calc!$A$90,INDEX(Motor!$AH$1:$AH$1452,A155,1),INDEX(LinMotor!$AF$1:$AF$1305,A155,1)) -> 4.780397835 | N155: =IF(Calc!$A$90,INDEX(Motor!$AI$1:$AI$1452,A155,1),INDEX(LinMotor!$AG$1:$AG$1305,A155,1)) -> 13.60111959 | O155: =IF(A155<>2,IF(IF(Calc!$A$90,INDEX(Motor!$AK$1:$AK$1452,A155,1),INDEX(LinMotor!$AI$1:$AI$1305,A155,1))<1000,IF(Calc!$A$90,INDEX(Motor!$AK$1:$AK$1452,A155,1),INDEX(LinMotor!$AI$1:$AI$1305,A155,1)),TEXT(IF(Calc!$A$90,INDEX(Motor!$AK$1:$AK$1452,A155,1),INDEX(LinMotor!$AI$1:$AI$1305,A155,1))/1000,"0.0k")),"") -> 256.2789652 | P155: =IF(A155<>2,IF(IF(Calc!$A$90,INDEX(Motor!$AL$1:$AL$1452,A155,1),INDEX(LinMotor!$AJ$1:$AJ$1305,A155,1))<1000,IF(Calc!$A$90,INDEX(Motor!$AL$1:$AL$1452,A155,1),INDEX(LinMotor!$AJ$1:$AJ$1305,A155,1)),TEXT(IF(Calc!$A$90,INDEX(Motor!$AL$1:$AL$1452,A155,1),INDEX(LinMotor!$AJ$1:$AJ$1305,A155,1))/1000,"0.0k")),"") -> 207.7505282 | Q155: =IF(A155<>2,IF(IF(Calc!$A$90,INDEX(Motor!$AM$1:$AM$1452,A155,1),INDEX(LinMotor!$AK$1:$AK$1305,A155,1))<1000,IF(Calc!$A$90,INDEX(Motor!$AM$1:$AM$1452,A155,1),INDEX(LinMotor!$AK$1:$AK$1305,A155,1)),TEXT(IF(Calc!$A$90,INDEX(Motor!$AM$1:$AM$1452,A155,1),INDEX(LinMotor!$AK$1:$AK$1305,A155,1))/1000,"0.0k")),"") -> 2.0k
A156: 550 | B156: =IF(Calc!$A$90,INDEX(Motor!$B$1:$B$1452,A156,1),INDEX(LinMotor!$B$1:$B$1291,A156,1)) -> AKM2G-54M 240 V | C156: =IF(Calc!$A$90,INDEX(Motor!$T$1:$T$1452,A156,1),INDEX(LinMotor!$R$1:$R$1305,A156,1)) -> 2.873563255 | D156: =IF(Calc!$A$90,INDEX(Motor!$U$1:$U$1452,A156,1),INDEX(LinMotor!$S$1:$S$1305,A156,1)) -> 0.296958096 | E156: =IF(Calc!$A$90,INDEX(Motor!$V$1:$V$1452,A156,1),INDEX(LinMotor!$T$1:$T$1305,A156,1)) -> 0.3002743949 | F156: =IF(Calc!$A$90,INDEX(Motor!$W$1:$W$1452,A156,1),INDEX(LinMotor!$U$1:$U$1305,A156,1)) -> 1.043478261 | G156: =IF(A156<>2,IF(ABS(IF(Calc!$A$90,INDEX(Motor!$X$1:$X$1452,A156,1),INDEX(LinMotor!$V$1:$V$1305,A156,1)))<1000,IF(Calc!$A$90,INDEX(Motor!$X$1:$X$1452,A156,1),INDEX(LinMotor!$V$1:$V$1305,A156,1)),TEXT(IF(Calc!$A$90,INDEX(Motor!$X$1:$X$1452,A156,1),INDEX(LinMotor!$V$1:$V$1305,A156,1))/1000,"0.0k")),"") -> 16.42500963 | H156: =IF(A156<>2,IF(ABS(IF(move1,IF(Calc!$A$90,INDEX(Motor!$Y$1:$Y$1452,A156,1),INDEX(LinMotor!$W$1:$W$1305,A156,1)),IF(Calc!$A$90,INDEX(Motor!$Z$1:$Z$1452,A156,1),INDEX(LinMotor!$X$1:$X$1305,A156,1))))<1000,IF(move1,IF(Calc!$A$90,INDEX(Motor!$Y$1:$Y$1452,A156,1),INDEX(LinMotor!$W$1:$W$1305,A156,1)),IF(Calc!$A$90,INDEX(Motor!$Z$1:$Z$1452,A156,1),INDEX(LinMotor!$X$1:$X$1305,A156,1))),TEXT(IF(move1,IF(Calc!$A$90,INDEX(Motor!$Y$1:$Y$1452,A156,1),INDEX(LinMotor!$W$1:$W$1305,A156,1)),IF(Calc!$A$90,INDEX(Motor!$Z$1:$Z$1452,A156,1),INDEX(LinMotor!$X$1:$X$1305,A156,1)))/1000,"0.0k")),"") -> 0 | I156: =IF(A156<>2,IF(ABS(IF(move1,IF(Calc!$A$90,INDEX(Motor!$Z$1:$Z$1452,A156,1),INDEX(LinMotor!$X$1:$X$1305,A156,1)),IF(Calc!$A$90,INDEX(Motor!$AB$1:$AB$1452,A156,1),INDEX(LinMotor!$Z$1:$Z$1305,A156,1))))<1000,IF(move1,IF(Calc!$A$90,INDEX(Motor!$Z$1:$Z$1452,A156,1),INDEX(LinMotor!$X$1:$X$1305,A156,1)),IF(Calc!$A$90,INDEX(Motor!$AB$1:$AB$1452,A156,1),INDEX(LinMotor!$Z$1:$Z$1305,A156,1))),TEXT(IF(move1,IF(Calc!$A$90,INDEX(Motor!$Z$1:$Z$1452,A156,1),INDEX(LinMotor!$X$1:$X$1305,A156,1)),IF(Calc!$A$90,INDEX(Motor!$AB$1:$AB$1452,A156,1),INDEX(LinMotor!$Z$1:$Z$1305,A156,1)))/1000,"0.0k")),"") -> -13.3042578 | J156: =IF(A156<>2,IF(ABS(IF(move1,IF(Calc!$A$90,INDEX(Motor!$AA$1:$AA$1452,A156,1),INDEX(LinMotor!$Y$1:$Y$1305,A156,1)),IF(Calc!$A$90,INDEX(Motor!$AD$1:$AD$1452,A156,1),INDEX(LinMotor!$AB$1:$AB$1305,A156,1))))<1000,IF(move1,IF(Calc!$A$90,INDEX(Motor!$AA$1:$AA$1452,A156,1),INDEX(LinMotor!$Y$1:$Y$1305,A156,1)),IF(Calc!$A$90,INDEX(Motor!$AD$1:$AD$1452,A156,1),INDEX(LinMotor!$AB$1:$AB$1305,A156,1))),TEXT(IF(move1,IF(Calc!$A$90,INDEX(Motor!$AA$1:$AA$1452,A156,1),INDEX(LinMotor!$Y$1:$Y$1305,A156,1)),IF(Calc!$A$90,INDEX(Motor!$AD$1:$AD$1452,A156,1),INDEX(LinMotor!$AB$1:$AB$1305,A156,1)))/1000,"0.0k")),"") -> 0 | K156: =IF(Calc!$A$90,INDEX(Motor!$AF$1:$AF$1452,A156,1),INDEX(LinMotor!$AD$1:$AD$1305,A156,1)) -> 0.3511855516 | L156: =IF(Calc!$A$90,INDEX(Motor!$AG$1:$AG$1452,A156,1),INDEX(LinMotor!$AE$1:$AE$1305,A156,1)) -> 0.499594056 | M156: =IF(Calc!$A$90,INDEX(Motor!$AH$1:$AH$1452,A156,1),INDEX(LinMotor!$AF$1:$AF$1305,A156,1)) -> 4.214226619 | N156: =IF(Calc!$A$90,INDEX(Motor!$AI$1:$AI$1452,A156,1),INDEX(LinMotor!$AG$1:$AG$1305,A156,1)) -> 11.99025734 | O156: =IF(A156<>2,IF(IF(Calc!$A$90,INDEX(Motor!$AK$1:$AK$1452,A156,1),INDEX(LinMotor!$AI$1:$AI$1305,A156,1))<1000,IF(Calc!$A$90,INDEX(Motor!$AK$1:$AK$1452,A156,1),INDEX(LinMotor!$AI$1:$AI$1305,A156,1)),TEXT(IF(Calc!$A$90,INDEX(Motor!$AK$1:$AK$1452,A156,1),INDEX(LinMotor!$AI$1:$AI$1305,A156,1))/1000,"0.0k")),"") -> 272.9646372 | P156: =IF(A156<>2,IF(IF(Calc!$A$90,INDEX(Motor!$AL$1:$AL$1452,A156,1),INDEX(LinMotor!$AJ$1:$AJ$1305,A156,1))<1000,IF(Calc!$A$90,INDEX(Motor!$AL$1:$AL$1452,A156,1),INDEX(LinMotor!$AJ$1:$AJ$1305,A156,1)),TEXT(IF(Calc!$A$90,INDEX(Motor!$AL$1:$AL$1452,A156,1),INDEX(LinMotor!$AJ$1:$AJ$1305,A156,1))/1000,"0.0k")),"") -> 221.276637 | Q156: =IF(A156<>2,IF(IF(Calc!$A$90,INDEX(Motor!$AM$1:$AM$1452,A156,1),INDEX(LinMotor!$AK$1:$AK$1305,A156,1))<1000,IF(Calc!$A$90,INDEX(Motor!$AM$1:$AM$1452,A156,1),INDEX(LinMotor!$AK$1:$AK$1305,A156,1)),TEXT(IF(Calc!$A$90,INDEX(Motor!$AM$1:$AM$1452,A156,1),INDEX(LinMotor!$AK$1:$AK$1305,A156,1))/1000,"0.0k")),"") -> 2.1k
A157: 551 | B157: =IF(Calc!$A$90,INDEX(Motor!$B$1:$B$1452,A157,1),INDEX(LinMotor!$B$1:$B$1291,A157,1)) -> AKM2G-54M 400 V | C157: =IF(Calc!$A$90,INDEX(Motor!$T$1:$T$1452,A157,1),INDEX(LinMotor!$R$1:$R$1305,A157,1)) -> 2.873563255 | D157: =IF(Calc!$A$90,INDEX(Motor!$U$1:$U$1452,A157,1),INDEX(LinMotor!$S$1:$S$1305,A157,1)) -> 0.3009654451 | E157: =IF(Calc!$A$90,INDEX(Motor!$V$1:$V$1452,A157,1),INDEX(LinMotor!$T$1:$T$1305,A157,1)) -> 0.3002743949 | F157: =IF(Calc!$A$90,INDEX(Motor!$W$1:$W$1452,A157,1),INDEX(LinMotor!$U$1:$U$1305,A157,1)) -> 1.032952094 | G157: =IF(A157<>2,IF(ABS(IF(Calc!$A$90,INDEX(Motor!$X$1:$X$1452,A157,1),INDEX(LinMotor!$V$1:$V$1305,A157,1)))<1000,IF(Calc!$A$90,INDEX(Motor!$X$1:$X$1452,A157,1),INDEX(LinMotor!$V$1:$V$1305,A157,1)),TEXT(IF(Calc!$A$90,INDEX(Motor!$X$1:$X$1452,A157,1),INDEX(LinMotor!$V$1:$V$1305,A157,1))/1000,"0.0k")),"") -> 16.42500963 | H157: =IF(A157<>2,IF(ABS(IF(move1,IF(Calc!$A$90,INDEX(Motor!$Y$1:$Y$1452,A157,1),INDEX(LinMotor!$W$1:$W$1305,A157,1)),IF(Calc!$A$90,INDEX(Motor!$Z$1:$Z$1452,A157,1),INDEX(LinMotor!$X$1:$X$1305,A157,1))))<1000,IF(move1,IF(Calc!$A$90,INDEX(Motor!$Y$1:$Y$1452,A157,1),INDEX(LinMotor!$W$1:$W$1305,A157,1)),IF(Calc!$A$90,INDEX(Motor!$Z$1:$Z$1452,A157,1),INDEX(LinMotor!$X$1:$X$1305,A157,1))),TEXT(IF(move1,IF(Calc!$A$90,INDEX(Motor!$Y$1:$Y$1452,A157,1),INDEX(LinMotor!$W$1:$W$1305,A157,1)),IF(Calc!$A$90,INDEX(Motor!$Z$1:$Z$1452,A157,1),INDEX(LinMotor!$X$1:$X$1305,A157,1)))/1000,"0.0k")),"") -> 0 | I157: =IF(A157<>2,IF(ABS(IF(move1,IF(Calc!$A$90,INDEX(Motor!$Z$1:$Z$1452,A157,1),INDEX(LinMotor!$X$1:$X$1305,A157,1)),IF(Calc!$A$90,INDEX(Motor!$AB$1:$AB$1452,A157,1),INDEX(LinMotor!$Z$1:$Z$1305,A157,1))))<1000,IF(move1,IF(Calc!$A$90,INDEX(Motor!$Z$1:$Z$1452,A157,1),INDEX(LinMotor!$X$1:$X$1305,A157,1)),IF(Calc!$A$90,INDEX(Motor!$AB$1:$AB$1452,A157,1),INDEX(LinMotor!$Z$1:$Z$1305,A157,1))),TEXT(IF(move1,IF(Calc!$A$90,INDEX(Motor!$Z$1:$Z$1452,A157,1),INDEX(LinMotor!$X$1:$X$1305,A157,1)),IF(Calc!$A$90,INDEX(Motor!$AB$1:$AB$1452,A157,1),INDEX(LinMotor!$Z$1:$Z$1305,A157,1)))/1000,"0.0k")),"") -> -13.3042578 | J157: =IF(A157<>2,IF(ABS(IF(move1,IF(Calc!$A$90,INDEX(Motor!$AA$1:$AA$1452,A157,1),INDEX(LinMotor!$Y$1:$Y$1305,A157,1)),IF(Calc!$A$90,INDEX(Motor!$AD$1:$AD$1452,A157,1),INDEX(LinMotor!$AB$1:$AB$1305,A157,1))))<1000,IF(move1,IF(Calc!$A$90,INDEX(Motor!$AA$1:$AA$1452,A157,1),INDEX(LinMotor!$Y$1:$Y$1305,A157,1)),IF(Calc!$A$90,INDEX(Motor!$AD$1:$AD$1452,A157,1),INDEX(LinMotor!$AB$1:$AB$1305,A157,1))),TEXT(IF(move1,IF(Calc!$A$90,INDEX(Motor!$AA$1:$AA$1452,A157,1),INDEX(LinMotor!$Y$1:$Y$1305,A157,1)),IF(Calc!$A$90,INDEX(Motor!$AD$1:$AD$1452,A157,1),INDEX(LinMotor!$AB$1:$AB$1305,A157,1)))/1000,"0.0k")),"") -> 0 | K157: =IF(Calc!$A$90,INDEX(Motor!$AF$1:$AF$1452,A157,1),INDEX(LinMotor!$AD$1:$AD$1305,A157,1)) -> 0.3511855516 | L157: =IF(Calc!$A$90,INDEX(Motor!$AG$1:$AG$1452,A157,1),INDEX(LinMotor!$AE$1:$AE$1305,A157,1)) -> 0.499594056 | M157: =IF(Calc!$A$90,INDEX(Motor!$AH$1:$AH$1452,A157,1),INDEX(LinMotor!$AF$1:$AF$1305,A157,1)) -> 4.214226619 | N157: =IF(Calc!$A$90,INDEX(Motor!$AI$1:$AI$1452,A157,1),INDEX(LinMotor!$AG$1:$AG$1305,A157,1)) -> 11.99025734 | O157: =IF(A157<>2,IF(IF(Calc!$A$90,INDEX(Motor!$AK$1:$AK$1452,A157,1),INDEX(LinMotor!$AI$1:$AI$1305,A157,1))<1000,IF(Calc!$A$90,INDEX(Motor!$AK$1:$AK$1452,A157,1),INDEX(LinMotor!$AI$1:$AI$1305,A157,1)),TEXT(IF(Calc!$A$90,INDEX(Motor!$AK$1:$AK$1452,A157,1),INDEX(LinMotor!$AI$1:$AI$1305,A157,1))/1000,"0.0k")),"") -> 272.9646372 | P157: =IF(A157<>2,IF(IF(Calc!$A$90,INDEX(Motor!$AL$1:$AL$1452,A157,1),INDEX(LinMotor!$AJ$1:$AJ$1305,A157,1))<1000,IF(Calc!$A$90,INDEX(Motor!$AL$1:$AL$1452,A157,1),INDEX(LinMotor!$AJ$1:$AJ$1305,A157,1)),TEXT(IF(Calc!$A$90,INDEX(Motor!$AL$1:$AL$1452,A157,1),INDEX(LinMotor!$AJ$1:$AJ$1305,A157,1))/1000,"0.0k")),"") -> 221.276637 | Q157: =IF(A157<>2,IF(IF(Calc!$A$90,INDEX(Motor!$AM$1:$AM$1452,A157,1),INDEX(LinMotor!$AK$1:$AK$1305,A157,1))<1000,IF(Calc!$A$90,INDEX(Motor!$AM$1:$AM$1452,A157,1),INDEX(LinMotor!$AK$1:$AK$1305,A157,1)),TEXT(IF(Calc!$A$90,INDEX(Motor!$AM$1:$AM$1452,A157,1),INDEX(LinMotor!$AK$1:$AK$1305,A157,1))/1000,"0.0k")),"") -> 2.1k
A158: 552 | B158: =IF(Calc!$A$90,INDEX(Motor!$B$1:$B$1452,A158,1),INDEX(LinMotor!$B$1:$B$1291,A158,1)) -> AKM2G-54M 480 V | C158: =IF(Calc!$A$90,INDEX(Motor!$T$1:$T$1452,A158,1),INDEX(LinMotor!$R$1:$R$1305,A158,1)) -> 2.873563255 | D158: =IF(Calc!$A$90,INDEX(Motor!$U$1:$U$1452,A158,1),INDEX(LinMotor!$S$1:$S$1305,A158,1)) -> 0.3032091148 | E158: =IF(Calc!$A$90,INDEX(Motor!$V$1:$V$1452,A158,1),INDEX(LinMotor!$T$1:$T$1305,A158,1)) -> 0.3002743949 | F158: =IF(Calc!$A$90,INDEX(Motor!$W$1:$W$1452,A158,1),INDEX(LinMotor!$U$1:$U$1305,A158,1)) -> 1.032952094 | G158: =IF(A158<>2,IF(ABS(IF(Calc!$A$90,INDEX(Motor!$X$1:$X$1452,A158,1),INDEX(LinMotor!$V$1:$V$1305,A158,1)))<1000,IF(Calc!$A$90,INDEX(Motor!$X$1:$X$1452,A158,1),INDEX(LinMotor!$V$1:$V$1305,A158,1)),TEXT(IF(Calc!$A$90,INDEX(Motor!$X$1:$X$1452,A158,1),INDEX(LinMotor!$V$1:$V$1305,A158,1))/1000,"0.0k")),"") -> 16.42500963 | H158: =IF(A158<>2,IF(ABS(IF(move1,IF(Calc!$A$90,INDEX(Motor!$Y$1:$Y$1452,A158,1),INDEX(LinMotor!$W$1:$W$1305,A158,1)),IF(Calc!$A$90,INDEX(Motor!$Z$1:$Z$1452,A158,1),INDEX(LinMotor!$X$1:$X$1305,A158,1))))<1000,IF(move1,IF(Calc!$A$90,INDEX(Motor!$Y$1:$Y$1452,A158,1),INDEX(LinMotor!$W$1:$W$1305,A158,1)),IF(Calc!$A$90,INDEX(Motor!$Z$1:$Z$1452,A158,1),INDEX(LinMotor!$X$1:$X$1305,A158,1))),TEXT(IF(move1,IF(Calc!$A$90,INDEX(Motor!$Y$1:$Y$1452,A158,1),INDEX(LinMotor!$W$1:$W$1305,A158,1)),IF(Calc!$A$90,INDEX(Motor!$Z$1:$Z$1452,A158,1),INDEX(LinMotor!$X$1:$X$1305,A158,1)))/1000,"0.0k")),"") -> 0 | I158: =IF(A158<>2,IF(ABS(IF(move1,IF(Calc!$A$90,INDEX(Motor!$Z$1:$Z$1452,A158,1),INDEX(LinMotor!$X$1:$X$1305,A158,1)),IF(Calc!$A$90,INDEX(Motor!$AB$1:$AB$1452,A158,1),INDEX(LinMotor!$Z$1:$Z$1305,A158,1))))<1000,IF(move1,IF(Calc!$A$90,INDEX(Motor!$Z$1:$Z$1452,A158,1),INDEX(LinMotor!$X$1:$X$1305,A158,1)),IF(Calc!$A$90,INDEX(Motor!$AB$1:$AB$1452,A158,1),INDEX(LinMotor!$Z$1:$Z$1305,A158,1))),TEXT(IF(move1,IF(Calc!$A$90,INDEX(Motor!$Z$1:$Z$1452,A158,1),INDEX(LinMotor!$X$1:$X$1305,A158,1)),IF(Calc!$A$90,INDEX(Motor!$AB$1:$AB$1452,A158,1),INDEX(LinMotor!$Z$1:$Z$1305,A158,1)))/1000,"0.0k")),"") -> -13.3042578 | J158: =IF(A158<>2,IF(ABS(IF(move1,IF(Calc!$A$90,INDEX(Motor!$AA$1:$AA$1452,A158,1),INDEX(LinMotor!$Y$1:$Y$1305,A158,1)),IF(Calc!$A$90,INDEX(Motor!$AD$1:$AD$1452,A158,1),INDEX(LinMotor!$AB$1:$AB$1305,A158,1))))<1000,IF(move1,IF(Calc!$A$90,INDEX(Motor!$AA$1:$AA$1452,A158,1),INDEX(LinMotor!$Y$1:$Y$1305,A158,1)),IF(Calc!$A$90,INDEX(Motor!$AD$1:$AD$1452,A158,1),INDEX(LinMotor!$AB$1:$AB$1305,A158,1))),TEXT(IF(move1,IF(Calc!$A$90,INDEX(Motor!$AA$1:$AA$1452,A158,1),INDEX(LinMotor!$Y$1:$Y$1305,A158,1)),IF(Calc!$A$90,INDEX(Motor!$AD$1:$AD$1452,A158,1),INDEX(LinMotor!$AB$1:$AB$1305,A158,1)))/1000,"0.0k")),"") -> 0 | K158: =IF(Calc!$A$90,INDEX(Motor!$AF$1:$AF$1452,A158,1),INDEX(LinMotor!$AD$1:$AD$1305,A158,1)) -> 0.3511855516 | L158: =IF(Calc!$A$90,INDEX(Motor!$AG$1:$AG$1452,A158,1),INDEX(LinMotor!$AE$1:$AE$1305,A158,1)) -> 0.499594056 | M158: =IF(Calc!$A$90,INDEX(Motor!$AH$1:$AH$1452,A158,1),INDEX(LinMotor!$AF$1:$AF$1305,A158,1)) -> 4.214226619 | N158: =IF(Calc!$A$90,INDEX(Motor!$AI$1:$AI$1452,A158,1),INDEX(LinMotor!$AG$1:$AG$1305,A158,1)) -> 11.99025734 | O158: =IF(A158<>2,IF(IF(Calc!$A$90,INDEX(Motor!$AK$1:$AK$1452,A158,1),INDEX(LinMotor!$AI$1:$AI$1305,A158,1))<1000,IF(Calc!$A$90,INDEX(Motor!$AK$1:$AK$1452,A158,1),INDEX(LinMotor!$AI$1:$AI$1305,A158,1)),TEXT(IF(Calc!$A$90,INDEX(Motor!$AK$1:$AK$1452,A158,1),INDEX(LinMotor!$AI$1:$AI$1305,A158,1))/1000,"0.0k")),"") -> 272.9646372 | P158: =IF(A158<>2,IF(IF(Calc!$A$90,INDEX(Motor!$AL$1:$AL$1452,A158,1),INDEX(LinMotor!$AJ$1:$AJ$1305,A158,1))<1000,IF(Calc!$A$90,INDEX(Motor!$AL$1:$AL$1452,A158,1),INDEX(LinMotor!$AJ$1:$AJ$1305,A158,1)),TEXT(IF(Calc!$A$90,INDEX(Motor!$AL$1:$AL$1452,A158,1),INDEX(LinMotor!$AJ$1:$AJ$1305,A158,1))/1000,"0.0k")),"") -> 221.276637 | Q158: =IF(A158<>2,IF(IF(Calc!$A$90,INDEX(Motor!$AM$1:$AM$1452,A158,1),INDEX(LinMotor!$AK$1:$AK$1305,A158,1))<1000,IF(Calc!$A$90,INDEX(Motor!$AM$1:$AM$1452,A158,1),INDEX(LinMotor!$AK$1:$AK$1305,A158,1)),TEXT(IF(Calc!$A$90,INDEX(Motor!$AM$1:$AM$1452,A158,1),INDEX(LinMotor!$AK$1:$AK$1305,A158,1))/1000,"0.0k")),"") -> 2.1k
A159: 554 | B159: =IF(Calc!$A$90,INDEX(Motor!$B$1:$B$1452,A159,1),INDEX(LinMotor!$B$1:$B$1291,A159,1)) -> AKM2G-54N 240 V | C159: =IF(Calc!$A$90,INDEX(Motor!$T$1:$T$1452,A159,1),INDEX(LinMotor!$R$1:$R$1305,A159,1)) -> 2.873563255 | D159: =IF(Calc!$A$90,INDEX(Motor!$U$1:$U$1452,A159,1),INDEX(LinMotor!$S$1:$S$1305,A159,1)) -> 0.2977145976 | E159: =IF(Calc!$A$90,INDEX(Motor!$V$1:$V$1452,A159,1),INDEX(LinMotor!$T$1:$T$1305,A159,1)) -> 0.3002743949 | F159: =IF(Calc!$A$90,INDEX(Motor!$W$1:$W$1452,A159,1),INDEX(LinMotor!$U$1:$U$1305,A159,1)) -> 0.9270969017 | G159: =IF(A159<>2,IF(ABS(IF(Calc!$A$90,INDEX(Motor!$X$1:$X$1452,A159,1),INDEX(LinMotor!$V$1:$V$1305,A159,1)))<1000,IF(Calc!$A$90,INDEX(Motor!$X$1:$X$1452,A159,1),INDEX(LinMotor!$V$1:$V$1305,A159,1)),TEXT(IF(Calc!$A$90,INDEX(Motor!$X$1:$X$1452,A159,1),INDEX(LinMotor!$V$1:$V$1305,A159,1))/1000,"0.0k")),"") -> 16.42500963 | H159: =IF(A159<>2,IF(ABS(IF(move1,IF(Calc!$A$90,INDEX(Motor!$Y$1:$Y$1452,A159,1),INDEX(LinMotor!$W$1:$W$1305,A159,1)),IF(Calc!$A$90,INDEX(Motor!$Z$1:$Z$1452,A159,1),INDEX(LinMotor!$X$1:$X$1305,A159,1))))<1000,IF(move1,IF(Calc!$A$90,INDEX(Motor!$Y$1:$Y$1452,A159,1),INDEX(LinMotor!$W$1:$W$1305,A159,1)),IF(Calc!$A$90,INDEX(Motor!$Z$1:$Z$1452,A159,1),INDEX(LinMotor!$X$1:$X$1305,A159,1))),TEXT(IF(move1,IF(Calc!$A$90,INDEX(Motor!$Y$1:$Y$1452,A159,1),INDEX(LinMotor!$W$1:$W$1305,A159,1)),IF(Calc!$A$90,INDEX(Motor!$Z$1:$Z$1452,A159,1),INDEX(LinMotor!$X$1:$X$1305,A159,1)))/1000,"0.0k")),"") -> 0 | I159: =IF(A159<>2,IF(ABS(IF(move1,IF(Calc!$A$90,INDEX(Motor!$Z$1:$Z$1452,A159,1),INDEX(LinMotor!$X$1:$X$1305,A159,1)),IF(Calc!$A$90,INDEX(Motor!$AB$1:$AB$1452,A159,1),INDEX(LinMotor!$Z$1:$Z$1305,A159,1))))<1000,IF(move1,IF(Calc!$A$90,INDEX(Motor!$Z$1:$Z$1452,A159,1),INDEX(LinMotor!$X$1:$X$1305,A159,1)),IF(Calc!$A$90,INDEX(Motor!$AB$1:$AB$1452,A159,1),INDEX(LinMotor!$Z$1:$Z$1305,A159,1))),TEXT(IF(move1,IF(Calc!$A$90,INDEX(Motor!$Z$1:$Z$1452,A159,1),INDEX(LinMotor!$X$1:$X$1305,A159,1)),IF(Calc!$A$90,INDEX(Motor!$AB$1:$AB$1452,A159,1),INDEX(LinMotor!$Z$1:$Z$1305,A159,1)))/1000,"0.0k")),"") -> -13.3042578 | J159: =IF(A159<>2,IF(ABS(IF(move1,IF(Calc!$A$90,INDEX(Motor!$AA$1:$AA$1452,A159,1),INDEX(LinMotor!$Y$1:$Y$1305,A159,1)),IF(Calc!$A$90,INDEX(Motor!$AD$1:$AD$1452,A159,1),INDEX(LinMotor!$AB$1:$AB$1305,A159,1))))<1000,IF(move1,IF(Calc!$A$90,INDEX(Motor!$AA$1:$AA$1452,A159,1),INDEX(LinMotor!$Y$1:$Y$1305,A159,1)),IF(Calc!$A$90,INDEX(Motor!$AD$1:$AD$1452,A159,1),INDEX(LinMotor!$AB$1:$AB$1305,A159,1))),TEXT(IF(move1,IF(Calc!$A$90,INDEX(Motor!$AA$1:$AA$1452,A159,1),INDEX(LinMotor!$Y$1:$Y$1305,A159,1)),IF(Calc!$A$90,INDEX(Motor!$AD$1:$AD$1452,A159,1),INDEX(LinMotor!$AB$1:$AB$1305,A159,1)))/1000,"0.0k")),"") -> 0 | K159: =IF(Calc!$A$90,INDEX(Motor!$AF$1:$AF$1452,A159,1),INDEX(LinMotor!$AD$1:$AD$1305,A159,1)) -> 0.3920769913 | L159: =IF(Calc!$A$90,INDEX(Motor!$AG$1:$AG$1452,A159,1),INDEX(LinMotor!$AE$1:$AE$1305,A159,1)) -> 0.5577659259 | M159: =IF(Calc!$A$90,INDEX(Motor!$AH$1:$AH$1452,A159,1),INDEX(LinMotor!$AF$1:$AF$1305,A159,1)) -> 4.704923896 | N159: =IF(Calc!$A$90,INDEX(Motor!$AI$1:$AI$1452,A159,1),INDEX(LinMotor!$AG$1:$AG$1305,A159,1)) -> 13.38638222 | O159: =IF(A159<>2,IF(IF(Calc!$A$90,INDEX(Motor!$AK$1:$AK$1452,A159,1),INDEX(LinMotor!$AI$1:$AI$1305,A159,1))<1000,IF(Calc!$A$90,INDEX(Motor!$AK$1:$AK$1452,A159,1),INDEX(LinMotor!$AI$1:$AI$1305,A159,1)),TEXT(IF(Calc!$A$90,INDEX(Motor!$AK$1:$AK$1452,A159,1),INDEX(LinMotor!$AI$1:$AI$1305,A159,1))/1000,"0.0k")),"") -> 272.9646372 | P159: =IF(A159<>2,IF(IF(Calc!$A$90,INDEX(Motor!$AL$1:$AL$1452,A159,1),INDEX(LinMotor!$AJ$1:$AJ$1305,A159,1))<1000,IF(Calc!$A$90,INDEX(Motor!$AL$1:$AL$1452,A159,1),INDEX(LinMotor!$AJ$1:$AJ$1305,A159,1)),TEXT(IF(Calc!$A$90,INDEX(Motor!$AL$1:$AL$1452,A159,1),INDEX(LinMotor!$AJ$1:$AJ$1305,A159,1))/1000,"0.0k")),"") -> 221.276637 | Q159: =IF(A159<>2,IF(IF(Calc!$A$90,INDEX(Motor!$AM$1:$AM$1452,A159,1),INDEX(LinMotor!$AK$1:$AK$1305,A159,1))<1000,IF(Calc!$A$90,INDEX(Motor!$AM$1:$AM$1452,A159,1),INDEX(LinMotor!$AK$1:$AK$1305,A159,1)),TEXT(IF(Calc!$A$90,INDEX(Motor!$AM$1:$AM$1452,A159,1),INDEX(LinMotor!$AK$1:$AK$1305,A159,1))/1000,"0.0k")),"") -> 2.1k
A160: 555 | B160: =IF(Calc!$A$90,INDEX(Motor!$B$1:$B$1452,A160,1),INDEX(LinMotor!$B$1:$B$1291,A160,1)) -> AKM2G-54N 400 V | C160: =IF(Calc!$A$90,INDEX(Motor!$T$1:$T$1452,A160,1),INDEX(LinMotor!$R$1:$R$1305,A160,1)) -> 2.873563255 | D160: =IF(Calc!$A$90,INDEX(Motor!$U$1:$U$1452,A160,1),INDEX(LinMotor!$S$1:$S$1305,A160,1)) -> 0.3022396444 | E160: =IF(Calc!$A$90,INDEX(Motor!$V$1:$V$1452,A160,1),INDEX(LinMotor!$T$1:$T$1305,A160,1)) -> 0.3002743949 | F160: =IF(Calc!$A$90,INDEX(Motor!$W$1:$W$1452,A160,1),INDEX(LinMotor!$U$1:$U$1305,A160,1)) -> 0.9270969017 | G160: =IF(A160<>2,IF(ABS(IF(Calc!$A$90,INDEX(Motor!$X$1:$X$1452,A160,1),INDEX(LinMotor!$V$1:$V$1305,A160,1)))<1000,IF(Calc!$A$90,INDEX(Motor!$X$1:$X$1452,A160,1),INDEX(LinMotor!$V$1:$V$1305,A160,1)),TEXT(IF(Calc!$A$90,INDEX(Motor!$X$1:$X$1452,A160,1),INDEX(LinMotor!$V$1:$V$1305,A160,1))/1000,"0.0k")),"") -> 16.42500963 | H160: =IF(A160<>2,IF(ABS(IF(move1,IF(Calc!$A$90,INDEX(Motor!$Y$1:$Y$1452,A160,1),INDEX(LinMotor!$W$1:$W$1305,A160,1)),IF(Calc!$A$90,INDEX(Motor!$Z$1:$Z$1452,A160,1),INDEX(LinMotor!$X$1:$X$1305,A160,1))))<1000,IF(move1,IF(Calc!$A$90,INDEX(Motor!$Y$1:$Y$1452,A160,1),INDEX(LinMotor!$W$1:$W$1305,A160,1)),IF(Calc!$A$90,INDEX(Motor!$Z$1:$Z$1452,A160,1),INDEX(LinMotor!$X$1:$X$1305,A160,1))),TEXT(IF(move1,IF(Calc!$A$90,INDEX(Motor!$Y$1:$Y$1452,A160,1),INDEX(LinMotor!$W$1:$W$1305,A160,1)),IF(Calc!$A$90,INDEX(Motor!$Z$1:$Z$1452,A160,1),INDEX(LinMotor!$X$1:$X$1305,A160,1)))/1000,"0.0k")),"") -> 0 | I160: =IF(A160<>2,IF(ABS(IF(move1,IF(Calc!$A$90,INDEX(Motor!$Z$1:$Z$1452,A160,1),INDEX(LinMotor!$X$1:$X$1305,A160,1)),IF(Calc!$A$90,INDEX(Motor!$AB$1:$AB$1452,A160,1),INDEX(LinMotor!$Z$1:$Z$1305,A160,1))))<1000,IF(move1,IF(Calc!$A$90,INDEX(Motor!$Z$1:$Z$1452,A160,1),INDEX(LinMotor!$X$1:$X$1305,A160,1)),IF(Calc!$A$90,INDEX(Motor!$AB$1:$AB$1452,A160,1),INDEX(LinMotor!$Z$1:$Z$1305,A160,1))),TEXT(IF(move1,IF(Calc!$A$90,INDEX(Motor!$Z$1:$Z$1452,A160,1),INDEX(LinMotor!$X$1:$X$1305,A160,1)),IF(Calc!$A$90,INDEX(Motor!$AB$1:$AB$1452,A160,1),INDEX(LinMotor!$Z$1:$Z$1305,A160,1)))/1000,"0.0k")),"") -> -13.3042578 | J160: =IF(A160<>2,IF(ABS(IF(move1,IF(Calc!$A$90,INDEX(Motor!$AA$1:$AA$1452,A160,1),INDEX(LinMotor!$Y$1:$Y$1305,A160,1)),IF(Calc!$A$90,INDEX(Motor!$AD$1:$AD$1452,A160,1),INDEX(LinMotor!$AB$1:$AB$1305,A160,1))))<1000,IF(move1,IF(Calc!$A$90,INDEX(Motor!$AA$1:$AA$1452,A160,1),INDEX(LinMotor!$Y$1:$Y$1305,A160,1)),IF(Calc!$A$90,INDEX(Motor!$AD$1:$AD$1452,A160,1),INDEX(LinMotor!$AB$1:$AB$1305,A160,1))),TEXT(IF(move1,IF(Calc!$A$90,INDEX(Motor!$AA$1:$AA$1452,A160,1),INDEX(LinMotor!$Y$1:$Y$1305,A160,1)),IF(Calc!$A$90,INDEX(Motor!$AD$1:$AD$1452,A160,1),INDEX(LinMotor!$AB$1:$AB$1305,A160,1)))/1000,"0.0k")),"") -> 0 | K160: =IF(Calc!$A$90,INDEX(Motor!$AF$1:$AF$1452,A160,1),INDEX(LinMotor!$AD$1:$AD$1305,A160,1)) -> 0.3920769913 | L160: =IF(Calc!$A$90,INDEX(Motor!$AG$1:$AG$1452,A160,1),INDEX(LinMotor!$AE$1:$AE$1305,A160,1)) -> 0.5577659259 | M160: =IF(Calc!$A$90,INDEX(Motor!$AH$1:$AH$1452,A160,1),INDEX(LinMotor!$AF$1:$AF$1305,A160,1)) -> 4.704923896 | N160: =IF(Calc!$A$90,INDEX(Motor!$AI$1:$AI$1452,A160,1),INDEX(LinMotor!$AG$1:$AG$1305,A160,1)) -> 13.38638222 | O160: =IF(A160<>2,IF(IF(Calc!$A$90,INDEX(Motor!$AK$1:$AK$1452,A160,1),INDEX(LinMotor!$AI$1:$AI$1305,A160,1))<1000,IF(Calc!$A$90,INDEX(Motor!$AK$1:$AK$1452,A160,1),INDEX(LinMotor!$AI$1:$AI$1305,A160,1)),TEXT(IF(Calc!$A$90,INDEX(Motor!$AK$1:$AK$1452,A160,1),INDEX(LinMotor!$AI$1:$AI$1305,A160,1))/1000,"0.0k")),"") -> 272.9646372 | P160: =IF(A160<>2,IF(IF(Calc!$A$90,INDEX(Motor!$AL$1:$AL$1452,A160,1),INDEX(LinMotor!$AJ$1:$AJ$1305,A160,1))<1000,IF(Calc!$A$90,INDEX(Motor!$AL$1:$AL$1452,A160,1),INDEX(LinMotor!$AJ$1:$AJ$1305,A160,1)),TEXT(IF(Calc!$A$90,INDEX(Motor!$AL$1:$AL$1452,A160,1),INDEX(LinMotor!$AJ$1:$AJ$1305,A160,1))/1000,"0.0k")),"") -> 221.276637 | Q160: =IF(A160<>2,IF(IF(Calc!$A$90,INDEX(Motor!$AM$1:$AM$1452,A160,1),INDEX(LinMotor!$AK$1:$AK$1305,A160,1))<1000,IF(Calc!$A$90,INDEX(Motor!$AM$1:$AM$1452,A160,1),INDEX(LinMotor!$AK$1:$AK$1305,A160,1)),TEXT(IF(Calc!$A$90,INDEX(Motor!$AM$1:$AM$1452,A160,1),INDEX(LinMotor!$AK$1:$AK$1305,A160,1))/1000,"0.0k")),"") -> 2.1k
A161: 560 | B161: =IF(Calc!$A$90,INDEX(Motor!$B$1:$B$1452,A161,1),INDEX(LinMotor!$B$1:$B$1291,A161,1)) -> AKM2G-62L 240 V | C161: =IF(Calc!$A$90,INDEX(Motor!$T$1:$T$1452,A161,1),INDEX(LinMotor!$R$1:$R$1305,A161,1)) -> 2.74725274 | D161: =IF(Calc!$A$90,INDEX(Motor!$U$1:$U$1452,A161,1),INDEX(LinMotor!$S$1:$S$1305,A161,1)) -> 0.3914542435 | E161: =IF(Calc!$A$90,INDEX(Motor!$V$1:$V$1452,A161,1),INDEX(LinMotor!$T$1:$T$1305,A161,1)) -> 0.4443840808 | F161: =IF(Calc!$A$90,INDEX(Motor!$W$1:$W$1452,A161,1),INDEX(LinMotor!$U$1:$U$1305,A161,1)) -> 1.090909091 | G161: =IF(A161<>2,IF(ABS(IF(Calc!$A$90,INDEX(Motor!$X$1:$X$1452,A161,1),INDEX(LinMotor!$V$1:$V$1305,A161,1)))<1000,IF(Calc!$A$90,INDEX(Motor!$X$1:$X$1452,A161,1),INDEX(LinMotor!$V$1:$V$1305,A161,1)),TEXT(IF(Calc!$A$90,INDEX(Motor!$X$1:$X$1452,A161,1),INDEX(LinMotor!$V$1:$V$1305,A161,1))/1000,"0.0k")),"") -> 16.6199653 | H161: =IF(A161<>2,IF(ABS(IF(move1,IF(Calc!$A$90,INDEX(Motor!$Y$1:$Y$1452,A161,1),INDEX(LinMotor!$W$1:$W$1305,A161,1)),IF(Calc!$A$90,INDEX(Motor!$Z$1:$Z$1452,A161,1),INDEX(LinMotor!$X$1:$X$1305,A161,1))))<1000,IF(move1,IF(Calc!$A$90,INDEX(Motor!$Y$1:$Y$1452,A161,1),INDEX(LinMotor!$W$1:$W$1305,A161,1)),IF(Calc!$A$90,INDEX(Motor!$Z$1:$Z$1452,A161,1),INDEX(LinMotor!$X$1:$X$1305,A161,1))),TEXT(IF(move1,IF(Calc!$A$90,INDEX(Motor!$Y$1:$Y$1452,A161,1),INDEX(LinMotor!$W$1:$W$1305,A161,1)),IF(Calc!$A$90,INDEX(Motor!$Z$1:$Z$1452,A161,1),INDEX(LinMotor!$X$1:$X$1305,A161,1)))/1000,"0.0k")),"") -> 0 | I161: =IF(A161<>2,IF(ABS(IF(move1,IF(Calc!$A$90,INDEX(Motor!$Z$1:$Z$1452,A161,1),INDEX(LinMotor!$X$1:$X$1305,A161,1)),IF(Calc!$A$90,INDEX(Motor!$AB$1:$AB$1452,A161,1),INDEX(LinMotor!$Z$1:$Z$1305,A161,1))))<1000,IF(move1,IF(Calc!$A$90,INDEX(Motor!$Z$1:$Z$1452,A161,1),INDEX(LinMotor!$X$1:$X$1305,A161,1)),IF(Calc!$A$90,INDEX(Motor!$AB$1:$AB$1452,A161,1),INDEX(LinMotor!$Z$1:$Z$1305,A161,1))),TEXT(IF(move1,IF(Calc!$A$90,INDEX(Motor!$Z$1:$Z$1452,A161,1),INDEX(LinMotor!$X$1:$X$1305,A161,1)),IF(Calc!$A$90,INDEX(Motor!$AB$1:$AB$1452,A161,1),INDEX(LinMotor!$Z$1:$Z$1305,A161,1)))/1000,"0.0k")),"") -> -13.46217189 | J161: =IF(A161<>2,IF(ABS(IF(move1,IF(Calc!$A$90,INDEX(Motor!$AA$1:$AA$1452,A161,1),INDEX(LinMotor!$Y$1:$Y$1305,A161,1)),IF(Calc!$A$90,INDEX(Motor!$AD$1:$AD$1452,A161,1),INDEX(LinMotor!$AB$1:$AB$1305,A161,1))))<1000,IF(move1,IF(Calc!$A$90,INDEX(Motor!$AA$1:$AA$1452,A161,1),INDEX(LinMotor!$Y$1:$Y$1305,A161,1)),IF(Calc!$A$90,INDEX(Motor!$AD$1:$AD$1452,A161,1),INDEX(LinMotor!$AB$1:$AB$1305,A161,1))),TEXT(IF(move1,IF(Calc!$A$90,INDEX(Motor!$AA$1:$AA$1452,A161,1),INDEX(LinMotor!$Y$1:$Y$1305,A161,1)),IF(Calc!$A$90,INDEX(Motor!$AD$1:$AD$1452,A161,1),INDEX(LinMotor!$AB$1:$AB$1305,A161,1)))/1000,"0.0k")),"") -> 0 | K161: =IF(Calc!$A$90,INDEX(Motor!$AF$1:$AF$1452,A161,1),INDEX(LinMotor!$AD$1:$AD$1305,A161,1)) -> 0.3714947403 | L161: =IF(Calc!$A$90,INDEX(Motor!$AG$1:$AG$1452,A161,1),INDEX(LinMotor!$AE$1:$AE$1305,A161,1)) -> 0.5284857627 | M161: =IF(Calc!$A$90,INDEX(Motor!$AH$1:$AH$1452,A161,1),INDEX(LinMotor!$AF$1:$AF$1305,A161,1)) -> 4.457936884 | N161: =IF(Calc!$A$90,INDEX(Motor!$AI$1:$AI$1452,A161,1),INDEX(LinMotor!$AG$1:$AG$1305,A161,1)) -> 12.68365831 | O161: =IF(A161<>2,IF(IF(Calc!$A$90,INDEX(Motor!$AK$1:$AK$1452,A161,1),INDEX(LinMotor!$AI$1:$AI$1305,A161,1))<1000,IF(Calc!$A$90,INDEX(Motor!$AK$1:$AK$1452,A161,1),INDEX(LinMotor!$AI$1:$AI$1305,A161,1)),TEXT(IF(Calc!$A$90,INDEX(Motor!$AK$1:$AK$1452,A161,1),INDEX(LinMotor!$AI$1:$AI$1305,A161,1))/1000,"0.0k")),"") -> 276.2045747 | P161: =IF(A161<>2,IF(IF(Calc!$A$90,INDEX(Motor!$AL$1:$AL$1452,A161,1),INDEX(LinMotor!$AJ$1:$AJ$1305,A161,1))<1000,IF(Calc!$A$90,INDEX(Motor!$AL$1:$AL$1452,A161,1),INDEX(LinMotor!$AJ$1:$AJ$1305,A161,1)),TEXT(IF(Calc!$A$90,INDEX(Motor!$AL$1:$AL$1452,A161,1),INDEX(LinMotor!$AJ$1:$AJ$1305,A161,1))/1000,"0.0k")),"") -> 223.9030668 | Q161: =IF(A161<>2,IF(IF(Calc!$A$90,INDEX(Motor!$AM$1:$AM$1452,A161,1),INDEX(LinMotor!$AK$1:$AK$1305,A161,1))<1000,IF(Calc!$A$90,INDEX(Motor!$AM$1:$AM$1452,A161,1),INDEX(LinMotor!$AK$1:$AK$1305,A161,1)),TEXT(IF(Calc!$A$90,INDEX(Motor!$AM$1:$AM$1452,A161,1),INDEX(LinMotor!$AK$1:$AK$1305,A161,1))/1000,"0.0k")),"") -> 2.2k
A162: 561 | B162: =IF(Calc!$A$90,INDEX(Motor!$B$1:$B$1452,A162,1),INDEX(LinMotor!$B$1:$B$1291,A162,1)) -> AKM2G-62L 400 V | C162: =IF(Calc!$A$90,INDEX(Motor!$T$1:$T$1452,A162,1),INDEX(LinMotor!$R$1:$R$1305,A162,1)) -> 2.74725274 | D162: =IF(Calc!$A$90,INDEX(Motor!$U$1:$U$1452,A162,1),INDEX(LinMotor!$S$1:$S$1305,A162,1)) -> 0.3954225943 | E162: =IF(Calc!$A$90,INDEX(Motor!$V$1:$V$1452,A162,1),INDEX(LinMotor!$T$1:$T$1305,A162,1)) -> 0.4443840808 | F162: =IF(Calc!$A$90,INDEX(Motor!$W$1:$W$1452,A162,1),INDEX(LinMotor!$U$1:$U$1305,A162,1)) -> 1.055231829 | G162: =IF(A162<>2,IF(ABS(IF(Calc!$A$90,INDEX(Motor!$X$1:$X$1452,A162,1),INDEX(LinMotor!$V$1:$V$1305,A162,1)))<1000,IF(Calc!$A$90,INDEX(Motor!$X$1:$X$1452,A162,1),INDEX(LinMotor!$V$1:$V$1305,A162,1)),TEXT(IF(Calc!$A$90,INDEX(Motor!$X$1:$X$1452,A162,1),INDEX(LinMotor!$V$1:$V$1305,A162,1))/1000,"0.0k")),"") -> 16.6199653 | H162: =IF(A162<>2,IF(ABS(IF(move1,IF(Calc!$A$90,INDEX(Motor!$Y$1:$Y$1452,A162,1),INDEX(LinMotor!$W$1:$W$1305,A162,1)),IF(Calc!$A$90,INDEX(Motor!$Z$1:$Z$1452,A162,1),INDEX(LinMotor!$X$1:$X$1305,A162,1))))<1000,IF(move1,IF(Calc!$A$90,INDEX(Motor!$Y$1:$Y$1452,A162,1),INDEX(LinMotor!$W$1:$W$1305,A162,1)),IF(Calc!$A$90,INDEX(Motor!$Z$1:$Z$1452,A162,1),INDEX(LinMotor!$X$1:$X$1305,A162,1))),TEXT(IF(move1,IF(Calc!$A$90,INDEX(Motor!$Y$1:$Y$1452,A162,1),INDEX(LinMotor!$W$1:$W$1305,A162,1)),IF(Calc!$A$90,INDEX(Motor!$Z$1:$Z$1452,A162,1),INDEX(LinMotor!$X$1:$X$1305,A162,1)))/1000,"0.0k")),"") -> 0 | I162: =IF(A162<>2,IF(ABS(IF(move1,IF(Calc!$A$90,INDEX(Motor!$Z$1:$Z$1452,A162,1),INDEX(LinMotor!$X$1:$X$1305,A162,1)),IF(Calc!$A$90,INDEX(Motor!$AB$1:$AB$1452,A162,1),INDEX(LinMotor!$Z$1:$Z$1305,A162,1))))<1000,IF(move1,IF(Calc!$A$90,INDEX(Motor!$Z$1:$Z$1452,A162,1),INDEX(LinMotor!$X$1:$X$1305,A162,1)),IF(Calc!$A$90,INDEX(Motor!$AB$1:$AB$1452,A162,1),INDEX(LinMotor!$Z$1:$Z$1305,A162,1))),TEXT(IF(move1,IF(Calc!$A$90,INDEX(Motor!$Z$1:$Z$1452,A162,1),INDEX(LinMotor!$X$1:$X$1305,A162,1)),IF(Calc!$A$90,INDEX(Motor!$AB$1:$AB$1452,A162,1),INDEX(LinMotor!$Z$1:$Z$1305,A162,1)))/1000,"0.0k")),"") -> -13.46217189 | J162: =IF(A162<>2,IF(ABS(IF(move1,IF(Calc!$A$90,INDEX(Motor!$AA$1:$AA$1452,A162,1),INDEX(LinMotor!$Y$1:$Y$1305,A162,1)),IF(Calc!$A$90,INDEX(Motor!$AD$1:$AD$1452,A162,1),INDEX(LinMotor!$AB$1:$AB$1305,A162,1))))<1000,IF(move1,IF(Calc!$A$90,INDEX(Motor!$AA$1:$AA$1452,A162,1),INDEX(LinMotor!$Y$1:$Y$1305,A162,1)),IF(Calc!$A$90,INDEX(Motor!$AD$1:$AD$1452,A162,1),INDEX(LinMotor!$AB$1:$AB$1305,A162,1))),TEXT(IF(move1,IF(Calc!$A$90,INDEX(Motor!$AA$1:$AA$1452,A162,1),INDEX(LinMotor!$Y$1:$Y$1305,A162,1)),IF(Calc!$A$90,INDEX(Motor!$AD$1:$AD$1452,A162,1),INDEX(LinMotor!$AB$1:$AB$1305,A162,1)))/1000,"0.0k")),"") -> 0 | K162: =IF(Calc!$A$90,INDEX(Motor!$AF$1:$AF$1452,A162,1),INDEX(LinMotor!$AD$1:$AD$1305,A162,1)) -> 0.3714947403 | L162: =IF(Calc!$A$90,INDEX(Motor!$AG$1:$AG$1452,A162,1),INDEX(LinMotor!$AE$1:$AE$1305,A162,1)) -> 0.5284857627 | M162: =IF(Calc!$A$90,INDEX(Motor!$AH$1:$AH$1452,A162,1),INDEX(LinMotor!$AF$1:$AF$1305,A162,1)) -> 4.457936884 | N162: =IF(Calc!$A$90,INDEX(Motor!$AI$1:$AI$1452,A162,1),INDEX(LinMotor!$AG$1:$AG$1305,A162,1)) -> 12.68365831 | O162: =IF(A162<>2,IF(IF(Calc!$A$90,INDEX(Motor!$AK$1:$AK$1452,A162,1),INDEX(LinMotor!$AI$1:$AI$1305,A162,1))<1000,IF(Calc!$A$90,INDEX(Motor!$AK$1:$AK$1452,A162,1),INDEX(LinMotor!$AI$1:$AI$1305,A162,1)),TEXT(IF(Calc!$A$90,INDEX(Motor!$AK$1:$AK$1452,A162,1),INDEX(LinMotor!$AI$1:$AI$1305,A162,1))/1000,"0.0k")),"") -> 276.2045747 | P162: =IF(A162<>2,IF(IF(Calc!$A$90,INDEX(Motor!$AL$1:$AL$1452,A162,1),INDEX(LinMotor!$AJ$1:$AJ$1305,A162,1))<1000,IF(Calc!$A$90,INDEX(Motor!$AL$1:$AL$1452,A162,1),INDEX(LinMotor!$AJ$1:$AJ$1305,A162,1)),TEXT(IF(Calc!$A$90,INDEX(Motor!$AL$1:$AL$1452,A162,1),INDEX(LinMotor!$AJ$1:$AJ$1305,A162,1))/1000,"0.0k")),"") -> 223.9030668 | Q162: =IF(A162<>2,IF(IF(Calc!$A$90,INDEX(Motor!$AM$1:$AM$1452,A162,1),INDEX(LinMotor!$AK$1:$AK$1305,A162,1))<1000,IF(Calc!$A$90,INDEX(Motor!$AM$1:$AM$1452,A162,1),INDEX(LinMotor!$AK$1:$AK$1305,A162,1)),TEXT(IF(Calc!$A$90,INDEX(Motor!$AM$1:$AM$1452,A162,1),INDEX(LinMotor!$AK$1:$AK$1305,A162,1))/1000,"0.0k")),"") -> 2.2k | R162: =IF(T162=1,"L<Lmin",IF(T162=2,"Udc>Umot",IF(T162=3,"L<Lmin & Udc>Umot",IF(T162=4,"L>Lmax",IF(T162=5,"L>Lmax & Udc>Umot",""))))) -> 
A163: 562 | B163: =IF(Calc!$A$90,INDEX(Motor!$B$1:$B$1452,A163,1),INDEX(LinMotor!$B$1:$B$1291,A163,1)) -> AKM2G-62L 480 V | C163: =IF(Calc!$A$90,INDEX(Motor!$T$1:$T$1452,A163,1),INDEX(LinMotor!$R$1:$R$1305,A163,1)) -> 2.74725274 | D163: =IF(Calc!$A$90,INDEX(Motor!$U$1:$U$1452,A163,1),INDEX(LinMotor!$S$1:$S$1305,A163,1)) -> 0.3974696994 | E163: =IF(Calc!$A$90,INDEX(Motor!$V$1:$V$1452,A163,1),INDEX(LinMotor!$T$1:$T$1305,A163,1)) -> 0.4443840808 | F163: =IF(Calc!$A$90,INDEX(Motor!$W$1:$W$1452,A163,1),INDEX(LinMotor!$U$1:$U$1305,A163,1)) -> 1.055231829 | G163: =IF(A163<>2,IF(ABS(IF(Calc!$A$90,INDEX(Motor!$X$1:$X$1452,A163,1),INDEX(LinMotor!$V$1:$V$1305,A163,1)))<1000,IF(Calc!$A$90,INDEX(Motor!$X$1:$X$1452,A163,1),INDEX(LinMotor!$V$1:$V$1305,A163,1)),TEXT(IF(Calc!$A$90,INDEX(Motor!$X$1:$X$1452,A163,1),INDEX(LinMotor!$V$1:$V$1305,A163,1))/1000,"0.0k")),"") -> 16.6199653 | H163: =IF(A163<>2,IF(ABS(IF(move1,IF(Calc!$A$90,INDEX(Motor!$Y$1:$Y$1452,A163,1),INDEX(LinMotor!$W$1:$W$1305,A163,1)),IF(Calc!$A$90,INDEX(Motor!$Z$1:$Z$1452,A163,1),INDEX(LinMotor!$X$1:$X$1305,A163,1))))<1000,IF(move1,IF(Calc!$A$90,INDEX(Motor!$Y$1:$Y$1452,A163,1),INDEX(LinMotor!$W$1:$W$1305,A163,1)),IF(Calc!$A$90,INDEX(Motor!$Z$1:$Z$1452,A163,1),INDEX(LinMotor!$X$1:$X$1305,A163,1))),TEXT(IF(move1,IF(Calc!$A$90,INDEX(Motor!$Y$1:$Y$1452,A163,1),INDEX(LinMotor!$W$1:$W$1305,A163,1)),IF(Calc!$A$90,INDEX(Motor!$Z$1:$Z$1452,A163,1),INDEX(LinMotor!$X$1:$X$1305,A163,1)))/1000,"0.0k")),"") -> 0 | I163: =IF(A163<>2,IF(ABS(IF(move1,IF(Calc!$A$90,INDEX(Motor!$Z$1:$Z$1452,A163,1),INDEX(LinMotor!$X$1:$X$1305,A163,1)),IF(Calc!$A$90,INDEX(Motor!$AB$1:$AB$1452,A163,1),INDEX(LinMotor!$Z$1:$Z$1305,A163,1))))<1000,IF(move1,IF(Calc!$A$90,INDEX(Motor!$Z$1:$Z$1452,A163,1),INDEX(LinMotor!$X$1:$X$1305,A163,1)),IF(Calc!$A$90,INDEX(Motor!$AB$1:$AB$1452,A163,1),INDEX(LinMotor!$Z$1:$Z$1305,A163,1))),TEXT(IF(move1,IF(Calc!$A$90,INDEX(Motor!$Z$1:$Z$1452,A163,1),INDEX(LinMotor!$X$1:$X$1305,A163,1)),IF(Calc!$A$90,INDEX(Motor!$AB$1:$AB$1452,A163,1),INDEX(LinMotor!$Z$1:$Z$1305,A163,1)))/1000,"0.0k")),"") -> -13.46217189 | J163: =IF(A163<>2,IF(ABS(IF(move1,IF(Calc!$A$90,INDEX(Motor!$AA$1:$AA$1452,A163,1),INDEX(LinMotor!$Y$1:$Y$1305,A163,1)),IF(Calc!$A$90,INDEX(Motor!$AD$1:$AD$1452,A163,1),INDEX(LinMotor!$AB$1:$AB$1305,A163,1))))<1000,IF(move1,IF(Calc!$A$90,INDEX(Motor!$AA$1:$AA$1452,A163,1),INDEX(LinMotor!$Y$1:$Y$1305,A163,1)),IF(Calc!$A$90,INDEX(Motor!$AD$1:$AD$1452,A163,1),INDEX(LinMotor!$AB$1:$AB$1305,A163,1))),TEXT(IF(move1,IF(Calc!$A$90,INDEX(Motor!$AA$1:$AA$1452,A163,1),INDEX(LinMotor!$Y$1:$Y$1305,A163,1)),IF(Calc!$A$90,INDEX(Motor!$AD$1:$AD$1452,A163,1),INDEX(LinMotor!$AB$1:$AB$1305,A163,1)))/1000,"0.0k")),"") -> 0 | K163: =IF(Calc!$A$90,INDEX(Motor!$AF$1:$AF$1452,A163,1),INDEX(LinMotor!$AD$1:$AD$1305,A163,1)) -> 0.3714947403 | L163: =IF(Calc!$A$90,INDEX(Motor!$AG$1:$AG$1452,A163,1),INDEX(LinMotor!$AE$1:$AE$1305,A163,1)) -> 0.5284857627 | M163: =IF(Calc!$A$90,INDEX(Motor!$AH$1:$AH$1452,A163,1),INDEX(LinMotor!$AF$1:$AF$1305,A163,1)) -> 4.457936884 | N163: =IF(Calc!$A$90,INDEX(Motor!$AI$1:$AI$1452,A163,1),INDEX(LinMotor!$AG$1:$AG$1305,A163,1)) -> 12.68365831 | O163: =IF(A163<>2,IF(IF(Calc!$A$90,INDEX(Motor!$AK$1:$AK$1452,A163,1),INDEX(LinMotor!$AI$1:$AI$1305,A163,1))<1000,IF(Calc!$A$90,INDEX(Motor!$AK$1:$AK$1452,A163,1),INDEX(LinMotor!$AI$1:$AI$1305,A163,1)),TEXT(IF(Calc!$A$90,INDEX(Motor!$AK$1:$AK$1452,A163,1),INDEX(LinMotor!$AI$1:$AI$1305,A163,1))/1000,"0.0k")),"") -> 276.2045747 | P163: =IF(A163<>2,IF(IF(Calc!$A$90,INDEX(Motor!$AL$1:$AL$1452,A163,1),INDEX(LinMotor!$AJ$1:$AJ$1305,A163,1))<1000,IF(Calc!$A$90,INDEX(Motor!$AL$1:$AL$1452,A163,1),INDEX(LinMotor!$AJ$1:$AJ$1305,A163,1)),TEXT(IF(Calc!$A$90,INDEX(Motor!$AL$1:$AL$1452,A163,1),INDEX(LinMotor!$AJ$1:$AJ$1305,A163,1))/1000,"0.0k")),"") -> 223.9030668 | Q163: =IF(A163<>2,IF(IF(Calc!$A$90,INDEX(Motor!$AM$1:$AM$1452,A163,1),INDEX(LinMotor!$AK$1:$AK$1305,A163,1))<1000,IF(Calc!$A$90,INDEX(Motor!$AM$1:$AM$1452,A163,1),INDEX(LinMotor!$AK$1:$AK$1305,A163,1)),TEXT(IF(Calc!$A$90,INDEX(Motor!$AM$1:$AM$1452,A163,1),INDEX(LinMotor!$AK$1:$AK$1305,A163,1))/1000,"0.0k")),"") -> 2.2k
A164: 564 | B164: =IF(Calc!$A$90,INDEX(Motor!$B$1:$B$1452,A164,1),INDEX(LinMotor!$B$1:$B$1291,A164,1)) -> AKM2G-62M 240 V | C164: =IF(Calc!$A$90,INDEX(Motor!$T$1:$T$1452,A164,1),INDEX(LinMotor!$R$1:$R$1305,A164,1)) -> 2.74725274 | D164: =IF(Calc!$A$90,INDEX(Motor!$U$1:$U$1452,A164,1),INDEX(LinMotor!$S$1:$S$1305,A164,1)) -> 0.3951588143 | E164: =IF(Calc!$A$90,INDEX(Motor!$V$1:$V$1452,A164,1),INDEX(LinMotor!$T$1:$T$1305,A164,1)) -> 0.4443840808 | F164: =IF(Calc!$A$90,INDEX(Motor!$W$1:$W$1452,A164,1),INDEX(LinMotor!$U$1:$U$1305,A164,1)) -> 0.8571428571 | G164: =IF(A164<>2,IF(ABS(IF(Calc!$A$90,INDEX(Motor!$X$1:$X$1452,A164,1),INDEX(LinMotor!$V$1:$V$1305,A164,1)))<1000,IF(Calc!$A$90,INDEX(Motor!$X$1:$X$1452,A164,1),INDEX(LinMotor!$V$1:$V$1305,A164,1)),TEXT(IF(Calc!$A$90,INDEX(Motor!$X$1:$X$1452,A164,1),INDEX(LinMotor!$V$1:$V$1305,A164,1))/1000,"0.0k")),"") -> 16.6199653 | H164: =IF(A164<>2,IF(ABS(IF(move1,IF(Calc!$A$90,INDEX(Motor!$Y$1:$Y$1452,A164,1),INDEX(LinMotor!$W$1:$W$1305,A164,1)),IF(Calc!$A$90,INDEX(Motor!$Z$1:$Z$1452,A164,1),INDEX(LinMotor!$X$1:$X$1305,A164,1))))<1000,IF(move1,IF(Calc!$A$90,INDEX(Motor!$Y$1:$Y$1452,A164,1),INDEX(LinMotor!$W$1:$W$1305,A164,1)),IF(Calc!$A$90,INDEX(Motor!$Z$1:$Z$1452,A164,1),INDEX(LinMotor!$X$1:$X$1305,A164,1))),TEXT(IF(move1,IF(Calc!$A$90,INDEX(Motor!$Y$1:$Y$1452,A164,1),INDEX(LinMotor!$W$1:$W$1305,A164,1)),IF(Calc!$A$90,INDEX(Motor!$Z$1:$Z$1452,A164,1),INDEX(LinMotor!$X$1:$X$1305,A164,1)))/1000,"0.0k")),"") -> 0 | I164: =IF(A164<>2,IF(ABS(IF(move1,IF(Calc!$A$90,INDEX(Motor!$Z$1:$Z$1452,A164,1),INDEX(LinMotor!$X$1:$X$1305,A164,1)),IF(Calc!$A$90,INDEX(Motor!$AB$1:$AB$1452,A164,1),INDEX(LinMotor!$Z$1:$Z$1305,A164,1))))<1000,IF(move1,IF(Calc!$A$90,INDEX(Motor!$Z$1:$Z$1452,A164,1),INDEX(LinMotor!$X$1:$X$1305,A164,1)),IF(Calc!$A$90,INDEX(Motor!$AB$1:$AB$1452,A164,1),INDEX(LinMotor!$Z$1:$Z$1305,A164,1))),TEXT(IF(move1,IF(Calc!$A$90,INDEX(Motor!$Z$1:$Z$1452,A164,1),INDEX(LinMotor!$X$1:$X$1305,A164,1)),IF(Calc!$A$90,INDEX(Motor!$AB$1:$AB$1452,A164,1),INDEX(LinMotor!$Z$1:$Z$1305,A164,1)))/1000,"0.0k")),"") -> -13.46217189 | J164: =IF(A164<>2,IF(ABS(IF(move1,IF(Calc!$A$90,INDEX(Motor!$AA$1:$AA$1452,A164,1),INDEX(LinMotor!$Y$1:$Y$1305,A164,1)),IF(Calc!$A$90,INDEX(Motor!$AD$1:$AD$1452,A164,1),INDEX(LinMotor!$AB$1:$AB$1305,A164,1))))<1000,IF(move1,IF(Calc!$A$90,INDEX(Motor!$AA$1:$AA$1452,A164,1),INDEX(LinMotor!$Y$1:$Y$1305,A164,1)),IF(Calc!$A$90,INDEX(Motor!$AD$1:$AD$1452,A164,1),INDEX(LinMotor!$AB$1:$AB$1305,A164,1))),TEXT(IF(move1,IF(Calc!$A$90,INDEX(Motor!$AA$1:$AA$1452,A164,1),INDEX(LinMotor!$Y$1:$Y$1305,A164,1)),IF(Calc!$A$90,INDEX(Motor!$AD$1:$AD$1452,A164,1),INDEX(LinMotor!$AB$1:$AB$1305,A164,1)))/1000,"0.0k")),"") -> 0 | K164: =IF(Calc!$A$90,INDEX(Motor!$AF$1:$AF$1452,A164,1),INDEX(LinMotor!$AD$1:$AD$1305,A164,1)) -> 0.4706674418 | L164: =IF(Calc!$A$90,INDEX(Motor!$AG$1:$AG$1452,A164,1),INDEX(LinMotor!$AE$1:$AE$1305,A164,1)) -> 0.6695681391 | M164: =IF(Calc!$A$90,INDEX(Motor!$AH$1:$AH$1452,A164,1),INDEX(LinMotor!$AF$1:$AF$1305,A164,1)) -> 5.648009301 | N164: =IF(Calc!$A$90,INDEX(Motor!$AI$1:$AI$1452,A164,1),INDEX(LinMotor!$AG$1:$AG$1305,A164,1)) -> 16.06963534 | O164: =IF(A164<>2,IF(IF(Calc!$A$90,INDEX(Motor!$AK$1:$AK$1452,A164,1),INDEX(LinMotor!$AI$1:$AI$1305,A164,1))<1000,IF(Calc!$A$90,INDEX(Motor!$AK$1:$AK$1452,A164,1),INDEX(LinMotor!$AI$1:$AI$1305,A164,1)),TEXT(IF(Calc!$A$90,INDEX(Motor!$AK$1:$AK$1452,A164,1),INDEX(LinMotor!$AI$1:$AI$1305,A164,1))/1000,"0.0k")),"") -> 276.2045747 | P164: =IF(A164<>2,IF(IF(Calc!$A$90,INDEX(Motor!$AL$1:$AL$1452,A164,1),INDEX(LinMotor!$AJ$1:$AJ$1305,A164,1))<1000,IF(Calc!$A$90,INDEX(Motor!$AL$1:$AL$1452,A164,1),INDEX(LinMotor!$AJ$1:$AJ$1305,A164,1)),TEXT(IF(Calc!$A$90,INDEX(Motor!$AL$1:$AL$1452,A164,1),INDEX(LinMotor!$AJ$1:$AJ$1305,A164,1))/1000,"0.0k")),"") -> 223.9030668 | Q164: =IF(A164<>2,IF(IF(Calc!$A$90,INDEX(Motor!$AM$1:$AM$1452,A164,1),INDEX(LinMotor!$AK$1:$AK$1305,A164,1))<1000,IF(Calc!$A$90,INDEX(Motor!$AM$1:$AM$1452,A164,1),INDEX(LinMotor!$AK$1:$AK$1305,A164,1)),TEXT(IF(Calc!$A$90,INDEX(Motor!$AM$1:$AM$1452,A164,1),INDEX(LinMotor!$AK$1:$AK$1305,A164,1))/1000,"0.0k")),"") -> 2.2k
A165: 565 | B165: =IF(Calc!$A$90,INDEX(Motor!$B$1:$B$1452,A165,1),INDEX(LinMotor!$B$1:$B$1291,A165,1)) -> AKM2G-62M 400 V | C165: =IF(Calc!$A$90,INDEX(Motor!$T$1:$T$1452,A165,1),INDEX(LinMotor!$R$1:$R$1305,A165,1)) -> 2.74725274 | D165: =IF(Calc!$A$90,INDEX(Motor!$U$1:$U$1452,A165,1),INDEX(LinMotor!$S$1:$S$1305,A165,1)) -> 0.3999901734 | E165: =IF(Calc!$A$90,INDEX(Motor!$V$1:$V$1452,A165,1),INDEX(LinMotor!$T$1:$T$1305,A165,1)) -> 0.4443840808 | F165: =IF(Calc!$A$90,INDEX(Motor!$W$1:$W$1452,A165,1),INDEX(LinMotor!$U$1:$U$1305,A165,1)) -> 0.8385613544 | G165: =IF(A165<>2,IF(ABS(IF(Calc!$A$90,INDEX(Motor!$X$1:$X$1452,A165,1),INDEX(LinMotor!$V$1:$V$1305,A165,1)))<1000,IF(Calc!$A$90,INDEX(Motor!$X$1:$X$1452,A165,1),INDEX(LinMotor!$V$1:$V$1305,A165,1)),TEXT(IF(Calc!$A$90,INDEX(Motor!$X$1:$X$1452,A165,1),INDEX(LinMotor!$V$1:$V$1305,A165,1))/1000,"0.0k")),"") -> 16.6199653 | H165: =IF(A165<>2,IF(ABS(IF(move1,IF(Calc!$A$90,INDEX(Motor!$Y$1:$Y$1452,A165,1),INDEX(LinMotor!$W$1:$W$1305,A165,1)),IF(Calc!$A$90,INDEX(Motor!$Z$1:$Z$1452,A165,1),INDEX(LinMotor!$X$1:$X$1305,A165,1))))<1000,IF(move1,IF(Calc!$A$90,INDEX(Motor!$Y$1:$Y$1452,A165,1),INDEX(LinMotor!$W$1:$W$1305,A165,1)),IF(Calc!$A$90,INDEX(Motor!$Z$1:$Z$1452,A165,1),INDEX(LinMotor!$X$1:$X$1305,A165,1))),TEXT(IF(move1,IF(Calc!$A$90,INDEX(Motor!$Y$1:$Y$1452,A165,1),INDEX(LinMotor!$W$1:$W$1305,A165,1)),IF(Calc!$A$90,INDEX(Motor!$Z$1:$Z$1452,A165,1),INDEX(LinMotor!$X$1:$X$1305,A165,1)))/1000,"0.0k")),"") -> 0 | I165: =IF(A165<>2,IF(ABS(IF(move1,IF(Calc!$A$90,INDEX(Motor!$Z$1:$Z$1452,A165,1),INDEX(LinMotor!$X$1:$X$1305,A165,1)),IF(Calc!$A$90,INDEX(Motor!$AB$1:$AB$1452,A165,1),INDEX(LinMotor!$Z$1:$Z$1305,A165,1))))<1000,IF(move1,IF(Calc!$A$90,INDEX(Motor!$Z$1:$Z$1452,A165,1),INDEX(LinMotor!$X$1:$X$1305,A165,1)),IF(Calc!$A$90,INDEX(Motor!$AB$1:$AB$1452,A165,1),INDEX(LinMotor!$Z$1:$Z$1305,A165,1))),TEXT(IF(move1,IF(Calc!$A$90,INDEX(Motor!$Z$1:$Z$1452,A165,1),INDEX(LinMotor!$X$1:$X$1305,A165,1)),IF(Calc!$A$90,INDEX(Motor!$AB$1:$AB$1452,A165,1),INDEX(LinMotor!$Z$1:$Z$1305,A165,1)))/1000,"0.0k")),"") -> -13.46217189 | J165: =IF(A165<>2,IF(ABS(IF(move1,IF(Calc!$A$90,INDEX(Motor!$AA$1:$AA$1452,A165,1),INDEX(LinMotor!$Y$1:$Y$1305,A165,1)),IF(Calc!$A$90,INDEX(Motor!$AD$1:$AD$1452,A165,1),INDEX(LinMotor!$AB$1:$AB$1305,A165,1))))<1000,IF(move1,IF(Calc!$A$90,INDEX(Motor!$AA$1:$AA$1452,A165,1),INDEX(LinMotor!$Y$1:$Y$1305,A165,1)),IF(Calc!$A$90,INDEX(Motor!$AD$1:$AD$1452,A165,1),INDEX(LinMotor!$AB$1:$AB$1305,A165,1))),TEXT(IF(move1,IF(Calc!$A$90,INDEX(Motor!$AA$1:$AA$1452,A165,1),INDEX(LinMotor!$Y$1:$Y$1305,A165,1)),IF(Calc!$A$90,INDEX(Motor!$AD$1:$AD$1452,A165,1),INDEX(LinMotor!$AB$1:$AB$1305,A165,1)))/1000,"0.0k")),"") -> 0 | K165: =IF(Calc!$A$90,INDEX(Motor!$AF$1:$AF$1452,A165,1),INDEX(LinMotor!$AD$1:$AD$1305,A165,1)) -> 0.4706674418 | L165: =IF(Calc!$A$90,INDEX(Motor!$AG$1:$AG$1452,A165,1),INDEX(LinMotor!$AE$1:$AE$1305,A165,1)) -> 0.6695681391 | M165: =IF(Calc!$A$90,INDEX(Motor!$AH$1:$AH$1452,A165,1),INDEX(LinMotor!$AF$1:$AF$1305,A165,1)) -> 5.648009301 | N165: =IF(Calc!$A$90,INDEX(Motor!$AI$1:$AI$1452,A165,1),INDEX(LinMotor!$AG$1:$AG$1305,A165,1)) -> 16.06963534 | O165: =IF(A165<>2,IF(IF(Calc!$A$90,INDEX(Motor!$AK$1:$AK$1452,A165,1),INDEX(LinMotor!$AI$1:$AI$1305,A165,1))<1000,IF(Calc!$A$90,INDEX(Motor!$AK$1:$AK$1452,A165,1),INDEX(LinMotor!$AI$1:$AI$1305,A165,1)),TEXT(IF(Calc!$A$90,INDEX(Motor!$AK$1:$AK$1452,A165,1),INDEX(LinMotor!$AI$1:$AI$1305,A165,1))/1000,"0.0k")),"") -> 276.2045747 | P165: =IF(A165<>2,IF(IF(Calc!$A$90,INDEX(Motor!$AL$1:$AL$1452,A165,1),INDEX(LinMotor!$AJ$1:$AJ$1305,A165,1))<1000,IF(Calc!$A$90,INDEX(Motor!$AL$1:$AL$1452,A165,1),INDEX(LinMotor!$AJ$1:$AJ$1305,A165,1)),TEXT(IF(Calc!$A$90,INDEX(Motor!$AL$1:$AL$1452,A165,1),INDEX(LinMotor!$AJ$1:$AJ$1305,A165,1))/1000,"0.0k")),"") -> 223.9030668 | Q165: =IF(A165<>2,IF(IF(Calc!$A$90,INDEX(Motor!$AM$1:$AM$1452,A165,1),INDEX(LinMotor!$AK$1:$AK$1305,A165,1))<1000,IF(Calc!$A$90,INDEX(Motor!$AM$1:$AM$1452,A165,1),INDEX(LinMotor!$AK$1:$AK$1305,A165,1)),TEXT(IF(Calc!$A$90,INDEX(Motor!$AM$1:$AM$1452,A165,1),INDEX(LinMotor!$AK$1:$AK$1305,A165,1))/1000,"0.0k")),"") -> 2.2k
A166: 570 | B166: =IF(Calc!$A$90,INDEX(Motor!$B$1:$B$1452,A166,1),INDEX(LinMotor!$B$1:$B$1291,A166,1)) -> AKM2G-63M 240 V | C166: =IF(Calc!$A$90,INDEX(Motor!$T$1:$T$1452,A166,1),INDEX(LinMotor!$R$1:$R$1305,A166,1)) -> 1.923076918 | D166: =IF(Calc!$A$90,INDEX(Motor!$U$1:$U$1452,A166,1),INDEX(LinMotor!$S$1:$S$1305,A166,1)) -> 0.311233553 | E166: =IF(Calc!$A$90,INDEX(Motor!$V$1:$V$1452,A166,1),INDEX(LinMotor!$T$1:$T$1305,A166,1)) -> 0.3398308706 | F166: =IF(Calc!$A$90,INDEX(Motor!$W$1:$W$1452,A166,1),INDEX(LinMotor!$U$1:$U$1305,A166,1)) -> 1.142857143 | G166: =IF(A166<>2,IF(ABS(IF(Calc!$A$90,INDEX(Motor!$X$1:$X$1452,A166,1),INDEX(LinMotor!$V$1:$V$1305,A166,1)))<1000,IF(Calc!$A$90,INDEX(Motor!$X$1:$X$1452,A166,1),INDEX(LinMotor!$V$1:$V$1305,A166,1)),TEXT(IF(Calc!$A$90,INDEX(Motor!$X$1:$X$1452,A166,1),INDEX(LinMotor!$V$1:$V$1305,A166,1))/1000,"0.0k")),"") -> 18.52078245 | H166: =IF(A166<>2,IF(ABS(IF(move1,IF(Calc!$A$90,INDEX(Motor!$Y$1:$Y$1452,A166,1),INDEX(LinMotor!$W$1:$W$1305,A166,1)),IF(Calc!$A$90,INDEX(Motor!$Z$1:$Z$1452,A166,1),INDEX(LinMotor!$X$1:$X$1305,A166,1))))<1000,IF(move1,IF(Calc!$A$90,INDEX(Motor!$Y$1:$Y$1452,A166,1),INDEX(LinMotor!$W$1:$W$1305,A166,1)),IF(Calc!$A$90,INDEX(Motor!$Z$1:$Z$1452,A166,1),INDEX(LinMotor!$X$1:$X$1305,A166,1))),TEXT(IF(move1,IF(Calc!$A$90,INDEX(Motor!$Y$1:$Y$1452,A166,1),INDEX(LinMotor!$W$1:$W$1305,A166,1)),IF(Calc!$A$90,INDEX(Motor!$Z$1:$Z$1452,A166,1),INDEX(LinMotor!$X$1:$X$1305,A166,1)))/1000,"0.0k")),"") -> 0 | I166: =IF(A166<>2,IF(ABS(IF(move1,IF(Calc!$A$90,INDEX(Motor!$Z$1:$Z$1452,A166,1),INDEX(LinMotor!$X$1:$X$1305,A166,1)),IF(Calc!$A$90,INDEX(Motor!$AB$1:$AB$1452,A166,1),INDEX(LinMotor!$Z$1:$Z$1305,A166,1))))<1000,IF(move1,IF(Calc!$A$90,INDEX(Motor!$Z$1:$Z$1452,A166,1),INDEX(LinMotor!$X$1:$X$1305,A166,1)),IF(Calc!$A$90,INDEX(Motor!$AB$1:$AB$1452,A166,1),INDEX(LinMotor!$Z$1:$Z$1305,A166,1))),TEXT(IF(move1,IF(Calc!$A$90,INDEX(Motor!$Z$1:$Z$1452,A166,1),INDEX(LinMotor!$X$1:$X$1305,A166,1)),IF(Calc!$A$90,INDEX(Motor!$AB$1:$AB$1452,A166,1),INDEX(LinMotor!$Z$1:$Z$1305,A166,1)))/1000,"0.0k")),"") -> -15.00183378 | J166: =IF(A166<>2,IF(ABS(IF(move1,IF(Calc!$A$90,INDEX(Motor!$AA$1:$AA$1452,A166,1),INDEX(LinMotor!$Y$1:$Y$1305,A166,1)),IF(Calc!$A$90,INDEX(Motor!$AD$1:$AD$1452,A166,1),INDEX(LinMotor!$AB$1:$AB$1305,A166,1))))<1000,IF(move1,IF(Calc!$A$90,INDEX(Motor!$AA$1:$AA$1452,A166,1),INDEX(LinMotor!$Y$1:$Y$1305,A166,1)),IF(Calc!$A$90,INDEX(Motor!$AD$1:$AD$1452,A166,1),INDEX(LinMotor!$AB$1:$AB$1305,A166,1))),TEXT(IF(move1,IF(Calc!$A$90,INDEX(Motor!$AA$1:$AA$1452,A166,1),INDEX(LinMotor!$Y$1:$Y$1305,A166,1)),IF(Calc!$A$90,INDEX(Motor!$AD$1:$AD$1452,A166,1),INDEX(LinMotor!$AB$1:$AB$1305,A166,1)))/1000,"0.0k")),"") -> 0 | K166: =IF(Calc!$A$90,INDEX(Motor!$AF$1:$AF$1452,A166,1),INDEX(LinMotor!$AD$1:$AD$1305,A166,1)) -> 0.3852984686 | L166: =IF(Calc!$A$90,INDEX(Motor!$AG$1:$AG$1452,A166,1),INDEX(LinMotor!$AE$1:$AE$1305,A166,1)) -> 0.548122848 | M166: =IF(Calc!$A$90,INDEX(Motor!$AH$1:$AH$1452,A166,1),INDEX(LinMotor!$AF$1:$AF$1305,A166,1)) -> 4.623581624 | N166: =IF(Calc!$A$90,INDEX(Motor!$AI$1:$AI$1452,A166,1),INDEX(LinMotor!$AG$1:$AG$1305,A166,1)) -> 13.15494835 | O166: =IF(A166<>2,IF(IF(Calc!$A$90,INDEX(Motor!$AK$1:$AK$1452,A166,1),INDEX(LinMotor!$AI$1:$AI$1305,A166,1))<1000,IF(Calc!$A$90,INDEX(Motor!$AK$1:$AK$1452,A166,1),INDEX(LinMotor!$AI$1:$AI$1305,A166,1)),TEXT(IF(Calc!$A$90,INDEX(Motor!$AK$1:$AK$1452,A166,1),INDEX(LinMotor!$AI$1:$AI$1305,A166,1))/1000,"0.0k")),"") -> 307.7939542 | P166: =IF(A166<>2,IF(IF(Calc!$A$90,INDEX(Motor!$AL$1:$AL$1452,A166,1),INDEX(LinMotor!$AJ$1:$AJ$1305,A166,1))<1000,IF(Calc!$A$90,INDEX(Motor!$AL$1:$AL$1452,A166,1),INDEX(LinMotor!$AJ$1:$AJ$1305,A166,1)),TEXT(IF(Calc!$A$90,INDEX(Motor!$AL$1:$AL$1452,A166,1),INDEX(LinMotor!$AJ$1:$AJ$1305,A166,1))/1000,"0.0k")),"") -> 249.510749 | Q166: =IF(A166<>2,IF(IF(Calc!$A$90,INDEX(Motor!$AM$1:$AM$1452,A166,1),INDEX(LinMotor!$AK$1:$AK$1305,A166,1))<1000,IF(Calc!$A$90,INDEX(Motor!$AM$1:$AM$1452,A166,1),INDEX(LinMotor!$AK$1:$AK$1305,A166,1)),TEXT(IF(Calc!$A$90,INDEX(Motor!$AM$1:$AM$1452,A166,1),INDEX(LinMotor!$AK$1:$AK$1305,A166,1))/1000,"0.0k")),"") -> 2.4k
